Workbook

Sheet 1. Information Sheet
V1: Algoma Power Inc.
V2: Atikokan Hydro Inc.
V3: Bluewater Power Distribution Corporation
V4: Brant County Power Inc.
V5: Brantford Power Inc.
V6: Burlington Hydro Inc.
V7: Cambridge and North Dumfries Hydro Inc.
V8: Canadian Niagara Power Inc.
V9: Centre Wellington Hydro Ltd.
V10: Chapleau Public Utilities Corporation
V11: Collus PowerStream Corporation
M12: Version | N12: 2.4 | V12: Cooperative Hydro Embrun Inc.
V13: E.L.K. Energy Inc.
E14: Utility Name | F14: Hearst Power Distribution Company Limited | V14: Enersource Hydro Mississauga Inc.
V15: Entegrus Powerlines Inc.
E16: Service Territory | F16: (if applicable) | V16: Entegrus Powerlines Inc. - Dutton Service Area
V17: Entegrus Powerlines Inc. - former Chatham-Kent Hydro Service Area
E18: Assigned EB Number | F18: EB-2014-0080 | V18: Entegrus Powerlines Inc. - Newbury Service Area
V19: Entegrus Powerlines Inc. - Strathroy, Mount Brydges and Parkhill Service Areas
E20: Name of Contact and Title | F20: Jessy Richard | V20: ENWIN Utilities Ltd.
V21: Erie Thames Powerlines Corporation
E22: Phone Number | F22: 705-372-2820 | V22: Espanola Regional Hydro Distribution Corporation
V23: Essex Powerlines Corporation
E24: Email Address | F24: jrichard@hearstpower.com | V24: Festival Hydro Inc.
V25: Fort Frances Power Corporation
V26: Greater Sudbury Hydro Inc.
B27: General Notes 1. Please ensure that your macros have been enabled. (Tools -> Macro -> Security) 2. Due to the time lag of deferral/variance account dispositions, this model assumes that all opening balances include previously disposed of amounts. Accordingly, all "Board Approved Dispositions" are deducted from the opening balance. 3. Please provide information in this model since the last time your balances were disposed. 4. For all Board-Approved dispositions, please ensure that the disposition amount has the same sign (e.g: debit balances are to have a positive figure and credit balance are to have a negative figure) as per the related Board decision. | V27: Grimsby Power Inc.
V28: Guelph Hydro Electric Systems Inc.
B29: Notes | V29: Haldimand County Hydro Inc.
V30: Halton Hills Hydro Inc.
C31: Pale green cells represent input cells. | V31: Hearst Power Distribution Company Limited
V32: Horizon Utilities Corporation
C33: Pale blue cells represent drop-down lists. The applicant should select the appropriate item from the drop-down list. | V33: Hydro 2000 Inc.
V34: Hydro Hawkesbury Inc.
C35: White cells contain fixed values, automatically generated values or formulae. | V35: Hydro One Brampton Networks Inc.
V36: Hydro One Networks Inc.
V37: Hydro Ottawa Limited
V38: Innisfil Hydro Distribution Systems Limited
V39: Kenora Hydro Electric Corporation Ltd.
V40: Kingston Hydro Corporation
V41: Kitchener-Wilmot Hydro Inc.
V42: Lakefront Utilities Inc.
V43: Lakeland Power Distribution Ltd.
V44: London Hydro Inc.
V45: Midland Power Utility Corporation
V46: Milton Hydro Distribution Inc.
V47: Newmarket - Tay Power Distribution Ltd.
V48: Niagara Peninsula Energy Inc.
V49: Niagara-on-the-Lake Hydro Inc.
V50: Norfolk Power Distribution Inc.
V51: North Bay Hydro Distribution Limited
V52: Northern Ontario Wires Inc.
V53: Oakville Hydro Electricity Distribution Inc.
V54: Orangeville Hydro Limited
V55: Orillia Power Distribution Corporation
V56: Oshawa PUC Networks Inc.
V57: Ottawa River Power Corporation
V58: Parry Sound Power Corporation
V59: Peterborough Distribution Incorporated
V60: PowerStream Inc.
V61: PUC Distribution Inc.
V62: Renfrew Hydro Inc.
V63: Rideau St. Lawrence Distribution Inc.
V64: Sioux Lookout Hydro Inc.
V65: St. Thomas Energy Inc.
V66: Thunder Bay Hydro Electricity Distribution Inc.
V67: Tillsonburg Hydro Inc.
V68: Toronto Hydro-Electric System Limited
V69: Veridian Connections Inc.
V70: Wasaga Distribution Inc.
V71: Waterloo North Hydro Inc.
V72: Welland Hydro-Electric System Corp.
V73: Wellington North Power Inc.
V74: West Coast Huron Energy Inc.
V75: Westario Power Inc.
V76: Whitby Hydro Electric Corporation
V77: Woodstock Hydro Services Inc.

Sheet 2. 2014 Continuity Schedule
E19: 2009 | O19: 2010 | Y19: 2011 | AI19: 2012 | AV19: 2013 | BI19: 2014 | BV19: 2015 | BZ19: Projected Interest on Dec-31-14 Balances | CC19: 2.1.7 RRR
C20: Account Descriptions | D20: Account Number | E20: Opening Principal Amounts as of Jan-1-09 | F20: Transactions Debit / (Credit) during 2009 excluding interest and adjustments 3 | G20: Board-Approved Disposition during 2009 | H20: Adjustments during 2009 - other 2 | I20: Closing Principal Balance as of Dec-31-09 | J20: Opening Interest Amounts as of Jan-1-09 | K20: Interest Jan-1 to Dec-31-09 | L20: Board-Approved Disposition during 2009 | M20: Adjustments during 2009 - other 2 | N20: Closing Interest Amounts as of Dec-31-09 | O20: Opening Principal Amounts as of Jan-1-10 | P20: Transactions Debit / (Credit) during 2010 excluding interest and adjustments 3 | Q20: Board-Approved Disposition during 2010 | R20: Adjustments during 2010 - other 2 | S20: Closing Principal Balance as of Dec-31-10 | T20: Opening Interest Amounts as of Jan-1-10 | U20: Interest Jan-1 to Dec-31-10 | V20: Board-Approved Disposition during 2010 | W20: Adjustments during 2010 - other 2 | X20: Closing Interest Amounts as of Dec-31-10 | Y20: Opening Principal Amounts as of Jan-1-11 | Z20: Transactions Debit / (Credit) during 2011 excluding interest and adjustments 3 | AA20: Board-Approved Disposition during 2011 | AB20: Adjustments during 2010 - other 2 | AC20: Closing Principal Balance as of Dec-31-11 | AD20: Opening Interest Amounts as of Jan-1-11 | AE20: Interest Jan-1 to Dec-31-11 | AF20: Board-Approved Disposition during 2011 | AG20: Adjustments during 2011 - other 2 | AH20: Closing Interest Amounts as of Dec-31-11 | AI20: Opening Principal Amounts as of Jan-1-12 | AJ20: Transactions Debit / (Credit) during 2012 excluding interest and adjustments 3 | AK20: Board-Approved Disposition during 2012 | AL20: Other 2 Adjustments during Q1 2012 | AM20: Other 2 Adjustments during Q2 2012 | AN20: Other 2 Adjustments during Q3 2012 | AO20: Other 2 Adjustments during Q4 2012 | AP20: Closing Principal Balance as of Dec-31-12 | AQ20: Opening Interest Amounts as of Jan-1-12 | AR20: Interest Jan-1 to Dec-31-12 | AS20: Board-Approved Disposition during 2012 | AT20: Adjustments during 2012 - other 2 | AU20: Closing Interest Amounts as of Dec-31-12 | AV20: Opening Principal Amounts as of Jan-1-13 | AW20: Transactions Debit / (Credit) during 2013 excluding interest and adjustments 3 | AX20: Board-Approved Disposition during 2013 | AY20: Other 2 Adjustments during Q1 2013 | AZ20: Other 2 Adjustments during Q2 2013 | BA20: Other 2 Adjustments during Q3 2013 | BB20: Other 2 Adjustments during Q4 2013 | BC20: Closing Principal Balance as of Dec-31-13 | BD20: Opening Interest Amounts as of Jan-1-13 | BE20: Interest Jan-1 to Dec-31-13 | BF20: Board-Approved Disposition during 2013 | BG20: Adjustments during 2013 - other 2 | BH20: Closing Interest Amounts as of Dec-31-13 | BI20: Opening Principal Amounts as of Jan-1-14 | BJ20: Transactions Debit / (Credit) during 2014 excluding interest and adjustments 3 | BK20: Board-Approved Disposition during 2014 | BL20: Other 2 Adjustments during Q1 2014 | BM20: Other 2 Adjustments during Q2 2014 | BN20: Other 2 Adjustments during Q3 2014 | BO20: Other 2 Adjustments during Q4 2014 | BP20: Closing Principal Balance as of Dec-31-14 | BQ20: Opening Interest Amounts as of Jan-1-14 | BR20: Interest Jan-1 to Dec-31-14 | BS20: Board-Approved Disposition during 2014 | BT20: Adjustments during 2014 - other 2 | BU20: Closing Interest Amounts as of Dec-31-14 | BV20: Principal Disposition during 2015 - instructed by Board | BW20: Interest Disposition during 2015 - instructed by Board | BX20: Closing Principal Balances as of Dec 31-14 Adjusted for Dispositions during 2015 | BY20: Closing Interest Balances as of Dec 31-14 Adjusted for Dispositions during 2015 | BZ20: Projected Interest from Jan 1, 2015 to December 31, 2015 on Dec 31 -14 balance adjusted for disposition during 2015 6 | CA20: Projected Interest from January 1, 2015 to April 30, 2016 on Dec 31 -14 balance adjusted for disposition during 2015 6 | CB20: Total Claim | CC20: As of Dec 31-14 | CD20: Variance RRR vs. 2014 Balance (Principal + Interest)
CB22: Claim before Forecasted Transactions
C23: Group 1 Accounts
A24: 1 | C24: LV Variance Account | D24: 1550 | E24: 52353.26 | F24: -7957.48 | H24: 23953.02 | I24: =E24+F24-G24+H24 -> 68348.8 | J24: 3039.12 | K24: 1010.5 | N24: =J24+K24-L24+M24 -> 4049.62 | O24: =I24 -> 68348.8 | P24: -2460.96 | S24: =O24+P24-Q24+R24 -> 65887.84 | T24: =N24 -> 4049.62 | U24: 527.89 | X24: =T24+U24-V24+W24 -> 4577.51 | Y24: =S24 -> 65887.84 | Z24: 21340.23 | AA24: 52343 | AB24: 2656.34 | AC24: =Y24+Z24-AA24+SUM(AB24:AB24) -> 37541.41 | AD24: =X24 -> 4577.51 | AE24: 608.61 | AF24: 3423.74 | AH24: =AD24+AE24-AF24+AG24 -> 1762.38 | AI24: =AC24 -> 37541.41 | AJ24: 27290.25 | AK24: 13534.68 | AO24: -51754.7 | AP24: =AI24+AJ24-AK24+SUM(AL24:AO24) -> -457.72 | AQ24: =AH24 -> 1762.38 | AR24: 603.1 | AS24: 1153.77 | AT24: -3424 | AU24: =AQ24+AR24-AS24+AT24 -> -2212.29 | AV24: =AP24 -> -457.72 | AW24: -2707.54 | AX24: -30992 | BC24: =AV24+AW24-AX24+SUM(AY24:BB24) -> 27826.74 | BD24: =AU24 -> -2212.29 | BE24: 1005.69 | BF24: -3271 | BH24: =BD24+BE24-BF24+BG24 -> 2064.4 | BI24: =BC24 -> 27826.74 | BJ24: =21840.27-BI24 -> -5986.47 | BP24: =BI24+BJ24-BK24+SUM(BL24:BO24) -> 21840.27 | BQ24: =BH24 -> 2064.4 | BR24: =2466.18-BQ24 -> 401.78 | BU24: =BQ24+BR24-BS24+BT24 -> 2466.18 | BX24: =BP24-BV24 -> 21840.27 | BY24: =BU24-BW24 -> 2466.18 | CB24: =SUM(BX24:CA24) -> 24306.45 | CC24: 24306.45 | CD24: =CC24-SUM(BP24,BU24) -> 0
A25: 2 | C25: Smart Metering Entity Charge Variance Account | D25: 1551 | I25: =E25+F25-G25+H25 -> 0 | N25: =J25+K25-L25+M25 -> 0 | O25: =I25 -> 0 | S25: =O25+P25-Q25+SUM(R25:R25) -> 0 | T25: =N25 -> 0 | X25: =T25+U25-V25+W25 -> 0 | Y25: 0 | AC25: =Y25+Z25-AA25+SUM(AB25:AB25) -> 0 | AD25: =X25 -> 0 | AH25: =AD25+AE25-AF25+AG25 -> 0 | AI25: 0 | AP25: =AI25+AJ25-AK25+SUM(AL25:AO25) -> 0 | AQ25: 0 | AU25: =AQ25+AR25-AS25+AT25 -> 0 | AV25: =AP25 -> 0 | AW25: 2714 | BC25: =AV25+AW25-AX25+SUM(AY25:BB25) -> 2714 | BD25: =AU25 -> 0 | BE25: 24 | BH25: =BD25+BE25-BF25+BG25 -> 24 | BI25: =BC25 -> 2714 | BJ25: =1232.16-BI25 -> -1481.84 | BP25: =BI25+BJ25-BK25+SUM(BL25:BO25) -> 1232.16 | BQ25: =BH25 -> 24 | BR25: =68.31-BQ25 -> 44.31 | BU25: =BQ25+BR25-BS25+BT25 -> 68.31 | BX25: =BP25-BV25 -> 1232.16 | BY25: =BU25-BW25 -> 68.31 | CB25: =SUM(BX25:CA25) -> 1300.47 | CC25: 1300.47 | CD25: =CC25-SUM(BP25,BU25) -> 0
A26: 3 | C26: RSVA - Wholesale Market Service Charge | D26: 1580 | E26: -192412.81 | F26: -60965.84 | I26: =E26+F26-G26+H26 -> -253378.65 | J26: -10144.13 | K26: -2814.42 | N26: =J26+K26-L26+M26 -> -12958.55 | O26: =I26 -> -253378.65 | P26: -99678.9 | S26: =O26+P26-Q26+SUM(R26:R26) -> -353057.55 | T26: =N26 -> -12958.55 | U26: -2440.29 | X26: =T26+U26-V26+W26 -> -15398.84 | Y26: -353057.55 | Z26: -15686.29 | AA26: -192412.81 | AB26: -63268 | AC26: -239599.03 | AD26: -15398.84 | AE26: -4556.47 | AF26: -11557.19 | AH26: =AD26+AE26-AF26+AG26 -> -8398.12 | AI26: -239599.03 | AJ26: -48509.46 | AK26: -160763 | AP26: =AI26+AJ26-AK26+SUM(AL26:AO26) -> -127345.49 | AQ26: -8398.12 | AR26: -1496.61 | AS26: -10433 | AU26: =AQ26+AR26-AS26+AT26 -> 538.27 | AV26: -127345.49 | AW26: -19549.48 | AX26: -15668 | BC26: =AV26+AW26-AX26+SUM(AY26:BB26) -> -131226.97 | BD26: 538.27 | BE26: -956 | BF26: 1806 | BH26: =BD26+BE26-BF26+BG26 -> -2223.73 | BI26: -131226.97 | BJ26: =-153936.66-BI26 -> -22709.69 | BP26: =BI26+BJ26-BK26+SUM(BL26:BO26) -> -153936.66 | BQ26: -2223.73 | BR26: =-3981.33-BQ26 -> -1757.6 | BU26: =BQ26+BR26-BS26+BT26 -> -3981.33 | BX26: =BP26-BV26 -> -153936.66 | BY26: =BU26-BW26 -> -3981.33 | CB26: =SUM(BX26:CA26) -> -157917.99 | CC26: -157917.99 | CD26: =CC26-SUM(BP26,BU26) -> 0
A27: 4 | C27: RSVA - Retail Transmission Network Charge | D27: 1584 | E27: -68738.88 | F27: -13995.36 | I27: -82734.24 | J27: -12987.62 | K27: -983.58 | N27: -13971.2 | O27: -82734.24 | P27: 32201.2 | S27: -50533.04 | T27: -13971.2 | U27: -586.81 | X27: -14558.01 | Y27: -50533.04 | Z27: -32132.95 | AA27: -68738.88 | AB27: 69408.53 | AC27: 55481.42 | AD27: -14558.01 | AE27: 203 | AF27: -13484.12 | AH27: -870.89 | AI27: 55481.42 | AJ27: 40239.3 | AK27: 19024 | AO27: -1408.55 | AP27: 75288.17 | AQ27: -870.89 | AR27: -106.46 | AS27: -1237 | AU27: 259.65 | AV27: 75288.17 | AW27: 45107.31 | AX27: -32951 | BC27: 153346.48 | BD27: 259.65 | BE27: 660 | BF27: -188 | BH27: 1107.65 | BI27: 153346.48 | BJ27: =157974.12-BI27 -> 4627.64 | BP27: 157974.12 | BQ27: 1107.65 | BR27: =3366.83-BQ27 -> 2259.18 | BU27: 3366.83 | BX27: 157974.12 | BY27: 3366.83 | CB27: 161340.95 | CC27: 161340.95 | CD27: =CC27-SUM(BP27,BU27) -> 0
A28: 5 | C28: RSVA - Retail Transmission Connection Charge | D28: 1586 | E28: -233230.78 | F28: -91356.82 | I28: -324587.6 | J28: -15829.92 | K28: -3551.57 | N28: -19381.49 | O28: -324587.6 | P28: -65348.48 | S28: -389936.08 | T28: -19381.49 | U28: -2923 | X28: -22304.49 | Y28: -389936.08 | Z28: -12555.26 | AA28: -233230.78 | AB28: 7051.99 | AC28: -162208.57 | AD28: -22304.49 | AE28: -4210.58 | AF28: -17548.22 | AH28: -8966.85 | AI28: -162208.57 | AJ28: 39213.05 | AK28: -156187 | AO28: -1373.68 | AP28: 31817.8 | AQ28: -8966.85 | AR28: -979.01 | AS28: -11684 | AU28: 1738.14 | AV28: 31817.8 | AW28: 20472.67 | AX28: -13074 | BC28: 65364.47 | BD28: 1738.14 | BE28: 629 | BF28: -2525 | BH28: 4892.14 | BI28: 65364.47 | BJ28: =56502.39-BI28 -> -8862.08 | BP28: 56502.39 | BQ28: 4892.14 | BR28: =5780.15-BQ28 -> 888.01 | BU28: 5780.15 | BX28: 56502.39 | BY28: 5780.15 | CB28: 62282.54 | CC28: 62282.54 | CD28: 0
A29: 6 | C29: RSVA - Power (excluding Global Adjustment) | D29: 1588 | E29: -208011 | F29: -140857 | H29: 0 | I29: -348868 | J29: -81441 | K29: -3510 | N29: -84951 | O29: -348868 | P29: -139932 | S29: -488800 | T29: -84951 | U29: -3510 | X29: -88461 | Y29: -488800 | Z29: -76433.58 | AA29: -209032.54 | AB29: -28857 | AC29: -385058.04 | AD29: -88461 | AE29: -6012.91 | AF29: -8305.46 | AH29: -86168.45 | AI29: -385058.04 | AJ29: -96247.23 | AK29: -279767 | AO29: 33713.64 | AP29: -167824.63 | AQ29: -86168.45 | AR29: -3832.35 | AS29: -89960 | AU29: -40.8 | AV29: -167824.63 | AW29: -49122 | AX29: -76433 | BC29: -140513.63 | BD29: -40.8 | BE29: -1784.4 | BF29: 2668 | BH29: -4493.2 | BI29: -140513.63 | BJ29: =-66794.39-BI29 -> 73719.24 | BP29: -66794.39 | BQ29: -4493.2 | BR29: =-5128.66-BQ29 -> -635.46 | BU29: -5128.66 | BX29: -66794.39 | BY29: -5128.66 | CB29: -71923.05 | CC29: -71923.05 | CD29: 0
A30: 7 | C30: RSVA - Global Adjustment | D30: 1589 | E30: 67472 | F30: 107293 | I30: 174765 | J30: 5673 | K30: 1392 | N30: 7065 | O30: 174765 | P30: -36515 | S30: 138250 | T30: 7065 | U30: 972 | X30: 8037 | Y30: 138250 | Z30: 72297.78 | AA30: 67572 | AB30: -3509 | AC30: 139466.78 | AD30: 8037 | AE30: 1888.45 | AF30: 6365 | AH30: 3560.45 | AI30: 139466.78 | AJ30: 46363.99 | AK30: 70678 | AO30: -13841.75 | AP30: 101311.02 | AQ30: 3560.45 | AR30: 1562.66 | AS30: 4353 | AU30: 770.11 | AV30: 101311.02 | AW30: -15518 | AX30: 72298 | BC30: 13495.02 | BD30: 770.11 | BE30: 602.26 | BF30: 269 | BH30: 1103.37 | BI30: 13495.02 | BJ30: =134355.72-BI30 -> 120860.7 | BP30: 134355.72 | BQ30: 1103.37 | BR30: =172.81-BQ30 -> -930.56 | BU30: 172.81 | BX30: 134355.72 | BY30: 172.81 | CB30: 134528.53 | CC30: 134528.53 | CD30: 0
A31: 8 | C31: Disposition and Recovery/Refund of Regulatory Balances (2008) | D31: 1595 | I31: 0 | N31: 0 | O31: =I31 -> 0 | S31: 0 | T31: =N31 -> 0 | X31: 0 | Y31: 0 | AC31: 0 | AD31: 0 | AH31: 0 | AI31: 0 | AP31: 0 | AQ31: 0 | AU31: 0 | AV31: 0 | BC31: 0 | BD31: 0 | BH31: 0 | BI31: 0 | BP31: 0 | BQ31: 0 | BR31: 0 | BU31: 0 | BX31: 0 | BY31: 0 | CB31: 0 | CD31: 0
A32: 9 | C32: Disposition and Recovery/Refund of Regulatory Balances (2009) | D32: 1595 | I32: 0 | N32: 0 | O32: 0 | S32: 0 | T32: 0 | X32: 0 | Y32: 0 | AC32: 0 | AD32: 0 | AH32: 0 | AI32: 0 | AP32: 0 | AQ32: 0 | AU32: 0 | AV32: 0 | BC32: 0 | BD32: 0 | BH32: 0 | BI32: 0 | BP32: 0 | BQ32: 0 | BR32: 0 | BU32: 0 | BX32: 0 | BY32: 0 | CB32: 0 | CD32: 0
A33: 10 | C33: Disposition and Recovery/Refund of Regulatory Balances (2010) | D33: 1595 | I33: =E33+F33-G33+H33 -> 0 | N33: =J33+K33-L33+M33 -> 0 | O33: =I33 -> 0 | S33: 0 | T33: =N33 -> 0 | X33: =T33+U33-V33+W33 -> 0 | Y33: 0 | Z33: -64542 | AA33: 605107 | AB33: 31053 | AC33: -638596 | AD33: 0 | AF33: 45675 | AH33: =AD33+AE33-AF33+AG33 -> -45675 | AI33: -638596 | AJ33: 204575 | AO33: 29509 | AP33: =AI33+AJ33-AK33+SUM(AL33:AO33) -> -404512 | AQ33: -45675 | AU33: =AQ33+AR33-AS33+AT33 -> -45675 | AV33: -404512 | AW33: 132698 | BB33: 184523.22 | BC33: =AV33+AW33-AX33+SUM(AY33:BB33) -> -87290.78 | BD33: -45675 | BE33: -4504 | BG33: -15382 | BH33: =BD33+BE33-BF33+BG33 -> -65561 | BI33: -87290.78 | BJ33: =-163641.15-BI33 -> -76350.37 | BP33: =BI33+BJ33-BK33+SUM(BL33:BO33) -> -163641.15 | BQ33: -65561 | BR33: =-69998.97-BQ33 -> -4437.97 | BU33: =BQ33+BR33-BS33+BT33 -> -69998.97 | BX33: -163641.15 | BY33: -69998.97 | CB33: -233640.12 | CC33: -233640.12 | CD33: =CC33-SUM(BP33,BU33) -> 0
A34: 11 | C34: Disposition and Recovery/Refund of Regulatory Balances (2011) | D34: 1595 | I34: =E34+F34-G34+H34 -> 0 | N34: =J34+K34-L34+M34 -> 0 | O34: =I34 -> 0 | S34: =O34+P34-Q34+SUM(R34:R34) -> 0 | T34: =N34 -> 0 | X34: =T34+U34-V34+W34 -> 0 | Y34: 0 | AC34: =Y34+Z34-AA34+SUM(AB34:AB34) -> 0 | AD34: =X34 -> 0 | AH34: =AD34+AE34-AF34+AG34 -> 0 | AI34: 0 | AK34: 493922 | AO34: 48512 | AP34: =AI34+AJ34-AK34+SUM(AL34:AO34) -> -445410 | AQ34: 0 | AS34: 107632 | AU34: =AQ34+AR34-AS34+AT34 -> -107632 | AV34: -445410 | AW34: 215872 | BB34: 22010 | BC34: =AV34+AW34-AX34+SUM(AY34:BB34) -> -207528 | BD34: -107632 | BE34: -3429 | BG34: -6092.16 | BH34: =BD34+BE34-BF34+BG34 -> -117153.16 | BI34: -207528 | BJ34: =42444.12-BI34 -> 249972.12 | BP34: =BI34+BJ34-BK34+SUM(BL34:BO34) -> 42444.12 | BQ34: -117153.16 | BR34: =-107733.74-BQ34 -> 9419.42 | BU34: =BQ34+BR34-BS34+BT34 -> -107733.74 | BX34: 42444.12 | BY34: -107733.74 | CB34: -65289.62 | CC34: -65289.62 | CD34: 0
A35: 12 | C35: Disposition and Recovery/Refund of Regulatory Balances (2012) | D35: 1595 | I35: =E35+F35-G35+H35 -> 0 | N35: =J35+K35-L35+M35 -> 0 | O35: =I35 -> 0 | S35: =O35+P35-Q35+SUM(R35:R35) -> 0 | T35: =N35 -> 0 | X35: =T35+U35-V35+W35 -> 0 | Y35: =S35 -> 0 | AC35: =Y35+Z35-AA35+SUM(AB35:AB35) -> 0 | AD35: =X35 -> 0 | AH35: =AD35+AE35-AF35+AG35 -> 0 | AI35: =AC35 -> 0 | AP35: =AI35+AJ35-AK35+SUM(AL35:AO35) -> 0 | AQ35: =AH35 -> 0 | AT35: 0 | AU35: =AQ35+AR35-AS35+AT35 -> 0 | AV35: =AP35 -> 0 | AW35: 49084 | AX35: 96820 | BC35: =AV35+AW35-AX35+SUM(AY35:BB35) -> -47736 | BD35: =AU35 -> 0 | BE35: -660 | BF35: 1241 | BH35: =BD35+BE35-BF35+BG35 -> -1901 | BI35: -47736 | BJ35: =25517.86-BI35 -> 73253.86 | BP35: =BI35+BJ35-BK35+SUM(BL35:BO35) -> 25517.86 | BQ35: -1901 | BR35: =-1706.8-BQ35 -> 194.2 | BU35: =BQ35+BR35-BS35+BT35 -> -1706.8 | BX35: =BP35-BV35 -> 25517.86 | BY35: =BU35-BW35 -> -1706.8 | CB35: =SUM(BX35:CA35) -> 23811.06 | CC35: 23811.06 | CD35: =CC35-SUM(BP35,BU35) -> 0
A36: 12 | C36: Disposition and Recovery/Refund of Regulatory Balances (2013) | D36: 1595 | I36: =E36+F36-G36+H36 -> 0 | N36: =J36+K36-L36+M36 -> 0 | O36: =I36 -> 0 | S36: =O36+P36-Q36+SUM(R36:R36) -> 0 | T36: =N36 -> 0 | X36: =T36+U36-V36+W36 -> 0 | Y36: 0 | AC36: =Y36+Z36-AA36+SUM(AB36:AB36) -> 0 | AD36: =X36 -> 0 | AH36: =AD36+AE36-AF36+AG36 -> 0 | AI36: 0 | AP36: =AI36+AJ36-AK36+SUM(AL36:AO36) -> 0 | AQ36: 0 | AT36: 0 | AU36: =AQ36+AR36-AS36+AT36 -> 0 | AV36: 0 | BC36: =AV36+AW36-AX36+SUM(AY36:BB36) -> 0 | BD36: 0 | BH36: =BD36+BE36-BF36+BG36 -> 0 | BI36: 0 | BP36: =BI36+BJ36-BK36+SUM(BL36:BO36) -> 0 | BQ36: 0 | BR36: 0 | BU36: =BQ36+BR36-BS36+BT36 -> 0 | BX36: 0 | BY36: 0 | CB36: 0 | CD36: 0
AV37: 0 | BD37: 0 | BI37: 0 | BQ37: 0
C38: Group 1 Sub-Total (including Account 1589 - Global Adjustment) | E38: =SUM(E24:E36) -> -582568.21 | F38: -207839.5 | G38: 0 | H38: 23953.02 | I38: -766454.69 | J38: -111690.55 | K38: -8457.07 | L38: 0 | M38: 0 | N38: -120147.62 | O38: -766454.69 | P38: -311734.14 | Q38: 0 | R38: 0 | S38: -1078188.83 | T38: -120147.62 | U38: -7960.21 | V38: 0 | W38: 0 | X38: -128107.83 | Y38: -1078188.83 | Z38: -107712.07 | AA38: 21606.99 | AB38: 14535.86 | AC38: -1192972.03 | AD38: -128107.83 | AE38: -12079.9 | AF38: 4568.75 | AG38: 0 | AH38: -144756.48 | AI38: -1192972.03 | AJ38: 212924.9 | AK38: =SUM(AK24:AK36) -> 441.68 | AL38: 0 | AM38: 0 | AN38: 0 | AO38: 43355.96 | AP38: -937132.85 | AQ38: -144756.48 | AR38: -4248.67 | AS38: -175.23 | AT38: -3424 | AU38: -152253.92 | AV38: -937132.85 | AW38: =SUM(AW24:AW36) -> 379050.96 | AX38: 0 | AY38: 0 | AZ38: 0 | BA38: 0 | BB38: 206533.22 | BC38: -351548.67 | BD38: -152253.92 | BE38: =SUM(BE24:BE36) -> -8412.45 | BF38: =SUM(BF24:BF36) -> 0 | BG38: =SUM(BG24:BG36) -> -21474.16 | BH38: =SUM(BH24:BH36) -> -182140.53 | BI38: -351548.67 | BJ38: =SUM(BJ24:BJ36) -> 407043.11 | BK38: 0 | BL38: 0 | BM38: 0 | BN38: 0 | BO38: 0 | BP38: 55494.44 | BQ38: -182140.53 | BR38: 5445.31 | BS38: 0 | BT38: 0 | BU38: -176695.22 | BV38: =SUM(BV24:BV36) -> 0 | BW38: 0 | BX38: 55494.44 | BY38: -176695.22 | BZ38: 0 | CA38: 0 | CB38: -121200.78 | CC38: -121200.78 | CD38: 0
C39: Group 1 Sub-Total (excluding Account 1589 - Global Adjustment) | E39: =E38-E40 -> -650040.21 | F39: -315132.5 | G39: 0 | H39: 23953.02 | I39: -941219.69 | J39: -117363.55 | K39: -9849.07 | L39: 0 | M39: 0 | N39: -127212.62 | O39: -941219.69 | P39: -275219.14 | Q39: 0 | R39: 0 | S39: -1216438.83 | T39: -127212.62 | U39: -8932.21 | V39: 0 | W39: 0 | X39: -136144.83 | Y39: -1216438.83 | Z39: -180009.85 | AA39: -45965.01 | AB39: 18044.86 | AC39: -1332438.81 | AD39: -136144.83 | AE39: -13968.35 | AF39: -1796.25 | AG39: 0 | AH39: -148316.93 | AI39: =AI38-AI40 -> -1332438.81 | AJ39: 166560.91 | AK39: -70236.32 | AL39: 0 | AM39: 0 | AN39: 0 | AO39: 57197.71 | AP39: -1038443.87 | AQ39: -148316.93 | AR39: -5811.33 | AS39: -4528.23 | AT39: -3424 | AU39: -153024.03 | AV39: -1038443.87 | AW39: 394568.96 | AX39: -72298 | AY39: 0 | AZ39: 0 | BA39: 0 | BB39: 206533.22 | BC39: -365043.69 | BD39: -153024.03 | BE39: -9014.71 | BF39: -269 | BG39: -21474.16 | BH39: -183243.9 | BI39: -365043.69 | BJ39: =BJ38-BJ40 -> 286182.41 | BK39: 0 | BL39: 0 | BM39: 0 | BN39: 0 | BO39: 0 | BP39: -78861.28 | BQ39: -183243.9 | BR39: 6375.87 | BS39: 0 | BT39: 0 | BU39: -176868.03 | BV39: =BV38-BV40 -> 0 | BW39: 0 | BX39: -78861.28 | BY39: -176868.03 | BZ39: 0 | CA39: 0 | CB39: -255729.31 | CC39: =CC38-CC40 -> -255729.31 | CD39: 0
C40: =C30 -> RSVA - Global Adjustment | D40: 1589 | E40: =E30 -> 67472 | F40: 107293 | G40: 0 | H40: 0 | I40: 174765 | J40: 5673 | K40: 1392 | L40: 0 | M40: 0 | N40: 7065 | O40: 174765 | P40: -36515 | Q40: 0 | R40: 0 | S40: 138250 | T40: 7065 | U40: 972 | V40: 0 | W40: 0 | X40: 8037 | Y40: 138250 | Z40: 72297.78 | AA40: 67572 | AB40: -3509 | AC40: 139466.78 | AD40: 8037 | AE40: 1888.45 | AF40: 6365 | AG40: 0 | AH40: 3560.45 | AI40: 139466.78 | AJ40: 46363.99 | AK40: =AK30 -> 70678 | AL40: 0 | AM40: 0 | AN40: 0 | AO40: -13841.75 | AP40: 101311.02 | AQ40: 3560.45 | AR40: 1562.66 | AS40: 4353 | AT40: 0 | AU40: 770.11 | AV40: 101311.02 | AW40: =AW30 -> -15518 | AX40: 72298 | AY40: 0 | AZ40: 0 | BA40: 0 | BB40: 0 | BC40: 13495.02 | BD40: 770.11 | BE40: =BE30 -> 602.26 | BF40: =BF30 -> 269 | BG40: =BG30 -> 0 | BH40: =BH30 -> 1103.37 | BI40: 13495.02 | BJ40: =BJ30 -> 120860.7 | BK40: 0 | BL40: 0 | BM40: 0 | BN40: 0 | BO40: 0 | BP40: 134355.72 | BQ40: 1103.37 | BR40: -930.56 | BS40: 0 | BT40: 0 | BU40: 172.81 | BV40: =BV30 -> 0 | BW40: 0 | BX40: 134355.72 | BY40: 172.81 | BZ40: 0 | CA40: 0 | CB40: 134528.53 | CC40: =CC30 -> 134528.53 | CD40: 0
AV41: 0
C42: Group 2 Accounts | AV42: 0 | BD42: 0
A43: 13 | C43: Other Regulatory Assets - Sub-Account - Deferred IFRS Transition Costs | D43: 1508 | I43: =E43+F43-G43+H43 -> 0 | N43: =J43+K43-L43+M43 -> 0 | O43: =I43 -> 0 | S43: =O43+P43-Q43+SUM(R43:R43) -> 0 | T43: =N43 -> 0 | X43: =T43+U43-V43+W43 -> 0 | Y43: =S43 -> 0 | AC43: =Y43+Z43-AA43+SUM(AB43:AB43) -> 0 | AD43: =X43 -> 0 | AH43: =AD43+AE43-AF43+AG43 -> 0 | AI43: =AC43 -> 0 | AJ43: 25500 | AP43: =AI43+AJ43-AK43+SUM(AL43:AO43) -> 25500 | AQ43: =AH43 -> 0 | AU43: =AQ43+AR43-AS43+AT43 -> 0 | AV43: 25500 | AW43: 10000 | BC43: =AV43+AW43-AX43+SUM(AY43:BB43) -> 35500 | BD43: 0 | BE43: 436 | BH43: =BD43+BE43-BF43+BG43 -> 436 | BI43: 35500 | BP43: =BI43+BJ43-BK43+SUM(BL43:BO43) -> 35500 | BQ43: 436 | BR43: =958.31-BQ43 -> 522.31 | BU43: =BQ43+BR43-BS43+BT43 -> 958.31 | BX43: =BP43-BV43 -> 35500 | BY43: =BU43-BW43 -> 958.31 | CB43: 36458.31 | CC43: 36458.31 | CD43: =CC43-SUM(BP43,BU43) -> 0
A44: 14 | C44: Other Regulatory Assets - Sub-Account - Incremental Capital Charges | D44: 1508 | I44: =E44+F44-G44+H44 -> 0 | N44: =J44+K44-L44+M44 -> 0 | O44: =I44 -> 0 | S44: 0 | T44: 0 | X44: =T44+U44-V44+W44 -> 0 | Y44: =S44 -> 0 | AC44: 0 | AD44: 0 | AH44: =AD44+AE44-AF44+AG44 -> 0 | AI44: 0 | AP44: =AI44+AJ44-AK44+SUM(AL44:AO44) -> 0 | AQ44: =AH44 -> 0 | AU44: 0 | AV44: 0 | BC44: =AV44+AW44-AX44+SUM(AY44:BB44) -> 0 | BD44: 0 | BH44: 0 | BI44: 0 | BP44: =BI44+BJ44-BK44+SUM(BL44:BO44) -> 0 | BQ44: 0 | BU44: 0 | BX44: 0 | BY44: 0 | CB44: 0 | CC44: 0 | CD44: 0
A45: 15 | C45: Other Regulatory Assets - Sub-Account - Financial Assistance Payment and Recovery Variance - Ontario Clean Energy Benefit Act8 | D45: 1508 | Y45: =S45 -> 0 | AC45: 0 | AD45: 0 | AE45: =816.01-183 -> 633.01 | AH45: =AD45+AE45-AF45+AG45 -> 633.01 | AI45: 0 | AP45: =AI45+AJ45-AK45+SUM(AL45:AO45) -> 0 | AQ45: =AH45 -> 633.01 | AR45: 570.26 | AU45: 1203.27 | AV45: 0 | BC45: =AV45+AW45-AX45+SUM(AY45:BB45) -> 0 | BD45: 1203.27 | BE45: 493 | BH45: 1696.27 | BI45: 0 | BQ45: 1696.27 | BR45: =2287.89-1696.04 -> 591.85 | BU45: 2288.12 | BX45: =BP45-BV45 -> 0 | BY45: =BU45-BW45 -> 2288.12 | CB45: 2288.12 | CC45: 2287.89 | CD45: -0.23
A46: 16 | C46: Other Regulatory Assets - Sub-Account - Financial Assistance Payment and Recovery Carrying Charges | D46: 1508 | Y46: =S46 -> 0 | AC46: 0 | AD46: 0 | AH46: =AD46+AE46-AF46+AG46 -> 0 | AI46: 0 | AP46: =AI46+AJ46-AK46+SUM(AL46:AO46) -> 0 | AQ46: =AH46 -> 0 | AU46: 0 | AV46: 0 | BC46: =AV46+AW46-AX46+SUM(AY46:BB46) -> 0 | BD46: 0 | BH46: 0 | BI46: 0 | BP46: =BI46+BJ46-BK46+SUM(BL46:BO46) -> 0 | BQ46: 0 | BU46: 0 | BX46: =BP46-BV46 -> 0 | BY46: =BU46-BW46 -> 0 | CB46: 0 | CC46: 0 | CD46: 0
A47: 17 | C47: Other Regulatory Assets - Sub-Account - Other 4 | D47: 1508 | E47: 24987.63 | I47: 24987.63 | J47: 3169.75 | K47: 341.96 | N47: 3511.71 | O47: 24987.63 | P47: 0 | S47: 24987.63 | T47: 3511.71 | U47: 200.56 | X47: 3712.27 | Y47: =S47 -> 24987.63 | Z47: 740.48 | AA47: 24988 | AB47: -542.03 | AC47: 198.08 | AD47: 3712.27 | AE47: 183 | AF47: 3353.37 | AH47: =AD47+AE47-AF47+AG47 -> 541.9 | AI47: 198.08 | AL47: -740.48 | AP47: =AI47+AJ47-AK47+SUM(AL47:AO47) -> -542.4 | AQ47: =AH47 -> 541.9 | AU47: 541.9 | AV47: -542.4 | BC47: =AV47+AW47-AX47+SUM(AY47:BB47) -> -542.4 | BD47: 541.9 | BH47: 541.9 | BI47: =BC47 -> -542.4 | BP47: =BI47+BJ47-BK47+SUM(BL47:BO47) -> -542.4 | BQ47: 541.9 | BU47: 541.9 | BX47: -542.4 | BY47: 541.9 | CB47: -0.5 | CC47: 0 | CD47: 0.5
A48: 18 | C48: Retail Cost Variance Account - Retail | D48: 1518 | I48: 0 | N48: 0 | O48: 0 | S48: 0 | T48: 0 | X48: 0 | Y48: 0 | AC48: 0 | AD48: 0 | AH48: 0 | AI48: 0 | AP48: 0 | AQ48: 0 | AU48: 0 | AV48: 0 | BC48: 0 | BD48: 0 | BH48: 0 | BI48: =BC48 -> 0 | BJ48: =-104.87+9.82 -> -95.05 | BP48: =BI48+BJ48-BK48+SUM(BL48:BO48) -> -95.05 | BQ48: 0 | BR48: -1.34 | BU48: -1.34 | BX48: -95.05 | BY48: -1.34 | CB48: -96.39 | CC48: -96.27 | CD48: 0.12
A49: 19 | C49: Misc. Deferred Debits | D49: 1525 | E49: 4007.18 | I49: 4007.18 | J49: 166.96 | K49: 10.51 | N49: 177.47 | O49: 4007.18 | S49: 4007.18 | T49: 177.47 | U49: 6.16 | X49: 183.63 | Y49: 4007.18 | AC49: 4007.18 | AD49: 183.63 | AE49: 9.69 | AH49: 193.32 | AI49: 4007.18 | AP49: 4007.18 | AQ49: 193.32 | AR49: 11.31 | AU49: 204.63 | AV49: 4007.18 | BC49: 4007.18 | BD49: 204.63 | BE49: 11.31 | BH49: 215.94 | BI49: 4007.18 | BP49: =BI49+BJ49-BK49+SUM(BL49:BO49) -> 4007.18 | BQ49: 215.94 | BR49: =227.28-215.94 -> 11.34 | BU49: 227.28 | BX49: 4007.18 | BY49: 227.28 | CB49: 4234.46 | CC49: 4234.46 | CD49: 0
A50: 20 | C50: Renewable Generation Connection Capital Deferral Account | D50: 1531 | I50: 0 | N50: 0 | O50: 0 | S50: 0 | T50: 0 | X50: 0 | Y50: 0 | AC50: 0 | AD50: 0 | AH50: 0 | AI50: 0 | AP50: 0 | AQ50: 0 | AU50: 0 | AV50: 0 | BC50: 0 | BD50: 0 | BH50: 0 | BI50: 0 | BP50: =BI50+BJ50-BK50+SUM(BL50:BO50) -> 0 | BQ50: 0 | BU50: 0 | BX50: 0 | BY50: 0 | CB50: 0 | CD50: 0
A51: 21 | C51: Renewable Generation Connection OM&A Deferral Account | D51: 1532 | I51: 0 | N51: 0 | O51: 0 | S51: 0 | T51: 0 | X51: 0 | Y51: 0 | AC51: 0 | AD51: 0 | AH51: 0 | AI51: 0 | AP51: 0 | AQ51: 0 | AU51: 0 | AV51: 0 | BC51: 0 | BD51: 0 | BH51: 0 | BI51: 0 | BP51: 0 | BQ51: 0 | BU51: 0 | BX51: 0 | BY51: 0 | CB51: 0 | CD51: 0
A52: 22 | C52: Renewable Generation Connection Funding Adder Deferral Account | D52: 1533 | I52: 0 | N52: 0 | O52: 0 | S52: 0 | T52: 0 | X52: 0 | Y52: 0 | AC52: 0 | AD52: 0 | AH52: 0 | AI52: 0 | AP52: 0 | AQ52: 0 | AU52: 0 | AV52: 0 | BC52: 0 | BD52: 0 | BH52: 0 | BI52: 0 | BP52: 0 | BQ52: 0 | BU52: 0 | BX52: 0 | BY52: 0 | CB52: 0 | CD52: 0
A53: 23 | C53: Smart Grid Capital Deferral Account | D53: 1534 | I53: 0 | N53: 0 | O53: 0 | S53: 0 | T53: 0 | X53: 0 | Y53: 0 | AC53: 0 | AD53: 0 | AH53: 0 | AI53: 0 | AP53: 0 | AQ53: 0 | AU53: 0 | AV53: 0 | BC53: 0 | BD53: 0 | BH53: 0 | BI53: 0 | BP53: 0 | BQ53: 0 | BU53: 0 | BX53: 0 | BY53: 0 | CB53: 0 | CD53: 0
A54: 24 | C54: Smart Grid OM&A Deferral Account | D54: 1535 | I54: 0 | N54: 0 | O54: 0 | S54: 0 | T54: 0 | X54: 0 | Y54: 0 | AC54: 0 | AD54: 0 | AH54: 0 | AI54: 0 | AP54: 0 | AQ54: 0 | AU54: 0 | AV54: 0 | BC54: 0 | BD54: 0 | BH54: 0 | BI54: 0 | BP54: 0 | BQ54: 0 | BU54: 0 | BX54: 0 | BY54: 0 | CB54: 0 | CD54: 0
A55: 25 | C55: Smart Grid Funding Adder Deferral Account | D55: 1536 | I55: 0 | N55: 0 | O55: 0 | S55: 0 | T55: 0 | X55: 0 | Y55: 0 | AC55: 0 | AD55: 0 | AH55: 0 | AI55: 0 | AP55: 0 | AQ55: 0 | AU55: 0 | AV55: 0 | BC55: 0 | BD55: 0 | BH55: 0 | BI55: 0 | BP55: 0 | BQ55: 0 | BU55: 0 | BX55: 0 | BY55: 0 | CB55: 0 | CD55: 0
A56: 26 | C56: Retail Cost Variance Account - STR | D56: 1548 | I56: 0 | N56: 0 | O56: 0 | S56: 0 | T56: 0 | X56: 0 | Y56: 0 | AC56: 0 | AD56: 0 | AH56: 0 | AI56: 0 | AP56: 0 | AQ56: 0 | AU56: 0 | AV56: 0 | BC56: 0 | BD56: 0 | BH56: 0 | BI56: 0 | BP56: 0 | BQ56: 0 | BU56: 0 | BX56: 0 | BY56: 0 | CB56: 0 | CD56: 0
A57: 27 | C57: Board-Approved CDM Variance Account | D57: 1567 | N57: 0 | S57: 0 | T57: 0 | X57: =T57+U57-V57+W57 -> 0 | Y57: 0 | AC57: 0 | AD57: 0 | AH57: =AD57+AE57-AF57+AG57 -> 0 | AI57: 0 | AP57: =AI57+AJ57-AK57+SUM(AL57:AO57) -> 0 | AQ57: =AH57 -> 0 | AU57: =AQ57+AR57-AS57+AT57 -> 0 | AV57: 0 | BC57: =AV57+AW57-AX57+SUM(AY57:BB57) -> 0 | BD57: 0 | BH57: =BD57+BE57-BF57+BG57 -> 0 | BI57: 0 | BP57: =BI57+BJ57-BK57+SUM(BL57:BO57) -> 0 | BQ57: 0 | BU57: =BQ57+BR57-BS57+BT57 -> 0 | BX57: 0 | BY57: 0 | CB57: 0 | CD57: 0
A58: 28 | C58: Extra-Ordinary Event Costs | D58: 1572 | I58: 0 | N58: 0 | O58: =I58 -> 0 | S58: 0 | T58: 0 | X58: 0 | Y58: =S58 -> 0 | AC58: 0 | AD58: 0 | AH58: =AD58+AE58-AF58+AG58 -> 0 | AI58: =AC58 -> 0 | AP58: =AI58+AJ58-AK58+SUM(AL58:AO58) -> 0 | AQ58: =AH58 -> 0 | AU58: =AQ58+AR58-AS58+AT58 -> 0 | AV58: 0 | BC58: =AV58+AW58-AX58+SUM(AY58:BB58) -> 0 | BD58: 0 | BH58: =BD58+BE58-BF58+BG58 -> 0 | BI58: 0 | BP58: =BI58+BJ58-BK58+SUM(BL58:BO58) -> 0 | BQ58: 0 | BU58: =BQ58+BR58-BS58+BT58 -> 0 | BX58: 0 | BY58: 0 | CB58: 0 | CD58: 0
A59: 29 | C59: Deferred Rate Impact Amounts | D59: 1574 | I59: 0 | N59: 0 | O59: =I59 -> 0 | S59: 0 | T59: 0 | X59: 0 | Y59: =S59 -> 0 | AC59: 0 | AD59: 0 | AH59: =AD59+AE59-AF59+AG59 -> 0 | AI59: =AC59 -> 0 | AP59: =AI59+AJ59-AK59+SUM(AL59:AO59) -> 0 | AQ59: =AH59 -> 0 | AU59: =AQ59+AR59-AS59+AT59 -> 0 | AV59: 0 | BC59: =AV59+AW59-AX59+SUM(AY59:BB59) -> 0 | BD59: 0 | BH59: =BD59+BE59-BF59+BG59 -> 0 | BI59: 0 | BP59: =BI59+BJ59-BK59+SUM(BL59:BO59) -> 0 | BQ59: 0 | BU59: =BQ59+BR59-BS59+BT59 -> 0 | BX59: 0 | BY59: 0 | CB59: 0 | CD59: 0
A60: 30 | C60: RSVA - One-time | D60: 1582 | I60: 0 | N60: 0 | O60: =I60 -> 0 | S60: 0 | T60: 0 | X60: 0 | Y60: =S60 -> 0 | AC60: 0 | AD60: 0 | AH60: =AD60+AE60-AF60+AG60 -> 0 | AI60: =AC60 -> 0 | AP60: =AI60+AJ60-AK60+SUM(AL60:AO60) -> 0 | AQ60: =AH60 -> 0 | AU60: =AQ60+AR60-AS60+AT60 -> 0 | AV60: 0 | BC60: =AV60+AW60-AX60+SUM(AY60:BB60) -> 0 | BD60: 0 | BH60: =BD60+BE60-BF60+BG60 -> 0 | BI60: 0 | BP60: =BI60+BJ60-BK60+SUM(BL60:BO60) -> 0 | BQ60: 0 | BU60: =BQ60+BR60-BS60+BT60 -> 0 | BX60: 0 | BY60: 0 | CB60: 0 | CD60: 0
A61: 31 | C61: Other Deferred Credits | D61: 2425 | I61: 0 | N61: 0 | O61: =I61 -> 0 | S61: 0 | T61: 0 | X61: 0 | Y61: =S61 -> 0 | AC61: 0 | AD61: 0 | AH61: =AD61+AE61-AF61+AG61 -> 0 | AI61: =AC61 -> 0 | AP61: =AI61+AJ61-AK61+SUM(AL61:AO61) -> 0 | AQ61: =AH61 -> 0 | AU61: =AQ61+AR61-AS61+AT61 -> 0 | AV61: 0 | BC61: =AV61+AW61-AX61+SUM(AY61:BB61) -> 0 | BD61: 0 | BH61: =BD61+BE61-BF61+BG61 -> 0 | BI61: 0 | BP61: =BI61+BJ61-BK61+SUM(BL61:BO61) -> 0 | BQ61: 0 | BU61: =BQ61+BR61-BS61+BT61 -> 0 | BX61: 0 | BY61: 0 | CB61: 0 | CD61: 0
BQ62: 0
C63: Group 2 Sub-Total | E63: =SUM(E43:E61) -> 28994.81 | F63: 0 | G63: 0 | H63: 0 | I63: 28994.81 | J63: 3336.71 | K63: 352.47 | L63: 0 | M63: 0 | N63: 3689.18 | O63: 28994.81 | P63: 0 | Q63: 0 | R63: 0 | S63: 28994.81 | T63: 3689.18 | U63: 206.72 | V63: 0 | W63: 0 | X63: 3895.9 | Y63: 28994.81 | Z63: 740.48 | AA63: 24988 | AB63: -542.03 | AC63: 4205.26 | AD63: 3895.9 | AE63: 825.7 | AF63: 3353.37 | AG63: 0 | AH63: 1368.23 | AI63: 4205.26 | AJ63: 25500 | AK63: =SUM(AK43:AK61) -> 0 | AL63: -740.48 | AM63: 0 | AN63: 0 | AO63: 0 | AP63: 28964.78 | AQ63: 1368.23 | AR63: 581.57 | AS63: 0 | AT63: 0 | AU63: 1949.8 | AV63: 28964.78 | AW63: =SUM(AW43:AW61) -> 10000 | AX63: 0 | AY63: 0 | AZ63: 0 | BA63: 0 | BB63: 0 | BC63: 38964.78 | BD63: 1949.8 | BE63: 940.31 | BF63: 0 | BG63: 0 | BH63: 2890.11 | BI63: 38964.78 | BJ63: =SUM(BJ43:BJ61) -> -95.05 | BK63: 0 | BL63: 0 | BM63: 0 | BN63: 0 | BO63: =SUM(BO43:BO61) -> 0 | BP63: 38869.73 | BQ63: 2890.11 | BR63: 1124.16 | BS63: 0 | BT63: 0 | BU63: 4014.27 | BV63: =SUM(BV43:BV61) -> 0 | BW63: 0 | BX63: 38869.73 | BY63: 4014.27 | BZ63: 0 | CA63: 0 | CB63: 42884 | CC63: =SUM(CC43:CC61) -> 42884.39 | CD63: 0.39
A65: 32 | C65: Deferred Payments in Lieu of Taxes | D65: 1562 | E65: 5038.78 | F65: 2191.5 | I65: =E65+F65-G65+H65 -> 7230.28 | J65: 976.17 | K65: 66.58 | N65: =J65+K65-L65+M65 -> 1042.75 | O65: =I65 -> 7230.28 | P65: 3261.19 | S65: =O65+P65-Q65+SUM(R65:R65) -> 10491.47 | T65: =N65 -> 1042.75 | U65: 68.86 | X65: =T65+U65-V65+W65 -> 1111.61 | Y65: =S65 -> 10491.47 | Z65: 300.91 | AC65: =Y65+Z65-AA65+SUM(AB65:AB65) -> 10792.38 | AD65: =X65 -> 1111.61 | AH65: =AD65+AE65-AF65+AG65 -> 1111.61 | AI65: =AC65 -> 10792.38 | AJ65: -1228 | AK65: 2185 | AO65: -7379 | AP65: =AI65+AJ65-AK65+SUM(AL65:AO65) -> 0.38 | AQ65: =AH65 -> 1111.61 | AS65: 689 | AT65: -423 | AU65: =AQ65+AR65-AS65+AT65 -> -0.39 | AV65: 0.38 | AW65: 0 | BC65: =AV65+AW65-AX65+SUM(AY65:BB65) -> 0.38 | BD65: -0.39 | BH65: =BD65+BE65-BF65+BG65 -> -0.39 | BI65: 0.38 | BJ65: 0 | BP65: =BI65+BJ65-BK65+SUM(BL65:BO65) -> 0.38 | BQ65: -0.39 | BU65: =BQ65+BR65-BS65+BT65 -> -0.39 | BX65: =BP65-BV65 -> 0.38 | BY65: =BU65-BW65 -> -0.39 | CB65: -0.01 | CC65: 0 | CD65: 0.01
A66: 33 | C66: PILs and Tax Variance for 2006 and Subsequent Years (excludes sub-account and contra account below) | D66: 1592 | E66: -5039 | F66: -2192 | I66: =E66+F66-G66+H66 -> -7231 | J66: -976 | K66: -67 | N66: =J66+K66-L66+M66 -> -1043 | O66: =I66 -> -7231 | P66: -3261.15 | S66: =O66+P66-Q66+SUM(R66:R66) -> -10492.15 | T66: =N66 -> -1043 | U66: -68.86 | X66: =T66+U66-V66+W66 -> -1111.86 | Y66: =S66 -> -10492.15 | Z66: -300.91 | AC66: =Y66+Z66-AA66+SUM(AB66:AB66) -> -10793.06 | AD66: =X66 -> -1111.86 | AH66: =AD66+AE66-AF66+AG66 -> -1111.86 | AI66: =AC66 -> -10793.06 | AJ66: 1229 | AK66: -2185 | AO66: 7379 | AP66: =AI66+AJ66-AK66+SUM(AL66:AO66) -> -0.06 | AQ66: =AH66 -> -1111.86 | AS66: -689 | AT66: 423 | AU66: =AQ66+AR66-AS66+AT66 -> 0.14 | AV66: -0.06 | AW66: 0 | BC66: =AV66+AW66-AX66+SUM(AY66:BB66) -> -0.06 | BD66: 0.14 | BH66: =BD66+BE66-BF66+BG66 -> 0.14 | BI66: -0.06 | BJ66: 19.26 | BP66: =BI66+BJ66-BK66+SUM(BL66:BO66) -> 19.2 | BQ66: 0.14 | BU66: =BQ66+BR66-BS66+BT66 -> 0.14 | BX66: =BP66-BV66 -> 19.2 | BY66: =BU66-BW66 -> 0.14 | CB66: 19.34 | CC66: 19.26 | CD66: -0.08
A67: 34 | C67: PILs and Tax Variance for 2006 and Subsequent Years - Sub-Account HST/OVAT Input Tax Credits (ITCs) | D67: 1592 | I67: =E67+F67-G67+H67 -> 0 | N67: =J67+K67-L67+M67 -> 0 | O67: =I67 -> 0 | P67: 10380.27 | S67: =O67+P67-Q67+SUM(R67:R67) -> 10380.27 | T67: =N67 -> 0 | X67: =T67+U67-V67+W67 -> 0 | Y67: =S67 -> 10380.27 | AC67: =Y67+Z67-AA67+SUM(AB67:AB67) -> 10380.27 | AD67: =X67 -> 0 | AH67: =AD67+AE67-AF67+AG67 -> 0 | AI67: =AC67 -> 10380.27 | AK67: 5113 | AO67: -5267 | AP67: =AI67+AJ67-AK67+SUM(AL67:AO67) -> 0.27 | AQ67: =AH67 -> 0 | AU67: =AQ67+AR67-AS67+AT67 -> 0 | BC67: =AV67+AW67-AX67+SUM(AY67:BB67) -> 0 | BD67: 0 | BH67: =BD67+BE67-BF67+BG67 -> 0 | BI67: 0 | BP67: =BI67+BJ67-BK67+SUM(BL67:BO67) -> 0 | BQ67: 0 | BU67: =BQ67+BR67-BS67+BT67 -> 0 | BX67: =BP67-BV67 -> 0 | BY67: =BU67-BW67 -> 0 | CB67: 0 | CC67: 0 | CD67: 0
C69: Total of Group 1 and Group 2 Accounts (including 1562 and 1592) | E69: =+E63+E38+E65+E66+E67 -> -553573.62 | F69: -207840 | G69: 0 | H69: 23953.02 | I69: -737460.6 | J69: -108353.67 | K69: -8105.02 | L69: 0 | M69: 0 | N69: -116458.69 | O69: -737460.6 | P69: -301353.83 | Q69: 0 | R69: 0 | S69: -1038814.43 | T69: -116458.69 | U69: -7753.49 | V69: 0 | W69: 0 | X69: -124212.18 | Y69: -1038814.43 | Z69: -106971.59 | AA69: 46594.99 | AB69: 13993.83 | AC69: -1178387.18 | AD69: -124212.18 | AE69: -11254.2 | AF69: 7922.12 | AG69: 0 | AH69: -143388.5 | AI69: -1178387.18 | AJ69: 238425.9 | AK69: =+AK63+AK38+AK65+AK66+AK67 -> 5554.68 | AL69: -740.48 | AM69: 0 | AN69: 0 | AO69: 38088.96 | AP69: -908167.48 | AQ69: -143388.5 | AR69: -3667.1 | AS69: -175.23 | AT69: -3424 | AU69: -150304.37 | AV69: -908167.48 | AW69: =+AW63+AW38+AW65+AW66+AW67 -> 389050.96 | AX69: 0 | AY69: 0 | AZ69: 0 | BA69: 0 | BB69: 206533.22 | BC69: -312583.57 | BD69: -150304.37 | BE69: -7472.14 | BF69: 0 | BG69: -21474.16 | BH69: -179250.67 | BI69: -312583.57 | BK69: =+BK63+BK38+BK65+BK66+BK67 -> 0 | BL69: 0 | BM69: 0 | BN69: 0 | BO69: 0 | BP69: 94383.75 | BQ69: -179250.67 | BS69: 0 | BT69: 0 | BU69: -172681.2 | BV69: =+BV63+BV38+BV65+BV66+BV67 -> 0 | BW69: 0 | BX69: 94383.75 | BY69: -172681.2 | BZ69: 0 | CA69: 0 | CB69: -78297.45 | CC69: -78297.13 | CD69: 0.3200000001
A72: 35 | C72: LRAM Variance Account | D72: 1568 | S72: =O72+P72-Q72+SUM(R72:R72) -> 0 | X72: =T72+U72-V72+W72 -> 0 | Y72: =S72 -> 0 | AC72: =Y72+Z72-AA72+SUM(AB72:AB72) -> 0 | AD72: =X72 -> 0 | AH72: =AD72+AE72-AF72+AG72 -> 0 | AI72: =AC72 -> 0 | AJ72: -8014.39 | AL72: 21703.17 | AP72: =AI72+AJ72-AK72+SUM(AL72:AO72) -> 13688.78 | AQ72: =AH72 -> 0 | AU72: =AQ72+AR72-AS72+AT72 -> 0 | AV72: 13688.78 | AX72: 8661.8 | BC72: =AV72+AW72-AX72+SUM(AY72:BB72) -> 5026.98 | BD72: 0 | BE72: 201.23 | BH72: =BD72+BE72-BF72+BG72 -> 201.23 | BI72: 5026.98 | BJ72: 10619 | BP72: =BI72+BJ72-BK72+SUM(BL72:BO72) -> 15645.98 | BQ72: 201.23 | BR72: =275.06-201.23 -> 73.83 | BU72: =BQ72+BR72-BS72+BT72 -> 275.06 | BX72: =BP72-BV72 -> 15645.98 | BY72: =BU72-BW72 -> 275.06 | CB72: =SUM(BX72:CA72) -> 15921.04 | CC72: 5289.65 | CD72: =CC72-SUM(BP72,BU72) -> -10631.39
C75: Total including Account 1568 | E75: =E69+E72 -> -553573.62 | F75: -207840 | G75: 0 | H75: 23953.02 | I75: -737460.6 | J75: -108353.67 | K75: -8105.02 | L75: 0 | M75: 0 | N75: -116458.69 | O75: -737460.6 | P75: -301353.83 | Q75: 0 | R75: 0 | S75: -1038814.43 | T75: -116458.69 | U75: -7753.49 | V75: 0 | W75: 0 | X75: -124212.18 | Y75: -1038814.43 | Z75: -106971.59 | AA75: 46594.99 | AB75: 13993.83 | AC75: =AC69+AC72 -> -1178387.18 | AD75: -124212.18 | AE75: -11254.2 | AF75: 7922.12 | AG75: 0 | AH75: -143388.5 | AI75: -1178387.18 | AJ75: 230411.51 | AK75: 5554.68 | AL75: 20962.69 | AM75: 0 | AN75: 0 | AO75: 38088.96 | AP75: -894478.7 | AQ75: -143388.5 | AR75: -3667.1 | AS75: -175.23 | AT75: -3424 | AU75: -150304.37 | AV75: -894478.7 | AW75: 389050.96 | AX75: 8661.8 | AY75: 0 | AZ75: 0 | BA75: 0 | BB75: 206533.22 | BC75: -307556.59 | BD75: -150304.37 | BE75: -7270.91 | BF75: 0 | BG75: -21474.16 | BH75: -179049.44 | BI75: -307556.59 | BL75: =BL69+BL72 -> 0 | BM75: 0 | BN75: 0 | BO75: 0 | BP75: 110029.73 | BQ75: -179049.44 | BS75: 0 | BT75: 0 | BU75: -172406.14 | BV75: 0 | BW75: 0 | BX75: 110029.73 | BY75: -172406.14 | CB75: -62376.41 | CC75: -73007.48 | CD75: =CC75-SUM(BP75,BU75) -> -10631.07
A77: 36 | C77: Smart Meter Capital and Recovery Offset Variance - Sub-Account - Capital10 | D77: 1555 | E77: 0 | F77: =437190 -> 437190 | H77: -14427 | I77: =E77+F77-G77+H77 -> 422763 | K77: 2324 | N77: =J77+K77-L77+M77 -> 2324 | O77: =I77 -> 422763 | P77: 51432.3 | R77: -30662.47 | S77: =O77+P77-Q77+SUM(R77:R77) -> 443532.83 | T77: =N77 -> 2324 | U77: 4009.15 | X77: =T77+U77-V77+W77 -> 6333.15 | Y77: =S77 -> 443532.83 | Z77: 106155.41 | AB77: -37739.5 | AC77: =Y77+Z77-AA77+SUM(AB77:AB77) -> 511948.74 | AD77: =X77 -> 6333.15 | AE77: 7009.39 | AH77: =AD77+AE77-AF77+AG77 -> 13342.54 | AI77: =AC77 -> 511948.74 | AJ77: 17579.08 | AO77: -39841.95 | AP77: =AI77+AJ77-AK77+SUM(AL77:AO77) -> 489685.87 | AQ77: =AH77 -> 13342.54 | AR77: 8304.32 | AU77: =AQ77+AR77-AS77+AT77 -> 21646.86 | AV77: =AP77 -> 489685.87 | BB77: -39841.95 | BC77: =AV77+AW77-AX77+SUM(AY77:BB77) -> 449843.92 | BD77: 21646.86 | BE77: 8565 | BH77: =BD77+BE77-BF77+BG77 -> 30211.86 | BI77: 449843.92 | BJ77: 0 | BO77: =46359.99-8945.19-43914.45 -> -6499.65 | BP77: =BI77+BJ77-BK77+SUM(BL77:BO77) -> 443344.27 | BQ77: 30211.86 | BR77: 7275 | BT77: -504 | BU77: =BQ77+BR77-BS77+BT77 -> 36982.86 | BX77: =BP77-BV77 -> 443344.27 | BY77: =BU77-BW77 -> 36982.86 | CB77: 480327.13 | CC77: =488425.24-45081+36982.8 -> 480327.04 | CD77: =CC77-SUM(BP77,BU77) -> -0.08999999991 | CE77: Smart Meter Capital and Recovery Offset Variance - Sub-Account - Capital10 | CF77: 1555
A78: 37 | C78: Smart Meter Capital and Recovery Offset Variance - Sub-Account - Recoveries10 | D78: 1555 | E78: -20713.71 | F78: -22445.56 | I78: =E78+F78-G78+H78 -> -43159.27 | J78: -1074 | K78: -334.82 | N78: =J78+K78-L78+M78 -> -1408.82 | O78: =I78 -> -43159.27 | P78: -32730.96 | S78: =O78+P78-Q78+SUM(R78:R78) -> -75890.23 | T78: =N78 -> -1408.82 | U78: -420.65 | X78: =T78+U78-V78+W78 -> -1829.47 | Y78: =S78 -> -75890.23 | Z78: -61566 | AC78: =Y78+Z78-AA78+SUM(AB78:AB78) -> -137456.23 | AD78: =X78 -> -1829.47 | AE78: -1391.53 | AH78: =AD78+AE78-AF78+AG78 -> -3221 | AI78: =AC78 -> -137456.23 | AJ78: -34163.97 | AP78: =AI78+AJ78-AK78+SUM(AL78:AO78) -> -171620.2 | AQ78: =AH78 -> -3221 | AR78: -2484.75 | AU78: =AQ78+AR78-AS78+AT78 -> -5705.75 | AV78: =AP78 -> -171620.2 | BC78: =AV78+AW78-AX78+SUM(AY78:BB78) -> -171620.2 | BD78: -5705.75 | BE78: -2810 | BH78: =BD78+BE78-BF78+BG78 -> -8515.75 | BI78: -171620.2 | BJ78: 0 | BP78: =BI78+BJ78-BK78+SUM(BL78:BO78) -> -171620.2 | BQ78: -8515.75 | BR78: -2573 | BU78: =BQ78+BR78-BS78+BT78 -> -11088.75 | BX78: -171620.2 | BY78: =BU78-BW78 -> -11088.75 | CB78: -182708.95 | CC78: =-145725.83-36982.8 -> -182708.63 | CD78: =CC78-SUM(BP78,BU78) -> 0.32 | CE78: Smart Meter Capital and Recovery Offset Variance - Sub-Account - Recoveries10 | CF78: 1555
A79: 38 | C79: Smart Meter Capital and Recovery Offset Variance - Sub-Account - Stranded Meter Costs10 | D79: 1555 | E79: 0 | F79: 45081 | H79: 0 | I79: =E79+F79-G79+H79 -> 45081 | N79: =J79+K79-L79+M79 -> 0 | O79: =I79 -> 45081 | S79: =O79+P79-Q79+SUM(R79:R79) -> 45081 | T79: =N79 -> 0 | X79: =T79+U79-V79+W79 -> 0 | Y79: =S79 -> 45081 | AC79: =Y79+Z79-AA79+SUM(AB79:AB79) -> 45081 | AD79: =X79 -> 0 | AH79: =AD79+AE79-AF79+AG79 -> 0 | AI79: =AC79 -> 45081 | AP79: =AI79+AJ79-AK79+SUM(AL79:AO79) -> 45081 | AQ79: =AH79 -> 0 | AU79: =AQ79+AR79-AS79+AT79 -> 0 | AV79: 45081 | BC79: =AV79+AW79-AX79+SUM(AY79:BB79) -> 45081 | BD79: 0 | BH79: =BD79+BE79-BF79+BG79 -> 0 | BI79: 45081 | BP79: =BI79+BJ79-BK79+SUM(BL79:BO79) -> 45081 | BQ79: 0 | BU79: =BQ79+BR79-BS79+BT79 -> 0 | BX79: 45081 | BY79: =BU79-BW79 -> 0 | CB79: 45081 | CC79: 45081 | CD79: =CC79-SUM(BP79,BU79) -> 0 | CE79: Smart Meter Capital and Recovery Offset Variance - Sub-Account - Stranded Meter Costs10 | CF79: 1555
A80: 39 | C80: Smart Meter OM&A Variance10 | D80: 1556 | E80: 19326 | F80: 35719 | H80: 14427 | I80: =E80+F80-G80+H80 -> 69472 | J80: 0 | K80: 37.76 | M80: 264.35 | N80: =J80+K80-L80+M80 -> 302.11 | O80: =I80 -> 69472 | P80: =71513 -> 71513 | R80: 30662.47 | S80: =O80+P80-Q80+SUM(R80:R80) -> 171647.47 | T80: =N80 -> 302.11 | U80: 1011.36 | X80: =T80+U80-V80+W80 -> 1313.47 | Y80: =S80 -> 171647.47 | Z80: 50840.43 | AB80: 37739.5 | AC80: =Y80+Z80-AA80+SUM(AB80:AB80) -> 260227.4 | AD80: =X80 -> 1313.47 | AE80: 2676 | AH80: =AD80+AE80-AF80+AG80 -> 3989.47 | AI80: =AC80 -> 260227.4 | AJ80: 25034.96 | AO80: 39841.95 | AP80: =AI80+AJ80-AK80+SUM(AL80:AO80) -> 325104.31 | AQ80: =AH80 -> 3989.47 | AR80: 4023.03 | AU80: =AQ80+AR80-AS80+AT80 -> 8012.5 | AV80: 325104.31 | AW80: 34287.96 | BB80: 39841.95 | BC80: =AV80+AW80-AX80+SUM(AY80:BB80) -> 399234.22 | BD80: 8012.5 | BE80: 4958 | BH80: =BD80+BE80-BF80+BG80 -> 12970.5 | BI80: 399234.22 | BJ80: 32602.98 | BO80: 838 | BP80: =BI80+BJ80-BK80+SUM(BL80:BO80) -> 432675.2 | BQ80: 12970.5 | BR80: 6042 | BT80: -677 | BU80: =BQ80+BR80-BS80+BT80 -> 18335.5 | BX80: 432675.2 | BY80: =BU80-BW80 -> 18335.5 | CB80: 451010.7 | CC80: 451011.6 | CD80: =CC80-SUM(BP80,BU80) -> 0.9 | CE80: Smart Meter OM&A Variance10 | CF80: 1556
BX81: 0
A82: 40 | C82: IFRS-CGAAP Transition PP&E Amounts Balance + Return Component9 | D82: 1575 | AP82: =AI82+AJ82-AK82+SUM(AL82:AO82) -> 0 | AQ82: =AH82 -> 0 | AU82: =AQ82+AR82-AS82+AT82 -> 0 | AV82: 0 | BB82: 0 | BC82: =AV82+AW82-AX82+SUM(AY82:BB82) -> 0 | BD82: 0 | BH82: =BD82+BE82-BF82+BG82 -> 0 | BO82: 0 | BP82: =BI82+BJ82-BK82+SUM(BL82:BO82) -> 0 | BQ82: 0 | BU82: =BQ82+BR82-BS82+BT82 -> 0 | BX82: 0 | BY82: =BU82-BW82 -> 0 | CB82: =SUM(BX82:CA82) -> 0 | CC82: 0 | CD82: =CC82-SUM(BP82,BU82) -> 0 | CE82: IFRS-CGAAP Transition PP&E Amounts Balance + Return Component9 | CF82: 1575
A83: 41 | C83: Accounting Changes Under CGAAP Balance + Return Component9 | D83: 1576 | AP83: =AI83+AJ83-AK83+SUM(AL83:AO83) -> 0 | AQ83: =AH83 -> 0 | AU83: =AQ83+AR83-AS83+AT83 -> 0 | AV83: 0 | BB83: -83790 | BC83: =AV83+AW83-AX83+SUM(AY83:BB83) -> -83790 | BD83: 0 | BH83: =BD83+BE83-BF83+BG83 -> 0 | BI83: -83790 | BO83: 0 | BP83: =BI83+BJ83-BK83+SUM(BL83:BO83) -> -83790 | BQ83: 0 | BU83: =BQ83+BR83-BS83+BT83 -> 0 | BX83: -83790 | BY83: =BU83-BW83 -> 0 | CB83: =SUM(BX83:CA83) -> -83790 | CC83: 0 | CD83: =CC83-SUM(BP83,BU83) -> 83790 | CE83: Accounting Changes Under CGAAP Balance + Return Component9 | CF83: 1576
C87: For all Board-Approved dispositions, please ensure that the disposition amount has the same sign (e.g: debit balances are to have a positive figure and credit balance are to have a negative figure) as per the related Board decision.
B88: 1 | C88: Provide supporting statement indicating whether due to denial of costs in 2006 EDR by the Board, 10% transition costs write-off, etc.
B89: 1A | C89: Adjustments Instructed by the Board include deferral/variance account balances moved to Account 1590 as a result of the 2006 EDR and account 1595 during the 2008 EDR and subsequent years as ordered by the Board.
B90: 2 | C90: Please provide explanations for the nature of the adjustments. If the adjustment relates to previously Board Approved disposed balances, please provide amounts for adjustments and include supporting documentations.
B91: 3 | C91: For RSVA accounts only, report the net variance to the account during the year. For all other accounts, record the transactions during the year.
B92: 4 | C92: Please describe "other" components of 1508 and add more component lines if necessary.
B93: 5 | C93: 1563 is a contra-account and is not included in the total but is shown on a memo basis. Account 1562 establishes the obligation to the ratepayer.
B94: 6 | C94: If the LDC’s 2014 rate year begins January 1, 2014, the projected interest is recorded from January 1, 2013 to December 31, 2013 on the December 31, 2012 balance adjusted for the disposed balances approved by the Board in the 2013 rate decision. If the LDC’s 2013 rate year begins May 1, 2014 the projected interest is recorded from January 1, 2013 to April 30, 2014 on the December 31, 2012 balance adjusted for the disposed balances approved by the Board in the 2013 rate decision.
B97: 8 | C97: As per the January 6, 2011 Letter from the Board, regarding the implementation of the Ontario Clean Energy Benefit:
C98: "By way of exception... The Board does acticipate that licensed distributors that cannot adapt their invoices as of January 1, 2011 will require a variance account for OCEB purposes... The Board expects that any principal
C99: balances in "Sub account Financial Assistance Payment and Recovery Variance - Ontario Clean Energy Benefit Act" will be addressed through the monthly settlement process with the IESO or the host distributor, as applicable.
B100: 9 | C100: The Board requires that disposition of Account 1575 and Account 1576 shall require the use of separate rate riders. In the "Other Adjustments during Q4 2012" column of the continuity schedule, please enter the amounts to be included in the Account 1575 and 1576 rate rider calculation from the applicable Chapter 2 appendices. For Account 1575, please provide the value in cell F39 from the relevant Chapter 2 Appendix (i.e. 2-EA, 2-EB or 2-EC). For Account 1576, please provide the value in cell F39 from the relevant Chapter 2 Appendix (i.e. 2-ED or 2-EE).
B101: 10 | C101: Deferral accounts related to Smart Meter deployment are not to be recovered/refunded through the Deferral and Variance Account rate rider. For details on how to dispose of balances in Smart Meter accounts see the Board's
C102: Guideline: Smart Meter Disposition and Cost Recovery (G-2011-0001)

Sheet 3. Appendix A
B16: Accounts that produced a variance on the 2014 continuity schedule are listed below. Please provide a detailed explanation for each variance below.
C20: Account Descriptions | D20: Account Number | E20: Variance RRR vs. 2013 Balance (Principal + Interest) | F20: Explanation
C23: Group 1 Accounts
A24: 1 | C24: LV Variance Account | D24: 1550 | E24: =IF(ISERROR(VLOOKUP($A24, '2. 2014 Continuity Schedule'!$A$20:$CD$86, MATCH('3. Appendix A'!$E$20, '2. 2014 Continuity Schedule'!$A$20:$CD$20,0),FALSE)), 0, VLOOKUP($A24, '2. 2014 Continuity Schedule'!$A$20:$CD$86, MATCH('3. Appendix A'!$E$20, '2. 2014 Continuity Schedule'!$A$20:$CD$20,0),FALSE)) -> 0 | F24: In the past, the utility has inadvertently booked the interest for LV in account 1550 instead of 1551. this entry is to rectify the error.
A25: 2 | C25: Smart Metering Entity Charge Variance Account | D25: 1551 | E25: =IF(ISERROR(VLOOKUP($A25, '2. 2014 Continuity Schedule'!$A$20:$CD$86, MATCH('3. Appendix A'!$E$20, '2. 2014 Continuity Schedule'!$A$20:$CD$20,0),FALSE)), 0, VLOOKUP($A25, '2. 2014 Continuity Schedule'!$A$20:$CD$86, MATCH('3. Appendix A'!$E$20, '2. 2014 Continuity Schedule'!$A$20:$CD$20,0),FALSE)) -> 0 | F25: Reverese entry (see above)
A26: 3 | C26: RSVA - Wholesale Market Service Charge | D26: 1580 | E26: =IF(ISERROR(VLOOKUP($A26, '2. 2014 Continuity Schedule'!$A$20:$CD$86, MATCH('3. Appendix A'!$E$20, '2. 2014 Continuity Schedule'!$A$20:$CD$20,0),FALSE)), 0, VLOOKUP($A26, '2. 2014 Continuity Schedule'!$A$20:$CD$86, MATCH('3. Appendix A'!$E$20, '2. 2014 Continuity Schedule'!$A$20:$CD$20,0),FALSE)) -> 0
A27: 4 | C27: RSVA - Retail Transmission Network Charge | D27: 1584 | E27: =IF(ISERROR(VLOOKUP($A27, '2. 2014 Continuity Schedule'!$A$20:$CD$86, MATCH('3. Appendix A'!$E$20, '2. 2014 Continuity Schedule'!$A$20:$CD$20,0),FALSE)), 0, VLOOKUP($A27, '2. 2014 Continuity Schedule'!$A$20:$CD$86, MATCH('3. Appendix A'!$E$20, '2. 2014 Continuity Schedule'!$A$20:$CD$20,0),FALSE)) -> 0
A28: 5 | C28: RSVA - Retail Transmission Connection Charge | D28: 1586 | E28: =IF(ISERROR(VLOOKUP($A28, '2. 2014 Continuity Schedule'!$A$20:$CD$86, MATCH('3. Appendix A'!$E$20, '2. 2014 Continuity Schedule'!$A$20:$CD$20,0),FALSE)), 0, VLOOKUP($A28, '2. 2014 Continuity Schedule'!$A$20:$CD$86, MATCH('3. Appendix A'!$E$20, '2. 2014 Continuity Schedule'!$A$20:$CD$20,0),FALSE)) -> 0
A29: 6 | C29: RSVA - Power (excluding Global Adjustment) | D29: 1588 | E29: =IF(ISERROR(VLOOKUP($A29, '2. 2014 Continuity Schedule'!$A$20:$CD$86, MATCH('3. Appendix A'!$E$20, '2. 2014 Continuity Schedule'!$A$20:$CD$20,0),FALSE)), 0, VLOOKUP($A29, '2. 2014 Continuity Schedule'!$A$20:$CD$86, MATCH('3. Appendix A'!$E$20, '2. 2014 Continuity Schedule'!$A$20:$CD$20,0),FALSE)) -> 0
A30: 7 | C30: RSVA - Global Adjustment | D30: 1589 | E30: =IF(ISERROR(VLOOKUP($A30, '2. 2014 Continuity Schedule'!$A$20:$CD$86, MATCH('3. Appendix A'!$E$20, '2. 2014 Continuity Schedule'!$A$20:$CD$20,0),FALSE)), 0, VLOOKUP($A30, '2. 2014 Continuity Schedule'!$A$20:$CD$86, MATCH('3. Appendix A'!$E$20, '2. 2014 Continuity Schedule'!$A$20:$CD$20,0),FALSE)) -> 0
A31: 8 | C31: Disposition and Recovery/Refund of Regulatory Balances (2008) | D31: 1595 | E31: =IF(ISERROR(VLOOKUP($A31, '2. 2014 Continuity Schedule'!$A$20:$CD$86, MATCH('3. Appendix A'!$E$20, '2. 2014 Continuity Schedule'!$A$20:$CD$20,0),FALSE)), 0, VLOOKUP($A31, '2. 2014 Continuity Schedule'!$A$20:$CD$86, MATCH('3. Appendix A'!$E$20, '2. 2014 Continuity Schedule'!$A$20:$CD$20,0),FALSE)) -> 0
A32: 9 | C32: Disposition and Recovery/Refund of Regulatory Balances (2009) | D32: 1595 | E32: =IF(ISERROR(VLOOKUP($A32, '2. 2014 Continuity Schedule'!$A$20:$CD$86, MATCH('3. Appendix A'!$E$20, '2. 2014 Continuity Schedule'!$A$20:$CD$20,0),FALSE)), 0, VLOOKUP($A32, '2. 2014 Continuity Schedule'!$A$20:$CD$86, MATCH('3. Appendix A'!$E$20, '2. 2014 Continuity Schedule'!$A$20:$CD$20,0),FALSE)) -> 0
A33: 10 | C33: Disposition and Recovery/Refund of Regulatory Balances (2010) | D33: 1595 | E33: =IF(ISERROR(VLOOKUP($A33, '2. 2014 Continuity Schedule'!$A$20:$CD$86, MATCH('3. Appendix A'!$E$20, '2. 2014 Continuity Schedule'!$A$20:$CD$20,0),FALSE)), 0, VLOOKUP($A33, '2. 2014 Continuity Schedule'!$A$20:$CD$86, MATCH('3. Appendix A'!$E$20, '2. 2014 Continuity Schedule'!$A$20:$CD$20,0),FALSE)) -> 0
A34: 11 | C34: Disposition and Recovery/Refund of Regulatory Balances (2011) | D34: 1595 | E34: =IF(ISERROR(VLOOKUP($A34, '2. 2014 Continuity Schedule'!$A$20:$CD$86, MATCH('3. Appendix A'!$E$20, '2. 2014 Continuity Schedule'!$A$20:$CD$20,0),FALSE)), 0, VLOOKUP($A34, '2. 2014 Continuity Schedule'!$A$20:$CD$86, MATCH('3. Appendix A'!$E$20, '2. 2014 Continuity Schedule'!$A$20:$CD$20,0),FALSE)) -> 0
A35: 12 | C35: Disposition and Recovery/Refund of Regulatory Balances (2012) | D35: 1595 | E35: =IF(ISERROR(VLOOKUP($A35, '2. 2014 Continuity Schedule'!$A$20:$CD$86, MATCH('3. Appendix A'!$E$20, '2. 2014 Continuity Schedule'!$A$20:$CD$20,0),FALSE)), 0, VLOOKUP($A35, '2. 2014 Continuity Schedule'!$A$20:$CD$86, MATCH('3. Appendix A'!$E$20, '2. 2014 Continuity Schedule'!$A$20:$CD$20,0),FALSE)) -> 0
C37: Group 2 Accounts
A38: 13 | C38: Other Regulatory Assets - Sub-Account - Deferred IFRS Transition Costs | D38: 1508 | E38: =IF(ISERROR(VLOOKUP($A38, '2. 2014 Continuity Schedule'!$A$20:$CD$86, MATCH('3. Appendix A'!$E$20, '2. 2014 Continuity Schedule'!$A$20:$CD$20,0),FALSE)), 0, VLOOKUP($A38, '2. 2014 Continuity Schedule'!$A$20:$CD$86, MATCH('3. Appendix A'!$E$20, '2. 2014 Continuity Schedule'!$A$20:$CD$20,0),FALSE)) -> 0
A39: 14 | C39: Other Regulatory Assets - Sub-Account - Incremental Capital Charges | D39: 1508 | E39: =IF(ISERROR(VLOOKUP($A39, '2. 2014 Continuity Schedule'!$A$20:$CD$86, MATCH('3. Appendix A'!$E$20, '2. 2014 Continuity Schedule'!$A$20:$CD$20,0),FALSE)), 0, VLOOKUP($A39, '2. 2014 Continuity Schedule'!$A$20:$CD$86, MATCH('3. Appendix A'!$E$20, '2. 2014 Continuity Schedule'!$A$20:$CD$20,0),FALSE)) -> 0
A40: 15 | C40: Other Regulatory Assets - Sub-Account - Financial Assistance Payment and Recovery Variance - Ontario Clean Energy Benefit Act | D40: 1508 | E40: =IF(ISERROR(VLOOKUP($A40, '2. 2014 Continuity Schedule'!$A$20:$CD$86, MATCH('3. Appendix A'!$E$20, '2. 2014 Continuity Schedule'!$A$20:$CD$20,0),FALSE)), 0, VLOOKUP($A40, '2. 2014 Continuity Schedule'!$A$20:$CD$86, MATCH('3. Appendix A'!$E$20, '2. 2014 Continuity Schedule'!$A$20:$CD$20,0),FALSE)) -> 0
A41: 16 | C41: Other Regulatory Assets - Sub-Account - Financial Assistance Payment and Recovery Carrying Charges | D41: 1508 | E41: =IF(ISERROR(VLOOKUP($A41, '2. 2014 Continuity Schedule'!$A$20:$CD$86, MATCH('3. Appendix A'!$E$20, '2. 2014 Continuity Schedule'!$A$20:$CD$20,0),FALSE)), 0, VLOOKUP($A41, '2. 2014 Continuity Schedule'!$A$20:$CD$86, MATCH('3. Appendix A'!$E$20, '2. 2014 Continuity Schedule'!$A$20:$CD$20,0),FALSE)) -> 0
A42: 17 | C42: Other Regulatory Assets - Sub-Account - Other | D42: 1508 | E42: =IF(ISERROR(VLOOKUP($A42, '2. 2014 Continuity Schedule'!$A$20:$CD$86, MATCH('3. Appendix A'!$E$20, '2. 2014 Continuity Schedule'!$A$20:$CD$20,0),FALSE)), 0, VLOOKUP($A42, '2. 2014 Continuity Schedule'!$A$20:$CD$86, MATCH('3. Appendix A'!$E$20, '2. 2014 Continuity Schedule'!$A$20:$CD$20,0),FALSE)) -> 0
A43: 18 | C43: Retail Cost Variance Account - Retail | D43: 1518 | E43: =IF(ISERROR(VLOOKUP($A43, '2. 2014 Continuity Schedule'!$A$20:$CD$86, MATCH('3. Appendix A'!$E$20, '2. 2014 Continuity Schedule'!$A$20:$CD$20,0),FALSE)), 0, VLOOKUP($A43, '2. 2014 Continuity Schedule'!$A$20:$CD$86, MATCH('3. Appendix A'!$E$20, '2. 2014 Continuity Schedule'!$A$20:$CD$20,0),FALSE)) -> 0
A44: 19 | C44: Misc. Deferred Debits | D44: 1525 | E44: =IF(ISERROR(VLOOKUP($A44, '2. 2014 Continuity Schedule'!$A$20:$CD$86, MATCH('3. Appendix A'!$E$20, '2. 2014 Continuity Schedule'!$A$20:$CD$20,0),FALSE)), 0, VLOOKUP($A44, '2. 2014 Continuity Schedule'!$A$20:$CD$86, MATCH('3. Appendix A'!$E$20, '2. 2014 Continuity Schedule'!$A$20:$CD$20,0),FALSE)) -> 0
A45: 20 | C45: Renewable Generation Connection Capital Deferral Account | D45: 1531 | E45: =IF(ISERROR(VLOOKUP($A45, '2. 2014 Continuity Schedule'!$A$20:$CD$86, MATCH('3. Appendix A'!$E$20, '2. 2014 Continuity Schedule'!$A$20:$CD$20,0),FALSE)), 0, VLOOKUP($A45, '2. 2014 Continuity Schedule'!$A$20:$CD$86, MATCH('3. Appendix A'!$E$20, '2. 2014 Continuity Schedule'!$A$20:$CD$20,0),FALSE)) -> 0
A46: 21 | C46: Renewable Generation Connection OM&A Deferral Account | D46: 1532 | E46: =IF(ISERROR(VLOOKUP($A46, '2. 2014 Continuity Schedule'!$A$20:$CD$86, MATCH('3. Appendix A'!$E$20, '2. 2014 Continuity Schedule'!$A$20:$CD$20,0),FALSE)), 0, VLOOKUP($A46, '2. 2014 Continuity Schedule'!$A$20:$CD$86, MATCH('3. Appendix A'!$E$20, '2. 2014 Continuity Schedule'!$A$20:$CD$20,0),FALSE)) -> 0
A47: 22 | C47: Renewable Generation Connection Funding Adder Deferral Account | D47: 1533 | E47: =IF(ISERROR(VLOOKUP($A47, '2. 2014 Continuity Schedule'!$A$20:$CD$86, MATCH('3. Appendix A'!$E$20, '2. 2014 Continuity Schedule'!$A$20:$CD$20,0),FALSE)), 0, VLOOKUP($A47, '2. 2014 Continuity Schedule'!$A$20:$CD$86, MATCH('3. Appendix A'!$E$20, '2. 2014 Continuity Schedule'!$A$20:$CD$20,0),FALSE)) -> 0
A48: 23 | C48: Smart Grid Capital Deferral Account | D48: 1534 | E48: =IF(ISERROR(VLOOKUP($A48, '2. 2014 Continuity Schedule'!$A$20:$CD$86, MATCH('3. Appendix A'!$E$20, '2. 2014 Continuity Schedule'!$A$20:$CD$20,0),FALSE)), 0, VLOOKUP($A48, '2. 2014 Continuity Schedule'!$A$20:$CD$86, MATCH('3. Appendix A'!$E$20, '2. 2014 Continuity Schedule'!$A$20:$CD$20,0),FALSE)) -> 0
A49: 24 | C49: Smart Grid OM&A Deferral Account | D49: 1535 | E49: =IF(ISERROR(VLOOKUP($A49, '2. 2014 Continuity Schedule'!$A$20:$CD$86, MATCH('3. Appendix A'!$E$20, '2. 2014 Continuity Schedule'!$A$20:$CD$20,0),FALSE)), 0, VLOOKUP($A49, '2. 2014 Continuity Schedule'!$A$20:$CD$86, MATCH('3. Appendix A'!$E$20, '2. 2014 Continuity Schedule'!$A$20:$CD$20,0),FALSE)) -> 0
A50: 25 | C50: Smart Grid Funding Adder Deferral Account | D50: 1536 | E50: =IF(ISERROR(VLOOKUP($A50, '2. 2014 Continuity Schedule'!$A$20:$CD$86, MATCH('3. Appendix A'!$E$20, '2. 2014 Continuity Schedule'!$A$20:$CD$20,0),FALSE)), 0, VLOOKUP($A50, '2. 2014 Continuity Schedule'!$A$20:$CD$86, MATCH('3. Appendix A'!$E$20, '2. 2014 Continuity Schedule'!$A$20:$CD$20,0),FALSE)) -> 0
A51: 26 | C51: Retail Cost Variance Account - STR | D51: 1548 | E51: =IF(ISERROR(VLOOKUP($A51, '2. 2014 Continuity Schedule'!$A$20:$CD$86, MATCH('3. Appendix A'!$E$20, '2. 2014 Continuity Schedule'!$A$20:$CD$20,0),FALSE)), 0, VLOOKUP($A51, '2. 2014 Continuity Schedule'!$A$20:$CD$86, MATCH('3. Appendix A'!$E$20, '2. 2014 Continuity Schedule'!$A$20:$CD$20,0),FALSE)) -> 0
A52: 27 | C52: Board-Approved CDM Variance Account | D52: 1567 | E52: =IF(ISERROR(VLOOKUP($A52, '2. 2014 Continuity Schedule'!$A$20:$CD$86, MATCH('3. Appendix A'!$E$20, '2. 2014 Continuity Schedule'!$A$20:$CD$20,0),FALSE)), 0, VLOOKUP($A52, '2. 2014 Continuity Schedule'!$A$20:$CD$86, MATCH('3. Appendix A'!$E$20, '2. 2014 Continuity Schedule'!$A$20:$CD$20,0),FALSE)) -> 0
A53: 28 | C53: Extra-Ordinary Event Costs | D53: 1572 | E53: =IF(ISERROR(VLOOKUP($A53, '2. 2014 Continuity Schedule'!$A$20:$CD$86, MATCH('3. Appendix A'!$E$20, '2. 2014 Continuity Schedule'!$A$20:$CD$20,0),FALSE)), 0, VLOOKUP($A53, '2. 2014 Continuity Schedule'!$A$20:$CD$86, MATCH('3. Appendix A'!$E$20, '2. 2014 Continuity Schedule'!$A$20:$CD$20,0),FALSE)) -> 0
A54: 29 | C54: Deferred Rate Impact Amounts | D54: 1574 | E54: =IF(ISERROR(VLOOKUP($A54, '2. 2014 Continuity Schedule'!$A$20:$CD$86, MATCH('3. Appendix A'!$E$20, '2. 2014 Continuity Schedule'!$A$20:$CD$20,0),FALSE)), 0, VLOOKUP($A54, '2. 2014 Continuity Schedule'!$A$20:$CD$86, MATCH('3. Appendix A'!$E$20, '2. 2014 Continuity Schedule'!$A$20:$CD$20,0),FALSE)) -> 0
A55: 30 | C55: RSVA - One-time | D55: 1582 | E55: =IF(ISERROR(VLOOKUP($A55, '2. 2014 Continuity Schedule'!$A$20:$CD$86, MATCH('3. Appendix A'!$E$20, '2. 2014 Continuity Schedule'!$A$20:$CD$20,0),FALSE)), 0, VLOOKUP($A55, '2. 2014 Continuity Schedule'!$A$20:$CD$86, MATCH('3. Appendix A'!$E$20, '2. 2014 Continuity Schedule'!$A$20:$CD$20,0),FALSE)) -> 0
A56: 31 | C56: Other Deferred Credits | D56: 2425 | E56: =IF(ISERROR(VLOOKUP($A56, '2. 2014 Continuity Schedule'!$A$20:$CD$86, MATCH('3. Appendix A'!$E$20, '2. 2014 Continuity Schedule'!$A$20:$CD$20,0),FALSE)), 0, VLOOKUP($A56, '2. 2014 Continuity Schedule'!$A$20:$CD$86, MATCH('3. Appendix A'!$E$20, '2. 2014 Continuity Schedule'!$A$20:$CD$20,0),FALSE)) -> 0
A57: 32 | C57: Deferred Payments in Lieu of Taxes | D57: 1562 | E57: =IF(ISERROR(VLOOKUP($A57, '2. 2014 Continuity Schedule'!$A$20:$CD$86, MATCH('3. Appendix A'!$E$20, '2. 2014 Continuity Schedule'!$A$20:$CD$20,0),FALSE)), 0, VLOOKUP($A57, '2. 2014 Continuity Schedule'!$A$20:$CD$86, MATCH('3. Appendix A'!$E$20, '2. 2014 Continuity Schedule'!$A$20:$CD$20,0),FALSE)) -> 0
A58: 33 | C58: PILs and Tax Variance for 2006 and Subsequent Years (excludes sub-account and contra account below) | D58: 1592 | E58: =IF(ISERROR(VLOOKUP($A58, '2. 2014 Continuity Schedule'!$A$20:$CD$86, MATCH('3. Appendix A'!$E$20, '2. 2014 Continuity Schedule'!$A$20:$CD$20,0),FALSE)), 0, VLOOKUP($A58, '2. 2014 Continuity Schedule'!$A$20:$CD$86, MATCH('3. Appendix A'!$E$20, '2. 2014 Continuity Schedule'!$A$20:$CD$20,0),FALSE)) -> 0
A59: 34 | C59: PILs and Tax Variance for 2006 and Subsequent Years - Sub-Account HST/OVAT Input Tax Credits (ITCs) | D59: 1592 | E59: =IF(ISERROR(VLOOKUP($A59, '2. 2014 Continuity Schedule'!$A$20:$CD$86, MATCH('3. Appendix A'!$E$20, '2. 2014 Continuity Schedule'!$A$20:$CD$20,0),FALSE)), 0, VLOOKUP($A59, '2. 2014 Continuity Schedule'!$A$20:$CD$86, MATCH('3. Appendix A'!$E$20, '2. 2014 Continuity Schedule'!$A$20:$CD$20,0),FALSE)) -> 0
A60: 35 | C60: LRAM Variance Account | D60: 1568 | E60: =IF(ISERROR(VLOOKUP($A60, '2. 2014 Continuity Schedule'!$A$20:$CD$86, MATCH('3. Appendix A'!$E$20, '2. 2014 Continuity Schedule'!$A$20:$CD$20,0),FALSE)), 0, VLOOKUP($A60, '2. 2014 Continuity Schedule'!$A$20:$CD$86, MATCH('3. Appendix A'!$E$20, '2. 2014 Continuity Schedule'!$A$20:$CD$20,0),FALSE)) -> 0
A61: 36 | C61: Smart Meter Capital and Recovery Offset Variance - Sub-Account - Capital | D61: 1555 | E61: =IF(ISERROR(VLOOKUP($A61, '2. 2014 Continuity Schedule'!$A$20:$CD$86, MATCH('3. Appendix A'!$E$20, '2. 2014 Continuity Schedule'!$A$20:$CD$20,0),FALSE)), 0, VLOOKUP($A61, '2. 2014 Continuity Schedule'!$A$20:$CD$86, MATCH('3. Appendix A'!$E$20, '2. 2014 Continuity Schedule'!$A$20:$CD$20,0),FALSE)) -> 0 | F61: This account includes the accumulated depreciation entry in this account represents the accumulated depreciation for account 1556.
A62: 37 | C62: Smart Meter Capital and Recovery Offset Variance - Sub-Account - Recoveries | D62: 1555 | E62: =IF(ISERROR(VLOOKUP($A62, '2. 2014 Continuity Schedule'!$A$20:$CD$86, MATCH('3. Appendix A'!$E$20, '2. 2014 Continuity Schedule'!$A$20:$CD$20,0),FALSE)), 0, VLOOKUP($A62, '2. 2014 Continuity Schedule'!$A$20:$CD$86, MATCH('3. Appendix A'!$E$20, '2. 2014 Continuity Schedule'!$A$20:$CD$20,0),FALSE)) -> 0
A63: 38 | C63: Smart Meter Capital and Recovery Offset Variance - Sub-Account - Stranded Meter Costs | D63: 1555 | E63: =IF(ISERROR(VLOOKUP($A63, '2. 2014 Continuity Schedule'!$A$20:$CD$86, MATCH('3. Appendix A'!$E$20, '2. 2014 Continuity Schedule'!$A$20:$CD$20,0),FALSE)), 0, VLOOKUP($A63, '2. 2014 Continuity Schedule'!$A$20:$CD$86, MATCH('3. Appendix A'!$E$20, '2. 2014 Continuity Schedule'!$A$20:$CD$20,0),FALSE)) -> 0
A64: 39 | C64: Smart Meter OM&A Variance | D64: 1556 | E64: =IF(ISERROR(VLOOKUP($A64, '2. 2014 Continuity Schedule'!$A$20:$CD$86, MATCH('3. Appendix A'!$E$20, '2. 2014 Continuity Schedule'!$A$20:$CD$20,0),FALSE)), 0, VLOOKUP($A64, '2. 2014 Continuity Schedule'!$A$20:$CD$86, MATCH('3. Appendix A'!$E$20, '2. 2014 Continuity Schedule'!$A$20:$CD$20,0),FALSE)) -> 0 | F64: Reverse entry of the above
A65: 40 | C65: IFRS-CGAAP Transition PP&E Amounts Balance + Return Component | D65: 1575 | E65: =IF(ISERROR(VLOOKUP($A65, '2. 2014 Continuity Schedule'!$A$20:$CD$86, MATCH('3. Appendix A'!$E$20, '2. 2014 Continuity Schedule'!$A$20:$CD$20,0),FALSE)), 0, VLOOKUP($A65, '2. 2014 Continuity Schedule'!$A$20:$CD$86, MATCH('3. Appendix A'!$E$20, '2. 2014 Continuity Schedule'!$A$20:$CD$20,0),FALSE)) -> 0
A66: 41 | C66: Accounting Changes Under CGAAP Balance + Return Component | D66: 1576 | E66: =IF(ISERROR(VLOOKUP($A66, '2. 2014 Continuity Schedule'!$A$20:$CD$86, MATCH('3. Appendix A'!$E$20, '2. 2014 Continuity Schedule'!$A$20:$CD$20,0),FALSE)), 0, VLOOKUP($A66, '2. 2014 Continuity Schedule'!$A$20:$CD$86, MATCH('3. Appendix A'!$E$20, '2. 2014 Continuity Schedule'!$A$20:$CD$20,0),FALSE)) -> 0 | F66: calculated as part of cost of service application

Sheet 4. Billing Determinants
B16: In the green shaded cells, enter the most recent Board Approved volumetric forecast. If there is a material difference between the latest Board-approved volumetric forecast and the most recent 12-month actual volumetric data, use the most recent 12-month actual data. Do not enter data for the MicroFit class.
B19: Rate Class (Enter Rate Classes in cells below) | C19: Units | D19: # of Customers | E19: Metered kWh | F19: Metered kW | G19: Billed kWh for Non-RPP Customers | H19: Estimated kW for Non-RPP Customers | I19: Distribution Revenue 1 | J19: 1590 Recovery Share Proportion | K19: 1595 Recovery Share Proportion (2008) 2 | L19: 1595 Recovery Share Proportion (2009) 2 | M19: 1595 Recovery Share Proportion (2010) 2 | N19: 1595 Recovery Share Proportion (2011) 2 | O19: 1595 Recovery Share Proportion (2012) 2 | P19: 1568 LRAM Variance Account Class Allocation ($ amounts)
B21: Residential | C21: kWh | D21: 2276 | E21: 25241629 | F21: 0 | G21: 503032 | H21: =IF(ISERROR(F21/E21*G21), 0, F21/E21*G21) -> 0 | I21: 653676.9 | O21: 0.34 | P21: =$P$42*56.04% -> 8922.150816
B22: General Service < 50 kW | C22: kWh | D22: =455-52 -> 403 | E22: =11110938-1474 -> 11109464 | F22: 0 | G22: 766949 | H22: =IF(ISERROR(F22/E22*G22), 0, F22/E22*G22) -> 0 | I22: =177201.53 -> 177201.53 | O22: 0.16 | P22: =$P$42*16.26% -> 2588.761104
B23: General Service > 50 to 1499 kW | C23: kW | D23: 42 | E23: 23609369 | F23: 66539 | G23: 19629959 | H23: 55323.70822 | I23: 181379.07 | O23: 0.24 | P23: =$P$42*14.33% -> 2281.485032
B24: Intermediate | C24: kW | D24: 2 | E24: 23201291 | F24: 62667 | G24: 23201291 | H24: 62667 | I24: 64460.62 | O24: 0.25 | P24: =$P$42*2.91% -> 463.302264
B25: Sentinel Lighting | C25: kW | D25: 13 | E25: 21288 | F25: 72 | H25: 0 | I25: 1347.33 | O25: 0 | P25: =$P$42*0.064% -> 10.1894656
B26: Street Lighting | C26: kW | D26: 941 | E26: 1030212 | F26: 3155 | G26: 1030212 | H26: 3155 | I26: 96384.16 | O26: 0.01 | P26: =$P$42*10.39% -> 1654.196056
H27: 0
H28: 0
H29: 0
B30: * MicroFit: Customer #, kWh and Dist. Revenue removed from GS<50 | H30: 0
H31: 0
H32: 0
H33: 0
H34: 0
H35: 0
H36: 0
H37: 0
H38: 0
H39: 0
H40: 0
B41: Total | D41: =SUM(D21:D40) -> 3677 | E41: =SUM(E21:E40) -> 84213253 | F41: =SUM(F21:F40) -> 132433 | G41: 45131443 | H41: 121145.7082 | I41: 1174449.61 | J41: 0 | K41: 0 | L41: 0 | M41: 0 | N41: 0 | O41: =SUM(O21:O40) -> 1 | P41: 15920.08474
O42: Balance as per Sheet 2 | P42: ='2. 2014 Continuity Schedule'!CB72 -> 15921.04
O43: Variance | P43: =P41-P42 -> -0.9552624
A45: 1 For Account 1562, the allocation to customer classes should be performed on the basis of the test year distribution revenue allocation to customer classes found in the Applicant’s Cost of Service application that was most recently approved at the time of disposition of the 1562 account balances
A47: 2 Residual Account balance to be allocated to rate classes in proportion to the recovery share as established when rate riders were implemented.

Sheet 5. Allocation of Balances
D4: Amounts from Sheet 2 | E4: Allocator | F4: =IF(LEN(TRIM('4. Billing Determinants'!$B21))=0, "", '4. Billing Determinants'!$B21) -> Residential | G4: =IF(LEN(TRIM('4. Billing Determinants'!$B22))=0, "", '4. Billing Determinants'!$B22) -> General Service < 50 kW | H4: =IF(LEN(TRIM('4. Billing Determinants'!$B23))=0, "", '4. Billing Determinants'!$B23) -> General Service > 50 to 1499 kW | I4: =IF(LEN(TRIM('4. Billing Determinants'!$B24))=0, "", '4. Billing Determinants'!$B24) -> Intermediate | J4: =IF(LEN(TRIM('4. Billing Determinants'!$B25))=0, "", '4. Billing Determinants'!$B25) -> Sentinel Lighting | K4: =IF(LEN(TRIM('4. Billing Determinants'!$B26))=0, "", '4. Billing Determinants'!$B26) -> Street Lighting | L4: =IF(LEN(TRIM('4. Billing Determinants'!$B27))=0, "", '4. Billing Determinants'!$B27) ->  | M4: =IF(LEN(TRIM('4. Billing Determinants'!$B28))=0, "", '4. Billing Determinants'!$B28) ->  | N4: =IF(LEN(TRIM('4. Billing Determinants'!$B29))=0, "", '4. Billing Determinants'!$B29) ->  | O4: =IF(LEN(TRIM('4. Billing Determinants'!$B30))=0, "", '4. Billing Determinants'!$B30) -> * MicroFit: Customer #, kWh and Dist. Revenue removed from GS<50 | P4: =IF(LEN(TRIM('4. Billing Determinants'!$B31))=0, "", '4. Billing Determinants'!$B31) ->  | Q4: =IF(LEN(TRIM('4. Billing Determinants'!$B32))=0, "", '4. Billing Determinants'!$B32) ->  | R4: =IF(LEN(TRIM('4. Billing Determinants'!$B33))=0, "", '4. Billing Determinants'!$B33) ->  | S4: =IF(LEN(TRIM('4. Billing Determinants'!$B34))=0, "", '4. Billing Determinants'!$B34) ->  | T4: =IF(LEN(TRIM('4. Billing Determinants'!$B35))=0, "", '4. Billing Determinants'!$B35) ->  | U4: =IF(LEN(TRIM('4. Billing Determinants'!$B36))=0, "", '4. Billing Determinants'!$B36) ->  | V4: =IF(LEN(TRIM('4. Billing Determinants'!$B37))=0, "", '4. Billing Determinants'!$B37) ->  | W4: =IF(LEN(TRIM('4. Billing Determinants'!$B38))=0, "", '4. Billing Determinants'!$B38) ->  | X4: =IF(LEN(TRIM('4. Billing Determinants'!$B39))=0, "", '4. Billing Determinants'!$B39) ->  | Y4: =IF(LEN(TRIM('4. Billing Determinants'!$B40))=0, "", '4. Billing Determinants'!$B40) -> 
B5: LV Variance Account | C5: 1550 | D5: ='2. 2014 Continuity Schedule'!CB24 -> 24306.45 | E5: kWh | F5: =IFERROR(IF(F$4="",0,IF($E5="kWh",VLOOKUP(F$4,'4. Billing Determinants'!$B$19:$P$41,4,0)/'4. Billing Determinants'!$E$41*$D5,IF($E5="kW",VLOOKUP(F$4,'4. Billing Determinants'!$B$19:$P$41,5,0)/'4. Billing Determinants'!$F$41*$D5,IF($E5="Non-RPP kWh",VLOOKUP(F$4,'4. Billing Determinants'!$B$19:$P$41,6,0)/'4. Billing Determinants'!$G$41*$D5,IF($E5="Distribution Rev.",VLOOKUP(F$4,'4. Billing Determinants'!$B$19:$P$41,8,0)/'4. Billing Determinants'!$I$41*$D5, VLOOKUP(F$4,'4. Billing Determinants'!$B$19:$P$41,3,0)/'4. Billing Determinants'!$D$41*$D5))))),0) -> 7285.48502 | G5: =IFERROR(IF(G$4="",0,IF($E5="kWh",VLOOKUP(G$4,'4. Billing Determinants'!$B$19:$P$41,4,0)/'4. Billing Determinants'!$E$41*$D5,IF($E5="kW",VLOOKUP(G$4,'4. Billing Determinants'!$B$19:$P$41,5,0)/'4. Billing Determinants'!$F$41*$D5,IF($E5="Non-RPP kWh",VLOOKUP(G$4,'4. Billing Determinants'!$B$19:$P$41,6,0)/'4. Billing Determinants'!$G$41*$D5,IF($E5="Distribution Rev.",VLOOKUP(G$4,'4. Billing Determinants'!$B$19:$P$41,8,0)/'4. Billing Determinants'!$I$41*$D5, VLOOKUP(G$4,'4. Billing Determinants'!$B$19:$P$41,3,0)/'4. Billing Determinants'!$D$41*$D5))))),0) -> 3206.521796 | H5: =IFERROR(IF(H$4="",0,IF($E5="kWh",VLOOKUP(H$4,'4. Billing Determinants'!$B$19:$P$41,4,0)/'4. Billing Determinants'!$E$41*$D5,IF($E5="kW",VLOOKUP(H$4,'4. Billing Determinants'!$B$19:$P$41,5,0)/'4. Billing Determinants'!$F$41*$D5,IF($E5="Non-RPP kWh",VLOOKUP(H$4,'4. Billing Determinants'!$B$19:$P$41,6,0)/'4. Billing Determinants'!$G$41*$D5,IF($E5="Distribution Rev.",VLOOKUP(H$4,'4. Billing Determinants'!$B$19:$P$41,8,0)/'4. Billing Determinants'!$I$41*$D5, VLOOKUP(H$4,'4. Billing Determinants'!$B$19:$P$41,3,0)/'4. Billing Determinants'!$D$41*$D5))))),0) -> 6814.366227 | I5: =IFERROR(IF(I$4="",0,IF($E5="kWh",VLOOKUP(I$4,'4. Billing Determinants'!$B$19:$P$41,4,0)/'4. Billing Determinants'!$E$41*$D5,IF($E5="kW",VLOOKUP(I$4,'4. Billing Determinants'!$B$19:$P$41,5,0)/'4. Billing Determinants'!$F$41*$D5,IF($E5="Non-RPP kWh",VLOOKUP(I$4,'4. Billing Determinants'!$B$19:$P$41,6,0)/'4. Billing Determinants'!$G$41*$D5,IF($E5="Distribution Rev.",VLOOKUP(I$4,'4. Billing Determinants'!$B$19:$P$41,8,0)/'4. Billing Determinants'!$I$41*$D5, VLOOKUP(I$4,'4. Billing Determinants'!$B$19:$P$41,3,0)/'4. Billing Determinants'!$D$41*$D5))))),0) -> 6696.582777 | J5: =IFERROR(IF(J$4="",0,IF($E5="kWh",VLOOKUP(J$4,'4. Billing Determinants'!$B$19:$P$41,4,0)/'4. Billing Determinants'!$E$41*$D5,IF($E5="kW",VLOOKUP(J$4,'4. Billing Determinants'!$B$19:$P$41,5,0)/'4. Billing Determinants'!$F$41*$D5,IF($E5="Non-RPP kWh",VLOOKUP(J$4,'4. Billing Determinants'!$B$19:$P$41,6,0)/'4. Billing Determinants'!$G$41*$D5,IF($E5="Distribution Rev.",VLOOKUP(J$4,'4. Billing Determinants'!$B$19:$P$41,8,0)/'4. Billing Determinants'!$I$41*$D5, VLOOKUP(J$4,'4. Billing Determinants'!$B$19:$P$41,3,0)/'4. Billing Determinants'!$D$41*$D5))))),0) -> 6.144350078 | K5: =IFERROR(IF(K$4="",0,IF($E5="kWh",VLOOKUP(K$4,'4. Billing Determinants'!$B$19:$P$41,4,0)/'4. Billing Determinants'!$E$41*$D5,IF($E5="kW",VLOOKUP(K$4,'4. Billing Determinants'!$B$19:$P$41,5,0)/'4. Billing Determinants'!$F$41*$D5,IF($E5="Non-RPP kWh",VLOOKUP(K$4,'4. Billing Determinants'!$B$19:$P$41,6,0)/'4. Billing Determinants'!$G$41*$D5,IF($E5="Distribution Rev.",VLOOKUP(K$4,'4. Billing Determinants'!$B$19:$P$41,8,0)/'4. Billing Determinants'!$I$41*$D5, VLOOKUP(K$4,'4. Billing Determinants'!$B$19:$P$41,3,0)/'4. Billing Determinants'!$D$41*$D5))))),0) -> 297.34983 | L5: =IFERROR(IF(L$4="",0,IF($E5="kWh",VLOOKUP(L$4,'4. Billing Determinants'!$B$19:$P$41,4,0)/'4. Billing Determinants'!$E$41*$D5,IF($E5="kW",VLOOKUP(L$4,'4. Billing Determinants'!$B$19:$P$41,5,0)/'4. Billing Determinants'!$F$41*$D5,IF($E5="Non-RPP kWh",VLOOKUP(L$4,'4. Billing Determinants'!$B$19:$P$41,6,0)/'4. Billing Determinants'!$G$41*$D5,IF($E5="Distribution Rev.",VLOOKUP(L$4,'4. Billing Determinants'!$B$19:$P$41,8,0)/'4. Billing Determinants'!$I$41*$D5, VLOOKUP(L$4,'4. Billing Determinants'!$B$19:$P$41,3,0)/'4. Billing Determinants'!$D$41*$D5))))),0) -> 0 | M5: =IFERROR(IF(M$4="",0,IF($E5="kWh",VLOOKUP(M$4,'4. Billing Determinants'!$B$19:$P$41,4,0)/'4. Billing Determinants'!$E$41*$D5,IF($E5="kW",VLOOKUP(M$4,'4. Billing Determinants'!$B$19:$P$41,5,0)/'4. Billing Determinants'!$F$41*$D5,IF($E5="Non-RPP kWh",VLOOKUP(M$4,'4. Billing Determinants'!$B$19:$P$41,6,0)/'4. Billing Determinants'!$G$41*$D5,IF($E5="Distribution Rev.",VLOOKUP(M$4,'4. Billing Determinants'!$B$19:$P$41,8,0)/'4. Billing Determinants'!$I$41*$D5, VLOOKUP(M$4,'4. Billing Determinants'!$B$19:$P$41,3,0)/'4. Billing Determinants'!$D$41*$D5))))),0) -> 0 | N5: =IFERROR(IF(N$4="",0,IF($E5="kWh",VLOOKUP(N$4,'4. Billing Determinants'!$B$19:$P$41,4,0)/'4. Billing Determinants'!$E$41*$D5,IF($E5="kW",VLOOKUP(N$4,'4. Billing Determinants'!$B$19:$P$41,5,0)/'4. Billing Determinants'!$F$41*$D5,IF($E5="Non-RPP kWh",VLOOKUP(N$4,'4. Billing Determinants'!$B$19:$P$41,6,0)/'4. Billing Determinants'!$G$41*$D5,IF($E5="Distribution Rev.",VLOOKUP(N$4,'4. Billing Determinants'!$B$19:$P$41,8,0)/'4. Billing Determinants'!$I$41*$D5, VLOOKUP(N$4,'4. Billing Determinants'!$B$19:$P$41,3,0)/'4. Billing Determinants'!$D$41*$D5))))),0) -> 0 | O5: =IFERROR(IF(O$4="",0,IF($E5="kWh",VLOOKUP(O$4,'4. Billing Determinants'!$B$19:$P$41,4,0)/'4. Billing Determinants'!$E$41*$D5,IF($E5="kW",VLOOKUP(O$4,'4. Billing Determinants'!$B$19:$P$41,5,0)/'4. Billing Determinants'!$F$41*$D5,IF($E5="Non-RPP kWh",VLOOKUP(O$4,'4. Billing Determinants'!$B$19:$P$41,6,0)/'4. Billing Determinants'!$G$41*$D5,IF($E5="Distribution Rev.",VLOOKUP(O$4,'4. Billing Determinants'!$B$19:$P$41,8,0)/'4. Billing Determinants'!$I$41*$D5, VLOOKUP(O$4,'4. Billing Determinants'!$B$19:$P$41,3,0)/'4. Billing Determinants'!$D$41*$D5))))),0) -> 0 | P5: =IFERROR(IF(P$4="",0,IF($E5="kWh",VLOOKUP(P$4,'4. Billing Determinants'!$B$19:$P$41,4,0)/'4. Billing Determinants'!$E$41*$D5,IF($E5="kW",VLOOKUP(P$4,'4. Billing Determinants'!$B$19:$P$41,5,0)/'4. Billing Determinants'!$F$41*$D5,IF($E5="Non-RPP kWh",VLOOKUP(P$4,'4. Billing Determinants'!$B$19:$P$41,6,0)/'4. Billing Determinants'!$G$41*$D5,IF($E5="Distribution Rev.",VLOOKUP(P$4,'4. Billing Determinants'!$B$19:$P$41,8,0)/'4. Billing Determinants'!$I$41*$D5, VLOOKUP(P$4,'4. Billing Determinants'!$B$19:$P$41,3,0)/'4. Billing Determinants'!$D$41*$D5))))),0) -> 0 | Q5: =IFERROR(IF(Q$4="",0,IF($E5="kWh",VLOOKUP(Q$4,'4. Billing Determinants'!$B$19:$P$41,4,0)/'4. Billing Determinants'!$E$41*$D5,IF($E5="kW",VLOOKUP(Q$4,'4. Billing Determinants'!$B$19:$P$41,5,0)/'4. Billing Determinants'!$F$41*$D5,IF($E5="Non-RPP kWh",VLOOKUP(Q$4,'4. Billing Determinants'!$B$19:$P$41,6,0)/'4. Billing Determinants'!$G$41*$D5,IF($E5="Distribution Rev.",VLOOKUP(Q$4,'4. Billing Determinants'!$B$19:$P$41,8,0)/'4. Billing Determinants'!$I$41*$D5, VLOOKUP(Q$4,'4. Billing Determinants'!$B$19:$P$41,3,0)/'4. Billing Determinants'!$D$41*$D5))))),0) -> 0 | R5: =IFERROR(IF(R$4="",0,IF($E5="kWh",VLOOKUP(R$4,'4. Billing Determinants'!$B$19:$P$41,4,0)/'4. Billing Determinants'!$E$41*$D5,IF($E5="kW",VLOOKUP(R$4,'4. Billing Determinants'!$B$19:$P$41,5,0)/'4. Billing Determinants'!$F$41*$D5,IF($E5="Non-RPP kWh",VLOOKUP(R$4,'4. Billing Determinants'!$B$19:$P$41,6,0)/'4. Billing Determinants'!$G$41*$D5,IF($E5="Distribution Rev.",VLOOKUP(R$4,'4. Billing Determinants'!$B$19:$P$41,8,0)/'4. Billing Determinants'!$I$41*$D5, VLOOKUP(R$4,'4. Billing Determinants'!$B$19:$P$41,3,0)/'4. Billing Determinants'!$D$41*$D5))))),0) -> 0 | S5: =IFERROR(IF(S$4="",0,IF($E5="kWh",VLOOKUP(S$4,'4. Billing Determinants'!$B$19:$P$41,4,0)/'4. Billing Determinants'!$E$41*$D5,IF($E5="kW",VLOOKUP(S$4,'4. Billing Determinants'!$B$19:$P$41,5,0)/'4. Billing Determinants'!$F$41*$D5,IF($E5="Non-RPP kWh",VLOOKUP(S$4,'4. Billing Determinants'!$B$19:$P$41,6,0)/'4. Billing Determinants'!$G$41*$D5,IF($E5="Distribution Rev.",VLOOKUP(S$4,'4. Billing Determinants'!$B$19:$P$41,8,0)/'4. Billing Determinants'!$I$41*$D5, VLOOKUP(S$4,'4. Billing Determinants'!$B$19:$P$41,3,0)/'4. Billing Determinants'!$D$41*$D5))))),0) -> 0 | T5: =IFERROR(IF(T$4="",0,IF($E5="kWh",VLOOKUP(T$4,'4. Billing Determinants'!$B$19:$P$41,4,0)/'4. Billing Determinants'!$E$41*$D5,IF($E5="kW",VLOOKUP(T$4,'4. Billing Determinants'!$B$19:$P$41,5,0)/'4. Billing Determinants'!$F$41*$D5,IF($E5="Non-RPP kWh",VLOOKUP(T$4,'4. Billing Determinants'!$B$19:$P$41,6,0)/'4. Billing Determinants'!$G$41*$D5,IF($E5="Distribution Rev.",VLOOKUP(T$4,'4. Billing Determinants'!$B$19:$P$41,8,0)/'4. Billing Determinants'!$I$41*$D5, VLOOKUP(T$4,'4. Billing Determinants'!$B$19:$P$41,3,0)/'4. Billing Determinants'!$D$41*$D5))))),0) -> 0 | U5: =IFERROR(IF(U$4="",0,IF($E5="kWh",VLOOKUP(U$4,'4. Billing Determinants'!$B$19:$P$41,4,0)/'4. Billing Determinants'!$E$41*$D5,IF($E5="kW",VLOOKUP(U$4,'4. Billing Determinants'!$B$19:$P$41,5,0)/'4. Billing Determinants'!$F$41*$D5,IF($E5="Non-RPP kWh",VLOOKUP(U$4,'4. Billing Determinants'!$B$19:$P$41,6,0)/'4. Billing Determinants'!$G$41*$D5,IF($E5="Distribution Rev.",VLOOKUP(U$4,'4. Billing Determinants'!$B$19:$P$41,8,0)/'4. Billing Determinants'!$I$41*$D5, VLOOKUP(U$4,'4. Billing Determinants'!$B$19:$P$41,3,0)/'4. Billing Determinants'!$D$41*$D5))))),0) -> 0 | V5: =IFERROR(IF(V$4="",0,IF($E5="kWh",VLOOKUP(V$4,'4. Billing Determinants'!$B$19:$P$41,4,0)/'4. Billing Determinants'!$E$41*$D5,IF($E5="kW",VLOOKUP(V$4,'4. Billing Determinants'!$B$19:$P$41,5,0)/'4. Billing Determinants'!$F$41*$D5,IF($E5="Non-RPP kWh",VLOOKUP(V$4,'4. Billing Determinants'!$B$19:$P$41,6,0)/'4. Billing Determinants'!$G$41*$D5,IF($E5="Distribution Rev.",VLOOKUP(V$4,'4. Billing Determinants'!$B$19:$P$41,8,0)/'4. Billing Determinants'!$I$41*$D5, VLOOKUP(V$4,'4. Billing Determinants'!$B$19:$P$41,3,0)/'4. Billing Determinants'!$D$41*$D5))))),0) -> 0 | W5: =IFERROR(IF(W$4="",0,IF($E5="kWh",VLOOKUP(W$4,'4. Billing Determinants'!$B$19:$P$41,4,0)/'4. Billing Determinants'!$E$41*$D5,IF($E5="kW",VLOOKUP(W$4,'4. Billing Determinants'!$B$19:$P$41,5,0)/'4. Billing Determinants'!$F$41*$D5,IF($E5="Non-RPP kWh",VLOOKUP(W$4,'4. Billing Determinants'!$B$19:$P$41,6,0)/'4. Billing Determinants'!$G$41*$D5,IF($E5="Distribution Rev.",VLOOKUP(W$4,'4. Billing Determinants'!$B$19:$P$41,8,0)/'4. Billing Determinants'!$I$41*$D5, VLOOKUP(W$4,'4. Billing Determinants'!$B$19:$P$41,3,0)/'4. Billing Determinants'!$D$41*$D5))))),0) -> 0 | X5: =IFERROR(IF(X$4="",0,IF($E5="kWh",VLOOKUP(X$4,'4. Billing Determinants'!$B$19:$P$41,4,0)/'4. Billing Determinants'!$E$41*$D5,IF($E5="kW",VLOOKUP(X$4,'4. Billing Determinants'!$B$19:$P$41,5,0)/'4. Billing Determinants'!$F$41*$D5,IF($E5="Non-RPP kWh",VLOOKUP(X$4,'4. Billing Determinants'!$B$19:$P$41,6,0)/'4. Billing Determinants'!$G$41*$D5,IF($E5="Distribution Rev.",VLOOKUP(X$4,'4. Billing Determinants'!$B$19:$P$41,8,0)/'4. Billing Determinants'!$I$41*$D5, VLOOKUP(X$4,'4. Billing Determinants'!$B$19:$P$41,3,0)/'4. Billing Determinants'!$D$41*$D5))))),0) -> 0 | Y5: =IFERROR(IF(Y$4="",0,IF($E5="kWh",VLOOKUP(Y$4,'4. Billing Determinants'!$B$19:$P$41,4,0)/'4. Billing Determinants'!$E$41*$D5,IF($E5="kW",VLOOKUP(Y$4,'4. Billing Determinants'!$B$19:$P$41,5,0)/'4. Billing Determinants'!$F$41*$D5,IF($E5="Non-RPP kWh",VLOOKUP(Y$4,'4. Billing Determinants'!$B$19:$P$41,6,0)/'4. Billing Determinants'!$G$41*$D5,IF($E5="Distribution Rev.",VLOOKUP(Y$4,'4. Billing Determinants'!$B$19:$P$41,8,0)/'4. Billing Determinants'!$I$41*$D5, VLOOKUP(Y$4,'4. Billing Determinants'!$B$19:$P$41,3,0)/'4. Billing Determinants'!$D$41*$D5))))),0) -> 0
B6: Smart Metering Entity Charge Variance Account | C6: 1551 | D6: ='2. 2014 Continuity Schedule'!CB25 -> 1300.47 | E6: kWh | F6: =IFERROR(IF(F$4="",0,IF($E6="kWh",VLOOKUP(F$4,'4. Billing Determinants'!$B$19:$P$41,4,0)/'4. Billing Determinants'!$E$41*$D6,IF($E6="kW",VLOOKUP(F$4,'4. Billing Determinants'!$B$19:$P$41,5,0)/'4. Billing Determinants'!$F$41*$D6,IF($E6="Non-RPP kWh",VLOOKUP(F$4,'4. Billing Determinants'!$B$19:$P$41,6,0)/'4. Billing Determinants'!$G$41*$D6,IF($E6="Distribution Rev.",VLOOKUP(F$4,'4. Billing Determinants'!$B$19:$P$41,8,0)/'4. Billing Determinants'!$I$41*$D6, VLOOKUP(F$4,'4. Billing Determinants'!$B$19:$P$41,3,0)/'4. Billing Determinants'!$D$41*$D6))))),0) -> 389.7959062 | G6: =IFERROR(IF(G$4="",0,IF($E6="kWh",VLOOKUP(G$4,'4. Billing Determinants'!$B$19:$P$41,4,0)/'4. Billing Determinants'!$E$41*$D6,IF($E6="kW",VLOOKUP(G$4,'4. Billing Determinants'!$B$19:$P$41,5,0)/'4. Billing Determinants'!$F$41*$D6,IF($E6="Non-RPP kWh",VLOOKUP(G$4,'4. Billing Determinants'!$B$19:$P$41,6,0)/'4. Billing Determinants'!$G$41*$D6,IF($E6="Distribution Rev.",VLOOKUP(G$4,'4. Billing Determinants'!$B$19:$P$41,8,0)/'4. Billing Determinants'!$I$41*$D6, VLOOKUP(G$4,'4. Billing Determinants'!$B$19:$P$41,3,0)/'4. Billing Determinants'!$D$41*$D6))))),0) -> 171.5588002 | H6: =IFERROR(IF(H$4="",0,IF($E6="kWh",VLOOKUP(H$4,'4. Billing Determinants'!$B$19:$P$41,4,0)/'4. Billing Determinants'!$E$41*$D6,IF($E6="kW",VLOOKUP(H$4,'4. Billing Determinants'!$B$19:$P$41,5,0)/'4. Billing Determinants'!$F$41*$D6,IF($E6="Non-RPP kWh",VLOOKUP(H$4,'4. Billing Determinants'!$B$19:$P$41,6,0)/'4. Billing Determinants'!$G$41*$D6,IF($E6="Distribution Rev.",VLOOKUP(H$4,'4. Billing Determinants'!$B$19:$P$41,8,0)/'4. Billing Determinants'!$I$41*$D6, VLOOKUP(H$4,'4. Billing Determinants'!$B$19:$P$41,3,0)/'4. Billing Determinants'!$D$41*$D6))))),0) -> 364.5895985 | I6: =IFERROR(IF(I$4="",0,IF($E6="kWh",VLOOKUP(I$4,'4. Billing Determinants'!$B$19:$P$41,4,0)/'4. Billing Determinants'!$E$41*$D6,IF($E6="kW",VLOOKUP(I$4,'4. Billing Determinants'!$B$19:$P$41,5,0)/'4. Billing Determinants'!$F$41*$D6,IF($E6="Non-RPP kWh",VLOOKUP(I$4,'4. Billing Determinants'!$B$19:$P$41,6,0)/'4. Billing Determinants'!$G$41*$D6,IF($E6="Distribution Rev.",VLOOKUP(I$4,'4. Billing Determinants'!$B$19:$P$41,8,0)/'4. Billing Determinants'!$I$41*$D6, VLOOKUP(I$4,'4. Billing Determinants'!$B$19:$P$41,3,0)/'4. Billing Determinants'!$D$41*$D6))))),0) -> 358.2878209 | J6: =IFERROR(IF(J$4="",0,IF($E6="kWh",VLOOKUP(J$4,'4. Billing Determinants'!$B$19:$P$41,4,0)/'4. Billing Determinants'!$E$41*$D6,IF($E6="kW",VLOOKUP(J$4,'4. Billing Determinants'!$B$19:$P$41,5,0)/'4. Billing Determinants'!$F$41*$D6,IF($E6="Non-RPP kWh",VLOOKUP(J$4,'4. Billing Determinants'!$B$19:$P$41,6,0)/'4. Billing Determinants'!$G$41*$D6,IF($E6="Distribution Rev.",VLOOKUP(J$4,'4. Billing Determinants'!$B$19:$P$41,8,0)/'4. Billing Determinants'!$I$41*$D6, VLOOKUP(J$4,'4. Billing Determinants'!$B$19:$P$41,3,0)/'4. Billing Determinants'!$D$41*$D6))))),0) -> 0.3287416692 | K6: =IFERROR(IF(K$4="",0,IF($E6="kWh",VLOOKUP(K$4,'4. Billing Determinants'!$B$19:$P$41,4,0)/'4. Billing Determinants'!$E$41*$D6,IF($E6="kW",VLOOKUP(K$4,'4. Billing Determinants'!$B$19:$P$41,5,0)/'4. Billing Determinants'!$F$41*$D6,IF($E6="Non-RPP kWh",VLOOKUP(K$4,'4. Billing Determinants'!$B$19:$P$41,6,0)/'4. Billing Determinants'!$G$41*$D6,IF($E6="Distribution Rev.",VLOOKUP(K$4,'4. Billing Determinants'!$B$19:$P$41,8,0)/'4. Billing Determinants'!$I$41*$D6, VLOOKUP(K$4,'4. Billing Determinants'!$B$19:$P$41,3,0)/'4. Billing Determinants'!$D$41*$D6))))),0) -> 15.90913249 | L6: =IFERROR(IF(L$4="",0,IF($E6="kWh",VLOOKUP(L$4,'4. Billing Determinants'!$B$19:$P$41,4,0)/'4. Billing Determinants'!$E$41*$D6,IF($E6="kW",VLOOKUP(L$4,'4. Billing Determinants'!$B$19:$P$41,5,0)/'4. Billing Determinants'!$F$41*$D6,IF($E6="Non-RPP kWh",VLOOKUP(L$4,'4. Billing Determinants'!$B$19:$P$41,6,0)/'4. Billing Determinants'!$G$41*$D6,IF($E6="Distribution Rev.",VLOOKUP(L$4,'4. Billing Determinants'!$B$19:$P$41,8,0)/'4. Billing Determinants'!$I$41*$D6, VLOOKUP(L$4,'4. Billing Determinants'!$B$19:$P$41,3,0)/'4. Billing Determinants'!$D$41*$D6))))),0) -> 0 | M6: =IFERROR(IF(M$4="",0,IF($E6="kWh",VLOOKUP(M$4,'4. Billing Determinants'!$B$19:$P$41,4,0)/'4. Billing Determinants'!$E$41*$D6,IF($E6="kW",VLOOKUP(M$4,'4. Billing Determinants'!$B$19:$P$41,5,0)/'4. Billing Determinants'!$F$41*$D6,IF($E6="Non-RPP kWh",VLOOKUP(M$4,'4. Billing Determinants'!$B$19:$P$41,6,0)/'4. Billing Determinants'!$G$41*$D6,IF($E6="Distribution Rev.",VLOOKUP(M$4,'4. Billing Determinants'!$B$19:$P$41,8,0)/'4. Billing Determinants'!$I$41*$D6, VLOOKUP(M$4,'4. Billing Determinants'!$B$19:$P$41,3,0)/'4. Billing Determinants'!$D$41*$D6))))),0) -> 0 | N6: =IFERROR(IF(N$4="",0,IF($E6="kWh",VLOOKUP(N$4,'4. Billing Determinants'!$B$19:$P$41,4,0)/'4. Billing Determinants'!$E$41*$D6,IF($E6="kW",VLOOKUP(N$4,'4. Billing Determinants'!$B$19:$P$41,5,0)/'4. Billing Determinants'!$F$41*$D6,IF($E6="Non-RPP kWh",VLOOKUP(N$4,'4. Billing Determinants'!$B$19:$P$41,6,0)/'4. Billing Determinants'!$G$41*$D6,IF($E6="Distribution Rev.",VLOOKUP(N$4,'4. Billing Determinants'!$B$19:$P$41,8,0)/'4. Billing Determinants'!$I$41*$D6, VLOOKUP(N$4,'4. Billing Determinants'!$B$19:$P$41,3,0)/'4. Billing Determinants'!$D$41*$D6))))),0) -> 0 | O6: =IFERROR(IF(O$4="",0,IF($E6="kWh",VLOOKUP(O$4,'4. Billing Determinants'!$B$19:$P$41,4,0)/'4. Billing Determinants'!$E$41*$D6,IF($E6="kW",VLOOKUP(O$4,'4. Billing Determinants'!$B$19:$P$41,5,0)/'4. Billing Determinants'!$F$41*$D6,IF($E6="Non-RPP kWh",VLOOKUP(O$4,'4. Billing Determinants'!$B$19:$P$41,6,0)/'4. Billing Determinants'!$G$41*$D6,IF($E6="Distribution Rev.",VLOOKUP(O$4,'4. Billing Determinants'!$B$19:$P$41,8,0)/'4. Billing Determinants'!$I$41*$D6, VLOOKUP(O$4,'4. Billing Determinants'!$B$19:$P$41,3,0)/'4. Billing Determinants'!$D$41*$D6))))),0) -> 0 | P6: =IFERROR(IF(P$4="",0,IF($E6="kWh",VLOOKUP(P$4,'4. Billing Determinants'!$B$19:$P$41,4,0)/'4. Billing Determinants'!$E$41*$D6,IF($E6="kW",VLOOKUP(P$4,'4. Billing Determinants'!$B$19:$P$41,5,0)/'4. Billing Determinants'!$F$41*$D6,IF($E6="Non-RPP kWh",VLOOKUP(P$4,'4. Billing Determinants'!$B$19:$P$41,6,0)/'4. Billing Determinants'!$G$41*$D6,IF($E6="Distribution Rev.",VLOOKUP(P$4,'4. Billing Determinants'!$B$19:$P$41,8,0)/'4. Billing Determinants'!$I$41*$D6, VLOOKUP(P$4,'4. Billing Determinants'!$B$19:$P$41,3,0)/'4. Billing Determinants'!$D$41*$D6))))),0) -> 0 | Q6: =IFERROR(IF(Q$4="",0,IF($E6="kWh",VLOOKUP(Q$4,'4. Billing Determinants'!$B$19:$P$41,4,0)/'4. Billing Determinants'!$E$41*$D6,IF($E6="kW",VLOOKUP(Q$4,'4. Billing Determinants'!$B$19:$P$41,5,0)/'4. Billing Determinants'!$F$41*$D6,IF($E6="Non-RPP kWh",VLOOKUP(Q$4,'4. Billing Determinants'!$B$19:$P$41,6,0)/'4. Billing Determinants'!$G$41*$D6,IF($E6="Distribution Rev.",VLOOKUP(Q$4,'4. Billing Determinants'!$B$19:$P$41,8,0)/'4. Billing Determinants'!$I$41*$D6, VLOOKUP(Q$4,'4. Billing Determinants'!$B$19:$P$41,3,0)/'4. Billing Determinants'!$D$41*$D6))))),0) -> 0 | R6: =IFERROR(IF(R$4="",0,IF($E6="kWh",VLOOKUP(R$4,'4. Billing Determinants'!$B$19:$P$41,4,0)/'4. Billing Determinants'!$E$41*$D6,IF($E6="kW",VLOOKUP(R$4,'4. Billing Determinants'!$B$19:$P$41,5,0)/'4. Billing Determinants'!$F$41*$D6,IF($E6="Non-RPP kWh",VLOOKUP(R$4,'4. Billing Determinants'!$B$19:$P$41,6,0)/'4. Billing Determinants'!$G$41*$D6,IF($E6="Distribution Rev.",VLOOKUP(R$4,'4. Billing Determinants'!$B$19:$P$41,8,0)/'4. Billing Determinants'!$I$41*$D6, VLOOKUP(R$4,'4. Billing Determinants'!$B$19:$P$41,3,0)/'4. Billing Determinants'!$D$41*$D6))))),0) -> 0 | S6: =IFERROR(IF(S$4="",0,IF($E6="kWh",VLOOKUP(S$4,'4. Billing Determinants'!$B$19:$P$41,4,0)/'4. Billing Determinants'!$E$41*$D6,IF($E6="kW",VLOOKUP(S$4,'4. Billing Determinants'!$B$19:$P$41,5,0)/'4. Billing Determinants'!$F$41*$D6,IF($E6="Non-RPP kWh",VLOOKUP(S$4,'4. Billing Determinants'!$B$19:$P$41,6,0)/'4. Billing Determinants'!$G$41*$D6,IF($E6="Distribution Rev.",VLOOKUP(S$4,'4. Billing Determinants'!$B$19:$P$41,8,0)/'4. Billing Determinants'!$I$41*$D6, VLOOKUP(S$4,'4. Billing Determinants'!$B$19:$P$41,3,0)/'4. Billing Determinants'!$D$41*$D6))))),0) -> 0 | T6: =IFERROR(IF(T$4="",0,IF($E6="kWh",VLOOKUP(T$4,'4. Billing Determinants'!$B$19:$P$41,4,0)/'4. Billing Determinants'!$E$41*$D6,IF($E6="kW",VLOOKUP(T$4,'4. Billing Determinants'!$B$19:$P$41,5,0)/'4. Billing Determinants'!$F$41*$D6,IF($E6="Non-RPP kWh",VLOOKUP(T$4,'4. Billing Determinants'!$B$19:$P$41,6,0)/'4. Billing Determinants'!$G$41*$D6,IF($E6="Distribution Rev.",VLOOKUP(T$4,'4. Billing Determinants'!$B$19:$P$41,8,0)/'4. Billing Determinants'!$I$41*$D6, VLOOKUP(T$4,'4. Billing Determinants'!$B$19:$P$41,3,0)/'4. Billing Determinants'!$D$41*$D6))))),0) -> 0 | U6: =IFERROR(IF(U$4="",0,IF($E6="kWh",VLOOKUP(U$4,'4. Billing Determinants'!$B$19:$P$41,4,0)/'4. Billing Determinants'!$E$41*$D6,IF($E6="kW",VLOOKUP(U$4,'4. Billing Determinants'!$B$19:$P$41,5,0)/'4. Billing Determinants'!$F$41*$D6,IF($E6="Non-RPP kWh",VLOOKUP(U$4,'4. Billing Determinants'!$B$19:$P$41,6,0)/'4. Billing Determinants'!$G$41*$D6,IF($E6="Distribution Rev.",VLOOKUP(U$4,'4. Billing Determinants'!$B$19:$P$41,8,0)/'4. Billing Determinants'!$I$41*$D6, VLOOKUP(U$4,'4. Billing Determinants'!$B$19:$P$41,3,0)/'4. Billing Determinants'!$D$41*$D6))))),0) -> 0 | V6: =IFERROR(IF(V$4="",0,IF($E6="kWh",VLOOKUP(V$4,'4. Billing Determinants'!$B$19:$P$41,4,0)/'4. Billing Determinants'!$E$41*$D6,IF($E6="kW",VLOOKUP(V$4,'4. Billing Determinants'!$B$19:$P$41,5,0)/'4. Billing Determinants'!$F$41*$D6,IF($E6="Non-RPP kWh",VLOOKUP(V$4,'4. Billing Determinants'!$B$19:$P$41,6,0)/'4. Billing Determinants'!$G$41*$D6,IF($E6="Distribution Rev.",VLOOKUP(V$4,'4. Billing Determinants'!$B$19:$P$41,8,0)/'4. Billing Determinants'!$I$41*$D6, VLOOKUP(V$4,'4. Billing Determinants'!$B$19:$P$41,3,0)/'4. Billing Determinants'!$D$41*$D6))))),0) -> 0 | W6: =IFERROR(IF(W$4="",0,IF($E6="kWh",VLOOKUP(W$4,'4. Billing Determinants'!$B$19:$P$41,4,0)/'4. Billing Determinants'!$E$41*$D6,IF($E6="kW",VLOOKUP(W$4,'4. Billing Determinants'!$B$19:$P$41,5,0)/'4. Billing Determinants'!$F$41*$D6,IF($E6="Non-RPP kWh",VLOOKUP(W$4,'4. Billing Determinants'!$B$19:$P$41,6,0)/'4. Billing Determinants'!$G$41*$D6,IF($E6="Distribution Rev.",VLOOKUP(W$4,'4. Billing Determinants'!$B$19:$P$41,8,0)/'4. Billing Determinants'!$I$41*$D6, VLOOKUP(W$4,'4. Billing Determinants'!$B$19:$P$41,3,0)/'4. Billing Determinants'!$D$41*$D6))))),0) -> 0 | X6: =IFERROR(IF(X$4="",0,IF($E6="kWh",VLOOKUP(X$4,'4. Billing Determinants'!$B$19:$P$41,4,0)/'4. Billing Determinants'!$E$41*$D6,IF($E6="kW",VLOOKUP(X$4,'4. Billing Determinants'!$B$19:$P$41,5,0)/'4. Billing Determinants'!$F$41*$D6,IF($E6="Non-RPP kWh",VLOOKUP(X$4,'4. Billing Determinants'!$B$19:$P$41,6,0)/'4. Billing Determinants'!$G$41*$D6,IF($E6="Distribution Rev.",VLOOKUP(X$4,'4. Billing Determinants'!$B$19:$P$41,8,0)/'4. Billing Determinants'!$I$41*$D6, VLOOKUP(X$4,'4. Billing Determinants'!$B$19:$P$41,3,0)/'4. Billing Determinants'!$D$41*$D6))))),0) -> 0 | Y6: =IFERROR(IF(Y$4="",0,IF($E6="kWh",VLOOKUP(Y$4,'4. Billing Determinants'!$B$19:$P$41,4,0)/'4. Billing Determinants'!$E$41*$D6,IF($E6="kW",VLOOKUP(Y$4,'4. Billing Determinants'!$B$19:$P$41,5,0)/'4. Billing Determinants'!$F$41*$D6,IF($E6="Non-RPP kWh",VLOOKUP(Y$4,'4. Billing Determinants'!$B$19:$P$41,6,0)/'4. Billing Determinants'!$G$41*$D6,IF($E6="Distribution Rev.",VLOOKUP(Y$4,'4. Billing Determinants'!$B$19:$P$41,8,0)/'4. Billing Determinants'!$I$41*$D6, VLOOKUP(Y$4,'4. Billing Determinants'!$B$19:$P$41,3,0)/'4. Billing Determinants'!$D$41*$D6))))),0) -> 0
B7: RSVA - Wholesale Market Service Charge | C7: 1580 | D7: ='2. 2014 Continuity Schedule'!CB26 -> -157917.99 | E7: kWh | F7: =IFERROR(IF(F$4="",0,IF($E7="kWh",VLOOKUP(F$4,'4. Billing Determinants'!$B$19:$P$41,4,0)/'4. Billing Determinants'!$E$41*$D7,IF($E7="kW",VLOOKUP(F$4,'4. Billing Determinants'!$B$19:$P$41,5,0)/'4. Billing Determinants'!$F$41*$D7,IF($E7="Non-RPP kWh",VLOOKUP(F$4,'4. Billing Determinants'!$B$19:$P$41,6,0)/'4. Billing Determinants'!$G$41*$D7,IF($E7="Distribution Rev.",VLOOKUP(F$4,'4. Billing Determinants'!$B$19:$P$41,8,0)/'4. Billing Determinants'!$I$41*$D7, VLOOKUP(F$4,'4. Billing Determinants'!$B$19:$P$41,3,0)/'4. Billing Determinants'!$D$41*$D7))))),0) -> -47333.49175 | G7: =IFERROR(IF(G$4="",0,IF($E7="kWh",VLOOKUP(G$4,'4. Billing Determinants'!$B$19:$P$41,4,0)/'4. Billing Determinants'!$E$41*$D7,IF($E7="kW",VLOOKUP(G$4,'4. Billing Determinants'!$B$19:$P$41,5,0)/'4. Billing Determinants'!$F$41*$D7,IF($E7="Non-RPP kWh",VLOOKUP(G$4,'4. Billing Determinants'!$B$19:$P$41,6,0)/'4. Billing Determinants'!$G$41*$D7,IF($E7="Distribution Rev.",VLOOKUP(G$4,'4. Billing Determinants'!$B$19:$P$41,8,0)/'4. Billing Determinants'!$I$41*$D7, VLOOKUP(G$4,'4. Billing Determinants'!$B$19:$P$41,3,0)/'4. Billing Determinants'!$D$41*$D7))))),0) -> -20832.63812 | H7: =IFERROR(IF(H$4="",0,IF($E7="kWh",VLOOKUP(H$4,'4. Billing Determinants'!$B$19:$P$41,4,0)/'4. Billing Determinants'!$E$41*$D7,IF($E7="kW",VLOOKUP(H$4,'4. Billing Determinants'!$B$19:$P$41,5,0)/'4. Billing Determinants'!$F$41*$D7,IF($E7="Non-RPP kWh",VLOOKUP(H$4,'4. Billing Determinants'!$B$19:$P$41,6,0)/'4. Billing Determinants'!$G$41*$D7,IF($E7="Distribution Rev.",VLOOKUP(H$4,'4. Billing Determinants'!$B$19:$P$41,8,0)/'4. Billing Determinants'!$I$41*$D7, VLOOKUP(H$4,'4. Billing Determinants'!$B$19:$P$41,3,0)/'4. Billing Determinants'!$D$41*$D7))))),0) -> -44272.65264 | I7: =IFERROR(IF(I$4="",0,IF($E7="kWh",VLOOKUP(I$4,'4. Billing Determinants'!$B$19:$P$41,4,0)/'4. Billing Determinants'!$E$41*$D7,IF($E7="kW",VLOOKUP(I$4,'4. Billing Determinants'!$B$19:$P$41,5,0)/'4. Billing Determinants'!$F$41*$D7,IF($E7="Non-RPP kWh",VLOOKUP(I$4,'4. Billing Determinants'!$B$19:$P$41,6,0)/'4. Billing Determinants'!$G$41*$D7,IF($E7="Distribution Rev.",VLOOKUP(I$4,'4. Billing Determinants'!$B$19:$P$41,8,0)/'4. Billing Determinants'!$I$41*$D7, VLOOKUP(I$4,'4. Billing Determinants'!$B$19:$P$41,3,0)/'4. Billing Determinants'!$D$41*$D7))))),0) -> -43507.41848 | J7: =IFERROR(IF(J$4="",0,IF($E7="kWh",VLOOKUP(J$4,'4. Billing Determinants'!$B$19:$P$41,4,0)/'4. Billing Determinants'!$E$41*$D7,IF($E7="kW",VLOOKUP(J$4,'4. Billing Determinants'!$B$19:$P$41,5,0)/'4. Billing Determinants'!$F$41*$D7,IF($E7="Non-RPP kWh",VLOOKUP(J$4,'4. Billing Determinants'!$B$19:$P$41,6,0)/'4. Billing Determinants'!$G$41*$D7,IF($E7="Distribution Rev.",VLOOKUP(J$4,'4. Billing Determinants'!$B$19:$P$41,8,0)/'4. Billing Determinants'!$I$41*$D7, VLOOKUP(J$4,'4. Billing Determinants'!$B$19:$P$41,3,0)/'4. Billing Determinants'!$D$41*$D7))))),0) -> -39.91958571 | K7: =IFERROR(IF(K$4="",0,IF($E7="kWh",VLOOKUP(K$4,'4. Billing Determinants'!$B$19:$P$41,4,0)/'4. Billing Determinants'!$E$41*$D7,IF($E7="kW",VLOOKUP(K$4,'4. Billing Determinants'!$B$19:$P$41,5,0)/'4. Billing Determinants'!$F$41*$D7,IF($E7="Non-RPP kWh",VLOOKUP(K$4,'4. Billing Determinants'!$B$19:$P$41,6,0)/'4. Billing Determinants'!$G$41*$D7,IF($E7="Distribution Rev.",VLOOKUP(K$4,'4. Billing Determinants'!$B$19:$P$41,8,0)/'4. Billing Determinants'!$I$41*$D7, VLOOKUP(K$4,'4. Billing Determinants'!$B$19:$P$41,3,0)/'4. Billing Determinants'!$D$41*$D7))))),0) -> -1931.869421 | L7: =IFERROR(IF(L$4="",0,IF($E7="kWh",VLOOKUP(L$4,'4. Billing Determinants'!$B$19:$P$41,4,0)/'4. Billing Determinants'!$E$41*$D7,IF($E7="kW",VLOOKUP(L$4,'4. Billing Determinants'!$B$19:$P$41,5,0)/'4. Billing Determinants'!$F$41*$D7,IF($E7="Non-RPP kWh",VLOOKUP(L$4,'4. Billing Determinants'!$B$19:$P$41,6,0)/'4. Billing Determinants'!$G$41*$D7,IF($E7="Distribution Rev.",VLOOKUP(L$4,'4. Billing Determinants'!$B$19:$P$41,8,0)/'4. Billing Determinants'!$I$41*$D7, VLOOKUP(L$4,'4. Billing Determinants'!$B$19:$P$41,3,0)/'4. Billing Determinants'!$D$41*$D7))))),0) -> 0 | M7: =IFERROR(IF(M$4="",0,IF($E7="kWh",VLOOKUP(M$4,'4. Billing Determinants'!$B$19:$P$41,4,0)/'4. Billing Determinants'!$E$41*$D7,IF($E7="kW",VLOOKUP(M$4,'4. Billing Determinants'!$B$19:$P$41,5,0)/'4. Billing Determinants'!$F$41*$D7,IF($E7="Non-RPP kWh",VLOOKUP(M$4,'4. Billing Determinants'!$B$19:$P$41,6,0)/'4. Billing Determinants'!$G$41*$D7,IF($E7="Distribution Rev.",VLOOKUP(M$4,'4. Billing Determinants'!$B$19:$P$41,8,0)/'4. Billing Determinants'!$I$41*$D7, VLOOKUP(M$4,'4. Billing Determinants'!$B$19:$P$41,3,0)/'4. Billing Determinants'!$D$41*$D7))))),0) -> 0 | N7: =IFERROR(IF(N$4="",0,IF($E7="kWh",VLOOKUP(N$4,'4. Billing Determinants'!$B$19:$P$41,4,0)/'4. Billing Determinants'!$E$41*$D7,IF($E7="kW",VLOOKUP(N$4,'4. Billing Determinants'!$B$19:$P$41,5,0)/'4. Billing Determinants'!$F$41*$D7,IF($E7="Non-RPP kWh",VLOOKUP(N$4,'4. Billing Determinants'!$B$19:$P$41,6,0)/'4. Billing Determinants'!$G$41*$D7,IF($E7="Distribution Rev.",VLOOKUP(N$4,'4. Billing Determinants'!$B$19:$P$41,8,0)/'4. Billing Determinants'!$I$41*$D7, VLOOKUP(N$4,'4. Billing Determinants'!$B$19:$P$41,3,0)/'4. Billing Determinants'!$D$41*$D7))))),0) -> 0 | O7: =IFERROR(IF(O$4="",0,IF($E7="kWh",VLOOKUP(O$4,'4. Billing Determinants'!$B$19:$P$41,4,0)/'4. Billing Determinants'!$E$41*$D7,IF($E7="kW",VLOOKUP(O$4,'4. Billing Determinants'!$B$19:$P$41,5,0)/'4. Billing Determinants'!$F$41*$D7,IF($E7="Non-RPP kWh",VLOOKUP(O$4,'4. Billing Determinants'!$B$19:$P$41,6,0)/'4. Billing Determinants'!$G$41*$D7,IF($E7="Distribution Rev.",VLOOKUP(O$4,'4. Billing Determinants'!$B$19:$P$41,8,0)/'4. Billing Determinants'!$I$41*$D7, VLOOKUP(O$4,'4. Billing Determinants'!$B$19:$P$41,3,0)/'4. Billing Determinants'!$D$41*$D7))))),0) -> 0 | P7: =IFERROR(IF(P$4="",0,IF($E7="kWh",VLOOKUP(P$4,'4. Billing Determinants'!$B$19:$P$41,4,0)/'4. Billing Determinants'!$E$41*$D7,IF($E7="kW",VLOOKUP(P$4,'4. Billing Determinants'!$B$19:$P$41,5,0)/'4. Billing Determinants'!$F$41*$D7,IF($E7="Non-RPP kWh",VLOOKUP(P$4,'4. Billing Determinants'!$B$19:$P$41,6,0)/'4. Billing Determinants'!$G$41*$D7,IF($E7="Distribution Rev.",VLOOKUP(P$4,'4. Billing Determinants'!$B$19:$P$41,8,0)/'4. Billing Determinants'!$I$41*$D7, VLOOKUP(P$4,'4. Billing Determinants'!$B$19:$P$41,3,0)/'4. Billing Determinants'!$D$41*$D7))))),0) -> 0 | Q7: =IFERROR(IF(Q$4="",0,IF($E7="kWh",VLOOKUP(Q$4,'4. Billing Determinants'!$B$19:$P$41,4,0)/'4. Billing Determinants'!$E$41*$D7,IF($E7="kW",VLOOKUP(Q$4,'4. Billing Determinants'!$B$19:$P$41,5,0)/'4. Billing Determinants'!$F$41*$D7,IF($E7="Non-RPP kWh",VLOOKUP(Q$4,'4. Billing Determinants'!$B$19:$P$41,6,0)/'4. Billing Determinants'!$G$41*$D7,IF($E7="Distribution Rev.",VLOOKUP(Q$4,'4. Billing Determinants'!$B$19:$P$41,8,0)/'4. Billing Determinants'!$I$41*$D7, VLOOKUP(Q$4,'4. Billing Determinants'!$B$19:$P$41,3,0)/'4. Billing Determinants'!$D$41*$D7))))),0) -> 0 | R7: =IFERROR(IF(R$4="",0,IF($E7="kWh",VLOOKUP(R$4,'4. Billing Determinants'!$B$19:$P$41,4,0)/'4. Billing Determinants'!$E$41*$D7,IF($E7="kW",VLOOKUP(R$4,'4. Billing Determinants'!$B$19:$P$41,5,0)/'4. Billing Determinants'!$F$41*$D7,IF($E7="Non-RPP kWh",VLOOKUP(R$4,'4. Billing Determinants'!$B$19:$P$41,6,0)/'4. Billing Determinants'!$G$41*$D7,IF($E7="Distribution Rev.",VLOOKUP(R$4,'4. Billing Determinants'!$B$19:$P$41,8,0)/'4. Billing Determinants'!$I$41*$D7, VLOOKUP(R$4,'4. Billing Determinants'!$B$19:$P$41,3,0)/'4. Billing Determinants'!$D$41*$D7))))),0) -> 0 | S7: =IFERROR(IF(S$4="",0,IF($E7="kWh",VLOOKUP(S$4,'4. Billing Determinants'!$B$19:$P$41,4,0)/'4. Billing Determinants'!$E$41*$D7,IF($E7="kW",VLOOKUP(S$4,'4. Billing Determinants'!$B$19:$P$41,5,0)/'4. Billing Determinants'!$F$41*$D7,IF($E7="Non-RPP kWh",VLOOKUP(S$4,'4. Billing Determinants'!$B$19:$P$41,6,0)/'4. Billing Determinants'!$G$41*$D7,IF($E7="Distribution Rev.",VLOOKUP(S$4,'4. Billing Determinants'!$B$19:$P$41,8,0)/'4. Billing Determinants'!$I$41*$D7, VLOOKUP(S$4,'4. Billing Determinants'!$B$19:$P$41,3,0)/'4. Billing Determinants'!$D$41*$D7))))),0) -> 0 | T7: =IFERROR(IF(T$4="",0,IF($E7="kWh",VLOOKUP(T$4,'4. Billing Determinants'!$B$19:$P$41,4,0)/'4. Billing Determinants'!$E$41*$D7,IF($E7="kW",VLOOKUP(T$4,'4. Billing Determinants'!$B$19:$P$41,5,0)/'4. Billing Determinants'!$F$41*$D7,IF($E7="Non-RPP kWh",VLOOKUP(T$4,'4. Billing Determinants'!$B$19:$P$41,6,0)/'4. Billing Determinants'!$G$41*$D7,IF($E7="Distribution Rev.",VLOOKUP(T$4,'4. Billing Determinants'!$B$19:$P$41,8,0)/'4. Billing Determinants'!$I$41*$D7, VLOOKUP(T$4,'4. Billing Determinants'!$B$19:$P$41,3,0)/'4. Billing Determinants'!$D$41*$D7))))),0) -> 0 | U7: =IFERROR(IF(U$4="",0,IF($E7="kWh",VLOOKUP(U$4,'4. Billing Determinants'!$B$19:$P$41,4,0)/'4. Billing Determinants'!$E$41*$D7,IF($E7="kW",VLOOKUP(U$4,'4. Billing Determinants'!$B$19:$P$41,5,0)/'4. Billing Determinants'!$F$41*$D7,IF($E7="Non-RPP kWh",VLOOKUP(U$4,'4. Billing Determinants'!$B$19:$P$41,6,0)/'4. Billing Determinants'!$G$41*$D7,IF($E7="Distribution Rev.",VLOOKUP(U$4,'4. Billing Determinants'!$B$19:$P$41,8,0)/'4. Billing Determinants'!$I$41*$D7, VLOOKUP(U$4,'4. Billing Determinants'!$B$19:$P$41,3,0)/'4. Billing Determinants'!$D$41*$D7))))),0) -> 0 | V7: =IFERROR(IF(V$4="",0,IF($E7="kWh",VLOOKUP(V$4,'4. Billing Determinants'!$B$19:$P$41,4,0)/'4. Billing Determinants'!$E$41*$D7,IF($E7="kW",VLOOKUP(V$4,'4. Billing Determinants'!$B$19:$P$41,5,0)/'4. Billing Determinants'!$F$41*$D7,IF($E7="Non-RPP kWh",VLOOKUP(V$4,'4. Billing Determinants'!$B$19:$P$41,6,0)/'4. Billing Determinants'!$G$41*$D7,IF($E7="Distribution Rev.",VLOOKUP(V$4,'4. Billing Determinants'!$B$19:$P$41,8,0)/'4. Billing Determinants'!$I$41*$D7, VLOOKUP(V$4,'4. Billing Determinants'!$B$19:$P$41,3,0)/'4. Billing Determinants'!$D$41*$D7))))),0) -> 0 | W7: =IFERROR(IF(W$4="",0,IF($E7="kWh",VLOOKUP(W$4,'4. Billing Determinants'!$B$19:$P$41,4,0)/'4. Billing Determinants'!$E$41*$D7,IF($E7="kW",VLOOKUP(W$4,'4. Billing Determinants'!$B$19:$P$41,5,0)/'4. Billing Determinants'!$F$41*$D7,IF($E7="Non-RPP kWh",VLOOKUP(W$4,'4. Billing Determinants'!$B$19:$P$41,6,0)/'4. Billing Determinants'!$G$41*$D7,IF($E7="Distribution Rev.",VLOOKUP(W$4,'4. Billing Determinants'!$B$19:$P$41,8,0)/'4. Billing Determinants'!$I$41*$D7, VLOOKUP(W$4,'4. Billing Determinants'!$B$19:$P$41,3,0)/'4. Billing Determinants'!$D$41*$D7))))),0) -> 0 | X7: =IFERROR(IF(X$4="",0,IF($E7="kWh",VLOOKUP(X$4,'4. Billing Determinants'!$B$19:$P$41,4,0)/'4. Billing Determinants'!$E$41*$D7,IF($E7="kW",VLOOKUP(X$4,'4. Billing Determinants'!$B$19:$P$41,5,0)/'4. Billing Determinants'!$F$41*$D7,IF($E7="Non-RPP kWh",VLOOKUP(X$4,'4. Billing Determinants'!$B$19:$P$41,6,0)/'4. Billing Determinants'!$G$41*$D7,IF($E7="Distribution Rev.",VLOOKUP(X$4,'4. Billing Determinants'!$B$19:$P$41,8,0)/'4. Billing Determinants'!$I$41*$D7, VLOOKUP(X$4,'4. Billing Determinants'!$B$19:$P$41,3,0)/'4. Billing Determinants'!$D$41*$D7))))),0) -> 0 | Y7: =IFERROR(IF(Y$4="",0,IF($E7="kWh",VLOOKUP(Y$4,'4. Billing Determinants'!$B$19:$P$41,4,0)/'4. Billing Determinants'!$E$41*$D7,IF($E7="kW",VLOOKUP(Y$4,'4. Billing Determinants'!$B$19:$P$41,5,0)/'4. Billing Determinants'!$F$41*$D7,IF($E7="Non-RPP kWh",VLOOKUP(Y$4,'4. Billing Determinants'!$B$19:$P$41,6,0)/'4. Billing Determinants'!$G$41*$D7,IF($E7="Distribution Rev.",VLOOKUP(Y$4,'4. Billing Determinants'!$B$19:$P$41,8,0)/'4. Billing Determinants'!$I$41*$D7, VLOOKUP(Y$4,'4. Billing Determinants'!$B$19:$P$41,3,0)/'4. Billing Determinants'!$D$41*$D7))))),0) -> 0
B8: RSVA - Retail Transmission Network Charge | C8: 1584 | D8: ='2. 2014 Continuity Schedule'!CB27 -> 161340.95 | E8: kWh | F8: =IFERROR(IF(F$4="",0,IF($E8="kWh",VLOOKUP(F$4,'4. Billing Determinants'!$B$19:$P$41,4,0)/'4. Billing Determinants'!$E$41*$D8,IF($E8="kW",VLOOKUP(F$4,'4. Billing Determinants'!$B$19:$P$41,5,0)/'4. Billing Determinants'!$F$41*$D8,IF($E8="Non-RPP kWh",VLOOKUP(F$4,'4. Billing Determinants'!$B$19:$P$41,6,0)/'4. Billing Determinants'!$G$41*$D8,IF($E8="Distribution Rev.",VLOOKUP(F$4,'4. Billing Determinants'!$B$19:$P$41,8,0)/'4. Billing Determinants'!$I$41*$D8, VLOOKUP(F$4,'4. Billing Determinants'!$B$19:$P$41,3,0)/'4. Billing Determinants'!$D$41*$D8))))),0) -> 48359.47143 | G8: =IFERROR(IF(G$4="",0,IF($E8="kWh",VLOOKUP(G$4,'4. Billing Determinants'!$B$19:$P$41,4,0)/'4. Billing Determinants'!$E$41*$D8,IF($E8="kW",VLOOKUP(G$4,'4. Billing Determinants'!$B$19:$P$41,5,0)/'4. Billing Determinants'!$F$41*$D8,IF($E8="Non-RPP kWh",VLOOKUP(G$4,'4. Billing Determinants'!$B$19:$P$41,6,0)/'4. Billing Determinants'!$G$41*$D8,IF($E8="Distribution Rev.",VLOOKUP(G$4,'4. Billing Determinants'!$B$19:$P$41,8,0)/'4. Billing Determinants'!$I$41*$D8, VLOOKUP(G$4,'4. Billing Determinants'!$B$19:$P$41,3,0)/'4. Billing Determinants'!$D$41*$D8))))),0) -> 21284.19711 | H8: =IFERROR(IF(H$4="",0,IF($E8="kWh",VLOOKUP(H$4,'4. Billing Determinants'!$B$19:$P$41,4,0)/'4. Billing Determinants'!$E$41*$D8,IF($E8="kW",VLOOKUP(H$4,'4. Billing Determinants'!$B$19:$P$41,5,0)/'4. Billing Determinants'!$F$41*$D8,IF($E8="Non-RPP kWh",VLOOKUP(H$4,'4. Billing Determinants'!$B$19:$P$41,6,0)/'4. Billing Determinants'!$G$41*$D8,IF($E8="Distribution Rev.",VLOOKUP(H$4,'4. Billing Determinants'!$B$19:$P$41,8,0)/'4. Billing Determinants'!$I$41*$D8, VLOOKUP(H$4,'4. Billing Determinants'!$B$19:$P$41,3,0)/'4. Billing Determinants'!$D$41*$D8))))),0) -> 45232.28693 | I8: =IFERROR(IF(I$4="",0,IF($E8="kWh",VLOOKUP(I$4,'4. Billing Determinants'!$B$19:$P$41,4,0)/'4. Billing Determinants'!$E$41*$D8,IF($E8="kW",VLOOKUP(I$4,'4. Billing Determinants'!$B$19:$P$41,5,0)/'4. Billing Determinants'!$F$41*$D8,IF($E8="Non-RPP kWh",VLOOKUP(I$4,'4. Billing Determinants'!$B$19:$P$41,6,0)/'4. Billing Determinants'!$G$41*$D8,IF($E8="Distribution Rev.",VLOOKUP(I$4,'4. Billing Determinants'!$B$19:$P$41,8,0)/'4. Billing Determinants'!$I$41*$D8, VLOOKUP(I$4,'4. Billing Determinants'!$B$19:$P$41,3,0)/'4. Billing Determinants'!$D$41*$D8))))),0) -> 44450.4659 | J8: =IFERROR(IF(J$4="",0,IF($E8="kWh",VLOOKUP(J$4,'4. Billing Determinants'!$B$19:$P$41,4,0)/'4. Billing Determinants'!$E$41*$D8,IF($E8="kW",VLOOKUP(J$4,'4. Billing Determinants'!$B$19:$P$41,5,0)/'4. Billing Determinants'!$F$41*$D8,IF($E8="Non-RPP kWh",VLOOKUP(J$4,'4. Billing Determinants'!$B$19:$P$41,6,0)/'4. Billing Determinants'!$G$41*$D8,IF($E8="Distribution Rev.",VLOOKUP(J$4,'4. Billing Determinants'!$B$19:$P$41,8,0)/'4. Billing Determinants'!$I$41*$D8, VLOOKUP(J$4,'4. Billing Determinants'!$B$19:$P$41,3,0)/'4. Billing Determinants'!$D$41*$D8))))),0) -> 40.78486487 | K8: =IFERROR(IF(K$4="",0,IF($E8="kWh",VLOOKUP(K$4,'4. Billing Determinants'!$B$19:$P$41,4,0)/'4. Billing Determinants'!$E$41*$D8,IF($E8="kW",VLOOKUP(K$4,'4. Billing Determinants'!$B$19:$P$41,5,0)/'4. Billing Determinants'!$F$41*$D8,IF($E8="Non-RPP kWh",VLOOKUP(K$4,'4. Billing Determinants'!$B$19:$P$41,6,0)/'4. Billing Determinants'!$G$41*$D8,IF($E8="Distribution Rev.",VLOOKUP(K$4,'4. Billing Determinants'!$B$19:$P$41,8,0)/'4. Billing Determinants'!$I$41*$D8, VLOOKUP(K$4,'4. Billing Determinants'!$B$19:$P$41,3,0)/'4. Billing Determinants'!$D$41*$D8))))),0) -> 1973.743762 | L8: =IFERROR(IF(L$4="",0,IF($E8="kWh",VLOOKUP(L$4,'4. Billing Determinants'!$B$19:$P$41,4,0)/'4. Billing Determinants'!$E$41*$D8,IF($E8="kW",VLOOKUP(L$4,'4. Billing Determinants'!$B$19:$P$41,5,0)/'4. Billing Determinants'!$F$41*$D8,IF($E8="Non-RPP kWh",VLOOKUP(L$4,'4. Billing Determinants'!$B$19:$P$41,6,0)/'4. Billing Determinants'!$G$41*$D8,IF($E8="Distribution Rev.",VLOOKUP(L$4,'4. Billing Determinants'!$B$19:$P$41,8,0)/'4. Billing Determinants'!$I$41*$D8, VLOOKUP(L$4,'4. Billing Determinants'!$B$19:$P$41,3,0)/'4. Billing Determinants'!$D$41*$D8))))),0) -> 0 | M8: =IFERROR(IF(M$4="",0,IF($E8="kWh",VLOOKUP(M$4,'4. Billing Determinants'!$B$19:$P$41,4,0)/'4. Billing Determinants'!$E$41*$D8,IF($E8="kW",VLOOKUP(M$4,'4. Billing Determinants'!$B$19:$P$41,5,0)/'4. Billing Determinants'!$F$41*$D8,IF($E8="Non-RPP kWh",VLOOKUP(M$4,'4. Billing Determinants'!$B$19:$P$41,6,0)/'4. Billing Determinants'!$G$41*$D8,IF($E8="Distribution Rev.",VLOOKUP(M$4,'4. Billing Determinants'!$B$19:$P$41,8,0)/'4. Billing Determinants'!$I$41*$D8, VLOOKUP(M$4,'4. Billing Determinants'!$B$19:$P$41,3,0)/'4. Billing Determinants'!$D$41*$D8))))),0) -> 0 | N8: =IFERROR(IF(N$4="",0,IF($E8="kWh",VLOOKUP(N$4,'4. Billing Determinants'!$B$19:$P$41,4,0)/'4. Billing Determinants'!$E$41*$D8,IF($E8="kW",VLOOKUP(N$4,'4. Billing Determinants'!$B$19:$P$41,5,0)/'4. Billing Determinants'!$F$41*$D8,IF($E8="Non-RPP kWh",VLOOKUP(N$4,'4. Billing Determinants'!$B$19:$P$41,6,0)/'4. Billing Determinants'!$G$41*$D8,IF($E8="Distribution Rev.",VLOOKUP(N$4,'4. Billing Determinants'!$B$19:$P$41,8,0)/'4. Billing Determinants'!$I$41*$D8, VLOOKUP(N$4,'4. Billing Determinants'!$B$19:$P$41,3,0)/'4. Billing Determinants'!$D$41*$D8))))),0) -> 0 | O8: =IFERROR(IF(O$4="",0,IF($E8="kWh",VLOOKUP(O$4,'4. Billing Determinants'!$B$19:$P$41,4,0)/'4. Billing Determinants'!$E$41*$D8,IF($E8="kW",VLOOKUP(O$4,'4. Billing Determinants'!$B$19:$P$41,5,0)/'4. Billing Determinants'!$F$41*$D8,IF($E8="Non-RPP kWh",VLOOKUP(O$4,'4. Billing Determinants'!$B$19:$P$41,6,0)/'4. Billing Determinants'!$G$41*$D8,IF($E8="Distribution Rev.",VLOOKUP(O$4,'4. Billing Determinants'!$B$19:$P$41,8,0)/'4. Billing Determinants'!$I$41*$D8, VLOOKUP(O$4,'4. Billing Determinants'!$B$19:$P$41,3,0)/'4. Billing Determinants'!$D$41*$D8))))),0) -> 0 | P8: =IFERROR(IF(P$4="",0,IF($E8="kWh",VLOOKUP(P$4,'4. Billing Determinants'!$B$19:$P$41,4,0)/'4. Billing Determinants'!$E$41*$D8,IF($E8="kW",VLOOKUP(P$4,'4. Billing Determinants'!$B$19:$P$41,5,0)/'4. Billing Determinants'!$F$41*$D8,IF($E8="Non-RPP kWh",VLOOKUP(P$4,'4. Billing Determinants'!$B$19:$P$41,6,0)/'4. Billing Determinants'!$G$41*$D8,IF($E8="Distribution Rev.",VLOOKUP(P$4,'4. Billing Determinants'!$B$19:$P$41,8,0)/'4. Billing Determinants'!$I$41*$D8, VLOOKUP(P$4,'4. Billing Determinants'!$B$19:$P$41,3,0)/'4. Billing Determinants'!$D$41*$D8))))),0) -> 0 | Q8: =IFERROR(IF(Q$4="",0,IF($E8="kWh",VLOOKUP(Q$4,'4. Billing Determinants'!$B$19:$P$41,4,0)/'4. Billing Determinants'!$E$41*$D8,IF($E8="kW",VLOOKUP(Q$4,'4. Billing Determinants'!$B$19:$P$41,5,0)/'4. Billing Determinants'!$F$41*$D8,IF($E8="Non-RPP kWh",VLOOKUP(Q$4,'4. Billing Determinants'!$B$19:$P$41,6,0)/'4. Billing Determinants'!$G$41*$D8,IF($E8="Distribution Rev.",VLOOKUP(Q$4,'4. Billing Determinants'!$B$19:$P$41,8,0)/'4. Billing Determinants'!$I$41*$D8, VLOOKUP(Q$4,'4. Billing Determinants'!$B$19:$P$41,3,0)/'4. Billing Determinants'!$D$41*$D8))))),0) -> 0 | R8: =IFERROR(IF(R$4="",0,IF($E8="kWh",VLOOKUP(R$4,'4. Billing Determinants'!$B$19:$P$41,4,0)/'4. Billing Determinants'!$E$41*$D8,IF($E8="kW",VLOOKUP(R$4,'4. Billing Determinants'!$B$19:$P$41,5,0)/'4. Billing Determinants'!$F$41*$D8,IF($E8="Non-RPP kWh",VLOOKUP(R$4,'4. Billing Determinants'!$B$19:$P$41,6,0)/'4. Billing Determinants'!$G$41*$D8,IF($E8="Distribution Rev.",VLOOKUP(R$4,'4. Billing Determinants'!$B$19:$P$41,8,0)/'4. Billing Determinants'!$I$41*$D8, VLOOKUP(R$4,'4. Billing Determinants'!$B$19:$P$41,3,0)/'4. Billing Determinants'!$D$41*$D8))))),0) -> 0 | S8: =IFERROR(IF(S$4="",0,IF($E8="kWh",VLOOKUP(S$4,'4. Billing Determinants'!$B$19:$P$41,4,0)/'4. Billing Determinants'!$E$41*$D8,IF($E8="kW",VLOOKUP(S$4,'4. Billing Determinants'!$B$19:$P$41,5,0)/'4. Billing Determinants'!$F$41*$D8,IF($E8="Non-RPP kWh",VLOOKUP(S$4,'4. Billing Determinants'!$B$19:$P$41,6,0)/'4. Billing Determinants'!$G$41*$D8,IF($E8="Distribution Rev.",VLOOKUP(S$4,'4. Billing Determinants'!$B$19:$P$41,8,0)/'4. Billing Determinants'!$I$41*$D8, VLOOKUP(S$4,'4. Billing Determinants'!$B$19:$P$41,3,0)/'4. Billing Determinants'!$D$41*$D8))))),0) -> 0 | T8: =IFERROR(IF(T$4="",0,IF($E8="kWh",VLOOKUP(T$4,'4. Billing Determinants'!$B$19:$P$41,4,0)/'4. Billing Determinants'!$E$41*$D8,IF($E8="kW",VLOOKUP(T$4,'4. Billing Determinants'!$B$19:$P$41,5,0)/'4. Billing Determinants'!$F$41*$D8,IF($E8="Non-RPP kWh",VLOOKUP(T$4,'4. Billing Determinants'!$B$19:$P$41,6,0)/'4. Billing Determinants'!$G$41*$D8,IF($E8="Distribution Rev.",VLOOKUP(T$4,'4. Billing Determinants'!$B$19:$P$41,8,0)/'4. Billing Determinants'!$I$41*$D8, VLOOKUP(T$4,'4. Billing Determinants'!$B$19:$P$41,3,0)/'4. Billing Determinants'!$D$41*$D8))))),0) -> 0 | U8: =IFERROR(IF(U$4="",0,IF($E8="kWh",VLOOKUP(U$4,'4. Billing Determinants'!$B$19:$P$41,4,0)/'4. Billing Determinants'!$E$41*$D8,IF($E8="kW",VLOOKUP(U$4,'4. Billing Determinants'!$B$19:$P$41,5,0)/'4. Billing Determinants'!$F$41*$D8,IF($E8="Non-RPP kWh",VLOOKUP(U$4,'4. Billing Determinants'!$B$19:$P$41,6,0)/'4. Billing Determinants'!$G$41*$D8,IF($E8="Distribution Rev.",VLOOKUP(U$4,'4. Billing Determinants'!$B$19:$P$41,8,0)/'4. Billing Determinants'!$I$41*$D8, VLOOKUP(U$4,'4. Billing Determinants'!$B$19:$P$41,3,0)/'4. Billing Determinants'!$D$41*$D8))))),0) -> 0 | V8: =IFERROR(IF(V$4="",0,IF($E8="kWh",VLOOKUP(V$4,'4. Billing Determinants'!$B$19:$P$41,4,0)/'4. Billing Determinants'!$E$41*$D8,IF($E8="kW",VLOOKUP(V$4,'4. Billing Determinants'!$B$19:$P$41,5,0)/'4. Billing Determinants'!$F$41*$D8,IF($E8="Non-RPP kWh",VLOOKUP(V$4,'4. Billing Determinants'!$B$19:$P$41,6,0)/'4. Billing Determinants'!$G$41*$D8,IF($E8="Distribution Rev.",VLOOKUP(V$4,'4. Billing Determinants'!$B$19:$P$41,8,0)/'4. Billing Determinants'!$I$41*$D8, VLOOKUP(V$4,'4. Billing Determinants'!$B$19:$P$41,3,0)/'4. Billing Determinants'!$D$41*$D8))))),0) -> 0 | W8: =IFERROR(IF(W$4="",0,IF($E8="kWh",VLOOKUP(W$4,'4. Billing Determinants'!$B$19:$P$41,4,0)/'4. Billing Determinants'!$E$41*$D8,IF($E8="kW",VLOOKUP(W$4,'4. Billing Determinants'!$B$19:$P$41,5,0)/'4. Billing Determinants'!$F$41*$D8,IF($E8="Non-RPP kWh",VLOOKUP(W$4,'4. Billing Determinants'!$B$19:$P$41,6,0)/'4. Billing Determinants'!$G$41*$D8,IF($E8="Distribution Rev.",VLOOKUP(W$4,'4. Billing Determinants'!$B$19:$P$41,8,0)/'4. Billing Determinants'!$I$41*$D8, VLOOKUP(W$4,'4. Billing Determinants'!$B$19:$P$41,3,0)/'4. Billing Determinants'!$D$41*$D8))))),0) -> 0 | X8: =IFERROR(IF(X$4="",0,IF($E8="kWh",VLOOKUP(X$4,'4. Billing Determinants'!$B$19:$P$41,4,0)/'4. Billing Determinants'!$E$41*$D8,IF($E8="kW",VLOOKUP(X$4,'4. Billing Determinants'!$B$19:$P$41,5,0)/'4. Billing Determinants'!$F$41*$D8,IF($E8="Non-RPP kWh",VLOOKUP(X$4,'4. Billing Determinants'!$B$19:$P$41,6,0)/'4. Billing Determinants'!$G$41*$D8,IF($E8="Distribution Rev.",VLOOKUP(X$4,'4. Billing Determinants'!$B$19:$P$41,8,0)/'4. Billing Determinants'!$I$41*$D8, VLOOKUP(X$4,'4. Billing Determinants'!$B$19:$P$41,3,0)/'4. Billing Determinants'!$D$41*$D8))))),0) -> 0 | Y8: =IFERROR(IF(Y$4="",0,IF($E8="kWh",VLOOKUP(Y$4,'4. Billing Determinants'!$B$19:$P$41,4,0)/'4. Billing Determinants'!$E$41*$D8,IF($E8="kW",VLOOKUP(Y$4,'4. Billing Determinants'!$B$19:$P$41,5,0)/'4. Billing Determinants'!$F$41*$D8,IF($E8="Non-RPP kWh",VLOOKUP(Y$4,'4. Billing Determinants'!$B$19:$P$41,6,0)/'4. Billing Determinants'!$G$41*$D8,IF($E8="Distribution Rev.",VLOOKUP(Y$4,'4. Billing Determinants'!$B$19:$P$41,8,0)/'4. Billing Determinants'!$I$41*$D8, VLOOKUP(Y$4,'4. Billing Determinants'!$B$19:$P$41,3,0)/'4. Billing Determinants'!$D$41*$D8))))),0) -> 0
B9: RSVA - Retail Transmission Connection Charge | C9: 1586 | D9: ='2. 2014 Continuity Schedule'!CB28 -> 62282.54 | E9: kWh | F9: =IFERROR(IF(F$4="",0,IF($E9="kWh",VLOOKUP(F$4,'4. Billing Determinants'!$B$19:$P$41,4,0)/'4. Billing Determinants'!$E$41*$D9,IF($E9="kW",VLOOKUP(F$4,'4. Billing Determinants'!$B$19:$P$41,5,0)/'4. Billing Determinants'!$F$41*$D9,IF($E9="Non-RPP kWh",VLOOKUP(F$4,'4. Billing Determinants'!$B$19:$P$41,6,0)/'4. Billing Determinants'!$G$41*$D9,IF($E9="Distribution Rev.",VLOOKUP(F$4,'4. Billing Determinants'!$B$19:$P$41,8,0)/'4. Billing Determinants'!$I$41*$D9, VLOOKUP(F$4,'4. Billing Determinants'!$B$19:$P$41,3,0)/'4. Billing Determinants'!$D$41*$D9))))),0) -> 18668.23465 | G9: =IFERROR(IF(G$4="",0,IF($E9="kWh",VLOOKUP(G$4,'4. Billing Determinants'!$B$19:$P$41,4,0)/'4. Billing Determinants'!$E$41*$D9,IF($E9="kW",VLOOKUP(G$4,'4. Billing Determinants'!$B$19:$P$41,5,0)/'4. Billing Determinants'!$F$41*$D9,IF($E9="Non-RPP kWh",VLOOKUP(G$4,'4. Billing Determinants'!$B$19:$P$41,6,0)/'4. Billing Determinants'!$G$41*$D9,IF($E9="Distribution Rev.",VLOOKUP(G$4,'4. Billing Determinants'!$B$19:$P$41,8,0)/'4. Billing Determinants'!$I$41*$D9, VLOOKUP(G$4,'4. Billing Determinants'!$B$19:$P$41,3,0)/'4. Billing Determinants'!$D$41*$D9))))),0) -> 8216.350887 | H9: =IFERROR(IF(H$4="",0,IF($E9="kWh",VLOOKUP(H$4,'4. Billing Determinants'!$B$19:$P$41,4,0)/'4. Billing Determinants'!$E$41*$D9,IF($E9="kW",VLOOKUP(H$4,'4. Billing Determinants'!$B$19:$P$41,5,0)/'4. Billing Determinants'!$F$41*$D9,IF($E9="Non-RPP kWh",VLOOKUP(H$4,'4. Billing Determinants'!$B$19:$P$41,6,0)/'4. Billing Determinants'!$G$41*$D9,IF($E9="Distribution Rev.",VLOOKUP(H$4,'4. Billing Determinants'!$B$19:$P$41,8,0)/'4. Billing Determinants'!$I$41*$D9, VLOOKUP(H$4,'4. Billing Determinants'!$B$19:$P$41,3,0)/'4. Billing Determinants'!$D$41*$D9))))),0) -> 17461.04582 | I9: =IFERROR(IF(I$4="",0,IF($E9="kWh",VLOOKUP(I$4,'4. Billing Determinants'!$B$19:$P$41,4,0)/'4. Billing Determinants'!$E$41*$D9,IF($E9="kW",VLOOKUP(I$4,'4. Billing Determinants'!$B$19:$P$41,5,0)/'4. Billing Determinants'!$F$41*$D9,IF($E9="Non-RPP kWh",VLOOKUP(I$4,'4. Billing Determinants'!$B$19:$P$41,6,0)/'4. Billing Determinants'!$G$41*$D9,IF($E9="Distribution Rev.",VLOOKUP(I$4,'4. Billing Determinants'!$B$19:$P$41,8,0)/'4. Billing Determinants'!$I$41*$D9, VLOOKUP(I$4,'4. Billing Determinants'!$B$19:$P$41,3,0)/'4. Billing Determinants'!$D$41*$D9))))),0) -> 17159.23899 | J9: =IFERROR(IF(J$4="",0,IF($E9="kWh",VLOOKUP(J$4,'4. Billing Determinants'!$B$19:$P$41,4,0)/'4. Billing Determinants'!$E$41*$D9,IF($E9="kW",VLOOKUP(J$4,'4. Billing Determinants'!$B$19:$P$41,5,0)/'4. Billing Determinants'!$F$41*$D9,IF($E9="Non-RPP kWh",VLOOKUP(J$4,'4. Billing Determinants'!$B$19:$P$41,6,0)/'4. Billing Determinants'!$G$41*$D9,IF($E9="Distribution Rev.",VLOOKUP(J$4,'4. Billing Determinants'!$B$19:$P$41,8,0)/'4. Billing Determinants'!$I$41*$D9, VLOOKUP(J$4,'4. Billing Determinants'!$B$19:$P$41,3,0)/'4. Billing Determinants'!$D$41*$D9))))),0) -> 15.74420491 | K9: =IFERROR(IF(K$4="",0,IF($E9="kWh",VLOOKUP(K$4,'4. Billing Determinants'!$B$19:$P$41,4,0)/'4. Billing Determinants'!$E$41*$D9,IF($E9="kW",VLOOKUP(K$4,'4. Billing Determinants'!$B$19:$P$41,5,0)/'4. Billing Determinants'!$F$41*$D9,IF($E9="Non-RPP kWh",VLOOKUP(K$4,'4. Billing Determinants'!$B$19:$P$41,6,0)/'4. Billing Determinants'!$G$41*$D9,IF($E9="Distribution Rev.",VLOOKUP(K$4,'4. Billing Determinants'!$B$19:$P$41,8,0)/'4. Billing Determinants'!$I$41*$D9, VLOOKUP(K$4,'4. Billing Determinants'!$B$19:$P$41,3,0)/'4. Billing Determinants'!$D$41*$D9))))),0) -> 761.925443 | L9: =IFERROR(IF(L$4="",0,IF($E9="kWh",VLOOKUP(L$4,'4. Billing Determinants'!$B$19:$P$41,4,0)/'4. Billing Determinants'!$E$41*$D9,IF($E9="kW",VLOOKUP(L$4,'4. Billing Determinants'!$B$19:$P$41,5,0)/'4. Billing Determinants'!$F$41*$D9,IF($E9="Non-RPP kWh",VLOOKUP(L$4,'4. Billing Determinants'!$B$19:$P$41,6,0)/'4. Billing Determinants'!$G$41*$D9,IF($E9="Distribution Rev.",VLOOKUP(L$4,'4. Billing Determinants'!$B$19:$P$41,8,0)/'4. Billing Determinants'!$I$41*$D9, VLOOKUP(L$4,'4. Billing Determinants'!$B$19:$P$41,3,0)/'4. Billing Determinants'!$D$41*$D9))))),0) -> 0 | M9: =IFERROR(IF(M$4="",0,IF($E9="kWh",VLOOKUP(M$4,'4. Billing Determinants'!$B$19:$P$41,4,0)/'4. Billing Determinants'!$E$41*$D9,IF($E9="kW",VLOOKUP(M$4,'4. Billing Determinants'!$B$19:$P$41,5,0)/'4. Billing Determinants'!$F$41*$D9,IF($E9="Non-RPP kWh",VLOOKUP(M$4,'4. Billing Determinants'!$B$19:$P$41,6,0)/'4. Billing Determinants'!$G$41*$D9,IF($E9="Distribution Rev.",VLOOKUP(M$4,'4. Billing Determinants'!$B$19:$P$41,8,0)/'4. Billing Determinants'!$I$41*$D9, VLOOKUP(M$4,'4. Billing Determinants'!$B$19:$P$41,3,0)/'4. Billing Determinants'!$D$41*$D9))))),0) -> 0 | N9: =IFERROR(IF(N$4="",0,IF($E9="kWh",VLOOKUP(N$4,'4. Billing Determinants'!$B$19:$P$41,4,0)/'4. Billing Determinants'!$E$41*$D9,IF($E9="kW",VLOOKUP(N$4,'4. Billing Determinants'!$B$19:$P$41,5,0)/'4. Billing Determinants'!$F$41*$D9,IF($E9="Non-RPP kWh",VLOOKUP(N$4,'4. Billing Determinants'!$B$19:$P$41,6,0)/'4. Billing Determinants'!$G$41*$D9,IF($E9="Distribution Rev.",VLOOKUP(N$4,'4. Billing Determinants'!$B$19:$P$41,8,0)/'4. Billing Determinants'!$I$41*$D9, VLOOKUP(N$4,'4. Billing Determinants'!$B$19:$P$41,3,0)/'4. Billing Determinants'!$D$41*$D9))))),0) -> 0 | O9: =IFERROR(IF(O$4="",0,IF($E9="kWh",VLOOKUP(O$4,'4. Billing Determinants'!$B$19:$P$41,4,0)/'4. Billing Determinants'!$E$41*$D9,IF($E9="kW",VLOOKUP(O$4,'4. Billing Determinants'!$B$19:$P$41,5,0)/'4. Billing Determinants'!$F$41*$D9,IF($E9="Non-RPP kWh",VLOOKUP(O$4,'4. Billing Determinants'!$B$19:$P$41,6,0)/'4. Billing Determinants'!$G$41*$D9,IF($E9="Distribution Rev.",VLOOKUP(O$4,'4. Billing Determinants'!$B$19:$P$41,8,0)/'4. Billing Determinants'!$I$41*$D9, VLOOKUP(O$4,'4. Billing Determinants'!$B$19:$P$41,3,0)/'4. Billing Determinants'!$D$41*$D9))))),0) -> 0 | P9: =IFERROR(IF(P$4="",0,IF($E9="kWh",VLOOKUP(P$4,'4. Billing Determinants'!$B$19:$P$41,4,0)/'4. Billing Determinants'!$E$41*$D9,IF($E9="kW",VLOOKUP(P$4,'4. Billing Determinants'!$B$19:$P$41,5,0)/'4. Billing Determinants'!$F$41*$D9,IF($E9="Non-RPP kWh",VLOOKUP(P$4,'4. Billing Determinants'!$B$19:$P$41,6,0)/'4. Billing Determinants'!$G$41*$D9,IF($E9="Distribution Rev.",VLOOKUP(P$4,'4. Billing Determinants'!$B$19:$P$41,8,0)/'4. Billing Determinants'!$I$41*$D9, VLOOKUP(P$4,'4. Billing Determinants'!$B$19:$P$41,3,0)/'4. Billing Determinants'!$D$41*$D9))))),0) -> 0 | Q9: =IFERROR(IF(Q$4="",0,IF($E9="kWh",VLOOKUP(Q$4,'4. Billing Determinants'!$B$19:$P$41,4,0)/'4. Billing Determinants'!$E$41*$D9,IF($E9="kW",VLOOKUP(Q$4,'4. Billing Determinants'!$B$19:$P$41,5,0)/'4. Billing Determinants'!$F$41*$D9,IF($E9="Non-RPP kWh",VLOOKUP(Q$4,'4. Billing Determinants'!$B$19:$P$41,6,0)/'4. Billing Determinants'!$G$41*$D9,IF($E9="Distribution Rev.",VLOOKUP(Q$4,'4. Billing Determinants'!$B$19:$P$41,8,0)/'4. Billing Determinants'!$I$41*$D9, VLOOKUP(Q$4,'4. Billing Determinants'!$B$19:$P$41,3,0)/'4. Billing Determinants'!$D$41*$D9))))),0) -> 0 | R9: =IFERROR(IF(R$4="",0,IF($E9="kWh",VLOOKUP(R$4,'4. Billing Determinants'!$B$19:$P$41,4,0)/'4. Billing Determinants'!$E$41*$D9,IF($E9="kW",VLOOKUP(R$4,'4. Billing Determinants'!$B$19:$P$41,5,0)/'4. Billing Determinants'!$F$41*$D9,IF($E9="Non-RPP kWh",VLOOKUP(R$4,'4. Billing Determinants'!$B$19:$P$41,6,0)/'4. Billing Determinants'!$G$41*$D9,IF($E9="Distribution Rev.",VLOOKUP(R$4,'4. Billing Determinants'!$B$19:$P$41,8,0)/'4. Billing Determinants'!$I$41*$D9, VLOOKUP(R$4,'4. Billing Determinants'!$B$19:$P$41,3,0)/'4. Billing Determinants'!$D$41*$D9))))),0) -> 0 | S9: =IFERROR(IF(S$4="",0,IF($E9="kWh",VLOOKUP(S$4,'4. Billing Determinants'!$B$19:$P$41,4,0)/'4. Billing Determinants'!$E$41*$D9,IF($E9="kW",VLOOKUP(S$4,'4. Billing Determinants'!$B$19:$P$41,5,0)/'4. Billing Determinants'!$F$41*$D9,IF($E9="Non-RPP kWh",VLOOKUP(S$4,'4. Billing Determinants'!$B$19:$P$41,6,0)/'4. Billing Determinants'!$G$41*$D9,IF($E9="Distribution Rev.",VLOOKUP(S$4,'4. Billing Determinants'!$B$19:$P$41,8,0)/'4. Billing Determinants'!$I$41*$D9, VLOOKUP(S$4,'4. Billing Determinants'!$B$19:$P$41,3,0)/'4. Billing Determinants'!$D$41*$D9))))),0) -> 0 | T9: =IFERROR(IF(T$4="",0,IF($E9="kWh",VLOOKUP(T$4,'4. Billing Determinants'!$B$19:$P$41,4,0)/'4. Billing Determinants'!$E$41*$D9,IF($E9="kW",VLOOKUP(T$4,'4. Billing Determinants'!$B$19:$P$41,5,0)/'4. Billing Determinants'!$F$41*$D9,IF($E9="Non-RPP kWh",VLOOKUP(T$4,'4. Billing Determinants'!$B$19:$P$41,6,0)/'4. Billing Determinants'!$G$41*$D9,IF($E9="Distribution Rev.",VLOOKUP(T$4,'4. Billing Determinants'!$B$19:$P$41,8,0)/'4. Billing Determinants'!$I$41*$D9, VLOOKUP(T$4,'4. Billing Determinants'!$B$19:$P$41,3,0)/'4. Billing Determinants'!$D$41*$D9))))),0) -> 0 | U9: =IFERROR(IF(U$4="",0,IF($E9="kWh",VLOOKUP(U$4,'4. Billing Determinants'!$B$19:$P$41,4,0)/'4. Billing Determinants'!$E$41*$D9,IF($E9="kW",VLOOKUP(U$4,'4. Billing Determinants'!$B$19:$P$41,5,0)/'4. Billing Determinants'!$F$41*$D9,IF($E9="Non-RPP kWh",VLOOKUP(U$4,'4. Billing Determinants'!$B$19:$P$41,6,0)/'4. Billing Determinants'!$G$41*$D9,IF($E9="Distribution Rev.",VLOOKUP(U$4,'4. Billing Determinants'!$B$19:$P$41,8,0)/'4. Billing Determinants'!$I$41*$D9, VLOOKUP(U$4,'4. Billing Determinants'!$B$19:$P$41,3,0)/'4. Billing Determinants'!$D$41*$D9))))),0) -> 0 | V9: =IFERROR(IF(V$4="",0,IF($E9="kWh",VLOOKUP(V$4,'4. Billing Determinants'!$B$19:$P$41,4,0)/'4. Billing Determinants'!$E$41*$D9,IF($E9="kW",VLOOKUP(V$4,'4. Billing Determinants'!$B$19:$P$41,5,0)/'4. Billing Determinants'!$F$41*$D9,IF($E9="Non-RPP kWh",VLOOKUP(V$4,'4. Billing Determinants'!$B$19:$P$41,6,0)/'4. Billing Determinants'!$G$41*$D9,IF($E9="Distribution Rev.",VLOOKUP(V$4,'4. Billing Determinants'!$B$19:$P$41,8,0)/'4. Billing Determinants'!$I$41*$D9, VLOOKUP(V$4,'4. Billing Determinants'!$B$19:$P$41,3,0)/'4. Billing Determinants'!$D$41*$D9))))),0) -> 0 | W9: =IFERROR(IF(W$4="",0,IF($E9="kWh",VLOOKUP(W$4,'4. Billing Determinants'!$B$19:$P$41,4,0)/'4. Billing Determinants'!$E$41*$D9,IF($E9="kW",VLOOKUP(W$4,'4. Billing Determinants'!$B$19:$P$41,5,0)/'4. Billing Determinants'!$F$41*$D9,IF($E9="Non-RPP kWh",VLOOKUP(W$4,'4. Billing Determinants'!$B$19:$P$41,6,0)/'4. Billing Determinants'!$G$41*$D9,IF($E9="Distribution Rev.",VLOOKUP(W$4,'4. Billing Determinants'!$B$19:$P$41,8,0)/'4. Billing Determinants'!$I$41*$D9, VLOOKUP(W$4,'4. Billing Determinants'!$B$19:$P$41,3,0)/'4. Billing Determinants'!$D$41*$D9))))),0) -> 0 | X9: =IFERROR(IF(X$4="",0,IF($E9="kWh",VLOOKUP(X$4,'4. Billing Determinants'!$B$19:$P$41,4,0)/'4. Billing Determinants'!$E$41*$D9,IF($E9="kW",VLOOKUP(X$4,'4. Billing Determinants'!$B$19:$P$41,5,0)/'4. Billing Determinants'!$F$41*$D9,IF($E9="Non-RPP kWh",VLOOKUP(X$4,'4. Billing Determinants'!$B$19:$P$41,6,0)/'4. Billing Determinants'!$G$41*$D9,IF($E9="Distribution Rev.",VLOOKUP(X$4,'4. Billing Determinants'!$B$19:$P$41,8,0)/'4. Billing Determinants'!$I$41*$D9, VLOOKUP(X$4,'4. Billing Determinants'!$B$19:$P$41,3,0)/'4. Billing Determinants'!$D$41*$D9))))),0) -> 0 | Y9: =IFERROR(IF(Y$4="",0,IF($E9="kWh",VLOOKUP(Y$4,'4. Billing Determinants'!$B$19:$P$41,4,0)/'4. Billing Determinants'!$E$41*$D9,IF($E9="kW",VLOOKUP(Y$4,'4. Billing Determinants'!$B$19:$P$41,5,0)/'4. Billing Determinants'!$F$41*$D9,IF($E9="Non-RPP kWh",VLOOKUP(Y$4,'4. Billing Determinants'!$B$19:$P$41,6,0)/'4. Billing Determinants'!$G$41*$D9,IF($E9="Distribution Rev.",VLOOKUP(Y$4,'4. Billing Determinants'!$B$19:$P$41,8,0)/'4. Billing Determinants'!$I$41*$D9, VLOOKUP(Y$4,'4. Billing Determinants'!$B$19:$P$41,3,0)/'4. Billing Determinants'!$D$41*$D9))))),0) -> 0
B10: RSVA - Power (excluding Global Adjustment) | C10: 1588 | D10: ='2. 2014 Continuity Schedule'!CB29 -> -71923.05 | E10: kWh | F10: =IFERROR(IF(F$4="",0,IF($E10="kWh",VLOOKUP(F$4,'4. Billing Determinants'!$B$19:$P$41,4,0)/'4. Billing Determinants'!$E$41*$D10,IF($E10="kW",VLOOKUP(F$4,'4. Billing Determinants'!$B$19:$P$41,5,0)/'4. Billing Determinants'!$F$41*$D10,IF($E10="Non-RPP kWh",VLOOKUP(F$4,'4. Billing Determinants'!$B$19:$P$41,6,0)/'4. Billing Determinants'!$G$41*$D10,IF($E10="Distribution Rev.",VLOOKUP(F$4,'4. Billing Determinants'!$B$19:$P$41,8,0)/'4. Billing Determinants'!$I$41*$D10, VLOOKUP(F$4,'4. Billing Determinants'!$B$19:$P$41,3,0)/'4. Billing Determinants'!$D$41*$D10))))),0) -> -21557.82944 | G10: =IFERROR(IF(G$4="",0,IF($E10="kWh",VLOOKUP(G$4,'4. Billing Determinants'!$B$19:$P$41,4,0)/'4. Billing Determinants'!$E$41*$D10,IF($E10="kW",VLOOKUP(G$4,'4. Billing Determinants'!$B$19:$P$41,5,0)/'4. Billing Determinants'!$F$41*$D10,IF($E10="Non-RPP kWh",VLOOKUP(G$4,'4. Billing Determinants'!$B$19:$P$41,6,0)/'4. Billing Determinants'!$G$41*$D10,IF($E10="Distribution Rev.",VLOOKUP(G$4,'4. Billing Determinants'!$B$19:$P$41,8,0)/'4. Billing Determinants'!$I$41*$D10, VLOOKUP(G$4,'4. Billing Determinants'!$B$19:$P$41,3,0)/'4. Billing Determinants'!$D$41*$D10))))),0) -> -9488.13288 | H10: =IFERROR(IF(H$4="",0,IF($E10="kWh",VLOOKUP(H$4,'4. Billing Determinants'!$B$19:$P$41,4,0)/'4. Billing Determinants'!$E$41*$D10,IF($E10="kW",VLOOKUP(H$4,'4. Billing Determinants'!$B$19:$P$41,5,0)/'4. Billing Determinants'!$F$41*$D10,IF($E10="Non-RPP kWh",VLOOKUP(H$4,'4. Billing Determinants'!$B$19:$P$41,6,0)/'4. Billing Determinants'!$G$41*$D10,IF($E10="Distribution Rev.",VLOOKUP(H$4,'4. Billing Determinants'!$B$19:$P$41,8,0)/'4. Billing Determinants'!$I$41*$D10, VLOOKUP(H$4,'4. Billing Determinants'!$B$19:$P$41,3,0)/'4. Billing Determinants'!$D$41*$D10))))),0) -> -20163.78381 | I10: =IFERROR(IF(I$4="",0,IF($E10="kWh",VLOOKUP(I$4,'4. Billing Determinants'!$B$19:$P$41,4,0)/'4. Billing Determinants'!$E$41*$D10,IF($E10="kW",VLOOKUP(I$4,'4. Billing Determinants'!$B$19:$P$41,5,0)/'4. Billing Determinants'!$F$41*$D10,IF($E10="Non-RPP kWh",VLOOKUP(I$4,'4. Billing Determinants'!$B$19:$P$41,6,0)/'4. Billing Determinants'!$G$41*$D10,IF($E10="Distribution Rev.",VLOOKUP(I$4,'4. Billing Determinants'!$B$19:$P$41,8,0)/'4. Billing Determinants'!$I$41*$D10, VLOOKUP(I$4,'4. Billing Determinants'!$B$19:$P$41,3,0)/'4. Billing Determinants'!$D$41*$D10))))),0) -> -19815.26129 | J10: =IFERROR(IF(J$4="",0,IF($E10="kWh",VLOOKUP(J$4,'4. Billing Determinants'!$B$19:$P$41,4,0)/'4. Billing Determinants'!$E$41*$D10,IF($E10="kW",VLOOKUP(J$4,'4. Billing Determinants'!$B$19:$P$41,5,0)/'4. Billing Determinants'!$F$41*$D10,IF($E10="Non-RPP kWh",VLOOKUP(J$4,'4. Billing Determinants'!$B$19:$P$41,6,0)/'4. Billing Determinants'!$G$41*$D10,IF($E10="Distribution Rev.",VLOOKUP(J$4,'4. Billing Determinants'!$B$19:$P$41,8,0)/'4. Billing Determinants'!$I$41*$D10, VLOOKUP(J$4,'4. Billing Determinants'!$B$19:$P$41,3,0)/'4. Billing Determinants'!$D$41*$D10))))),0) -> -18.18119873 | K10: =IFERROR(IF(K$4="",0,IF($E10="kWh",VLOOKUP(K$4,'4. Billing Determinants'!$B$19:$P$41,4,0)/'4. Billing Determinants'!$E$41*$D10,IF($E10="kW",VLOOKUP(K$4,'4. Billing Determinants'!$B$19:$P$41,5,0)/'4. Billing Determinants'!$F$41*$D10,IF($E10="Non-RPP kWh",VLOOKUP(K$4,'4. Billing Determinants'!$B$19:$P$41,6,0)/'4. Billing Determinants'!$G$41*$D10,IF($E10="Distribution Rev.",VLOOKUP(K$4,'4. Billing Determinants'!$B$19:$P$41,8,0)/'4. Billing Determinants'!$I$41*$D10, VLOOKUP(K$4,'4. Billing Determinants'!$B$19:$P$41,3,0)/'4. Billing Determinants'!$D$41*$D10))))),0) -> -879.8613822 | L10: =IFERROR(IF(L$4="",0,IF($E10="kWh",VLOOKUP(L$4,'4. Billing Determinants'!$B$19:$P$41,4,0)/'4. Billing Determinants'!$E$41*$D10,IF($E10="kW",VLOOKUP(L$4,'4. Billing Determinants'!$B$19:$P$41,5,0)/'4. Billing Determinants'!$F$41*$D10,IF($E10="Non-RPP kWh",VLOOKUP(L$4,'4. Billing Determinants'!$B$19:$P$41,6,0)/'4. Billing Determinants'!$G$41*$D10,IF($E10="Distribution Rev.",VLOOKUP(L$4,'4. Billing Determinants'!$B$19:$P$41,8,0)/'4. Billing Determinants'!$I$41*$D10, VLOOKUP(L$4,'4. Billing Determinants'!$B$19:$P$41,3,0)/'4. Billing Determinants'!$D$41*$D10))))),0) -> 0 | M10: =IFERROR(IF(M$4="",0,IF($E10="kWh",VLOOKUP(M$4,'4. Billing Determinants'!$B$19:$P$41,4,0)/'4. Billing Determinants'!$E$41*$D10,IF($E10="kW",VLOOKUP(M$4,'4. Billing Determinants'!$B$19:$P$41,5,0)/'4. Billing Determinants'!$F$41*$D10,IF($E10="Non-RPP kWh",VLOOKUP(M$4,'4. Billing Determinants'!$B$19:$P$41,6,0)/'4. Billing Determinants'!$G$41*$D10,IF($E10="Distribution Rev.",VLOOKUP(M$4,'4. Billing Determinants'!$B$19:$P$41,8,0)/'4. Billing Determinants'!$I$41*$D10, VLOOKUP(M$4,'4. Billing Determinants'!$B$19:$P$41,3,0)/'4. Billing Determinants'!$D$41*$D10))))),0) -> 0 | N10: =IFERROR(IF(N$4="",0,IF($E10="kWh",VLOOKUP(N$4,'4. Billing Determinants'!$B$19:$P$41,4,0)/'4. Billing Determinants'!$E$41*$D10,IF($E10="kW",VLOOKUP(N$4,'4. Billing Determinants'!$B$19:$P$41,5,0)/'4. Billing Determinants'!$F$41*$D10,IF($E10="Non-RPP kWh",VLOOKUP(N$4,'4. Billing Determinants'!$B$19:$P$41,6,0)/'4. Billing Determinants'!$G$41*$D10,IF($E10="Distribution Rev.",VLOOKUP(N$4,'4. Billing Determinants'!$B$19:$P$41,8,0)/'4. Billing Determinants'!$I$41*$D10, VLOOKUP(N$4,'4. Billing Determinants'!$B$19:$P$41,3,0)/'4. Billing Determinants'!$D$41*$D10))))),0) -> 0 | O10: =IFERROR(IF(O$4="",0,IF($E10="kWh",VLOOKUP(O$4,'4. Billing Determinants'!$B$19:$P$41,4,0)/'4. Billing Determinants'!$E$41*$D10,IF($E10="kW",VLOOKUP(O$4,'4. Billing Determinants'!$B$19:$P$41,5,0)/'4. Billing Determinants'!$F$41*$D10,IF($E10="Non-RPP kWh",VLOOKUP(O$4,'4. Billing Determinants'!$B$19:$P$41,6,0)/'4. Billing Determinants'!$G$41*$D10,IF($E10="Distribution Rev.",VLOOKUP(O$4,'4. Billing Determinants'!$B$19:$P$41,8,0)/'4. Billing Determinants'!$I$41*$D10, VLOOKUP(O$4,'4. Billing Determinants'!$B$19:$P$41,3,0)/'4. Billing Determinants'!$D$41*$D10))))),0) -> 0 | P10: =IFERROR(IF(P$4="",0,IF($E10="kWh",VLOOKUP(P$4,'4. Billing Determinants'!$B$19:$P$41,4,0)/'4. Billing Determinants'!$E$41*$D10,IF($E10="kW",VLOOKUP(P$4,'4. Billing Determinants'!$B$19:$P$41,5,0)/'4. Billing Determinants'!$F$41*$D10,IF($E10="Non-RPP kWh",VLOOKUP(P$4,'4. Billing Determinants'!$B$19:$P$41,6,0)/'4. Billing Determinants'!$G$41*$D10,IF($E10="Distribution Rev.",VLOOKUP(P$4,'4. Billing Determinants'!$B$19:$P$41,8,0)/'4. Billing Determinants'!$I$41*$D10, VLOOKUP(P$4,'4. Billing Determinants'!$B$19:$P$41,3,0)/'4. Billing Determinants'!$D$41*$D10))))),0) -> 0 | Q10: =IFERROR(IF(Q$4="",0,IF($E10="kWh",VLOOKUP(Q$4,'4. Billing Determinants'!$B$19:$P$41,4,0)/'4. Billing Determinants'!$E$41*$D10,IF($E10="kW",VLOOKUP(Q$4,'4. Billing Determinants'!$B$19:$P$41,5,0)/'4. Billing Determinants'!$F$41*$D10,IF($E10="Non-RPP kWh",VLOOKUP(Q$4,'4. Billing Determinants'!$B$19:$P$41,6,0)/'4. Billing Determinants'!$G$41*$D10,IF($E10="Distribution Rev.",VLOOKUP(Q$4,'4. Billing Determinants'!$B$19:$P$41,8,0)/'4. Billing Determinants'!$I$41*$D10, VLOOKUP(Q$4,'4. Billing Determinants'!$B$19:$P$41,3,0)/'4. Billing Determinants'!$D$41*$D10))))),0) -> 0 | R10: =IFERROR(IF(R$4="",0,IF($E10="kWh",VLOOKUP(R$4,'4. Billing Determinants'!$B$19:$P$41,4,0)/'4. Billing Determinants'!$E$41*$D10,IF($E10="kW",VLOOKUP(R$4,'4. Billing Determinants'!$B$19:$P$41,5,0)/'4. Billing Determinants'!$F$41*$D10,IF($E10="Non-RPP kWh",VLOOKUP(R$4,'4. Billing Determinants'!$B$19:$P$41,6,0)/'4. Billing Determinants'!$G$41*$D10,IF($E10="Distribution Rev.",VLOOKUP(R$4,'4. Billing Determinants'!$B$19:$P$41,8,0)/'4. Billing Determinants'!$I$41*$D10, VLOOKUP(R$4,'4. Billing Determinants'!$B$19:$P$41,3,0)/'4. Billing Determinants'!$D$41*$D10))))),0) -> 0 | S10: =IFERROR(IF(S$4="",0,IF($E10="kWh",VLOOKUP(S$4,'4. Billing Determinants'!$B$19:$P$41,4,0)/'4. Billing Determinants'!$E$41*$D10,IF($E10="kW",VLOOKUP(S$4,'4. Billing Determinants'!$B$19:$P$41,5,0)/'4. Billing Determinants'!$F$41*$D10,IF($E10="Non-RPP kWh",VLOOKUP(S$4,'4. Billing Determinants'!$B$19:$P$41,6,0)/'4. Billing Determinants'!$G$41*$D10,IF($E10="Distribution Rev.",VLOOKUP(S$4,'4. Billing Determinants'!$B$19:$P$41,8,0)/'4. Billing Determinants'!$I$41*$D10, VLOOKUP(S$4,'4. Billing Determinants'!$B$19:$P$41,3,0)/'4. Billing Determinants'!$D$41*$D10))))),0) -> 0 | T10: =IFERROR(IF(T$4="",0,IF($E10="kWh",VLOOKUP(T$4,'4. Billing Determinants'!$B$19:$P$41,4,0)/'4. Billing Determinants'!$E$41*$D10,IF($E10="kW",VLOOKUP(T$4,'4. Billing Determinants'!$B$19:$P$41,5,0)/'4. Billing Determinants'!$F$41*$D10,IF($E10="Non-RPP kWh",VLOOKUP(T$4,'4. Billing Determinants'!$B$19:$P$41,6,0)/'4. Billing Determinants'!$G$41*$D10,IF($E10="Distribution Rev.",VLOOKUP(T$4,'4. Billing Determinants'!$B$19:$P$41,8,0)/'4. Billing Determinants'!$I$41*$D10, VLOOKUP(T$4,'4. Billing Determinants'!$B$19:$P$41,3,0)/'4. Billing Determinants'!$D$41*$D10))))),0) -> 0 | U10: =IFERROR(IF(U$4="",0,IF($E10="kWh",VLOOKUP(U$4,'4. Billing Determinants'!$B$19:$P$41,4,0)/'4. Billing Determinants'!$E$41*$D10,IF($E10="kW",VLOOKUP(U$4,'4. Billing Determinants'!$B$19:$P$41,5,0)/'4. Billing Determinants'!$F$41*$D10,IF($E10="Non-RPP kWh",VLOOKUP(U$4,'4. Billing Determinants'!$B$19:$P$41,6,0)/'4. Billing Determinants'!$G$41*$D10,IF($E10="Distribution Rev.",VLOOKUP(U$4,'4. Billing Determinants'!$B$19:$P$41,8,0)/'4. Billing Determinants'!$I$41*$D10, VLOOKUP(U$4,'4. Billing Determinants'!$B$19:$P$41,3,0)/'4. Billing Determinants'!$D$41*$D10))))),0) -> 0 | V10: =IFERROR(IF(V$4="",0,IF($E10="kWh",VLOOKUP(V$4,'4. Billing Determinants'!$B$19:$P$41,4,0)/'4. Billing Determinants'!$E$41*$D10,IF($E10="kW",VLOOKUP(V$4,'4. Billing Determinants'!$B$19:$P$41,5,0)/'4. Billing Determinants'!$F$41*$D10,IF($E10="Non-RPP kWh",VLOOKUP(V$4,'4. Billing Determinants'!$B$19:$P$41,6,0)/'4. Billing Determinants'!$G$41*$D10,IF($E10="Distribution Rev.",VLOOKUP(V$4,'4. Billing Determinants'!$B$19:$P$41,8,0)/'4. Billing Determinants'!$I$41*$D10, VLOOKUP(V$4,'4. Billing Determinants'!$B$19:$P$41,3,0)/'4. Billing Determinants'!$D$41*$D10))))),0) -> 0 | W10: =IFERROR(IF(W$4="",0,IF($E10="kWh",VLOOKUP(W$4,'4. Billing Determinants'!$B$19:$P$41,4,0)/'4. Billing Determinants'!$E$41*$D10,IF($E10="kW",VLOOKUP(W$4,'4. Billing Determinants'!$B$19:$P$41,5,0)/'4. Billing Determinants'!$F$41*$D10,IF($E10="Non-RPP kWh",VLOOKUP(W$4,'4. Billing Determinants'!$B$19:$P$41,6,0)/'4. Billing Determinants'!$G$41*$D10,IF($E10="Distribution Rev.",VLOOKUP(W$4,'4. Billing Determinants'!$B$19:$P$41,8,0)/'4. Billing Determinants'!$I$41*$D10, VLOOKUP(W$4,'4. Billing Determinants'!$B$19:$P$41,3,0)/'4. Billing Determinants'!$D$41*$D10))))),0) -> 0 | X10: =IFERROR(IF(X$4="",0,IF($E10="kWh",VLOOKUP(X$4,'4. Billing Determinants'!$B$19:$P$41,4,0)/'4. Billing Determinants'!$E$41*$D10,IF($E10="kW",VLOOKUP(X$4,'4. Billing Determinants'!$B$19:$P$41,5,0)/'4. Billing Determinants'!$F$41*$D10,IF($E10="Non-RPP kWh",VLOOKUP(X$4,'4. Billing Determinants'!$B$19:$P$41,6,0)/'4. Billing Determinants'!$G$41*$D10,IF($E10="Distribution Rev.",VLOOKUP(X$4,'4. Billing Determinants'!$B$19:$P$41,8,0)/'4. Billing Determinants'!$I$41*$D10, VLOOKUP(X$4,'4. Billing Determinants'!$B$19:$P$41,3,0)/'4. Billing Determinants'!$D$41*$D10))))),0) -> 0 | Y10: =IFERROR(IF(Y$4="",0,IF($E10="kWh",VLOOKUP(Y$4,'4. Billing Determinants'!$B$19:$P$41,4,0)/'4. Billing Determinants'!$E$41*$D10,IF($E10="kW",VLOOKUP(Y$4,'4. Billing Determinants'!$B$19:$P$41,5,0)/'4. Billing Determinants'!$F$41*$D10,IF($E10="Non-RPP kWh",VLOOKUP(Y$4,'4. Billing Determinants'!$B$19:$P$41,6,0)/'4. Billing Determinants'!$G$41*$D10,IF($E10="Distribution Rev.",VLOOKUP(Y$4,'4. Billing Determinants'!$B$19:$P$41,8,0)/'4. Billing Determinants'!$I$41*$D10, VLOOKUP(Y$4,'4. Billing Determinants'!$B$19:$P$41,3,0)/'4. Billing Determinants'!$D$41*$D10))))),0) -> 0
B11: RSVA - Global Adjustment | C11: 1589 | D11: ='2. 2014 Continuity Schedule'!CB30 -> 134528.53 | E11: kW | F11: =IFERROR(IF(F$4="",0,IF($E11="kWh",VLOOKUP(F$4,'4. Billing Determinants'!$B$19:$P$41,4,0)/'4. Billing Determinants'!$E$41*$D11,IF($E11="kW",VLOOKUP(F$4,'4. Billing Determinants'!$B$19:$P$41,5,0)/'4. Billing Determinants'!$F$41*$D11,IF($E11="Non-RPP kWh",VLOOKUP(F$4,'4. Billing Determinants'!$B$19:$P$41,6,0)/'4. Billing Determinants'!$G$41*$D11,IF($E11="Distribution Rev.",VLOOKUP(F$4,'4. Billing Determinants'!$B$19:$P$41,8,0)/'4. Billing Determinants'!$I$41*$D11, VLOOKUP(F$4,'4. Billing Determinants'!$B$19:$P$41,3,0)/'4. Billing Determinants'!$D$41*$D11))))),0) -> 0 | G11: =IFERROR(IF(G$4="",0,IF($E11="kWh",VLOOKUP(G$4,'4. Billing Determinants'!$B$19:$P$41,4,0)/'4. Billing Determinants'!$E$41*$D11,IF($E11="kW",VLOOKUP(G$4,'4. Billing Determinants'!$B$19:$P$41,5,0)/'4. Billing Determinants'!$F$41*$D11,IF($E11="Non-RPP kWh",VLOOKUP(G$4,'4. Billing Determinants'!$B$19:$P$41,6,0)/'4. Billing Determinants'!$G$41*$D11,IF($E11="Distribution Rev.",VLOOKUP(G$4,'4. Billing Determinants'!$B$19:$P$41,8,0)/'4. Billing Determinants'!$I$41*$D11, VLOOKUP(G$4,'4. Billing Determinants'!$B$19:$P$41,3,0)/'4. Billing Determinants'!$D$41*$D11))))),0) -> 0 | H11: =IFERROR(IF(H$4="",0,IF($E11="kWh",VLOOKUP(H$4,'4. Billing Determinants'!$B$19:$P$41,4,0)/'4. Billing Determinants'!$E$41*$D11,IF($E11="kW",VLOOKUP(H$4,'4. Billing Determinants'!$B$19:$P$41,5,0)/'4. Billing Determinants'!$F$41*$D11,IF($E11="Non-RPP kWh",VLOOKUP(H$4,'4. Billing Determinants'!$B$19:$P$41,6,0)/'4. Billing Determinants'!$G$41*$D11,IF($E11="Distribution Rev.",VLOOKUP(H$4,'4. Billing Determinants'!$B$19:$P$41,8,0)/'4. Billing Determinants'!$I$41*$D11, VLOOKUP(H$4,'4. Billing Determinants'!$B$19:$P$41,3,0)/'4. Billing Determinants'!$D$41*$D11))))),0) -> 67591.86802 | I11: =IFERROR(IF(I$4="",0,IF($E11="kWh",VLOOKUP(I$4,'4. Billing Determinants'!$B$19:$P$41,4,0)/'4. Billing Determinants'!$E$41*$D11,IF($E11="kW",VLOOKUP(I$4,'4. Billing Determinants'!$B$19:$P$41,5,0)/'4. Billing Determinants'!$F$41*$D11,IF($E11="Non-RPP kWh",VLOOKUP(I$4,'4. Billing Determinants'!$B$19:$P$41,6,0)/'4. Billing Determinants'!$G$41*$D11,IF($E11="Distribution Rev.",VLOOKUP(I$4,'4. Billing Determinants'!$B$19:$P$41,8,0)/'4. Billing Determinants'!$I$41*$D11, VLOOKUP(I$4,'4. Billing Determinants'!$B$19:$P$41,3,0)/'4. Billing Determinants'!$D$41*$D11))))),0) -> 63658.60012 | J11: =IFERROR(IF(J$4="",0,IF($E11="kWh",VLOOKUP(J$4,'4. Billing Determinants'!$B$19:$P$41,4,0)/'4. Billing Determinants'!$E$41*$D11,IF($E11="kW",VLOOKUP(J$4,'4. Billing Determinants'!$B$19:$P$41,5,0)/'4. Billing Determinants'!$F$41*$D11,IF($E11="Non-RPP kWh",VLOOKUP(J$4,'4. Billing Determinants'!$B$19:$P$41,6,0)/'4. Billing Determinants'!$G$41*$D11,IF($E11="Distribution Rev.",VLOOKUP(J$4,'4. Billing Determinants'!$B$19:$P$41,8,0)/'4. Billing Determinants'!$I$41*$D11, VLOOKUP(J$4,'4. Billing Determinants'!$B$19:$P$41,3,0)/'4. Billing Determinants'!$D$41*$D11))))),0) -> 73.13927918 | K11: =IFERROR(IF(K$4="",0,IF($E11="kWh",VLOOKUP(K$4,'4. Billing Determinants'!$B$19:$P$41,4,0)/'4. Billing Determinants'!$E$41*$D11,IF($E11="kW",VLOOKUP(K$4,'4. Billing Determinants'!$B$19:$P$41,5,0)/'4. Billing Determinants'!$F$41*$D11,IF($E11="Non-RPP kWh",VLOOKUP(K$4,'4. Billing Determinants'!$B$19:$P$41,6,0)/'4. Billing Determinants'!$G$41*$D11,IF($E11="Distribution Rev.",VLOOKUP(K$4,'4. Billing Determinants'!$B$19:$P$41,8,0)/'4. Billing Determinants'!$I$41*$D11, VLOOKUP(K$4,'4. Billing Determinants'!$B$19:$P$41,3,0)/'4. Billing Determinants'!$D$41*$D11))))),0) -> 3204.922581 | L11: =IFERROR(IF(L$4="",0,IF($E11="kWh",VLOOKUP(L$4,'4. Billing Determinants'!$B$19:$P$41,4,0)/'4. Billing Determinants'!$E$41*$D11,IF($E11="kW",VLOOKUP(L$4,'4. Billing Determinants'!$B$19:$P$41,5,0)/'4. Billing Determinants'!$F$41*$D11,IF($E11="Non-RPP kWh",VLOOKUP(L$4,'4. Billing Determinants'!$B$19:$P$41,6,0)/'4. Billing Determinants'!$G$41*$D11,IF($E11="Distribution Rev.",VLOOKUP(L$4,'4. Billing Determinants'!$B$19:$P$41,8,0)/'4. Billing Determinants'!$I$41*$D11, VLOOKUP(L$4,'4. Billing Determinants'!$B$19:$P$41,3,0)/'4. Billing Determinants'!$D$41*$D11))))),0) -> 0 | M11: =IFERROR(IF(M$4="",0,IF($E11="kWh",VLOOKUP(M$4,'4. Billing Determinants'!$B$19:$P$41,4,0)/'4. Billing Determinants'!$E$41*$D11,IF($E11="kW",VLOOKUP(M$4,'4. Billing Determinants'!$B$19:$P$41,5,0)/'4. Billing Determinants'!$F$41*$D11,IF($E11="Non-RPP kWh",VLOOKUP(M$4,'4. Billing Determinants'!$B$19:$P$41,6,0)/'4. Billing Determinants'!$G$41*$D11,IF($E11="Distribution Rev.",VLOOKUP(M$4,'4. Billing Determinants'!$B$19:$P$41,8,0)/'4. Billing Determinants'!$I$41*$D11, VLOOKUP(M$4,'4. Billing Determinants'!$B$19:$P$41,3,0)/'4. Billing Determinants'!$D$41*$D11))))),0) -> 0 | N11: =IFERROR(IF(N$4="",0,IF($E11="kWh",VLOOKUP(N$4,'4. Billing Determinants'!$B$19:$P$41,4,0)/'4. Billing Determinants'!$E$41*$D11,IF($E11="kW",VLOOKUP(N$4,'4. Billing Determinants'!$B$19:$P$41,5,0)/'4. Billing Determinants'!$F$41*$D11,IF($E11="Non-RPP kWh",VLOOKUP(N$4,'4. Billing Determinants'!$B$19:$P$41,6,0)/'4. Billing Determinants'!$G$41*$D11,IF($E11="Distribution Rev.",VLOOKUP(N$4,'4. Billing Determinants'!$B$19:$P$41,8,0)/'4. Billing Determinants'!$I$41*$D11, VLOOKUP(N$4,'4. Billing Determinants'!$B$19:$P$41,3,0)/'4. Billing Determinants'!$D$41*$D11))))),0) -> 0 | O11: =IFERROR(IF(O$4="",0,IF($E11="kWh",VLOOKUP(O$4,'4. Billing Determinants'!$B$19:$P$41,4,0)/'4. Billing Determinants'!$E$41*$D11,IF($E11="kW",VLOOKUP(O$4,'4. Billing Determinants'!$B$19:$P$41,5,0)/'4. Billing Determinants'!$F$41*$D11,IF($E11="Non-RPP kWh",VLOOKUP(O$4,'4. Billing Determinants'!$B$19:$P$41,6,0)/'4. Billing Determinants'!$G$41*$D11,IF($E11="Distribution Rev.",VLOOKUP(O$4,'4. Billing Determinants'!$B$19:$P$41,8,0)/'4. Billing Determinants'!$I$41*$D11, VLOOKUP(O$4,'4. Billing Determinants'!$B$19:$P$41,3,0)/'4. Billing Determinants'!$D$41*$D11))))),0) -> 0 | P11: =IFERROR(IF(P$4="",0,IF($E11="kWh",VLOOKUP(P$4,'4. Billing Determinants'!$B$19:$P$41,4,0)/'4. Billing Determinants'!$E$41*$D11,IF($E11="kW",VLOOKUP(P$4,'4. Billing Determinants'!$B$19:$P$41,5,0)/'4. Billing Determinants'!$F$41*$D11,IF($E11="Non-RPP kWh",VLOOKUP(P$4,'4. Billing Determinants'!$B$19:$P$41,6,0)/'4. Billing Determinants'!$G$41*$D11,IF($E11="Distribution Rev.",VLOOKUP(P$4,'4. Billing Determinants'!$B$19:$P$41,8,0)/'4. Billing Determinants'!$I$41*$D11, VLOOKUP(P$4,'4. Billing Determinants'!$B$19:$P$41,3,0)/'4. Billing Determinants'!$D$41*$D11))))),0) -> 0 | Q11: =IFERROR(IF(Q$4="",0,IF($E11="kWh",VLOOKUP(Q$4,'4. Billing Determinants'!$B$19:$P$41,4,0)/'4. Billing Determinants'!$E$41*$D11,IF($E11="kW",VLOOKUP(Q$4,'4. Billing Determinants'!$B$19:$P$41,5,0)/'4. Billing Determinants'!$F$41*$D11,IF($E11="Non-RPP kWh",VLOOKUP(Q$4,'4. Billing Determinants'!$B$19:$P$41,6,0)/'4. Billing Determinants'!$G$41*$D11,IF($E11="Distribution Rev.",VLOOKUP(Q$4,'4. Billing Determinants'!$B$19:$P$41,8,0)/'4. Billing Determinants'!$I$41*$D11, VLOOKUP(Q$4,'4. Billing Determinants'!$B$19:$P$41,3,0)/'4. Billing Determinants'!$D$41*$D11))))),0) -> 0 | R11: =IFERROR(IF(R$4="",0,IF($E11="kWh",VLOOKUP(R$4,'4. Billing Determinants'!$B$19:$P$41,4,0)/'4. Billing Determinants'!$E$41*$D11,IF($E11="kW",VLOOKUP(R$4,'4. Billing Determinants'!$B$19:$P$41,5,0)/'4. Billing Determinants'!$F$41*$D11,IF($E11="Non-RPP kWh",VLOOKUP(R$4,'4. Billing Determinants'!$B$19:$P$41,6,0)/'4. Billing Determinants'!$G$41*$D11,IF($E11="Distribution Rev.",VLOOKUP(R$4,'4. Billing Determinants'!$B$19:$P$41,8,0)/'4. Billing Determinants'!$I$41*$D11, VLOOKUP(R$4,'4. Billing Determinants'!$B$19:$P$41,3,0)/'4. Billing Determinants'!$D$41*$D11))))),0) -> 0 | S11: =IFERROR(IF(S$4="",0,IF($E11="kWh",VLOOKUP(S$4,'4. Billing Determinants'!$B$19:$P$41,4,0)/'4. Billing Determinants'!$E$41*$D11,IF($E11="kW",VLOOKUP(S$4,'4. Billing Determinants'!$B$19:$P$41,5,0)/'4. Billing Determinants'!$F$41*$D11,IF($E11="Non-RPP kWh",VLOOKUP(S$4,'4. Billing Determinants'!$B$19:$P$41,6,0)/'4. Billing Determinants'!$G$41*$D11,IF($E11="Distribution Rev.",VLOOKUP(S$4,'4. Billing Determinants'!$B$19:$P$41,8,0)/'4. Billing Determinants'!$I$41*$D11, VLOOKUP(S$4,'4. Billing Determinants'!$B$19:$P$41,3,0)/'4. Billing Determinants'!$D$41*$D11))))),0) -> 0 | T11: =IFERROR(IF(T$4="",0,IF($E11="kWh",VLOOKUP(T$4,'4. Billing Determinants'!$B$19:$P$41,4,0)/'4. Billing Determinants'!$E$41*$D11,IF($E11="kW",VLOOKUP(T$4,'4. Billing Determinants'!$B$19:$P$41,5,0)/'4. Billing Determinants'!$F$41*$D11,IF($E11="Non-RPP kWh",VLOOKUP(T$4,'4. Billing Determinants'!$B$19:$P$41,6,0)/'4. Billing Determinants'!$G$41*$D11,IF($E11="Distribution Rev.",VLOOKUP(T$4,'4. Billing Determinants'!$B$19:$P$41,8,0)/'4. Billing Determinants'!$I$41*$D11, VLOOKUP(T$4,'4. Billing Determinants'!$B$19:$P$41,3,0)/'4. Billing Determinants'!$D$41*$D11))))),0) -> 0 | U11: =IFERROR(IF(U$4="",0,IF($E11="kWh",VLOOKUP(U$4,'4. Billing Determinants'!$B$19:$P$41,4,0)/'4. Billing Determinants'!$E$41*$D11,IF($E11="kW",VLOOKUP(U$4,'4. Billing Determinants'!$B$19:$P$41,5,0)/'4. Billing Determinants'!$F$41*$D11,IF($E11="Non-RPP kWh",VLOOKUP(U$4,'4. Billing Determinants'!$B$19:$P$41,6,0)/'4. Billing Determinants'!$G$41*$D11,IF($E11="Distribution Rev.",VLOOKUP(U$4,'4. Billing Determinants'!$B$19:$P$41,8,0)/'4. Billing Determinants'!$I$41*$D11, VLOOKUP(U$4,'4. Billing Determinants'!$B$19:$P$41,3,0)/'4. Billing Determinants'!$D$41*$D11))))),0) -> 0 | V11: =IFERROR(IF(V$4="",0,IF($E11="kWh",VLOOKUP(V$4,'4. Billing Determinants'!$B$19:$P$41,4,0)/'4. Billing Determinants'!$E$41*$D11,IF($E11="kW",VLOOKUP(V$4,'4. Billing Determinants'!$B$19:$P$41,5,0)/'4. Billing Determinants'!$F$41*$D11,IF($E11="Non-RPP kWh",VLOOKUP(V$4,'4. Billing Determinants'!$B$19:$P$41,6,0)/'4. Billing Determinants'!$G$41*$D11,IF($E11="Distribution Rev.",VLOOKUP(V$4,'4. Billing Determinants'!$B$19:$P$41,8,0)/'4. Billing Determinants'!$I$41*$D11, VLOOKUP(V$4,'4. Billing Determinants'!$B$19:$P$41,3,0)/'4. Billing Determinants'!$D$41*$D11))))),0) -> 0 | W11: =IFERROR(IF(W$4="",0,IF($E11="kWh",VLOOKUP(W$4,'4. Billing Determinants'!$B$19:$P$41,4,0)/'4. Billing Determinants'!$E$41*$D11,IF($E11="kW",VLOOKUP(W$4,'4. Billing Determinants'!$B$19:$P$41,5,0)/'4. Billing Determinants'!$F$41*$D11,IF($E11="Non-RPP kWh",VLOOKUP(W$4,'4. Billing Determinants'!$B$19:$P$41,6,0)/'4. Billing Determinants'!$G$41*$D11,IF($E11="Distribution Rev.",VLOOKUP(W$4,'4. Billing Determinants'!$B$19:$P$41,8,0)/'4. Billing Determinants'!$I$41*$D11, VLOOKUP(W$4,'4. Billing Determinants'!$B$19:$P$41,3,0)/'4. Billing Determinants'!$D$41*$D11))))),0) -> 0 | X11: =IFERROR(IF(X$4="",0,IF($E11="kWh",VLOOKUP(X$4,'4. Billing Determinants'!$B$19:$P$41,4,0)/'4. Billing Determinants'!$E$41*$D11,IF($E11="kW",VLOOKUP(X$4,'4. Billing Determinants'!$B$19:$P$41,5,0)/'4. Billing Determinants'!$F$41*$D11,IF($E11="Non-RPP kWh",VLOOKUP(X$4,'4. Billing Determinants'!$B$19:$P$41,6,0)/'4. Billing Determinants'!$G$41*$D11,IF($E11="Distribution Rev.",VLOOKUP(X$4,'4. Billing Determinants'!$B$19:$P$41,8,0)/'4. Billing Determinants'!$I$41*$D11, VLOOKUP(X$4,'4. Billing Determinants'!$B$19:$P$41,3,0)/'4. Billing Determinants'!$D$41*$D11))))),0) -> 0 | Y11: =IFERROR(IF(Y$4="",0,IF($E11="kWh",VLOOKUP(Y$4,'4. Billing Determinants'!$B$19:$P$41,4,0)/'4. Billing Determinants'!$E$41*$D11,IF($E11="kW",VLOOKUP(Y$4,'4. Billing Determinants'!$B$19:$P$41,5,0)/'4. Billing Determinants'!$F$41*$D11,IF($E11="Non-RPP kWh",VLOOKUP(Y$4,'4. Billing Determinants'!$B$19:$P$41,6,0)/'4. Billing Determinants'!$G$41*$D11,IF($E11="Distribution Rev.",VLOOKUP(Y$4,'4. Billing Determinants'!$B$19:$P$41,8,0)/'4. Billing Determinants'!$I$41*$D11, VLOOKUP(Y$4,'4. Billing Determinants'!$B$19:$P$41,3,0)/'4. Billing Determinants'!$D$41*$D11))))),0) -> 0
B12: Disposition and Recovery/Refund of Regulatory Balances (2008) | C12: 1595 | D12: ='2. 2014 Continuity Schedule'!CB31 -> 0 | E12: kWh | F12: =IFERROR(IF(F$4="",0,IF($E12="kWh",VLOOKUP(F$4,'4. Billing Determinants'!$B$19:$P$41,4,0)/'4. Billing Determinants'!$E$41*$D12,IF($E12="kW",VLOOKUP(F$4,'4. Billing Determinants'!$B$19:$P$41,5,0)/'4. Billing Determinants'!$F$41*$D12,IF($E12="Non-RPP kWh",VLOOKUP(F$4,'4. Billing Determinants'!$B$19:$P$41,6,0)/'4. Billing Determinants'!$G$41*$D12,IF($E12="Distribution Rev.",VLOOKUP(F$4,'4. Billing Determinants'!$B$19:$P$41,8,0)/'4. Billing Determinants'!$I$41*$D12, VLOOKUP(F$4,'4. Billing Determinants'!$B$19:$P$41,3,0)/'4. Billing Determinants'!$D$41*$D12))))),0) -> 0 | G12: =IFERROR(IF(G$4="",0,IF($E12="kWh",VLOOKUP(G$4,'4. Billing Determinants'!$B$19:$P$41,4,0)/'4. Billing Determinants'!$E$41*$D12,IF($E12="kW",VLOOKUP(G$4,'4. Billing Determinants'!$B$19:$P$41,5,0)/'4. Billing Determinants'!$F$41*$D12,IF($E12="Non-RPP kWh",VLOOKUP(G$4,'4. Billing Determinants'!$B$19:$P$41,6,0)/'4. Billing Determinants'!$G$41*$D12,IF($E12="Distribution Rev.",VLOOKUP(G$4,'4. Billing Determinants'!$B$19:$P$41,8,0)/'4. Billing Determinants'!$I$41*$D12, VLOOKUP(G$4,'4. Billing Determinants'!$B$19:$P$41,3,0)/'4. Billing Determinants'!$D$41*$D12))))),0) -> 0 | H12: =IFERROR(IF(H$4="",0,IF($E12="kWh",VLOOKUP(H$4,'4. Billing Determinants'!$B$19:$P$41,4,0)/'4. Billing Determinants'!$E$41*$D12,IF($E12="kW",VLOOKUP(H$4,'4. Billing Determinants'!$B$19:$P$41,5,0)/'4. Billing Determinants'!$F$41*$D12,IF($E12="Non-RPP kWh",VLOOKUP(H$4,'4. Billing Determinants'!$B$19:$P$41,6,0)/'4. Billing Determinants'!$G$41*$D12,IF($E12="Distribution Rev.",VLOOKUP(H$4,'4. Billing Determinants'!$B$19:$P$41,8,0)/'4. Billing Determinants'!$I$41*$D12, VLOOKUP(H$4,'4. Billing Determinants'!$B$19:$P$41,3,0)/'4. Billing Determinants'!$D$41*$D12))))),0) -> 0 | I12: =IFERROR(IF(I$4="",0,IF($E12="kWh",VLOOKUP(I$4,'4. Billing Determinants'!$B$19:$P$41,4,0)/'4. Billing Determinants'!$E$41*$D12,IF($E12="kW",VLOOKUP(I$4,'4. Billing Determinants'!$B$19:$P$41,5,0)/'4. Billing Determinants'!$F$41*$D12,IF($E12="Non-RPP kWh",VLOOKUP(I$4,'4. Billing Determinants'!$B$19:$P$41,6,0)/'4. Billing Determinants'!$G$41*$D12,IF($E12="Distribution Rev.",VLOOKUP(I$4,'4. Billing Determinants'!$B$19:$P$41,8,0)/'4. Billing Determinants'!$I$41*$D12, VLOOKUP(I$4,'4. Billing Determinants'!$B$19:$P$41,3,0)/'4. Billing Determinants'!$D$41*$D12))))),0) -> 0 | J12: =IFERROR(IF(J$4="",0,IF($E12="kWh",VLOOKUP(J$4,'4. Billing Determinants'!$B$19:$P$41,4,0)/'4. Billing Determinants'!$E$41*$D12,IF($E12="kW",VLOOKUP(J$4,'4. Billing Determinants'!$B$19:$P$41,5,0)/'4. Billing Determinants'!$F$41*$D12,IF($E12="Non-RPP kWh",VLOOKUP(J$4,'4. Billing Determinants'!$B$19:$P$41,6,0)/'4. Billing Determinants'!$G$41*$D12,IF($E12="Distribution Rev.",VLOOKUP(J$4,'4. Billing Determinants'!$B$19:$P$41,8,0)/'4. Billing Determinants'!$I$41*$D12, VLOOKUP(J$4,'4. Billing Determinants'!$B$19:$P$41,3,0)/'4. Billing Determinants'!$D$41*$D12))))),0) -> 0 | K12: =IFERROR(IF(K$4="",0,IF($E12="kWh",VLOOKUP(K$4,'4. Billing Determinants'!$B$19:$P$41,4,0)/'4. Billing Determinants'!$E$41*$D12,IF($E12="kW",VLOOKUP(K$4,'4. Billing Determinants'!$B$19:$P$41,5,0)/'4. Billing Determinants'!$F$41*$D12,IF($E12="Non-RPP kWh",VLOOKUP(K$4,'4. Billing Determinants'!$B$19:$P$41,6,0)/'4. Billing Determinants'!$G$41*$D12,IF($E12="Distribution Rev.",VLOOKUP(K$4,'4. Billing Determinants'!$B$19:$P$41,8,0)/'4. Billing Determinants'!$I$41*$D12, VLOOKUP(K$4,'4. Billing Determinants'!$B$19:$P$41,3,0)/'4. Billing Determinants'!$D$41*$D12))))),0) -> 0 | L12: =IFERROR(IF(L$4="",0,IF($E12="kWh",VLOOKUP(L$4,'4. Billing Determinants'!$B$19:$P$41,4,0)/'4. Billing Determinants'!$E$41*$D12,IF($E12="kW",VLOOKUP(L$4,'4. Billing Determinants'!$B$19:$P$41,5,0)/'4. Billing Determinants'!$F$41*$D12,IF($E12="Non-RPP kWh",VLOOKUP(L$4,'4. Billing Determinants'!$B$19:$P$41,6,0)/'4. Billing Determinants'!$G$41*$D12,IF($E12="Distribution Rev.",VLOOKUP(L$4,'4. Billing Determinants'!$B$19:$P$41,8,0)/'4. Billing Determinants'!$I$41*$D12, VLOOKUP(L$4,'4. Billing Determinants'!$B$19:$P$41,3,0)/'4. Billing Determinants'!$D$41*$D12))))),0) -> 0 | M12: =IFERROR(IF(M$4="",0,IF($E12="kWh",VLOOKUP(M$4,'4. Billing Determinants'!$B$19:$P$41,4,0)/'4. Billing Determinants'!$E$41*$D12,IF($E12="kW",VLOOKUP(M$4,'4. Billing Determinants'!$B$19:$P$41,5,0)/'4. Billing Determinants'!$F$41*$D12,IF($E12="Non-RPP kWh",VLOOKUP(M$4,'4. Billing Determinants'!$B$19:$P$41,6,0)/'4. Billing Determinants'!$G$41*$D12,IF($E12="Distribution Rev.",VLOOKUP(M$4,'4. Billing Determinants'!$B$19:$P$41,8,0)/'4. Billing Determinants'!$I$41*$D12, VLOOKUP(M$4,'4. Billing Determinants'!$B$19:$P$41,3,0)/'4. Billing Determinants'!$D$41*$D12))))),0) -> 0 | N12: =IFERROR(IF(N$4="",0,IF($E12="kWh",VLOOKUP(N$4,'4. Billing Determinants'!$B$19:$P$41,4,0)/'4. Billing Determinants'!$E$41*$D12,IF($E12="kW",VLOOKUP(N$4,'4. Billing Determinants'!$B$19:$P$41,5,0)/'4. Billing Determinants'!$F$41*$D12,IF($E12="Non-RPP kWh",VLOOKUP(N$4,'4. Billing Determinants'!$B$19:$P$41,6,0)/'4. Billing Determinants'!$G$41*$D12,IF($E12="Distribution Rev.",VLOOKUP(N$4,'4. Billing Determinants'!$B$19:$P$41,8,0)/'4. Billing Determinants'!$I$41*$D12, VLOOKUP(N$4,'4. Billing Determinants'!$B$19:$P$41,3,0)/'4. Billing Determinants'!$D$41*$D12))))),0) -> 0 | O12: =IFERROR(IF(O$4="",0,IF($E12="kWh",VLOOKUP(O$4,'4. Billing Determinants'!$B$19:$P$41,4,0)/'4. Billing Determinants'!$E$41*$D12,IF($E12="kW",VLOOKUP(O$4,'4. Billing Determinants'!$B$19:$P$41,5,0)/'4. Billing Determinants'!$F$41*$D12,IF($E12="Non-RPP kWh",VLOOKUP(O$4,'4. Billing Determinants'!$B$19:$P$41,6,0)/'4. Billing Determinants'!$G$41*$D12,IF($E12="Distribution Rev.",VLOOKUP(O$4,'4. Billing Determinants'!$B$19:$P$41,8,0)/'4. Billing Determinants'!$I$41*$D12, VLOOKUP(O$4,'4. Billing Determinants'!$B$19:$P$41,3,0)/'4. Billing Determinants'!$D$41*$D12))))),0) -> 0 | P12: =IFERROR(IF(P$4="",0,IF($E12="kWh",VLOOKUP(P$4,'4. Billing Determinants'!$B$19:$P$41,4,0)/'4. Billing Determinants'!$E$41*$D12,IF($E12="kW",VLOOKUP(P$4,'4. Billing Determinants'!$B$19:$P$41,5,0)/'4. Billing Determinants'!$F$41*$D12,IF($E12="Non-RPP kWh",VLOOKUP(P$4,'4. Billing Determinants'!$B$19:$P$41,6,0)/'4. Billing Determinants'!$G$41*$D12,IF($E12="Distribution Rev.",VLOOKUP(P$4,'4. Billing Determinants'!$B$19:$P$41,8,0)/'4. Billing Determinants'!$I$41*$D12, VLOOKUP(P$4,'4. Billing Determinants'!$B$19:$P$41,3,0)/'4. Billing Determinants'!$D$41*$D12))))),0) -> 0 | Q12: =IFERROR(IF(Q$4="",0,IF($E12="kWh",VLOOKUP(Q$4,'4. Billing Determinants'!$B$19:$P$41,4,0)/'4. Billing Determinants'!$E$41*$D12,IF($E12="kW",VLOOKUP(Q$4,'4. Billing Determinants'!$B$19:$P$41,5,0)/'4. Billing Determinants'!$F$41*$D12,IF($E12="Non-RPP kWh",VLOOKUP(Q$4,'4. Billing Determinants'!$B$19:$P$41,6,0)/'4. Billing Determinants'!$G$41*$D12,IF($E12="Distribution Rev.",VLOOKUP(Q$4,'4. Billing Determinants'!$B$19:$P$41,8,0)/'4. Billing Determinants'!$I$41*$D12, VLOOKUP(Q$4,'4. Billing Determinants'!$B$19:$P$41,3,0)/'4. Billing Determinants'!$D$41*$D12))))),0) -> 0 | R12: =IFERROR(IF(R$4="",0,IF($E12="kWh",VLOOKUP(R$4,'4. Billing Determinants'!$B$19:$P$41,4,0)/'4. Billing Determinants'!$E$41*$D12,IF($E12="kW",VLOOKUP(R$4,'4. Billing Determinants'!$B$19:$P$41,5,0)/'4. Billing Determinants'!$F$41*$D12,IF($E12="Non-RPP kWh",VLOOKUP(R$4,'4. Billing Determinants'!$B$19:$P$41,6,0)/'4. Billing Determinants'!$G$41*$D12,IF($E12="Distribution Rev.",VLOOKUP(R$4,'4. Billing Determinants'!$B$19:$P$41,8,0)/'4. Billing Determinants'!$I$41*$D12, VLOOKUP(R$4,'4. Billing Determinants'!$B$19:$P$41,3,0)/'4. Billing Determinants'!$D$41*$D12))))),0) -> 0 | S12: =IFERROR(IF(S$4="",0,IF($E12="kWh",VLOOKUP(S$4,'4. Billing Determinants'!$B$19:$P$41,4,0)/'4. Billing Determinants'!$E$41*$D12,IF($E12="kW",VLOOKUP(S$4,'4. Billing Determinants'!$B$19:$P$41,5,0)/'4. Billing Determinants'!$F$41*$D12,IF($E12="Non-RPP kWh",VLOOKUP(S$4,'4. Billing Determinants'!$B$19:$P$41,6,0)/'4. Billing Determinants'!$G$41*$D12,IF($E12="Distribution Rev.",VLOOKUP(S$4,'4. Billing Determinants'!$B$19:$P$41,8,0)/'4. Billing Determinants'!$I$41*$D12, VLOOKUP(S$4,'4. Billing Determinants'!$B$19:$P$41,3,0)/'4. Billing Determinants'!$D$41*$D12))))),0) -> 0 | T12: =IFERROR(IF(T$4="",0,IF($E12="kWh",VLOOKUP(T$4,'4. Billing Determinants'!$B$19:$P$41,4,0)/'4. Billing Determinants'!$E$41*$D12,IF($E12="kW",VLOOKUP(T$4,'4. Billing Determinants'!$B$19:$P$41,5,0)/'4. Billing Determinants'!$F$41*$D12,IF($E12="Non-RPP kWh",VLOOKUP(T$4,'4. Billing Determinants'!$B$19:$P$41,6,0)/'4. Billing Determinants'!$G$41*$D12,IF($E12="Distribution Rev.",VLOOKUP(T$4,'4. Billing Determinants'!$B$19:$P$41,8,0)/'4. Billing Determinants'!$I$41*$D12, VLOOKUP(T$4,'4. Billing Determinants'!$B$19:$P$41,3,0)/'4. Billing Determinants'!$D$41*$D12))))),0) -> 0 | U12: =IFERROR(IF(U$4="",0,IF($E12="kWh",VLOOKUP(U$4,'4. Billing Determinants'!$B$19:$P$41,4,0)/'4. Billing Determinants'!$E$41*$D12,IF($E12="kW",VLOOKUP(U$4,'4. Billing Determinants'!$B$19:$P$41,5,0)/'4. Billing Determinants'!$F$41*$D12,IF($E12="Non-RPP kWh",VLOOKUP(U$4,'4. Billing Determinants'!$B$19:$P$41,6,0)/'4. Billing Determinants'!$G$41*$D12,IF($E12="Distribution Rev.",VLOOKUP(U$4,'4. Billing Determinants'!$B$19:$P$41,8,0)/'4. Billing Determinants'!$I$41*$D12, VLOOKUP(U$4,'4. Billing Determinants'!$B$19:$P$41,3,0)/'4. Billing Determinants'!$D$41*$D12))))),0) -> 0 | V12: =IFERROR(IF(V$4="",0,IF($E12="kWh",VLOOKUP(V$4,'4. Billing Determinants'!$B$19:$P$41,4,0)/'4. Billing Determinants'!$E$41*$D12,IF($E12="kW",VLOOKUP(V$4,'4. Billing Determinants'!$B$19:$P$41,5,0)/'4. Billing Determinants'!$F$41*$D12,IF($E12="Non-RPP kWh",VLOOKUP(V$4,'4. Billing Determinants'!$B$19:$P$41,6,0)/'4. Billing Determinants'!$G$41*$D12,IF($E12="Distribution Rev.",VLOOKUP(V$4,'4. Billing Determinants'!$B$19:$P$41,8,0)/'4. Billing Determinants'!$I$41*$D12, VLOOKUP(V$4,'4. Billing Determinants'!$B$19:$P$41,3,0)/'4. Billing Determinants'!$D$41*$D12))))),0) -> 0 | W12: =IFERROR(IF(W$4="",0,IF($E12="kWh",VLOOKUP(W$4,'4. Billing Determinants'!$B$19:$P$41,4,0)/'4. Billing Determinants'!$E$41*$D12,IF($E12="kW",VLOOKUP(W$4,'4. Billing Determinants'!$B$19:$P$41,5,0)/'4. Billing Determinants'!$F$41*$D12,IF($E12="Non-RPP kWh",VLOOKUP(W$4,'4. Billing Determinants'!$B$19:$P$41,6,0)/'4. Billing Determinants'!$G$41*$D12,IF($E12="Distribution Rev.",VLOOKUP(W$4,'4. Billing Determinants'!$B$19:$P$41,8,0)/'4. Billing Determinants'!$I$41*$D12, VLOOKUP(W$4,'4. Billing Determinants'!$B$19:$P$41,3,0)/'4. Billing Determinants'!$D$41*$D12))))),0) -> 0 | X12: =IFERROR(IF(X$4="",0,IF($E12="kWh",VLOOKUP(X$4,'4. Billing Determinants'!$B$19:$P$41,4,0)/'4. Billing Determinants'!$E$41*$D12,IF($E12="kW",VLOOKUP(X$4,'4. Billing Determinants'!$B$19:$P$41,5,0)/'4. Billing Determinants'!$F$41*$D12,IF($E12="Non-RPP kWh",VLOOKUP(X$4,'4. Billing Determinants'!$B$19:$P$41,6,0)/'4. Billing Determinants'!$G$41*$D12,IF($E12="Distribution Rev.",VLOOKUP(X$4,'4. Billing Determinants'!$B$19:$P$41,8,0)/'4. Billing Determinants'!$I$41*$D12, VLOOKUP(X$4,'4. Billing Determinants'!$B$19:$P$41,3,0)/'4. Billing Determinants'!$D$41*$D12))))),0) -> 0 | Y12: =IFERROR(IF(Y$4="",0,IF($E12="kWh",VLOOKUP(Y$4,'4. Billing Determinants'!$B$19:$P$41,4,0)/'4. Billing Determinants'!$E$41*$D12,IF($E12="kW",VLOOKUP(Y$4,'4. Billing Determinants'!$B$19:$P$41,5,0)/'4. Billing Determinants'!$F$41*$D12,IF($E12="Non-RPP kWh",VLOOKUP(Y$4,'4. Billing Determinants'!$B$19:$P$41,6,0)/'4. Billing Determinants'!$G$41*$D12,IF($E12="Distribution Rev.",VLOOKUP(Y$4,'4. Billing Determinants'!$B$19:$P$41,8,0)/'4. Billing Determinants'!$I$41*$D12, VLOOKUP(Y$4,'4. Billing Determinants'!$B$19:$P$41,3,0)/'4. Billing Determinants'!$D$41*$D12))))),0) -> 0
B13: Disposition and Recovery/Refund of Regulatory Balances (2009) | C13: 1595 | D13: ='2. 2014 Continuity Schedule'!CB32 -> 0 | E13: kWh | F13: =IFERROR(IF(F$4="",0,IF($E13="kWh",VLOOKUP(F$4,'4. Billing Determinants'!$B$19:$P$41,4,0)/'4. Billing Determinants'!$E$41*$D13,IF($E13="kW",VLOOKUP(F$4,'4. Billing Determinants'!$B$19:$P$41,5,0)/'4. Billing Determinants'!$F$41*$D13,IF($E13="Non-RPP kWh",VLOOKUP(F$4,'4. Billing Determinants'!$B$19:$P$41,6,0)/'4. Billing Determinants'!$G$41*$D13,IF($E13="Distribution Rev.",VLOOKUP(F$4,'4. Billing Determinants'!$B$19:$P$41,8,0)/'4. Billing Determinants'!$I$41*$D13, VLOOKUP(F$4,'4. Billing Determinants'!$B$19:$P$41,3,0)/'4. Billing Determinants'!$D$41*$D13))))),0) -> 0 | G13: =IFERROR(IF(G$4="",0,IF($E13="kWh",VLOOKUP(G$4,'4. Billing Determinants'!$B$19:$P$41,4,0)/'4. Billing Determinants'!$E$41*$D13,IF($E13="kW",VLOOKUP(G$4,'4. Billing Determinants'!$B$19:$P$41,5,0)/'4. Billing Determinants'!$F$41*$D13,IF($E13="Non-RPP kWh",VLOOKUP(G$4,'4. Billing Determinants'!$B$19:$P$41,6,0)/'4. Billing Determinants'!$G$41*$D13,IF($E13="Distribution Rev.",VLOOKUP(G$4,'4. Billing Determinants'!$B$19:$P$41,8,0)/'4. Billing Determinants'!$I$41*$D13, VLOOKUP(G$4,'4. Billing Determinants'!$B$19:$P$41,3,0)/'4. Billing Determinants'!$D$41*$D13))))),0) -> 0 | H13: =IFERROR(IF(H$4="",0,IF($E13="kWh",VLOOKUP(H$4,'4. Billing Determinants'!$B$19:$P$41,4,0)/'4. Billing Determinants'!$E$41*$D13,IF($E13="kW",VLOOKUP(H$4,'4. Billing Determinants'!$B$19:$P$41,5,0)/'4. Billing Determinants'!$F$41*$D13,IF($E13="Non-RPP kWh",VLOOKUP(H$4,'4. Billing Determinants'!$B$19:$P$41,6,0)/'4. Billing Determinants'!$G$41*$D13,IF($E13="Distribution Rev.",VLOOKUP(H$4,'4. Billing Determinants'!$B$19:$P$41,8,0)/'4. Billing Determinants'!$I$41*$D13, VLOOKUP(H$4,'4. Billing Determinants'!$B$19:$P$41,3,0)/'4. Billing Determinants'!$D$41*$D13))))),0) -> 0 | I13: =IFERROR(IF(I$4="",0,IF($E13="kWh",VLOOKUP(I$4,'4. Billing Determinants'!$B$19:$P$41,4,0)/'4. Billing Determinants'!$E$41*$D13,IF($E13="kW",VLOOKUP(I$4,'4. Billing Determinants'!$B$19:$P$41,5,0)/'4. Billing Determinants'!$F$41*$D13,IF($E13="Non-RPP kWh",VLOOKUP(I$4,'4. Billing Determinants'!$B$19:$P$41,6,0)/'4. Billing Determinants'!$G$41*$D13,IF($E13="Distribution Rev.",VLOOKUP(I$4,'4. Billing Determinants'!$B$19:$P$41,8,0)/'4. Billing Determinants'!$I$41*$D13, VLOOKUP(I$4,'4. Billing Determinants'!$B$19:$P$41,3,0)/'4. Billing Determinants'!$D$41*$D13))))),0) -> 0 | J13: =IFERROR(IF(J$4="",0,IF($E13="kWh",VLOOKUP(J$4,'4. Billing Determinants'!$B$19:$P$41,4,0)/'4. Billing Determinants'!$E$41*$D13,IF($E13="kW",VLOOKUP(J$4,'4. Billing Determinants'!$B$19:$P$41,5,0)/'4. Billing Determinants'!$F$41*$D13,IF($E13="Non-RPP kWh",VLOOKUP(J$4,'4. Billing Determinants'!$B$19:$P$41,6,0)/'4. Billing Determinants'!$G$41*$D13,IF($E13="Distribution Rev.",VLOOKUP(J$4,'4. Billing Determinants'!$B$19:$P$41,8,0)/'4. Billing Determinants'!$I$41*$D13, VLOOKUP(J$4,'4. Billing Determinants'!$B$19:$P$41,3,0)/'4. Billing Determinants'!$D$41*$D13))))),0) -> 0 | K13: =IFERROR(IF(K$4="",0,IF($E13="kWh",VLOOKUP(K$4,'4. Billing Determinants'!$B$19:$P$41,4,0)/'4. Billing Determinants'!$E$41*$D13,IF($E13="kW",VLOOKUP(K$4,'4. Billing Determinants'!$B$19:$P$41,5,0)/'4. Billing Determinants'!$F$41*$D13,IF($E13="Non-RPP kWh",VLOOKUP(K$4,'4. Billing Determinants'!$B$19:$P$41,6,0)/'4. Billing Determinants'!$G$41*$D13,IF($E13="Distribution Rev.",VLOOKUP(K$4,'4. Billing Determinants'!$B$19:$P$41,8,0)/'4. Billing Determinants'!$I$41*$D13, VLOOKUP(K$4,'4. Billing Determinants'!$B$19:$P$41,3,0)/'4. Billing Determinants'!$D$41*$D13))))),0) -> 0 | L13: =IFERROR(IF(L$4="",0,IF($E13="kWh",VLOOKUP(L$4,'4. Billing Determinants'!$B$19:$P$41,4,0)/'4. Billing Determinants'!$E$41*$D13,IF($E13="kW",VLOOKUP(L$4,'4. Billing Determinants'!$B$19:$P$41,5,0)/'4. Billing Determinants'!$F$41*$D13,IF($E13="Non-RPP kWh",VLOOKUP(L$4,'4. Billing Determinants'!$B$19:$P$41,6,0)/'4. Billing Determinants'!$G$41*$D13,IF($E13="Distribution Rev.",VLOOKUP(L$4,'4. Billing Determinants'!$B$19:$P$41,8,0)/'4. Billing Determinants'!$I$41*$D13, VLOOKUP(L$4,'4. Billing Determinants'!$B$19:$P$41,3,0)/'4. Billing Determinants'!$D$41*$D13))))),0) -> 0 | M13: =IFERROR(IF(M$4="",0,IF($E13="kWh",VLOOKUP(M$4,'4. Billing Determinants'!$B$19:$P$41,4,0)/'4. Billing Determinants'!$E$41*$D13,IF($E13="kW",VLOOKUP(M$4,'4. Billing Determinants'!$B$19:$P$41,5,0)/'4. Billing Determinants'!$F$41*$D13,IF($E13="Non-RPP kWh",VLOOKUP(M$4,'4. Billing Determinants'!$B$19:$P$41,6,0)/'4. Billing Determinants'!$G$41*$D13,IF($E13="Distribution Rev.",VLOOKUP(M$4,'4. Billing Determinants'!$B$19:$P$41,8,0)/'4. Billing Determinants'!$I$41*$D13, VLOOKUP(M$4,'4. Billing Determinants'!$B$19:$P$41,3,0)/'4. Billing Determinants'!$D$41*$D13))))),0) -> 0 | N13: =IFERROR(IF(N$4="",0,IF($E13="kWh",VLOOKUP(N$4,'4. Billing Determinants'!$B$19:$P$41,4,0)/'4. Billing Determinants'!$E$41*$D13,IF($E13="kW",VLOOKUP(N$4,'4. Billing Determinants'!$B$19:$P$41,5,0)/'4. Billing Determinants'!$F$41*$D13,IF($E13="Non-RPP kWh",VLOOKUP(N$4,'4. Billing Determinants'!$B$19:$P$41,6,0)/'4. Billing Determinants'!$G$41*$D13,IF($E13="Distribution Rev.",VLOOKUP(N$4,'4. Billing Determinants'!$B$19:$P$41,8,0)/'4. Billing Determinants'!$I$41*$D13, VLOOKUP(N$4,'4. Billing Determinants'!$B$19:$P$41,3,0)/'4. Billing Determinants'!$D$41*$D13))))),0) -> 0 | O13: =IFERROR(IF(O$4="",0,IF($E13="kWh",VLOOKUP(O$4,'4. Billing Determinants'!$B$19:$P$41,4,0)/'4. Billing Determinants'!$E$41*$D13,IF($E13="kW",VLOOKUP(O$4,'4. Billing Determinants'!$B$19:$P$41,5,0)/'4. Billing Determinants'!$F$41*$D13,IF($E13="Non-RPP kWh",VLOOKUP(O$4,'4. Billing Determinants'!$B$19:$P$41,6,0)/'4. Billing Determinants'!$G$41*$D13,IF($E13="Distribution Rev.",VLOOKUP(O$4,'4. Billing Determinants'!$B$19:$P$41,8,0)/'4. Billing Determinants'!$I$41*$D13, VLOOKUP(O$4,'4. Billing Determinants'!$B$19:$P$41,3,0)/'4. Billing Determinants'!$D$41*$D13))))),0) -> 0 | P13: =IFERROR(IF(P$4="",0,IF($E13="kWh",VLOOKUP(P$4,'4. Billing Determinants'!$B$19:$P$41,4,0)/'4. Billing Determinants'!$E$41*$D13,IF($E13="kW",VLOOKUP(P$4,'4. Billing Determinants'!$B$19:$P$41,5,0)/'4. Billing Determinants'!$F$41*$D13,IF($E13="Non-RPP kWh",VLOOKUP(P$4,'4. Billing Determinants'!$B$19:$P$41,6,0)/'4. Billing Determinants'!$G$41*$D13,IF($E13="Distribution Rev.",VLOOKUP(P$4,'4. Billing Determinants'!$B$19:$P$41,8,0)/'4. Billing Determinants'!$I$41*$D13, VLOOKUP(P$4,'4. Billing Determinants'!$B$19:$P$41,3,0)/'4. Billing Determinants'!$D$41*$D13))))),0) -> 0 | Q13: =IFERROR(IF(Q$4="",0,IF($E13="kWh",VLOOKUP(Q$4,'4. Billing Determinants'!$B$19:$P$41,4,0)/'4. Billing Determinants'!$E$41*$D13,IF($E13="kW",VLOOKUP(Q$4,'4. Billing Determinants'!$B$19:$P$41,5,0)/'4. Billing Determinants'!$F$41*$D13,IF($E13="Non-RPP kWh",VLOOKUP(Q$4,'4. Billing Determinants'!$B$19:$P$41,6,0)/'4. Billing Determinants'!$G$41*$D13,IF($E13="Distribution Rev.",VLOOKUP(Q$4,'4. Billing Determinants'!$B$19:$P$41,8,0)/'4. Billing Determinants'!$I$41*$D13, VLOOKUP(Q$4,'4. Billing Determinants'!$B$19:$P$41,3,0)/'4. Billing Determinants'!$D$41*$D13))))),0) -> 0 | R13: =IFERROR(IF(R$4="",0,IF($E13="kWh",VLOOKUP(R$4,'4. Billing Determinants'!$B$19:$P$41,4,0)/'4. Billing Determinants'!$E$41*$D13,IF($E13="kW",VLOOKUP(R$4,'4. Billing Determinants'!$B$19:$P$41,5,0)/'4. Billing Determinants'!$F$41*$D13,IF($E13="Non-RPP kWh",VLOOKUP(R$4,'4. Billing Determinants'!$B$19:$P$41,6,0)/'4. Billing Determinants'!$G$41*$D13,IF($E13="Distribution Rev.",VLOOKUP(R$4,'4. Billing Determinants'!$B$19:$P$41,8,0)/'4. Billing Determinants'!$I$41*$D13, VLOOKUP(R$4,'4. Billing Determinants'!$B$19:$P$41,3,0)/'4. Billing Determinants'!$D$41*$D13))))),0) -> 0 | S13: =IFERROR(IF(S$4="",0,IF($E13="kWh",VLOOKUP(S$4,'4. Billing Determinants'!$B$19:$P$41,4,0)/'4. Billing Determinants'!$E$41*$D13,IF($E13="kW",VLOOKUP(S$4,'4. Billing Determinants'!$B$19:$P$41,5,0)/'4. Billing Determinants'!$F$41*$D13,IF($E13="Non-RPP kWh",VLOOKUP(S$4,'4. Billing Determinants'!$B$19:$P$41,6,0)/'4. Billing Determinants'!$G$41*$D13,IF($E13="Distribution Rev.",VLOOKUP(S$4,'4. Billing Determinants'!$B$19:$P$41,8,0)/'4. Billing Determinants'!$I$41*$D13, VLOOKUP(S$4,'4. Billing Determinants'!$B$19:$P$41,3,0)/'4. Billing Determinants'!$D$41*$D13))))),0) -> 0 | T13: =IFERROR(IF(T$4="",0,IF($E13="kWh",VLOOKUP(T$4,'4. Billing Determinants'!$B$19:$P$41,4,0)/'4. Billing Determinants'!$E$41*$D13,IF($E13="kW",VLOOKUP(T$4,'4. Billing Determinants'!$B$19:$P$41,5,0)/'4. Billing Determinants'!$F$41*$D13,IF($E13="Non-RPP kWh",VLOOKUP(T$4,'4. Billing Determinants'!$B$19:$P$41,6,0)/'4. Billing Determinants'!$G$41*$D13,IF($E13="Distribution Rev.",VLOOKUP(T$4,'4. Billing Determinants'!$B$19:$P$41,8,0)/'4. Billing Determinants'!$I$41*$D13, VLOOKUP(T$4,'4. Billing Determinants'!$B$19:$P$41,3,0)/'4. Billing Determinants'!$D$41*$D13))))),0) -> 0 | U13: =IFERROR(IF(U$4="",0,IF($E13="kWh",VLOOKUP(U$4,'4. Billing Determinants'!$B$19:$P$41,4,0)/'4. Billing Determinants'!$E$41*$D13,IF($E13="kW",VLOOKUP(U$4,'4. Billing Determinants'!$B$19:$P$41,5,0)/'4. Billing Determinants'!$F$41*$D13,IF($E13="Non-RPP kWh",VLOOKUP(U$4,'4. Billing Determinants'!$B$19:$P$41,6,0)/'4. Billing Determinants'!$G$41*$D13,IF($E13="Distribution Rev.",VLOOKUP(U$4,'4. Billing Determinants'!$B$19:$P$41,8,0)/'4. Billing Determinants'!$I$41*$D13, VLOOKUP(U$4,'4. Billing Determinants'!$B$19:$P$41,3,0)/'4. Billing Determinants'!$D$41*$D13))))),0) -> 0 | V13: =IFERROR(IF(V$4="",0,IF($E13="kWh",VLOOKUP(V$4,'4. Billing Determinants'!$B$19:$P$41,4,0)/'4. Billing Determinants'!$E$41*$D13,IF($E13="kW",VLOOKUP(V$4,'4. Billing Determinants'!$B$19:$P$41,5,0)/'4. Billing Determinants'!$F$41*$D13,IF($E13="Non-RPP kWh",VLOOKUP(V$4,'4. Billing Determinants'!$B$19:$P$41,6,0)/'4. Billing Determinants'!$G$41*$D13,IF($E13="Distribution Rev.",VLOOKUP(V$4,'4. Billing Determinants'!$B$19:$P$41,8,0)/'4. Billing Determinants'!$I$41*$D13, VLOOKUP(V$4,'4. Billing Determinants'!$B$19:$P$41,3,0)/'4. Billing Determinants'!$D$41*$D13))))),0) -> 0 | W13: =IFERROR(IF(W$4="",0,IF($E13="kWh",VLOOKUP(W$4,'4. Billing Determinants'!$B$19:$P$41,4,0)/'4. Billing Determinants'!$E$41*$D13,IF($E13="kW",VLOOKUP(W$4,'4. Billing Determinants'!$B$19:$P$41,5,0)/'4. Billing Determinants'!$F$41*$D13,IF($E13="Non-RPP kWh",VLOOKUP(W$4,'4. Billing Determinants'!$B$19:$P$41,6,0)/'4. Billing Determinants'!$G$41*$D13,IF($E13="Distribution Rev.",VLOOKUP(W$4,'4. Billing Determinants'!$B$19:$P$41,8,0)/'4. Billing Determinants'!$I$41*$D13, VLOOKUP(W$4,'4. Billing Determinants'!$B$19:$P$41,3,0)/'4. Billing Determinants'!$D$41*$D13))))),0) -> 0 | X13: =IFERROR(IF(X$4="",0,IF($E13="kWh",VLOOKUP(X$4,'4. Billing Determinants'!$B$19:$P$41,4,0)/'4. Billing Determinants'!$E$41*$D13,IF($E13="kW",VLOOKUP(X$4,'4. Billing Determinants'!$B$19:$P$41,5,0)/'4. Billing Determinants'!$F$41*$D13,IF($E13="Non-RPP kWh",VLOOKUP(X$4,'4. Billing Determinants'!$B$19:$P$41,6,0)/'4. Billing Determinants'!$G$41*$D13,IF($E13="Distribution Rev.",VLOOKUP(X$4,'4. Billing Determinants'!$B$19:$P$41,8,0)/'4. Billing Determinants'!$I$41*$D13, VLOOKUP(X$4,'4. Billing Determinants'!$B$19:$P$41,3,0)/'4. Billing Determinants'!$D$41*$D13))))),0) -> 0 | Y13: =IFERROR(IF(Y$4="",0,IF($E13="kWh",VLOOKUP(Y$4,'4. Billing Determinants'!$B$19:$P$41,4,0)/'4. Billing Determinants'!$E$41*$D13,IF($E13="kW",VLOOKUP(Y$4,'4. Billing Determinants'!$B$19:$P$41,5,0)/'4. Billing Determinants'!$F$41*$D13,IF($E13="Non-RPP kWh",VLOOKUP(Y$4,'4. Billing Determinants'!$B$19:$P$41,6,0)/'4. Billing Determinants'!$G$41*$D13,IF($E13="Distribution Rev.",VLOOKUP(Y$4,'4. Billing Determinants'!$B$19:$P$41,8,0)/'4. Billing Determinants'!$I$41*$D13, VLOOKUP(Y$4,'4. Billing Determinants'!$B$19:$P$41,3,0)/'4. Billing Determinants'!$D$41*$D13))))),0) -> 0
B14: Disposition and Recovery/Refund of Regulatory Balances (2010) | C14: 1595 | D14: ='2. 2014 Continuity Schedule'!CB33 -> -233640.12 | E14: kWh | F14: =IFERROR(IF(F$4="",0,IF($E14="kWh",VLOOKUP(F$4,'4. Billing Determinants'!$B$19:$P$41,4,0)/'4. Billing Determinants'!$E$41*$D14,IF($E14="kW",VLOOKUP(F$4,'4. Billing Determinants'!$B$19:$P$41,5,0)/'4. Billing Determinants'!$F$41*$D14,IF($E14="Non-RPP kWh",VLOOKUP(F$4,'4. Billing Determinants'!$B$19:$P$41,6,0)/'4. Billing Determinants'!$G$41*$D14,IF($E14="Distribution Rev.",VLOOKUP(F$4,'4. Billing Determinants'!$B$19:$P$41,8,0)/'4. Billing Determinants'!$I$41*$D14, VLOOKUP(F$4,'4. Billing Determinants'!$B$19:$P$41,3,0)/'4. Billing Determinants'!$D$41*$D14))))),0) -> -70030.03706 | G14: =IFERROR(IF(G$4="",0,IF($E14="kWh",VLOOKUP(G$4,'4. Billing Determinants'!$B$19:$P$41,4,0)/'4. Billing Determinants'!$E$41*$D14,IF($E14="kW",VLOOKUP(G$4,'4. Billing Determinants'!$B$19:$P$41,5,0)/'4. Billing Determinants'!$F$41*$D14,IF($E14="Non-RPP kWh",VLOOKUP(G$4,'4. Billing Determinants'!$B$19:$P$41,6,0)/'4. Billing Determinants'!$G$41*$D14,IF($E14="Distribution Rev.",VLOOKUP(G$4,'4. Billing Determinants'!$B$19:$P$41,8,0)/'4. Billing Determinants'!$I$41*$D14, VLOOKUP(G$4,'4. Billing Determinants'!$B$19:$P$41,3,0)/'4. Billing Determinants'!$D$41*$D14))))),0) -> -30821.94797 | H14: =IFERROR(IF(H$4="",0,IF($E14="kWh",VLOOKUP(H$4,'4. Billing Determinants'!$B$19:$P$41,4,0)/'4. Billing Determinants'!$E$41*$D14,IF($E14="kW",VLOOKUP(H$4,'4. Billing Determinants'!$B$19:$P$41,5,0)/'4. Billing Determinants'!$F$41*$D14,IF($E14="Non-RPP kWh",VLOOKUP(H$4,'4. Billing Determinants'!$B$19:$P$41,6,0)/'4. Billing Determinants'!$G$41*$D14,IF($E14="Distribution Rev.",VLOOKUP(H$4,'4. Billing Determinants'!$B$19:$P$41,8,0)/'4. Billing Determinants'!$I$41*$D14, VLOOKUP(H$4,'4. Billing Determinants'!$B$19:$P$41,3,0)/'4. Billing Determinants'!$D$41*$D14))))),0) -> -65501.5168 | I14: =IFERROR(IF(I$4="",0,IF($E14="kWh",VLOOKUP(I$4,'4. Billing Determinants'!$B$19:$P$41,4,0)/'4. Billing Determinants'!$E$41*$D14,IF($E14="kW",VLOOKUP(I$4,'4. Billing Determinants'!$B$19:$P$41,5,0)/'4. Billing Determinants'!$F$41*$D14,IF($E14="Non-RPP kWh",VLOOKUP(I$4,'4. Billing Determinants'!$B$19:$P$41,6,0)/'4. Billing Determinants'!$G$41*$D14,IF($E14="Distribution Rev.",VLOOKUP(I$4,'4. Billing Determinants'!$B$19:$P$41,8,0)/'4. Billing Determinants'!$I$41*$D14, VLOOKUP(I$4,'4. Billing Determinants'!$B$19:$P$41,3,0)/'4. Billing Determinants'!$D$41*$D14))))),0) -> -64369.35067 | J14: =IFERROR(IF(J$4="",0,IF($E14="kWh",VLOOKUP(J$4,'4. Billing Determinants'!$B$19:$P$41,4,0)/'4. Billing Determinants'!$E$41*$D14,IF($E14="kW",VLOOKUP(J$4,'4. Billing Determinants'!$B$19:$P$41,5,0)/'4. Billing Determinants'!$F$41*$D14,IF($E14="Non-RPP kWh",VLOOKUP(J$4,'4. Billing Determinants'!$B$19:$P$41,6,0)/'4. Billing Determinants'!$G$41*$D14,IF($E14="Distribution Rev.",VLOOKUP(J$4,'4. Billing Determinants'!$B$19:$P$41,8,0)/'4. Billing Determinants'!$I$41*$D14, VLOOKUP(J$4,'4. Billing Determinants'!$B$19:$P$41,3,0)/'4. Billing Determinants'!$D$41*$D14))))),0) -> -59.06114177 | K14: =IFERROR(IF(K$4="",0,IF($E14="kWh",VLOOKUP(K$4,'4. Billing Determinants'!$B$19:$P$41,4,0)/'4. Billing Determinants'!$E$41*$D14,IF($E14="kW",VLOOKUP(K$4,'4. Billing Determinants'!$B$19:$P$41,5,0)/'4. Billing Determinants'!$F$41*$D14,IF($E14="Non-RPP kWh",VLOOKUP(K$4,'4. Billing Determinants'!$B$19:$P$41,6,0)/'4. Billing Determinants'!$G$41*$D14,IF($E14="Distribution Rev.",VLOOKUP(K$4,'4. Billing Determinants'!$B$19:$P$41,8,0)/'4. Billing Determinants'!$I$41*$D14, VLOOKUP(K$4,'4. Billing Determinants'!$B$19:$P$41,3,0)/'4. Billing Determinants'!$D$41*$D14))))),0) -> -2858.20636 | L14: =IFERROR(IF(L$4="",0,IF($E14="kWh",VLOOKUP(L$4,'4. Billing Determinants'!$B$19:$P$41,4,0)/'4. Billing Determinants'!$E$41*$D14,IF($E14="kW",VLOOKUP(L$4,'4. Billing Determinants'!$B$19:$P$41,5,0)/'4. Billing Determinants'!$F$41*$D14,IF($E14="Non-RPP kWh",VLOOKUP(L$4,'4. Billing Determinants'!$B$19:$P$41,6,0)/'4. Billing Determinants'!$G$41*$D14,IF($E14="Distribution Rev.",VLOOKUP(L$4,'4. Billing Determinants'!$B$19:$P$41,8,0)/'4. Billing Determinants'!$I$41*$D14, VLOOKUP(L$4,'4. Billing Determinants'!$B$19:$P$41,3,0)/'4. Billing Determinants'!$D$41*$D14))))),0) -> 0 | M14: =IFERROR(IF(M$4="",0,IF($E14="kWh",VLOOKUP(M$4,'4. Billing Determinants'!$B$19:$P$41,4,0)/'4. Billing Determinants'!$E$41*$D14,IF($E14="kW",VLOOKUP(M$4,'4. Billing Determinants'!$B$19:$P$41,5,0)/'4. Billing Determinants'!$F$41*$D14,IF($E14="Non-RPP kWh",VLOOKUP(M$4,'4. Billing Determinants'!$B$19:$P$41,6,0)/'4. Billing Determinants'!$G$41*$D14,IF($E14="Distribution Rev.",VLOOKUP(M$4,'4. Billing Determinants'!$B$19:$P$41,8,0)/'4. Billing Determinants'!$I$41*$D14, VLOOKUP(M$4,'4. Billing Determinants'!$B$19:$P$41,3,0)/'4. Billing Determinants'!$D$41*$D14))))),0) -> 0 | N14: =IFERROR(IF(N$4="",0,IF($E14="kWh",VLOOKUP(N$4,'4. Billing Determinants'!$B$19:$P$41,4,0)/'4. Billing Determinants'!$E$41*$D14,IF($E14="kW",VLOOKUP(N$4,'4. Billing Determinants'!$B$19:$P$41,5,0)/'4. Billing Determinants'!$F$41*$D14,IF($E14="Non-RPP kWh",VLOOKUP(N$4,'4. Billing Determinants'!$B$19:$P$41,6,0)/'4. Billing Determinants'!$G$41*$D14,IF($E14="Distribution Rev.",VLOOKUP(N$4,'4. Billing Determinants'!$B$19:$P$41,8,0)/'4. Billing Determinants'!$I$41*$D14, VLOOKUP(N$4,'4. Billing Determinants'!$B$19:$P$41,3,0)/'4. Billing Determinants'!$D$41*$D14))))),0) -> 0 | O14: =IFERROR(IF(O$4="",0,IF($E14="kWh",VLOOKUP(O$4,'4. Billing Determinants'!$B$19:$P$41,4,0)/'4. Billing Determinants'!$E$41*$D14,IF($E14="kW",VLOOKUP(O$4,'4. Billing Determinants'!$B$19:$P$41,5,0)/'4. Billing Determinants'!$F$41*$D14,IF($E14="Non-RPP kWh",VLOOKUP(O$4,'4. Billing Determinants'!$B$19:$P$41,6,0)/'4. Billing Determinants'!$G$41*$D14,IF($E14="Distribution Rev.",VLOOKUP(O$4,'4. Billing Determinants'!$B$19:$P$41,8,0)/'4. Billing Determinants'!$I$41*$D14, VLOOKUP(O$4,'4. Billing Determinants'!$B$19:$P$41,3,0)/'4. Billing Determinants'!$D$41*$D14))))),0) -> 0 | P14: =IFERROR(IF(P$4="",0,IF($E14="kWh",VLOOKUP(P$4,'4. Billing Determinants'!$B$19:$P$41,4,0)/'4. Billing Determinants'!$E$41*$D14,IF($E14="kW",VLOOKUP(P$4,'4. Billing Determinants'!$B$19:$P$41,5,0)/'4. Billing Determinants'!$F$41*$D14,IF($E14="Non-RPP kWh",VLOOKUP(P$4,'4. Billing Determinants'!$B$19:$P$41,6,0)/'4. Billing Determinants'!$G$41*$D14,IF($E14="Distribution Rev.",VLOOKUP(P$4,'4. Billing Determinants'!$B$19:$P$41,8,0)/'4. Billing Determinants'!$I$41*$D14, VLOOKUP(P$4,'4. Billing Determinants'!$B$19:$P$41,3,0)/'4. Billing Determinants'!$D$41*$D14))))),0) -> 0 | Q14: =IFERROR(IF(Q$4="",0,IF($E14="kWh",VLOOKUP(Q$4,'4. Billing Determinants'!$B$19:$P$41,4,0)/'4. Billing Determinants'!$E$41*$D14,IF($E14="kW",VLOOKUP(Q$4,'4. Billing Determinants'!$B$19:$P$41,5,0)/'4. Billing Determinants'!$F$41*$D14,IF($E14="Non-RPP kWh",VLOOKUP(Q$4,'4. Billing Determinants'!$B$19:$P$41,6,0)/'4. Billing Determinants'!$G$41*$D14,IF($E14="Distribution Rev.",VLOOKUP(Q$4,'4. Billing Determinants'!$B$19:$P$41,8,0)/'4. Billing Determinants'!$I$41*$D14, VLOOKUP(Q$4,'4. Billing Determinants'!$B$19:$P$41,3,0)/'4. Billing Determinants'!$D$41*$D14))))),0) -> 0 | R14: =IFERROR(IF(R$4="",0,IF($E14="kWh",VLOOKUP(R$4,'4. Billing Determinants'!$B$19:$P$41,4,0)/'4. Billing Determinants'!$E$41*$D14,IF($E14="kW",VLOOKUP(R$4,'4. Billing Determinants'!$B$19:$P$41,5,0)/'4. Billing Determinants'!$F$41*$D14,IF($E14="Non-RPP kWh",VLOOKUP(R$4,'4. Billing Determinants'!$B$19:$P$41,6,0)/'4. Billing Determinants'!$G$41*$D14,IF($E14="Distribution Rev.",VLOOKUP(R$4,'4. Billing Determinants'!$B$19:$P$41,8,0)/'4. Billing Determinants'!$I$41*$D14, VLOOKUP(R$4,'4. Billing Determinants'!$B$19:$P$41,3,0)/'4. Billing Determinants'!$D$41*$D14))))),0) -> 0 | S14: =IFERROR(IF(S$4="",0,IF($E14="kWh",VLOOKUP(S$4,'4. Billing Determinants'!$B$19:$P$41,4,0)/'4. Billing Determinants'!$E$41*$D14,IF($E14="kW",VLOOKUP(S$4,'4. Billing Determinants'!$B$19:$P$41,5,0)/'4. Billing Determinants'!$F$41*$D14,IF($E14="Non-RPP kWh",VLOOKUP(S$4,'4. Billing Determinants'!$B$19:$P$41,6,0)/'4. Billing Determinants'!$G$41*$D14,IF($E14="Distribution Rev.",VLOOKUP(S$4,'4. Billing Determinants'!$B$19:$P$41,8,0)/'4. Billing Determinants'!$I$41*$D14, VLOOKUP(S$4,'4. Billing Determinants'!$B$19:$P$41,3,0)/'4. Billing Determinants'!$D$41*$D14))))),0) -> 0 | T14: =IFERROR(IF(T$4="",0,IF($E14="kWh",VLOOKUP(T$4,'4. Billing Determinants'!$B$19:$P$41,4,0)/'4. Billing Determinants'!$E$41*$D14,IF($E14="kW",VLOOKUP(T$4,'4. Billing Determinants'!$B$19:$P$41,5,0)/'4. Billing Determinants'!$F$41*$D14,IF($E14="Non-RPP kWh",VLOOKUP(T$4,'4. Billing Determinants'!$B$19:$P$41,6,0)/'4. Billing Determinants'!$G$41*$D14,IF($E14="Distribution Rev.",VLOOKUP(T$4,'4. Billing Determinants'!$B$19:$P$41,8,0)/'4. Billing Determinants'!$I$41*$D14, VLOOKUP(T$4,'4. Billing Determinants'!$B$19:$P$41,3,0)/'4. Billing Determinants'!$D$41*$D14))))),0) -> 0 | U14: =IFERROR(IF(U$4="",0,IF($E14="kWh",VLOOKUP(U$4,'4. Billing Determinants'!$B$19:$P$41,4,0)/'4. Billing Determinants'!$E$41*$D14,IF($E14="kW",VLOOKUP(U$4,'4. Billing Determinants'!$B$19:$P$41,5,0)/'4. Billing Determinants'!$F$41*$D14,IF($E14="Non-RPP kWh",VLOOKUP(U$4,'4. Billing Determinants'!$B$19:$P$41,6,0)/'4. Billing Determinants'!$G$41*$D14,IF($E14="Distribution Rev.",VLOOKUP(U$4,'4. Billing Determinants'!$B$19:$P$41,8,0)/'4. Billing Determinants'!$I$41*$D14, VLOOKUP(U$4,'4. Billing Determinants'!$B$19:$P$41,3,0)/'4. Billing Determinants'!$D$41*$D14))))),0) -> 0 | V14: =IFERROR(IF(V$4="",0,IF($E14="kWh",VLOOKUP(V$4,'4. Billing Determinants'!$B$19:$P$41,4,0)/'4. Billing Determinants'!$E$41*$D14,IF($E14="kW",VLOOKUP(V$4,'4. Billing Determinants'!$B$19:$P$41,5,0)/'4. Billing Determinants'!$F$41*$D14,IF($E14="Non-RPP kWh",VLOOKUP(V$4,'4. Billing Determinants'!$B$19:$P$41,6,0)/'4. Billing Determinants'!$G$41*$D14,IF($E14="Distribution Rev.",VLOOKUP(V$4,'4. Billing Determinants'!$B$19:$P$41,8,0)/'4. Billing Determinants'!$I$41*$D14, VLOOKUP(V$4,'4. Billing Determinants'!$B$19:$P$41,3,0)/'4. Billing Determinants'!$D$41*$D14))))),0) -> 0 | W14: =IFERROR(IF(W$4="",0,IF($E14="kWh",VLOOKUP(W$4,'4. Billing Determinants'!$B$19:$P$41,4,0)/'4. Billing Determinants'!$E$41*$D14,IF($E14="kW",VLOOKUP(W$4,'4. Billing Determinants'!$B$19:$P$41,5,0)/'4. Billing Determinants'!$F$41*$D14,IF($E14="Non-RPP kWh",VLOOKUP(W$4,'4. Billing Determinants'!$B$19:$P$41,6,0)/'4. Billing Determinants'!$G$41*$D14,IF($E14="Distribution Rev.",VLOOKUP(W$4,'4. Billing Determinants'!$B$19:$P$41,8,0)/'4. Billing Determinants'!$I$41*$D14, VLOOKUP(W$4,'4. Billing Determinants'!$B$19:$P$41,3,0)/'4. Billing Determinants'!$D$41*$D14))))),0) -> 0 | X14: =IFERROR(IF(X$4="",0,IF($E14="kWh",VLOOKUP(X$4,'4. Billing Determinants'!$B$19:$P$41,4,0)/'4. Billing Determinants'!$E$41*$D14,IF($E14="kW",VLOOKUP(X$4,'4. Billing Determinants'!$B$19:$P$41,5,0)/'4. Billing Determinants'!$F$41*$D14,IF($E14="Non-RPP kWh",VLOOKUP(X$4,'4. Billing Determinants'!$B$19:$P$41,6,0)/'4. Billing Determinants'!$G$41*$D14,IF($E14="Distribution Rev.",VLOOKUP(X$4,'4. Billing Determinants'!$B$19:$P$41,8,0)/'4. Billing Determinants'!$I$41*$D14, VLOOKUP(X$4,'4. Billing Determinants'!$B$19:$P$41,3,0)/'4. Billing Determinants'!$D$41*$D14))))),0) -> 0 | Y14: =IFERROR(IF(Y$4="",0,IF($E14="kWh",VLOOKUP(Y$4,'4. Billing Determinants'!$B$19:$P$41,4,0)/'4. Billing Determinants'!$E$41*$D14,IF($E14="kW",VLOOKUP(Y$4,'4. Billing Determinants'!$B$19:$P$41,5,0)/'4. Billing Determinants'!$F$41*$D14,IF($E14="Non-RPP kWh",VLOOKUP(Y$4,'4. Billing Determinants'!$B$19:$P$41,6,0)/'4. Billing Determinants'!$G$41*$D14,IF($E14="Distribution Rev.",VLOOKUP(Y$4,'4. Billing Determinants'!$B$19:$P$41,8,0)/'4. Billing Determinants'!$I$41*$D14, VLOOKUP(Y$4,'4. Billing Determinants'!$B$19:$P$41,3,0)/'4. Billing Determinants'!$D$41*$D14))))),0) -> 0
B15: Disposition and Recovery/Refund of Regulatory Balances (2011) | C15: 1595 | D15: ='2. 2014 Continuity Schedule'!CB34 -> -65289.62 | E15: kWh | F15: =IFERROR(IF(F$4="",0,IF($E15="kWh",VLOOKUP(F$4,'4. Billing Determinants'!$B$19:$P$41,4,0)/'4. Billing Determinants'!$E$41*$D15,IF($E15="kW",VLOOKUP(F$4,'4. Billing Determinants'!$B$19:$P$41,5,0)/'4. Billing Determinants'!$F$41*$D15,IF($E15="Non-RPP kWh",VLOOKUP(F$4,'4. Billing Determinants'!$B$19:$P$41,6,0)/'4. Billing Determinants'!$G$41*$D15,IF($E15="Distribution Rev.",VLOOKUP(F$4,'4. Billing Determinants'!$B$19:$P$41,8,0)/'4. Billing Determinants'!$I$41*$D15, VLOOKUP(F$4,'4. Billing Determinants'!$B$19:$P$41,3,0)/'4. Billing Determinants'!$D$41*$D15))))),0) -> -19569.56069 | G15: =IFERROR(IF(G$4="",0,IF($E15="kWh",VLOOKUP(G$4,'4. Billing Determinants'!$B$19:$P$41,4,0)/'4. Billing Determinants'!$E$41*$D15,IF($E15="kW",VLOOKUP(G$4,'4. Billing Determinants'!$B$19:$P$41,5,0)/'4. Billing Determinants'!$F$41*$D15,IF($E15="Non-RPP kWh",VLOOKUP(G$4,'4. Billing Determinants'!$B$19:$P$41,6,0)/'4. Billing Determinants'!$G$41*$D15,IF($E15="Distribution Rev.",VLOOKUP(G$4,'4. Billing Determinants'!$B$19:$P$41,8,0)/'4. Billing Determinants'!$I$41*$D15, VLOOKUP(G$4,'4. Billing Determinants'!$B$19:$P$41,3,0)/'4. Billing Determinants'!$D$41*$D15))))),0) -> -8613.046725 | H15: =IFERROR(IF(H$4="",0,IF($E15="kWh",VLOOKUP(H$4,'4. Billing Determinants'!$B$19:$P$41,4,0)/'4. Billing Determinants'!$E$41*$D15,IF($E15="kW",VLOOKUP(H$4,'4. Billing Determinants'!$B$19:$P$41,5,0)/'4. Billing Determinants'!$F$41*$D15,IF($E15="Non-RPP kWh",VLOOKUP(H$4,'4. Billing Determinants'!$B$19:$P$41,6,0)/'4. Billing Determinants'!$G$41*$D15,IF($E15="Distribution Rev.",VLOOKUP(H$4,'4. Billing Determinants'!$B$19:$P$41,8,0)/'4. Billing Determinants'!$I$41*$D15, VLOOKUP(H$4,'4. Billing Determinants'!$B$19:$P$41,3,0)/'4. Billing Determinants'!$D$41*$D15))))),0) -> -18304.08725 | I15: =IFERROR(IF(I$4="",0,IF($E15="kWh",VLOOKUP(I$4,'4. Billing Determinants'!$B$19:$P$41,4,0)/'4. Billing Determinants'!$E$41*$D15,IF($E15="kW",VLOOKUP(I$4,'4. Billing Determinants'!$B$19:$P$41,5,0)/'4. Billing Determinants'!$F$41*$D15,IF($E15="Non-RPP kWh",VLOOKUP(I$4,'4. Billing Determinants'!$B$19:$P$41,6,0)/'4. Billing Determinants'!$G$41*$D15,IF($E15="Distribution Rev.",VLOOKUP(I$4,'4. Billing Determinants'!$B$19:$P$41,8,0)/'4. Billing Determinants'!$I$41*$D15, VLOOKUP(I$4,'4. Billing Determinants'!$B$19:$P$41,3,0)/'4. Billing Determinants'!$D$41*$D15))))),0) -> -17987.70881 | J15: =IFERROR(IF(J$4="",0,IF($E15="kWh",VLOOKUP(J$4,'4. Billing Determinants'!$B$19:$P$41,4,0)/'4. Billing Determinants'!$E$41*$D15,IF($E15="kW",VLOOKUP(J$4,'4. Billing Determinants'!$B$19:$P$41,5,0)/'4. Billing Determinants'!$F$41*$D15,IF($E15="Non-RPP kWh",VLOOKUP(J$4,'4. Billing Determinants'!$B$19:$P$41,6,0)/'4. Billing Determinants'!$G$41*$D15,IF($E15="Distribution Rev.",VLOOKUP(J$4,'4. Billing Determinants'!$B$19:$P$41,8,0)/'4. Billing Determinants'!$I$41*$D15, VLOOKUP(J$4,'4. Billing Determinants'!$B$19:$P$41,3,0)/'4. Billing Determinants'!$D$41*$D15))))),0) -> -16.50435509 | K15: =IFERROR(IF(K$4="",0,IF($E15="kWh",VLOOKUP(K$4,'4. Billing Determinants'!$B$19:$P$41,4,0)/'4. Billing Determinants'!$E$41*$D15,IF($E15="kW",VLOOKUP(K$4,'4. Billing Determinants'!$B$19:$P$41,5,0)/'4. Billing Determinants'!$F$41*$D15,IF($E15="Non-RPP kWh",VLOOKUP(K$4,'4. Billing Determinants'!$B$19:$P$41,6,0)/'4. Billing Determinants'!$G$41*$D15,IF($E15="Distribution Rev.",VLOOKUP(K$4,'4. Billing Determinants'!$B$19:$P$41,8,0)/'4. Billing Determinants'!$I$41*$D15, VLOOKUP(K$4,'4. Billing Determinants'!$B$19:$P$41,3,0)/'4. Billing Determinants'!$D$41*$D15))))),0) -> -798.7121694 | L15: =IFERROR(IF(L$4="",0,IF($E15="kWh",VLOOKUP(L$4,'4. Billing Determinants'!$B$19:$P$41,4,0)/'4. Billing Determinants'!$E$41*$D15,IF($E15="kW",VLOOKUP(L$4,'4. Billing Determinants'!$B$19:$P$41,5,0)/'4. Billing Determinants'!$F$41*$D15,IF($E15="Non-RPP kWh",VLOOKUP(L$4,'4. Billing Determinants'!$B$19:$P$41,6,0)/'4. Billing Determinants'!$G$41*$D15,IF($E15="Distribution Rev.",VLOOKUP(L$4,'4. Billing Determinants'!$B$19:$P$41,8,0)/'4. Billing Determinants'!$I$41*$D15, VLOOKUP(L$4,'4. Billing Determinants'!$B$19:$P$41,3,0)/'4. Billing Determinants'!$D$41*$D15))))),0) -> 0 | M15: =IFERROR(IF(M$4="",0,IF($E15="kWh",VLOOKUP(M$4,'4. Billing Determinants'!$B$19:$P$41,4,0)/'4. Billing Determinants'!$E$41*$D15,IF($E15="kW",VLOOKUP(M$4,'4. Billing Determinants'!$B$19:$P$41,5,0)/'4. Billing Determinants'!$F$41*$D15,IF($E15="Non-RPP kWh",VLOOKUP(M$4,'4. Billing Determinants'!$B$19:$P$41,6,0)/'4. Billing Determinants'!$G$41*$D15,IF($E15="Distribution Rev.",VLOOKUP(M$4,'4. Billing Determinants'!$B$19:$P$41,8,0)/'4. Billing Determinants'!$I$41*$D15, VLOOKUP(M$4,'4. Billing Determinants'!$B$19:$P$41,3,0)/'4. Billing Determinants'!$D$41*$D15))))),0) -> 0 | N15: =IFERROR(IF(N$4="",0,IF($E15="kWh",VLOOKUP(N$4,'4. Billing Determinants'!$B$19:$P$41,4,0)/'4. Billing Determinants'!$E$41*$D15,IF($E15="kW",VLOOKUP(N$4,'4. Billing Determinants'!$B$19:$P$41,5,0)/'4. Billing Determinants'!$F$41*$D15,IF($E15="Non-RPP kWh",VLOOKUP(N$4,'4. Billing Determinants'!$B$19:$P$41,6,0)/'4. Billing Determinants'!$G$41*$D15,IF($E15="Distribution Rev.",VLOOKUP(N$4,'4. Billing Determinants'!$B$19:$P$41,8,0)/'4. Billing Determinants'!$I$41*$D15, VLOOKUP(N$4,'4. Billing Determinants'!$B$19:$P$41,3,0)/'4. Billing Determinants'!$D$41*$D15))))),0) -> 0 | O15: =IFERROR(IF(O$4="",0,IF($E15="kWh",VLOOKUP(O$4,'4. Billing Determinants'!$B$19:$P$41,4,0)/'4. Billing Determinants'!$E$41*$D15,IF($E15="kW",VLOOKUP(O$4,'4. Billing Determinants'!$B$19:$P$41,5,0)/'4. Billing Determinants'!$F$41*$D15,IF($E15="Non-RPP kWh",VLOOKUP(O$4,'4. Billing Determinants'!$B$19:$P$41,6,0)/'4. Billing Determinants'!$G$41*$D15,IF($E15="Distribution Rev.",VLOOKUP(O$4,'4. Billing Determinants'!$B$19:$P$41,8,0)/'4. Billing Determinants'!$I$41*$D15, VLOOKUP(O$4,'4. Billing Determinants'!$B$19:$P$41,3,0)/'4. Billing Determinants'!$D$41*$D15))))),0) -> 0 | P15: =IFERROR(IF(P$4="",0,IF($E15="kWh",VLOOKUP(P$4,'4. Billing Determinants'!$B$19:$P$41,4,0)/'4. Billing Determinants'!$E$41*$D15,IF($E15="kW",VLOOKUP(P$4,'4. Billing Determinants'!$B$19:$P$41,5,0)/'4. Billing Determinants'!$F$41*$D15,IF($E15="Non-RPP kWh",VLOOKUP(P$4,'4. Billing Determinants'!$B$19:$P$41,6,0)/'4. Billing Determinants'!$G$41*$D15,IF($E15="Distribution Rev.",VLOOKUP(P$4,'4. Billing Determinants'!$B$19:$P$41,8,0)/'4. Billing Determinants'!$I$41*$D15, VLOOKUP(P$4,'4. Billing Determinants'!$B$19:$P$41,3,0)/'4. Billing Determinants'!$D$41*$D15))))),0) -> 0 | Q15: =IFERROR(IF(Q$4="",0,IF($E15="kWh",VLOOKUP(Q$4,'4. Billing Determinants'!$B$19:$P$41,4,0)/'4. Billing Determinants'!$E$41*$D15,IF($E15="kW",VLOOKUP(Q$4,'4. Billing Determinants'!$B$19:$P$41,5,0)/'4. Billing Determinants'!$F$41*$D15,IF($E15="Non-RPP kWh",VLOOKUP(Q$4,'4. Billing Determinants'!$B$19:$P$41,6,0)/'4. Billing Determinants'!$G$41*$D15,IF($E15="Distribution Rev.",VLOOKUP(Q$4,'4. Billing Determinants'!$B$19:$P$41,8,0)/'4. Billing Determinants'!$I$41*$D15, VLOOKUP(Q$4,'4. Billing Determinants'!$B$19:$P$41,3,0)/'4. Billing Determinants'!$D$41*$D15))))),0) -> 0 | R15: =IFERROR(IF(R$4="",0,IF($E15="kWh",VLOOKUP(R$4,'4. Billing Determinants'!$B$19:$P$41,4,0)/'4. Billing Determinants'!$E$41*$D15,IF($E15="kW",VLOOKUP(R$4,'4. Billing Determinants'!$B$19:$P$41,5,0)/'4. Billing Determinants'!$F$41*$D15,IF($E15="Non-RPP kWh",VLOOKUP(R$4,'4. Billing Determinants'!$B$19:$P$41,6,0)/'4. Billing Determinants'!$G$41*$D15,IF($E15="Distribution Rev.",VLOOKUP(R$4,'4. Billing Determinants'!$B$19:$P$41,8,0)/'4. Billing Determinants'!$I$41*$D15, VLOOKUP(R$4,'4. Billing Determinants'!$B$19:$P$41,3,0)/'4. Billing Determinants'!$D$41*$D15))))),0) -> 0 | S15: =IFERROR(IF(S$4="",0,IF($E15="kWh",VLOOKUP(S$4,'4. Billing Determinants'!$B$19:$P$41,4,0)/'4. Billing Determinants'!$E$41*$D15,IF($E15="kW",VLOOKUP(S$4,'4. Billing Determinants'!$B$19:$P$41,5,0)/'4. Billing Determinants'!$F$41*$D15,IF($E15="Non-RPP kWh",VLOOKUP(S$4,'4. Billing Determinants'!$B$19:$P$41,6,0)/'4. Billing Determinants'!$G$41*$D15,IF($E15="Distribution Rev.",VLOOKUP(S$4,'4. Billing Determinants'!$B$19:$P$41,8,0)/'4. Billing Determinants'!$I$41*$D15, VLOOKUP(S$4,'4. Billing Determinants'!$B$19:$P$41,3,0)/'4. Billing Determinants'!$D$41*$D15))))),0) -> 0 | T15: =IFERROR(IF(T$4="",0,IF($E15="kWh",VLOOKUP(T$4,'4. Billing Determinants'!$B$19:$P$41,4,0)/'4. Billing Determinants'!$E$41*$D15,IF($E15="kW",VLOOKUP(T$4,'4. Billing Determinants'!$B$19:$P$41,5,0)/'4. Billing Determinants'!$F$41*$D15,IF($E15="Non-RPP kWh",VLOOKUP(T$4,'4. Billing Determinants'!$B$19:$P$41,6,0)/'4. Billing Determinants'!$G$41*$D15,IF($E15="Distribution Rev.",VLOOKUP(T$4,'4. Billing Determinants'!$B$19:$P$41,8,0)/'4. Billing Determinants'!$I$41*$D15, VLOOKUP(T$4,'4. Billing Determinants'!$B$19:$P$41,3,0)/'4. Billing Determinants'!$D$41*$D15))))),0) -> 0 | U15: =IFERROR(IF(U$4="",0,IF($E15="kWh",VLOOKUP(U$4,'4. Billing Determinants'!$B$19:$P$41,4,0)/'4. Billing Determinants'!$E$41*$D15,IF($E15="kW",VLOOKUP(U$4,'4. Billing Determinants'!$B$19:$P$41,5,0)/'4. Billing Determinants'!$F$41*$D15,IF($E15="Non-RPP kWh",VLOOKUP(U$4,'4. Billing Determinants'!$B$19:$P$41,6,0)/'4. Billing Determinants'!$G$41*$D15,IF($E15="Distribution Rev.",VLOOKUP(U$4,'4. Billing Determinants'!$B$19:$P$41,8,0)/'4. Billing Determinants'!$I$41*$D15, VLOOKUP(U$4,'4. Billing Determinants'!$B$19:$P$41,3,0)/'4. Billing Determinants'!$D$41*$D15))))),0) -> 0 | V15: =IFERROR(IF(V$4="",0,IF($E15="kWh",VLOOKUP(V$4,'4. Billing Determinants'!$B$19:$P$41,4,0)/'4. Billing Determinants'!$E$41*$D15,IF($E15="kW",VLOOKUP(V$4,'4. Billing Determinants'!$B$19:$P$41,5,0)/'4. Billing Determinants'!$F$41*$D15,IF($E15="Non-RPP kWh",VLOOKUP(V$4,'4. Billing Determinants'!$B$19:$P$41,6,0)/'4. Billing Determinants'!$G$41*$D15,IF($E15="Distribution Rev.",VLOOKUP(V$4,'4. Billing Determinants'!$B$19:$P$41,8,0)/'4. Billing Determinants'!$I$41*$D15, VLOOKUP(V$4,'4. Billing Determinants'!$B$19:$P$41,3,0)/'4. Billing Determinants'!$D$41*$D15))))),0) -> 0 | W15: =IFERROR(IF(W$4="",0,IF($E15="kWh",VLOOKUP(W$4,'4. Billing Determinants'!$B$19:$P$41,4,0)/'4. Billing Determinants'!$E$41*$D15,IF($E15="kW",VLOOKUP(W$4,'4. Billing Determinants'!$B$19:$P$41,5,0)/'4. Billing Determinants'!$F$41*$D15,IF($E15="Non-RPP kWh",VLOOKUP(W$4,'4. Billing Determinants'!$B$19:$P$41,6,0)/'4. Billing Determinants'!$G$41*$D15,IF($E15="Distribution Rev.",VLOOKUP(W$4,'4. Billing Determinants'!$B$19:$P$41,8,0)/'4. Billing Determinants'!$I$41*$D15, VLOOKUP(W$4,'4. Billing Determinants'!$B$19:$P$41,3,0)/'4. Billing Determinants'!$D$41*$D15))))),0) -> 0 | X15: =IFERROR(IF(X$4="",0,IF($E15="kWh",VLOOKUP(X$4,'4. Billing Determinants'!$B$19:$P$41,4,0)/'4. Billing Determinants'!$E$41*$D15,IF($E15="kW",VLOOKUP(X$4,'4. Billing Determinants'!$B$19:$P$41,5,0)/'4. Billing Determinants'!$F$41*$D15,IF($E15="Non-RPP kWh",VLOOKUP(X$4,'4. Billing Determinants'!$B$19:$P$41,6,0)/'4. Billing Determinants'!$G$41*$D15,IF($E15="Distribution Rev.",VLOOKUP(X$4,'4. Billing Determinants'!$B$19:$P$41,8,0)/'4. Billing Determinants'!$I$41*$D15, VLOOKUP(X$4,'4. Billing Determinants'!$B$19:$P$41,3,0)/'4. Billing Determinants'!$D$41*$D15))))),0) -> 0 | Y15: =IFERROR(IF(Y$4="",0,IF($E15="kWh",VLOOKUP(Y$4,'4. Billing Determinants'!$B$19:$P$41,4,0)/'4. Billing Determinants'!$E$41*$D15,IF($E15="kW",VLOOKUP(Y$4,'4. Billing Determinants'!$B$19:$P$41,5,0)/'4. Billing Determinants'!$F$41*$D15,IF($E15="Non-RPP kWh",VLOOKUP(Y$4,'4. Billing Determinants'!$B$19:$P$41,6,0)/'4. Billing Determinants'!$G$41*$D15,IF($E15="Distribution Rev.",VLOOKUP(Y$4,'4. Billing Determinants'!$B$19:$P$41,8,0)/'4. Billing Determinants'!$I$41*$D15, VLOOKUP(Y$4,'4. Billing Determinants'!$B$19:$P$41,3,0)/'4. Billing Determinants'!$D$41*$D15))))),0) -> 0
B16: Disposition and Recovery/Refund of Regulatory Balances (2012) | C16: 1595 | D16: ='2. 2014 Continuity Schedule'!CB36 -> 0 | E16: kWh | F16: =IFERROR(IF(F$4="",0,IF($E16="kWh",VLOOKUP(F$4,'4. Billing Determinants'!$B$19:$P$41,4,0)/'4. Billing Determinants'!$E$41*$D16,IF($E16="kW",VLOOKUP(F$4,'4. Billing Determinants'!$B$19:$P$41,5,0)/'4. Billing Determinants'!$F$41*$D16,IF($E16="Non-RPP kWh",VLOOKUP(F$4,'4. Billing Determinants'!$B$19:$P$41,6,0)/'4. Billing Determinants'!$G$41*$D16,IF($E16="Distribution Rev.",VLOOKUP(F$4,'4. Billing Determinants'!$B$19:$P$41,8,0)/'4. Billing Determinants'!$I$41*$D16, VLOOKUP(F$4,'4. Billing Determinants'!$B$19:$P$41,3,0)/'4. Billing Determinants'!$D$41*$D16))))),0) -> 0 | G16: =IFERROR(IF(G$4="",0,IF($E16="kWh",VLOOKUP(G$4,'4. Billing Determinants'!$B$19:$P$41,4,0)/'4. Billing Determinants'!$E$41*$D16,IF($E16="kW",VLOOKUP(G$4,'4. Billing Determinants'!$B$19:$P$41,5,0)/'4. Billing Determinants'!$F$41*$D16,IF($E16="Non-RPP kWh",VLOOKUP(G$4,'4. Billing Determinants'!$B$19:$P$41,6,0)/'4. Billing Determinants'!$G$41*$D16,IF($E16="Distribution Rev.",VLOOKUP(G$4,'4. Billing Determinants'!$B$19:$P$41,8,0)/'4. Billing Determinants'!$I$41*$D16, VLOOKUP(G$4,'4. Billing Determinants'!$B$19:$P$41,3,0)/'4. Billing Determinants'!$D$41*$D16))))),0) -> 0 | H16: =IFERROR(IF(H$4="",0,IF($E16="kWh",VLOOKUP(H$4,'4. Billing Determinants'!$B$19:$P$41,4,0)/'4. Billing Determinants'!$E$41*$D16,IF($E16="kW",VLOOKUP(H$4,'4. Billing Determinants'!$B$19:$P$41,5,0)/'4. Billing Determinants'!$F$41*$D16,IF($E16="Non-RPP kWh",VLOOKUP(H$4,'4. Billing Determinants'!$B$19:$P$41,6,0)/'4. Billing Determinants'!$G$41*$D16,IF($E16="Distribution Rev.",VLOOKUP(H$4,'4. Billing Determinants'!$B$19:$P$41,8,0)/'4. Billing Determinants'!$I$41*$D16, VLOOKUP(H$4,'4. Billing Determinants'!$B$19:$P$41,3,0)/'4. Billing Determinants'!$D$41*$D16))))),0) -> 0 | I16: =IFERROR(IF(I$4="",0,IF($E16="kWh",VLOOKUP(I$4,'4. Billing Determinants'!$B$19:$P$41,4,0)/'4. Billing Determinants'!$E$41*$D16,IF($E16="kW",VLOOKUP(I$4,'4. Billing Determinants'!$B$19:$P$41,5,0)/'4. Billing Determinants'!$F$41*$D16,IF($E16="Non-RPP kWh",VLOOKUP(I$4,'4. Billing Determinants'!$B$19:$P$41,6,0)/'4. Billing Determinants'!$G$41*$D16,IF($E16="Distribution Rev.",VLOOKUP(I$4,'4. Billing Determinants'!$B$19:$P$41,8,0)/'4. Billing Determinants'!$I$41*$D16, VLOOKUP(I$4,'4. Billing Determinants'!$B$19:$P$41,3,0)/'4. Billing Determinants'!$D$41*$D16))))),0) -> 0 | J16: =IFERROR(IF(J$4="",0,IF($E16="kWh",VLOOKUP(J$4,'4. Billing Determinants'!$B$19:$P$41,4,0)/'4. Billing Determinants'!$E$41*$D16,IF($E16="kW",VLOOKUP(J$4,'4. Billing Determinants'!$B$19:$P$41,5,0)/'4. Billing Determinants'!$F$41*$D16,IF($E16="Non-RPP kWh",VLOOKUP(J$4,'4. Billing Determinants'!$B$19:$P$41,6,0)/'4. Billing Determinants'!$G$41*$D16,IF($E16="Distribution Rev.",VLOOKUP(J$4,'4. Billing Determinants'!$B$19:$P$41,8,0)/'4. Billing Determinants'!$I$41*$D16, VLOOKUP(J$4,'4. Billing Determinants'!$B$19:$P$41,3,0)/'4. Billing Determinants'!$D$41*$D16))))),0) -> 0 | K16: =IFERROR(IF(K$4="",0,IF($E16="kWh",VLOOKUP(K$4,'4. Billing Determinants'!$B$19:$P$41,4,0)/'4. Billing Determinants'!$E$41*$D16,IF($E16="kW",VLOOKUP(K$4,'4. Billing Determinants'!$B$19:$P$41,5,0)/'4. Billing Determinants'!$F$41*$D16,IF($E16="Non-RPP kWh",VLOOKUP(K$4,'4. Billing Determinants'!$B$19:$P$41,6,0)/'4. Billing Determinants'!$G$41*$D16,IF($E16="Distribution Rev.",VLOOKUP(K$4,'4. Billing Determinants'!$B$19:$P$41,8,0)/'4. Billing Determinants'!$I$41*$D16, VLOOKUP(K$4,'4. Billing Determinants'!$B$19:$P$41,3,0)/'4. Billing Determinants'!$D$41*$D16))))),0) -> 0 | L16: =IFERROR(IF(L$4="",0,IF($E16="kWh",VLOOKUP(L$4,'4. Billing Determinants'!$B$19:$P$41,4,0)/'4. Billing Determinants'!$E$41*$D16,IF($E16="kW",VLOOKUP(L$4,'4. Billing Determinants'!$B$19:$P$41,5,0)/'4. Billing Determinants'!$F$41*$D16,IF($E16="Non-RPP kWh",VLOOKUP(L$4,'4. Billing Determinants'!$B$19:$P$41,6,0)/'4. Billing Determinants'!$G$41*$D16,IF($E16="Distribution Rev.",VLOOKUP(L$4,'4. Billing Determinants'!$B$19:$P$41,8,0)/'4. Billing Determinants'!$I$41*$D16, VLOOKUP(L$4,'4. Billing Determinants'!$B$19:$P$41,3,0)/'4. Billing Determinants'!$D$41*$D16))))),0) -> 0 | M16: =IFERROR(IF(M$4="",0,IF($E16="kWh",VLOOKUP(M$4,'4. Billing Determinants'!$B$19:$P$41,4,0)/'4. Billing Determinants'!$E$41*$D16,IF($E16="kW",VLOOKUP(M$4,'4. Billing Determinants'!$B$19:$P$41,5,0)/'4. Billing Determinants'!$F$41*$D16,IF($E16="Non-RPP kWh",VLOOKUP(M$4,'4. Billing Determinants'!$B$19:$P$41,6,0)/'4. Billing Determinants'!$G$41*$D16,IF($E16="Distribution Rev.",VLOOKUP(M$4,'4. Billing Determinants'!$B$19:$P$41,8,0)/'4. Billing Determinants'!$I$41*$D16, VLOOKUP(M$4,'4. Billing Determinants'!$B$19:$P$41,3,0)/'4. Billing Determinants'!$D$41*$D16))))),0) -> 0 | N16: =IFERROR(IF(N$4="",0,IF($E16="kWh",VLOOKUP(N$4,'4. Billing Determinants'!$B$19:$P$41,4,0)/'4. Billing Determinants'!$E$41*$D16,IF($E16="kW",VLOOKUP(N$4,'4. Billing Determinants'!$B$19:$P$41,5,0)/'4. Billing Determinants'!$F$41*$D16,IF($E16="Non-RPP kWh",VLOOKUP(N$4,'4. Billing Determinants'!$B$19:$P$41,6,0)/'4. Billing Determinants'!$G$41*$D16,IF($E16="Distribution Rev.",VLOOKUP(N$4,'4. Billing Determinants'!$B$19:$P$41,8,0)/'4. Billing Determinants'!$I$41*$D16, VLOOKUP(N$4,'4. Billing Determinants'!$B$19:$P$41,3,0)/'4. Billing Determinants'!$D$41*$D16))))),0) -> 0 | O16: =IFERROR(IF(O$4="",0,IF($E16="kWh",VLOOKUP(O$4,'4. Billing Determinants'!$B$19:$P$41,4,0)/'4. Billing Determinants'!$E$41*$D16,IF($E16="kW",VLOOKUP(O$4,'4. Billing Determinants'!$B$19:$P$41,5,0)/'4. Billing Determinants'!$F$41*$D16,IF($E16="Non-RPP kWh",VLOOKUP(O$4,'4. Billing Determinants'!$B$19:$P$41,6,0)/'4. Billing Determinants'!$G$41*$D16,IF($E16="Distribution Rev.",VLOOKUP(O$4,'4. Billing Determinants'!$B$19:$P$41,8,0)/'4. Billing Determinants'!$I$41*$D16, VLOOKUP(O$4,'4. Billing Determinants'!$B$19:$P$41,3,0)/'4. Billing Determinants'!$D$41*$D16))))),0) -> 0 | P16: =IFERROR(IF(P$4="",0,IF($E16="kWh",VLOOKUP(P$4,'4. Billing Determinants'!$B$19:$P$41,4,0)/'4. Billing Determinants'!$E$41*$D16,IF($E16="kW",VLOOKUP(P$4,'4. Billing Determinants'!$B$19:$P$41,5,0)/'4. Billing Determinants'!$F$41*$D16,IF($E16="Non-RPP kWh",VLOOKUP(P$4,'4. Billing Determinants'!$B$19:$P$41,6,0)/'4. Billing Determinants'!$G$41*$D16,IF($E16="Distribution Rev.",VLOOKUP(P$4,'4. Billing Determinants'!$B$19:$P$41,8,0)/'4. Billing Determinants'!$I$41*$D16, VLOOKUP(P$4,'4. Billing Determinants'!$B$19:$P$41,3,0)/'4. Billing Determinants'!$D$41*$D16))))),0) -> 0 | Q16: =IFERROR(IF(Q$4="",0,IF($E16="kWh",VLOOKUP(Q$4,'4. Billing Determinants'!$B$19:$P$41,4,0)/'4. Billing Determinants'!$E$41*$D16,IF($E16="kW",VLOOKUP(Q$4,'4. Billing Determinants'!$B$19:$P$41,5,0)/'4. Billing Determinants'!$F$41*$D16,IF($E16="Non-RPP kWh",VLOOKUP(Q$4,'4. Billing Determinants'!$B$19:$P$41,6,0)/'4. Billing Determinants'!$G$41*$D16,IF($E16="Distribution Rev.",VLOOKUP(Q$4,'4. Billing Determinants'!$B$19:$P$41,8,0)/'4. Billing Determinants'!$I$41*$D16, VLOOKUP(Q$4,'4. Billing Determinants'!$B$19:$P$41,3,0)/'4. Billing Determinants'!$D$41*$D16))))),0) -> 0 | R16: =IFERROR(IF(R$4="",0,IF($E16="kWh",VLOOKUP(R$4,'4. Billing Determinants'!$B$19:$P$41,4,0)/'4. Billing Determinants'!$E$41*$D16,IF($E16="kW",VLOOKUP(R$4,'4. Billing Determinants'!$B$19:$P$41,5,0)/'4. Billing Determinants'!$F$41*$D16,IF($E16="Non-RPP kWh",VLOOKUP(R$4,'4. Billing Determinants'!$B$19:$P$41,6,0)/'4. Billing Determinants'!$G$41*$D16,IF($E16="Distribution Rev.",VLOOKUP(R$4,'4. Billing Determinants'!$B$19:$P$41,8,0)/'4. Billing Determinants'!$I$41*$D16, VLOOKUP(R$4,'4. Billing Determinants'!$B$19:$P$41,3,0)/'4. Billing Determinants'!$D$41*$D16))))),0) -> 0 | S16: =IFERROR(IF(S$4="",0,IF($E16="kWh",VLOOKUP(S$4,'4. Billing Determinants'!$B$19:$P$41,4,0)/'4. Billing Determinants'!$E$41*$D16,IF($E16="kW",VLOOKUP(S$4,'4. Billing Determinants'!$B$19:$P$41,5,0)/'4. Billing Determinants'!$F$41*$D16,IF($E16="Non-RPP kWh",VLOOKUP(S$4,'4. Billing Determinants'!$B$19:$P$41,6,0)/'4. Billing Determinants'!$G$41*$D16,IF($E16="Distribution Rev.",VLOOKUP(S$4,'4. Billing Determinants'!$B$19:$P$41,8,0)/'4. Billing Determinants'!$I$41*$D16, VLOOKUP(S$4,'4. Billing Determinants'!$B$19:$P$41,3,0)/'4. Billing Determinants'!$D$41*$D16))))),0) -> 0 | T16: =IFERROR(IF(T$4="",0,IF($E16="kWh",VLOOKUP(T$4,'4. Billing Determinants'!$B$19:$P$41,4,0)/'4. Billing Determinants'!$E$41*$D16,IF($E16="kW",VLOOKUP(T$4,'4. Billing Determinants'!$B$19:$P$41,5,0)/'4. Billing Determinants'!$F$41*$D16,IF($E16="Non-RPP kWh",VLOOKUP(T$4,'4. Billing Determinants'!$B$19:$P$41,6,0)/'4. Billing Determinants'!$G$41*$D16,IF($E16="Distribution Rev.",VLOOKUP(T$4,'4. Billing Determinants'!$B$19:$P$41,8,0)/'4. Billing Determinants'!$I$41*$D16, VLOOKUP(T$4,'4. Billing Determinants'!$B$19:$P$41,3,0)/'4. Billing Determinants'!$D$41*$D16))))),0) -> 0 | U16: =IFERROR(IF(U$4="",0,IF($E16="kWh",VLOOKUP(U$4,'4. Billing Determinants'!$B$19:$P$41,4,0)/'4. Billing Determinants'!$E$41*$D16,IF($E16="kW",VLOOKUP(U$4,'4. Billing Determinants'!$B$19:$P$41,5,0)/'4. Billing Determinants'!$F$41*$D16,IF($E16="Non-RPP kWh",VLOOKUP(U$4,'4. Billing Determinants'!$B$19:$P$41,6,0)/'4. Billing Determinants'!$G$41*$D16,IF($E16="Distribution Rev.",VLOOKUP(U$4,'4. Billing Determinants'!$B$19:$P$41,8,0)/'4. Billing Determinants'!$I$41*$D16, VLOOKUP(U$4,'4. Billing Determinants'!$B$19:$P$41,3,0)/'4. Billing Determinants'!$D$41*$D16))))),0) -> 0 | V16: =IFERROR(IF(V$4="",0,IF($E16="kWh",VLOOKUP(V$4,'4. Billing Determinants'!$B$19:$P$41,4,0)/'4. Billing Determinants'!$E$41*$D16,IF($E16="kW",VLOOKUP(V$4,'4. Billing Determinants'!$B$19:$P$41,5,0)/'4. Billing Determinants'!$F$41*$D16,IF($E16="Non-RPP kWh",VLOOKUP(V$4,'4. Billing Determinants'!$B$19:$P$41,6,0)/'4. Billing Determinants'!$G$41*$D16,IF($E16="Distribution Rev.",VLOOKUP(V$4,'4. Billing Determinants'!$B$19:$P$41,8,0)/'4. Billing Determinants'!$I$41*$D16, VLOOKUP(V$4,'4. Billing Determinants'!$B$19:$P$41,3,0)/'4. Billing Determinants'!$D$41*$D16))))),0) -> 0 | W16: =IFERROR(IF(W$4="",0,IF($E16="kWh",VLOOKUP(W$4,'4. Billing Determinants'!$B$19:$P$41,4,0)/'4. Billing Determinants'!$E$41*$D16,IF($E16="kW",VLOOKUP(W$4,'4. Billing Determinants'!$B$19:$P$41,5,0)/'4. Billing Determinants'!$F$41*$D16,IF($E16="Non-RPP kWh",VLOOKUP(W$4,'4. Billing Determinants'!$B$19:$P$41,6,0)/'4. Billing Determinants'!$G$41*$D16,IF($E16="Distribution Rev.",VLOOKUP(W$4,'4. Billing Determinants'!$B$19:$P$41,8,0)/'4. Billing Determinants'!$I$41*$D16, VLOOKUP(W$4,'4. Billing Determinants'!$B$19:$P$41,3,0)/'4. Billing Determinants'!$D$41*$D16))))),0) -> 0 | X16: =IFERROR(IF(X$4="",0,IF($E16="kWh",VLOOKUP(X$4,'4. Billing Determinants'!$B$19:$P$41,4,0)/'4. Billing Determinants'!$E$41*$D16,IF($E16="kW",VLOOKUP(X$4,'4. Billing Determinants'!$B$19:$P$41,5,0)/'4. Billing Determinants'!$F$41*$D16,IF($E16="Non-RPP kWh",VLOOKUP(X$4,'4. Billing Determinants'!$B$19:$P$41,6,0)/'4. Billing Determinants'!$G$41*$D16,IF($E16="Distribution Rev.",VLOOKUP(X$4,'4. Billing Determinants'!$B$19:$P$41,8,0)/'4. Billing Determinants'!$I$41*$D16, VLOOKUP(X$4,'4. Billing Determinants'!$B$19:$P$41,3,0)/'4. Billing Determinants'!$D$41*$D16))))),0) -> 0 | Y16: =IFERROR(IF(Y$4="",0,IF($E16="kWh",VLOOKUP(Y$4,'4. Billing Determinants'!$B$19:$P$41,4,0)/'4. Billing Determinants'!$E$41*$D16,IF($E16="kW",VLOOKUP(Y$4,'4. Billing Determinants'!$B$19:$P$41,5,0)/'4. Billing Determinants'!$F$41*$D16,IF($E16="Non-RPP kWh",VLOOKUP(Y$4,'4. Billing Determinants'!$B$19:$P$41,6,0)/'4. Billing Determinants'!$G$41*$D16,IF($E16="Distribution Rev.",VLOOKUP(Y$4,'4. Billing Determinants'!$B$19:$P$41,8,0)/'4. Billing Determinants'!$I$41*$D16, VLOOKUP(Y$4,'4. Billing Determinants'!$B$19:$P$41,3,0)/'4. Billing Determinants'!$D$41*$D16))))),0) -> 0
B17: Total of Group 1 Accounts (excluding 1589) | D17: =SUM(D5:D16)-D11 -> -279540.37 | F17: =SUM(F5:F16)-F11 -> -83787.93193 | G17: =SUM(G5:G16)-G11 -> -36877.13711 | H17: -78369.75192 | I17: -77015.16376 | J17: -70.66411977 | K17: -3419.721165 | L17: 0 | M17: 0 | N17: 0 | O17: 0 | P17: 0 | Q17: 0 | R17: 0 | S17: 0 | T17: 0 | U17: 0 | V17: 0 | W17: 0 | X17: 0 | Y17: 0
B19: Other Regulatory Assets - Sub-Account - Deferred IFRS Transition Costs | C19: 1508 | D19: ='2. 2014 Continuity Schedule'!CB43 -> 36458.31 | E19: kWh | F19: =IFERROR(IF(F$4="",0,IF($E19="kWh",VLOOKUP(F$4,'4. Billing Determinants'!$B$19:$P$41,4,0)/'4. Billing Determinants'!$E$41*$D19,IF($E19="kW",VLOOKUP(F$4,'4. Billing Determinants'!$B$19:$P$41,5,0)/'4. Billing Determinants'!$F$41*$D19,IF($E19="Non-RPP kWh",VLOOKUP(F$4,'4. Billing Determinants'!$B$19:$P$41,6,0)/'4. Billing Determinants'!$G$41*$D19,IF($E19="Distribution Rev.",VLOOKUP(F$4,'4. Billing Determinants'!$B$19:$P$41,8,0)/'4. Billing Determinants'!$I$41*$D19, VLOOKUP(F$4,'4. Billing Determinants'!$B$19:$P$41,3,0)/'4. Billing Determinants'!$D$41*$D19))))),0) -> 10927.81839 | G19: =IFERROR(IF(G$4="",0,IF($E19="kWh",VLOOKUP(G$4,'4. Billing Determinants'!$B$19:$P$41,4,0)/'4. Billing Determinants'!$E$41*$D19,IF($E19="kW",VLOOKUP(G$4,'4. Billing Determinants'!$B$19:$P$41,5,0)/'4. Billing Determinants'!$F$41*$D19,IF($E19="Non-RPP kWh",VLOOKUP(G$4,'4. Billing Determinants'!$B$19:$P$41,6,0)/'4. Billing Determinants'!$G$41*$D19,IF($E19="Distribution Rev.",VLOOKUP(G$4,'4. Billing Determinants'!$B$19:$P$41,8,0)/'4. Billing Determinants'!$I$41*$D19, VLOOKUP(G$4,'4. Billing Determinants'!$B$19:$P$41,3,0)/'4. Billing Determinants'!$D$41*$D19))))),0) -> 4809.602622 | H19: =IFERROR(IF(H$4="",0,IF($E19="kWh",VLOOKUP(H$4,'4. Billing Determinants'!$B$19:$P$41,4,0)/'4. Billing Determinants'!$E$41*$D19,IF($E19="kW",VLOOKUP(H$4,'4. Billing Determinants'!$B$19:$P$41,5,0)/'4. Billing Determinants'!$F$41*$D19,IF($E19="Non-RPP kWh",VLOOKUP(H$4,'4. Billing Determinants'!$B$19:$P$41,6,0)/'4. Billing Determinants'!$G$41*$D19,IF($E19="Distribution Rev.",VLOOKUP(H$4,'4. Billing Determinants'!$B$19:$P$41,8,0)/'4. Billing Determinants'!$I$41*$D19, VLOOKUP(H$4,'4. Billing Determinants'!$B$19:$P$41,3,0)/'4. Billing Determinants'!$D$41*$D19))))),0) -> 10221.16666 | I19: =IFERROR(IF(I$4="",0,IF($E19="kWh",VLOOKUP(I$4,'4. Billing Determinants'!$B$19:$P$41,4,0)/'4. Billing Determinants'!$E$41*$D19,IF($E19="kW",VLOOKUP(I$4,'4. Billing Determinants'!$B$19:$P$41,5,0)/'4. Billing Determinants'!$F$41*$D19,IF($E19="Non-RPP kWh",VLOOKUP(I$4,'4. Billing Determinants'!$B$19:$P$41,6,0)/'4. Billing Determinants'!$G$41*$D19,IF($E19="Distribution Rev.",VLOOKUP(I$4,'4. Billing Determinants'!$B$19:$P$41,8,0)/'4. Billing Determinants'!$I$41*$D19, VLOOKUP(I$4,'4. Billing Determinants'!$B$19:$P$41,3,0)/'4. Billing Determinants'!$D$41*$D19))))),0) -> 10044.4981 | J19: =IFERROR(IF(J$4="",0,IF($E19="kWh",VLOOKUP(J$4,'4. Billing Determinants'!$B$19:$P$41,4,0)/'4. Billing Determinants'!$E$41*$D19,IF($E19="kW",VLOOKUP(J$4,'4. Billing Determinants'!$B$19:$P$41,5,0)/'4. Billing Determinants'!$F$41*$D19,IF($E19="Non-RPP kWh",VLOOKUP(J$4,'4. Billing Determinants'!$B$19:$P$41,6,0)/'4. Billing Determinants'!$G$41*$D19,IF($E19="Distribution Rev.",VLOOKUP(J$4,'4. Billing Determinants'!$B$19:$P$41,8,0)/'4. Billing Determinants'!$I$41*$D19, VLOOKUP(J$4,'4. Billing Determinants'!$B$19:$P$41,3,0)/'4. Billing Determinants'!$D$41*$D19))))),0) -> 9.216180062 | K19: =IFERROR(IF(K$4="",0,IF($E19="kWh",VLOOKUP(K$4,'4. Billing Determinants'!$B$19:$P$41,4,0)/'4. Billing Determinants'!$E$41*$D19,IF($E19="kW",VLOOKUP(K$4,'4. Billing Determinants'!$B$19:$P$41,5,0)/'4. Billing Determinants'!$F$41*$D19,IF($E19="Non-RPP kWh",VLOOKUP(K$4,'4. Billing Determinants'!$B$19:$P$41,6,0)/'4. Billing Determinants'!$G$41*$D19,IF($E19="Distribution Rev.",VLOOKUP(K$4,'4. Billing Determinants'!$B$19:$P$41,8,0)/'4. Billing Determinants'!$I$41*$D19, VLOOKUP(K$4,'4. Billing Determinants'!$B$19:$P$41,3,0)/'4. Billing Determinants'!$D$41*$D19))))),0) -> 446.0080465 | L19: =IFERROR(IF(L$4="",0,IF($E19="kWh",VLOOKUP(L$4,'4. Billing Determinants'!$B$19:$P$41,4,0)/'4. Billing Determinants'!$E$41*$D19,IF($E19="kW",VLOOKUP(L$4,'4. Billing Determinants'!$B$19:$P$41,5,0)/'4. Billing Determinants'!$F$41*$D19,IF($E19="Non-RPP kWh",VLOOKUP(L$4,'4. Billing Determinants'!$B$19:$P$41,6,0)/'4. Billing Determinants'!$G$41*$D19,IF($E19="Distribution Rev.",VLOOKUP(L$4,'4. Billing Determinants'!$B$19:$P$41,8,0)/'4. Billing Determinants'!$I$41*$D19, VLOOKUP(L$4,'4. Billing Determinants'!$B$19:$P$41,3,0)/'4. Billing Determinants'!$D$41*$D19))))),0) -> 0 | M19: =IFERROR(IF(M$4="",0,IF($E19="kWh",VLOOKUP(M$4,'4. Billing Determinants'!$B$19:$P$41,4,0)/'4. Billing Determinants'!$E$41*$D19,IF($E19="kW",VLOOKUP(M$4,'4. Billing Determinants'!$B$19:$P$41,5,0)/'4. Billing Determinants'!$F$41*$D19,IF($E19="Non-RPP kWh",VLOOKUP(M$4,'4. Billing Determinants'!$B$19:$P$41,6,0)/'4. Billing Determinants'!$G$41*$D19,IF($E19="Distribution Rev.",VLOOKUP(M$4,'4. Billing Determinants'!$B$19:$P$41,8,0)/'4. Billing Determinants'!$I$41*$D19, VLOOKUP(M$4,'4. Billing Determinants'!$B$19:$P$41,3,0)/'4. Billing Determinants'!$D$41*$D19))))),0) -> 0 | N19: =IFERROR(IF(N$4="",0,IF($E19="kWh",VLOOKUP(N$4,'4. Billing Determinants'!$B$19:$P$41,4,0)/'4. Billing Determinants'!$E$41*$D19,IF($E19="kW",VLOOKUP(N$4,'4. Billing Determinants'!$B$19:$P$41,5,0)/'4. Billing Determinants'!$F$41*$D19,IF($E19="Non-RPP kWh",VLOOKUP(N$4,'4. Billing Determinants'!$B$19:$P$41,6,0)/'4. Billing Determinants'!$G$41*$D19,IF($E19="Distribution Rev.",VLOOKUP(N$4,'4. Billing Determinants'!$B$19:$P$41,8,0)/'4. Billing Determinants'!$I$41*$D19, VLOOKUP(N$4,'4. Billing Determinants'!$B$19:$P$41,3,0)/'4. Billing Determinants'!$D$41*$D19))))),0) -> 0 | O19: =IFERROR(IF(O$4="",0,IF($E19="kWh",VLOOKUP(O$4,'4. Billing Determinants'!$B$19:$P$41,4,0)/'4. Billing Determinants'!$E$41*$D19,IF($E19="kW",VLOOKUP(O$4,'4. Billing Determinants'!$B$19:$P$41,5,0)/'4. Billing Determinants'!$F$41*$D19,IF($E19="Non-RPP kWh",VLOOKUP(O$4,'4. Billing Determinants'!$B$19:$P$41,6,0)/'4. Billing Determinants'!$G$41*$D19,IF($E19="Distribution Rev.",VLOOKUP(O$4,'4. Billing Determinants'!$B$19:$P$41,8,0)/'4. Billing Determinants'!$I$41*$D19, VLOOKUP(O$4,'4. Billing Determinants'!$B$19:$P$41,3,0)/'4. Billing Determinants'!$D$41*$D19))))),0) -> 0 | P19: =IFERROR(IF(P$4="",0,IF($E19="kWh",VLOOKUP(P$4,'4. Billing Determinants'!$B$19:$P$41,4,0)/'4. Billing Determinants'!$E$41*$D19,IF($E19="kW",VLOOKUP(P$4,'4. Billing Determinants'!$B$19:$P$41,5,0)/'4. Billing Determinants'!$F$41*$D19,IF($E19="Non-RPP kWh",VLOOKUP(P$4,'4. Billing Determinants'!$B$19:$P$41,6,0)/'4. Billing Determinants'!$G$41*$D19,IF($E19="Distribution Rev.",VLOOKUP(P$4,'4. Billing Determinants'!$B$19:$P$41,8,0)/'4. Billing Determinants'!$I$41*$D19, VLOOKUP(P$4,'4. Billing Determinants'!$B$19:$P$41,3,0)/'4. Billing Determinants'!$D$41*$D19))))),0) -> 0 | Q19: =IFERROR(IF(Q$4="",0,IF($E19="kWh",VLOOKUP(Q$4,'4. Billing Determinants'!$B$19:$P$41,4,0)/'4. Billing Determinants'!$E$41*$D19,IF($E19="kW",VLOOKUP(Q$4,'4. Billing Determinants'!$B$19:$P$41,5,0)/'4. Billing Determinants'!$F$41*$D19,IF($E19="Non-RPP kWh",VLOOKUP(Q$4,'4. Billing Determinants'!$B$19:$P$41,6,0)/'4. Billing Determinants'!$G$41*$D19,IF($E19="Distribution Rev.",VLOOKUP(Q$4,'4. Billing Determinants'!$B$19:$P$41,8,0)/'4. Billing Determinants'!$I$41*$D19, VLOOKUP(Q$4,'4. Billing Determinants'!$B$19:$P$41,3,0)/'4. Billing Determinants'!$D$41*$D19))))),0) -> 0 | R19: =IFERROR(IF(R$4="",0,IF($E19="kWh",VLOOKUP(R$4,'4. Billing Determinants'!$B$19:$P$41,4,0)/'4. Billing Determinants'!$E$41*$D19,IF($E19="kW",VLOOKUP(R$4,'4. Billing Determinants'!$B$19:$P$41,5,0)/'4. Billing Determinants'!$F$41*$D19,IF($E19="Non-RPP kWh",VLOOKUP(R$4,'4. Billing Determinants'!$B$19:$P$41,6,0)/'4. Billing Determinants'!$G$41*$D19,IF($E19="Distribution Rev.",VLOOKUP(R$4,'4. Billing Determinants'!$B$19:$P$41,8,0)/'4. Billing Determinants'!$I$41*$D19, VLOOKUP(R$4,'4. Billing Determinants'!$B$19:$P$41,3,0)/'4. Billing Determinants'!$D$41*$D19))))),0) -> 0 | S19: =IFERROR(IF(S$4="",0,IF($E19="kWh",VLOOKUP(S$4,'4. Billing Determinants'!$B$19:$P$41,4,0)/'4. Billing Determinants'!$E$41*$D19,IF($E19="kW",VLOOKUP(S$4,'4. Billing Determinants'!$B$19:$P$41,5,0)/'4. Billing Determinants'!$F$41*$D19,IF($E19="Non-RPP kWh",VLOOKUP(S$4,'4. Billing Determinants'!$B$19:$P$41,6,0)/'4. Billing Determinants'!$G$41*$D19,IF($E19="Distribution Rev.",VLOOKUP(S$4,'4. Billing Determinants'!$B$19:$P$41,8,0)/'4. Billing Determinants'!$I$41*$D19, VLOOKUP(S$4,'4. Billing Determinants'!$B$19:$P$41,3,0)/'4. Billing Determinants'!$D$41*$D19))))),0) -> 0 | T19: =IFERROR(IF(T$4="",0,IF($E19="kWh",VLOOKUP(T$4,'4. Billing Determinants'!$B$19:$P$41,4,0)/'4. Billing Determinants'!$E$41*$D19,IF($E19="kW",VLOOKUP(T$4,'4. Billing Determinants'!$B$19:$P$41,5,0)/'4. Billing Determinants'!$F$41*$D19,IF($E19="Non-RPP kWh",VLOOKUP(T$4,'4. Billing Determinants'!$B$19:$P$41,6,0)/'4. Billing Determinants'!$G$41*$D19,IF($E19="Distribution Rev.",VLOOKUP(T$4,'4. Billing Determinants'!$B$19:$P$41,8,0)/'4. Billing Determinants'!$I$41*$D19, VLOOKUP(T$4,'4. Billing Determinants'!$B$19:$P$41,3,0)/'4. Billing Determinants'!$D$41*$D19))))),0) -> 0 | U19: =IFERROR(IF(U$4="",0,IF($E19="kWh",VLOOKUP(U$4,'4. Billing Determinants'!$B$19:$P$41,4,0)/'4. Billing Determinants'!$E$41*$D19,IF($E19="kW",VLOOKUP(U$4,'4. Billing Determinants'!$B$19:$P$41,5,0)/'4. Billing Determinants'!$F$41*$D19,IF($E19="Non-RPP kWh",VLOOKUP(U$4,'4. Billing Determinants'!$B$19:$P$41,6,0)/'4. Billing Determinants'!$G$41*$D19,IF($E19="Distribution Rev.",VLOOKUP(U$4,'4. Billing Determinants'!$B$19:$P$41,8,0)/'4. Billing Determinants'!$I$41*$D19, VLOOKUP(U$4,'4. Billing Determinants'!$B$19:$P$41,3,0)/'4. Billing Determinants'!$D$41*$D19))))),0) -> 0 | V19: =IFERROR(IF(V$4="",0,IF($E19="kWh",VLOOKUP(V$4,'4. Billing Determinants'!$B$19:$P$41,4,0)/'4. Billing Determinants'!$E$41*$D19,IF($E19="kW",VLOOKUP(V$4,'4. Billing Determinants'!$B$19:$P$41,5,0)/'4. Billing Determinants'!$F$41*$D19,IF($E19="Non-RPP kWh",VLOOKUP(V$4,'4. Billing Determinants'!$B$19:$P$41,6,0)/'4. Billing Determinants'!$G$41*$D19,IF($E19="Distribution Rev.",VLOOKUP(V$4,'4. Billing Determinants'!$B$19:$P$41,8,0)/'4. Billing Determinants'!$I$41*$D19, VLOOKUP(V$4,'4. Billing Determinants'!$B$19:$P$41,3,0)/'4. Billing Determinants'!$D$41*$D19))))),0) -> 0 | W19: =IFERROR(IF(W$4="",0,IF($E19="kWh",VLOOKUP(W$4,'4. Billing Determinants'!$B$19:$P$41,4,0)/'4. Billing Determinants'!$E$41*$D19,IF($E19="kW",VLOOKUP(W$4,'4. Billing Determinants'!$B$19:$P$41,5,0)/'4. Billing Determinants'!$F$41*$D19,IF($E19="Non-RPP kWh",VLOOKUP(W$4,'4. Billing Determinants'!$B$19:$P$41,6,0)/'4. Billing Determinants'!$G$41*$D19,IF($E19="Distribution Rev.",VLOOKUP(W$4,'4. Billing Determinants'!$B$19:$P$41,8,0)/'4. Billing Determinants'!$I$41*$D19, VLOOKUP(W$4,'4. Billing Determinants'!$B$19:$P$41,3,0)/'4. Billing Determinants'!$D$41*$D19))))),0) -> 0 | X19: =IFERROR(IF(X$4="",0,IF($E19="kWh",VLOOKUP(X$4,'4. Billing Determinants'!$B$19:$P$41,4,0)/'4. Billing Determinants'!$E$41*$D19,IF($E19="kW",VLOOKUP(X$4,'4. Billing Determinants'!$B$19:$P$41,5,0)/'4. Billing Determinants'!$F$41*$D19,IF($E19="Non-RPP kWh",VLOOKUP(X$4,'4. Billing Determinants'!$B$19:$P$41,6,0)/'4. Billing Determinants'!$G$41*$D19,IF($E19="Distribution Rev.",VLOOKUP(X$4,'4. Billing Determinants'!$B$19:$P$41,8,0)/'4. Billing Determinants'!$I$41*$D19, VLOOKUP(X$4,'4. Billing Determinants'!$B$19:$P$41,3,0)/'4. Billing Determinants'!$D$41*$D19))))),0) -> 0 | Y19: =IFERROR(IF(Y$4="",0,IF($E19="kWh",VLOOKUP(Y$4,'4. Billing Determinants'!$B$19:$P$41,4,0)/'4. Billing Determinants'!$E$41*$D19,IF($E19="kW",VLOOKUP(Y$4,'4. Billing Determinants'!$B$19:$P$41,5,0)/'4. Billing Determinants'!$F$41*$D19,IF($E19="Non-RPP kWh",VLOOKUP(Y$4,'4. Billing Determinants'!$B$19:$P$41,6,0)/'4. Billing Determinants'!$G$41*$D19,IF($E19="Distribution Rev.",VLOOKUP(Y$4,'4. Billing Determinants'!$B$19:$P$41,8,0)/'4. Billing Determinants'!$I$41*$D19, VLOOKUP(Y$4,'4. Billing Determinants'!$B$19:$P$41,3,0)/'4. Billing Determinants'!$D$41*$D19))))),0) -> 0
B20: Other Regulatory Assets - Sub-Account - Incremental Capital Charges | C20: 1508 | D20: ='2. 2014 Continuity Schedule'!CB44 -> 0 | F20: =IFERROR(IF(F$4="",0,IF($E20="kWh",VLOOKUP(F$4,'4. Billing Determinants'!$B$19:$P$41,4,0)/'4. Billing Determinants'!$E$41*$D20,IF($E20="kW",VLOOKUP(F$4,'4. Billing Determinants'!$B$19:$P$41,5,0)/'4. Billing Determinants'!$F$41*$D20,IF($E20="Non-RPP kWh",VLOOKUP(F$4,'4. Billing Determinants'!$B$19:$P$41,6,0)/'4. Billing Determinants'!$G$41*$D20,IF($E20="Distribution Rev.",VLOOKUP(F$4,'4. Billing Determinants'!$B$19:$P$41,8,0)/'4. Billing Determinants'!$I$41*$D20, VLOOKUP(F$4,'4. Billing Determinants'!$B$19:$P$41,3,0)/'4. Billing Determinants'!$D$41*$D20))))),0) -> 0 | G20: =IFERROR(IF(G$4="",0,IF($E20="kWh",VLOOKUP(G$4,'4. Billing Determinants'!$B$19:$P$41,4,0)/'4. Billing Determinants'!$E$41*$D20,IF($E20="kW",VLOOKUP(G$4,'4. Billing Determinants'!$B$19:$P$41,5,0)/'4. Billing Determinants'!$F$41*$D20,IF($E20="Non-RPP kWh",VLOOKUP(G$4,'4. Billing Determinants'!$B$19:$P$41,6,0)/'4. Billing Determinants'!$G$41*$D20,IF($E20="Distribution Rev.",VLOOKUP(G$4,'4. Billing Determinants'!$B$19:$P$41,8,0)/'4. Billing Determinants'!$I$41*$D20, VLOOKUP(G$4,'4. Billing Determinants'!$B$19:$P$41,3,0)/'4. Billing Determinants'!$D$41*$D20))))),0) -> 0 | H20: =IFERROR(IF(H$4="",0,IF($E20="kWh",VLOOKUP(H$4,'4. Billing Determinants'!$B$19:$P$41,4,0)/'4. Billing Determinants'!$E$41*$D20,IF($E20="kW",VLOOKUP(H$4,'4. Billing Determinants'!$B$19:$P$41,5,0)/'4. Billing Determinants'!$F$41*$D20,IF($E20="Non-RPP kWh",VLOOKUP(H$4,'4. Billing Determinants'!$B$19:$P$41,6,0)/'4. Billing Determinants'!$G$41*$D20,IF($E20="Distribution Rev.",VLOOKUP(H$4,'4. Billing Determinants'!$B$19:$P$41,8,0)/'4. Billing Determinants'!$I$41*$D20, VLOOKUP(H$4,'4. Billing Determinants'!$B$19:$P$41,3,0)/'4. Billing Determinants'!$D$41*$D20))))),0) -> 0 | I20: =IFERROR(IF(I$4="",0,IF($E20="kWh",VLOOKUP(I$4,'4. Billing Determinants'!$B$19:$P$41,4,0)/'4. Billing Determinants'!$E$41*$D20,IF($E20="kW",VLOOKUP(I$4,'4. Billing Determinants'!$B$19:$P$41,5,0)/'4. Billing Determinants'!$F$41*$D20,IF($E20="Non-RPP kWh",VLOOKUP(I$4,'4. Billing Determinants'!$B$19:$P$41,6,0)/'4. Billing Determinants'!$G$41*$D20,IF($E20="Distribution Rev.",VLOOKUP(I$4,'4. Billing Determinants'!$B$19:$P$41,8,0)/'4. Billing Determinants'!$I$41*$D20, VLOOKUP(I$4,'4. Billing Determinants'!$B$19:$P$41,3,0)/'4. Billing Determinants'!$D$41*$D20))))),0) -> 0 | J20: =IFERROR(IF(J$4="",0,IF($E20="kWh",VLOOKUP(J$4,'4. Billing Determinants'!$B$19:$P$41,4,0)/'4. Billing Determinants'!$E$41*$D20,IF($E20="kW",VLOOKUP(J$4,'4. Billing Determinants'!$B$19:$P$41,5,0)/'4. Billing Determinants'!$F$41*$D20,IF($E20="Non-RPP kWh",VLOOKUP(J$4,'4. Billing Determinants'!$B$19:$P$41,6,0)/'4. Billing Determinants'!$G$41*$D20,IF($E20="Distribution Rev.",VLOOKUP(J$4,'4. Billing Determinants'!$B$19:$P$41,8,0)/'4. Billing Determinants'!$I$41*$D20, VLOOKUP(J$4,'4. Billing Determinants'!$B$19:$P$41,3,0)/'4. Billing Determinants'!$D$41*$D20))))),0) -> 0 | K20: =IFERROR(IF(K$4="",0,IF($E20="kWh",VLOOKUP(K$4,'4. Billing Determinants'!$B$19:$P$41,4,0)/'4. Billing Determinants'!$E$41*$D20,IF($E20="kW",VLOOKUP(K$4,'4. Billing Determinants'!$B$19:$P$41,5,0)/'4. Billing Determinants'!$F$41*$D20,IF($E20="Non-RPP kWh",VLOOKUP(K$4,'4. Billing Determinants'!$B$19:$P$41,6,0)/'4. Billing Determinants'!$G$41*$D20,IF($E20="Distribution Rev.",VLOOKUP(K$4,'4. Billing Determinants'!$B$19:$P$41,8,0)/'4. Billing Determinants'!$I$41*$D20, VLOOKUP(K$4,'4. Billing Determinants'!$B$19:$P$41,3,0)/'4. Billing Determinants'!$D$41*$D20))))),0) -> 0 | L20: =IFERROR(IF(L$4="",0,IF($E20="kWh",VLOOKUP(L$4,'4. Billing Determinants'!$B$19:$P$41,4,0)/'4. Billing Determinants'!$E$41*$D20,IF($E20="kW",VLOOKUP(L$4,'4. Billing Determinants'!$B$19:$P$41,5,0)/'4. Billing Determinants'!$F$41*$D20,IF($E20="Non-RPP kWh",VLOOKUP(L$4,'4. Billing Determinants'!$B$19:$P$41,6,0)/'4. Billing Determinants'!$G$41*$D20,IF($E20="Distribution Rev.",VLOOKUP(L$4,'4. Billing Determinants'!$B$19:$P$41,8,0)/'4. Billing Determinants'!$I$41*$D20, VLOOKUP(L$4,'4. Billing Determinants'!$B$19:$P$41,3,0)/'4. Billing Determinants'!$D$41*$D20))))),0) -> 0 | M20: =IFERROR(IF(M$4="",0,IF($E20="kWh",VLOOKUP(M$4,'4. Billing Determinants'!$B$19:$P$41,4,0)/'4. Billing Determinants'!$E$41*$D20,IF($E20="kW",VLOOKUP(M$4,'4. Billing Determinants'!$B$19:$P$41,5,0)/'4. Billing Determinants'!$F$41*$D20,IF($E20="Non-RPP kWh",VLOOKUP(M$4,'4. Billing Determinants'!$B$19:$P$41,6,0)/'4. Billing Determinants'!$G$41*$D20,IF($E20="Distribution Rev.",VLOOKUP(M$4,'4. Billing Determinants'!$B$19:$P$41,8,0)/'4. Billing Determinants'!$I$41*$D20, VLOOKUP(M$4,'4. Billing Determinants'!$B$19:$P$41,3,0)/'4. Billing Determinants'!$D$41*$D20))))),0) -> 0 | N20: =IFERROR(IF(N$4="",0,IF($E20="kWh",VLOOKUP(N$4,'4. Billing Determinants'!$B$19:$P$41,4,0)/'4. Billing Determinants'!$E$41*$D20,IF($E20="kW",VLOOKUP(N$4,'4. Billing Determinants'!$B$19:$P$41,5,0)/'4. Billing Determinants'!$F$41*$D20,IF($E20="Non-RPP kWh",VLOOKUP(N$4,'4. Billing Determinants'!$B$19:$P$41,6,0)/'4. Billing Determinants'!$G$41*$D20,IF($E20="Distribution Rev.",VLOOKUP(N$4,'4. Billing Determinants'!$B$19:$P$41,8,0)/'4. Billing Determinants'!$I$41*$D20, VLOOKUP(N$4,'4. Billing Determinants'!$B$19:$P$41,3,0)/'4. Billing Determinants'!$D$41*$D20))))),0) -> 0 | O20: =IFERROR(IF(O$4="",0,IF($E20="kWh",VLOOKUP(O$4,'4. Billing Determinants'!$B$19:$P$41,4,0)/'4. Billing Determinants'!$E$41*$D20,IF($E20="kW",VLOOKUP(O$4,'4. Billing Determinants'!$B$19:$P$41,5,0)/'4. Billing Determinants'!$F$41*$D20,IF($E20="Non-RPP kWh",VLOOKUP(O$4,'4. Billing Determinants'!$B$19:$P$41,6,0)/'4. Billing Determinants'!$G$41*$D20,IF($E20="Distribution Rev.",VLOOKUP(O$4,'4. Billing Determinants'!$B$19:$P$41,8,0)/'4. Billing Determinants'!$I$41*$D20, VLOOKUP(O$4,'4. Billing Determinants'!$B$19:$P$41,3,0)/'4. Billing Determinants'!$D$41*$D20))))),0) -> 0 | P20: =IFERROR(IF(P$4="",0,IF($E20="kWh",VLOOKUP(P$4,'4. Billing Determinants'!$B$19:$P$41,4,0)/'4. Billing Determinants'!$E$41*$D20,IF($E20="kW",VLOOKUP(P$4,'4. Billing Determinants'!$B$19:$P$41,5,0)/'4. Billing Determinants'!$F$41*$D20,IF($E20="Non-RPP kWh",VLOOKUP(P$4,'4. Billing Determinants'!$B$19:$P$41,6,0)/'4. Billing Determinants'!$G$41*$D20,IF($E20="Distribution Rev.",VLOOKUP(P$4,'4. Billing Determinants'!$B$19:$P$41,8,0)/'4. Billing Determinants'!$I$41*$D20, VLOOKUP(P$4,'4. Billing Determinants'!$B$19:$P$41,3,0)/'4. Billing Determinants'!$D$41*$D20))))),0) -> 0 | Q20: =IFERROR(IF(Q$4="",0,IF($E20="kWh",VLOOKUP(Q$4,'4. Billing Determinants'!$B$19:$P$41,4,0)/'4. Billing Determinants'!$E$41*$D20,IF($E20="kW",VLOOKUP(Q$4,'4. Billing Determinants'!$B$19:$P$41,5,0)/'4. Billing Determinants'!$F$41*$D20,IF($E20="Non-RPP kWh",VLOOKUP(Q$4,'4. Billing Determinants'!$B$19:$P$41,6,0)/'4. Billing Determinants'!$G$41*$D20,IF($E20="Distribution Rev.",VLOOKUP(Q$4,'4. Billing Determinants'!$B$19:$P$41,8,0)/'4. Billing Determinants'!$I$41*$D20, VLOOKUP(Q$4,'4. Billing Determinants'!$B$19:$P$41,3,0)/'4. Billing Determinants'!$D$41*$D20))))),0) -> 0 | R20: =IFERROR(IF(R$4="",0,IF($E20="kWh",VLOOKUP(R$4,'4. Billing Determinants'!$B$19:$P$41,4,0)/'4. Billing Determinants'!$E$41*$D20,IF($E20="kW",VLOOKUP(R$4,'4. Billing Determinants'!$B$19:$P$41,5,0)/'4. Billing Determinants'!$F$41*$D20,IF($E20="Non-RPP kWh",VLOOKUP(R$4,'4. Billing Determinants'!$B$19:$P$41,6,0)/'4. Billing Determinants'!$G$41*$D20,IF($E20="Distribution Rev.",VLOOKUP(R$4,'4. Billing Determinants'!$B$19:$P$41,8,0)/'4. Billing Determinants'!$I$41*$D20, VLOOKUP(R$4,'4. Billing Determinants'!$B$19:$P$41,3,0)/'4. Billing Determinants'!$D$41*$D20))))),0) -> 0 | S20: =IFERROR(IF(S$4="",0,IF($E20="kWh",VLOOKUP(S$4,'4. Billing Determinants'!$B$19:$P$41,4,0)/'4. Billing Determinants'!$E$41*$D20,IF($E20="kW",VLOOKUP(S$4,'4. Billing Determinants'!$B$19:$P$41,5,0)/'4. Billing Determinants'!$F$41*$D20,IF($E20="Non-RPP kWh",VLOOKUP(S$4,'4. Billing Determinants'!$B$19:$P$41,6,0)/'4. Billing Determinants'!$G$41*$D20,IF($E20="Distribution Rev.",VLOOKUP(S$4,'4. Billing Determinants'!$B$19:$P$41,8,0)/'4. Billing Determinants'!$I$41*$D20, VLOOKUP(S$4,'4. Billing Determinants'!$B$19:$P$41,3,0)/'4. Billing Determinants'!$D$41*$D20))))),0) -> 0 | T20: =IFERROR(IF(T$4="",0,IF($E20="kWh",VLOOKUP(T$4,'4. Billing Determinants'!$B$19:$P$41,4,0)/'4. Billing Determinants'!$E$41*$D20,IF($E20="kW",VLOOKUP(T$4,'4. Billing Determinants'!$B$19:$P$41,5,0)/'4. Billing Determinants'!$F$41*$D20,IF($E20="Non-RPP kWh",VLOOKUP(T$4,'4. Billing Determinants'!$B$19:$P$41,6,0)/'4. Billing Determinants'!$G$41*$D20,IF($E20="Distribution Rev.",VLOOKUP(T$4,'4. Billing Determinants'!$B$19:$P$41,8,0)/'4. Billing Determinants'!$I$41*$D20, VLOOKUP(T$4,'4. Billing Determinants'!$B$19:$P$41,3,0)/'4. Billing Determinants'!$D$41*$D20))))),0) -> 0 | U20: =IFERROR(IF(U$4="",0,IF($E20="kWh",VLOOKUP(U$4,'4. Billing Determinants'!$B$19:$P$41,4,0)/'4. Billing Determinants'!$E$41*$D20,IF($E20="kW",VLOOKUP(U$4,'4. Billing Determinants'!$B$19:$P$41,5,0)/'4. Billing Determinants'!$F$41*$D20,IF($E20="Non-RPP kWh",VLOOKUP(U$4,'4. Billing Determinants'!$B$19:$P$41,6,0)/'4. Billing Determinants'!$G$41*$D20,IF($E20="Distribution Rev.",VLOOKUP(U$4,'4. Billing Determinants'!$B$19:$P$41,8,0)/'4. Billing Determinants'!$I$41*$D20, VLOOKUP(U$4,'4. Billing Determinants'!$B$19:$P$41,3,0)/'4. Billing Determinants'!$D$41*$D20))))),0) -> 0 | V20: =IFERROR(IF(V$4="",0,IF($E20="kWh",VLOOKUP(V$4,'4. Billing Determinants'!$B$19:$P$41,4,0)/'4. Billing Determinants'!$E$41*$D20,IF($E20="kW",VLOOKUP(V$4,'4. Billing Determinants'!$B$19:$P$41,5,0)/'4. Billing Determinants'!$F$41*$D20,IF($E20="Non-RPP kWh",VLOOKUP(V$4,'4. Billing Determinants'!$B$19:$P$41,6,0)/'4. Billing Determinants'!$G$41*$D20,IF($E20="Distribution Rev.",VLOOKUP(V$4,'4. Billing Determinants'!$B$19:$P$41,8,0)/'4. Billing Determinants'!$I$41*$D20, VLOOKUP(V$4,'4. Billing Determinants'!$B$19:$P$41,3,0)/'4. Billing Determinants'!$D$41*$D20))))),0) -> 0 | W20: =IFERROR(IF(W$4="",0,IF($E20="kWh",VLOOKUP(W$4,'4. Billing Determinants'!$B$19:$P$41,4,0)/'4. Billing Determinants'!$E$41*$D20,IF($E20="kW",VLOOKUP(W$4,'4. Billing Determinants'!$B$19:$P$41,5,0)/'4. Billing Determinants'!$F$41*$D20,IF($E20="Non-RPP kWh",VLOOKUP(W$4,'4. Billing Determinants'!$B$19:$P$41,6,0)/'4. Billing Determinants'!$G$41*$D20,IF($E20="Distribution Rev.",VLOOKUP(W$4,'4. Billing Determinants'!$B$19:$P$41,8,0)/'4. Billing Determinants'!$I$41*$D20, VLOOKUP(W$4,'4. Billing Determinants'!$B$19:$P$41,3,0)/'4. Billing Determinants'!$D$41*$D20))))),0) -> 0 | X20: =IFERROR(IF(X$4="",0,IF($E20="kWh",VLOOKUP(X$4,'4. Billing Determinants'!$B$19:$P$41,4,0)/'4. Billing Determinants'!$E$41*$D20,IF($E20="kW",VLOOKUP(X$4,'4. Billing Determinants'!$B$19:$P$41,5,0)/'4. Billing Determinants'!$F$41*$D20,IF($E20="Non-RPP kWh",VLOOKUP(X$4,'4. Billing Determinants'!$B$19:$P$41,6,0)/'4. Billing Determinants'!$G$41*$D20,IF($E20="Distribution Rev.",VLOOKUP(X$4,'4. Billing Determinants'!$B$19:$P$41,8,0)/'4. Billing Determinants'!$I$41*$D20, VLOOKUP(X$4,'4. Billing Determinants'!$B$19:$P$41,3,0)/'4. Billing Determinants'!$D$41*$D20))))),0) -> 0 | Y20: =IFERROR(IF(Y$4="",0,IF($E20="kWh",VLOOKUP(Y$4,'4. Billing Determinants'!$B$19:$P$41,4,0)/'4. Billing Determinants'!$E$41*$D20,IF($E20="kW",VLOOKUP(Y$4,'4. Billing Determinants'!$B$19:$P$41,5,0)/'4. Billing Determinants'!$F$41*$D20,IF($E20="Non-RPP kWh",VLOOKUP(Y$4,'4. Billing Determinants'!$B$19:$P$41,6,0)/'4. Billing Determinants'!$G$41*$D20,IF($E20="Distribution Rev.",VLOOKUP(Y$4,'4. Billing Determinants'!$B$19:$P$41,8,0)/'4. Billing Determinants'!$I$41*$D20, VLOOKUP(Y$4,'4. Billing Determinants'!$B$19:$P$41,3,0)/'4. Billing Determinants'!$D$41*$D20))))),0) -> 0
B21: Other Regulatory Assets - Sub-Account - Financial Assistance Payment and Recovery Variance - Ontario Clean Energy Benefit Act8 | C21: 1508 | D21: ='2. 2014 Continuity Schedule'!CB45 -> 2288.12 | E21: kWh | F21: =IFERROR(IF(F$4="",0,IF($E21="kWh",VLOOKUP(F$4,'4. Billing Determinants'!$B$19:$P$41,4,0)/'4. Billing Determinants'!$E$41*$D21,IF($E21="kW",VLOOKUP(F$4,'4. Billing Determinants'!$B$19:$P$41,5,0)/'4. Billing Determinants'!$F$41*$D21,IF($E21="Non-RPP kWh",VLOOKUP(F$4,'4. Billing Determinants'!$B$19:$P$41,6,0)/'4. Billing Determinants'!$G$41*$D21,IF($E21="Distribution Rev.",VLOOKUP(F$4,'4. Billing Determinants'!$B$19:$P$41,8,0)/'4. Billing Determinants'!$I$41*$D21, VLOOKUP(F$4,'4. Billing Determinants'!$B$19:$P$41,3,0)/'4. Billing Determinants'!$D$41*$D21))))),0) -> 685.8288225 | G21: =IFERROR(IF(G$4="",0,IF($E21="kWh",VLOOKUP(G$4,'4. Billing Determinants'!$B$19:$P$41,4,0)/'4. Billing Determinants'!$E$41*$D21,IF($E21="kW",VLOOKUP(G$4,'4. Billing Determinants'!$B$19:$P$41,5,0)/'4. Billing Determinants'!$F$41*$D21,IF($E21="Non-RPP kWh",VLOOKUP(G$4,'4. Billing Determinants'!$B$19:$P$41,6,0)/'4. Billing Determinants'!$G$41*$D21,IF($E21="Distribution Rev.",VLOOKUP(G$4,'4. Billing Determinants'!$B$19:$P$41,8,0)/'4. Billing Determinants'!$I$41*$D21, VLOOKUP(G$4,'4. Billing Determinants'!$B$19:$P$41,3,0)/'4. Billing Determinants'!$D$41*$D21))))),0) -> 301.8501941 | H21: =IFERROR(IF(H$4="",0,IF($E21="kWh",VLOOKUP(H$4,'4. Billing Determinants'!$B$19:$P$41,4,0)/'4. Billing Determinants'!$E$41*$D21,IF($E21="kW",VLOOKUP(H$4,'4. Billing Determinants'!$B$19:$P$41,5,0)/'4. Billing Determinants'!$F$41*$D21,IF($E21="Non-RPP kWh",VLOOKUP(H$4,'4. Billing Determinants'!$B$19:$P$41,6,0)/'4. Billing Determinants'!$G$41*$D21,IF($E21="Distribution Rev.",VLOOKUP(H$4,'4. Billing Determinants'!$B$19:$P$41,8,0)/'4. Billing Determinants'!$I$41*$D21, VLOOKUP(H$4,'4. Billing Determinants'!$B$19:$P$41,3,0)/'4. Billing Determinants'!$D$41*$D21))))),0) -> 641.4794284 | I21: =IFERROR(IF(I$4="",0,IF($E21="kWh",VLOOKUP(I$4,'4. Billing Determinants'!$B$19:$P$41,4,0)/'4. Billing Determinants'!$E$41*$D21,IF($E21="kW",VLOOKUP(I$4,'4. Billing Determinants'!$B$19:$P$41,5,0)/'4. Billing Determinants'!$F$41*$D21,IF($E21="Non-RPP kWh",VLOOKUP(I$4,'4. Billing Determinants'!$B$19:$P$41,6,0)/'4. Billing Determinants'!$G$41*$D21,IF($E21="Distribution Rev.",VLOOKUP(I$4,'4. Billing Determinants'!$B$19:$P$41,8,0)/'4. Billing Determinants'!$I$41*$D21, VLOOKUP(I$4,'4. Billing Determinants'!$B$19:$P$41,3,0)/'4. Billing Determinants'!$D$41*$D21))))),0) -> 630.3917266 | J21: =IFERROR(IF(J$4="",0,IF($E21="kWh",VLOOKUP(J$4,'4. Billing Determinants'!$B$19:$P$41,4,0)/'4. Billing Determinants'!$E$41*$D21,IF($E21="kW",VLOOKUP(J$4,'4. Billing Determinants'!$B$19:$P$41,5,0)/'4. Billing Determinants'!$F$41*$D21,IF($E21="Non-RPP kWh",VLOOKUP(J$4,'4. Billing Determinants'!$B$19:$P$41,6,0)/'4. Billing Determinants'!$G$41*$D21,IF($E21="Distribution Rev.",VLOOKUP(J$4,'4. Billing Determinants'!$B$19:$P$41,8,0)/'4. Billing Determinants'!$I$41*$D21, VLOOKUP(J$4,'4. Billing Determinants'!$B$19:$P$41,3,0)/'4. Billing Determinants'!$D$41*$D21))))),0) -> 0.578406567 | K21: =IFERROR(IF(K$4="",0,IF($E21="kWh",VLOOKUP(K$4,'4. Billing Determinants'!$B$19:$P$41,4,0)/'4. Billing Determinants'!$E$41*$D21,IF($E21="kW",VLOOKUP(K$4,'4. Billing Determinants'!$B$19:$P$41,5,0)/'4. Billing Determinants'!$F$41*$D21,IF($E21="Non-RPP kWh",VLOOKUP(K$4,'4. Billing Determinants'!$B$19:$P$41,6,0)/'4. Billing Determinants'!$G$41*$D21,IF($E21="Distribution Rev.",VLOOKUP(K$4,'4. Billing Determinants'!$B$19:$P$41,8,0)/'4. Billing Determinants'!$I$41*$D21, VLOOKUP(K$4,'4. Billing Determinants'!$B$19:$P$41,3,0)/'4. Billing Determinants'!$D$41*$D21))))),0) -> 27.99142175 | L21: =IFERROR(IF(L$4="",0,IF($E21="kWh",VLOOKUP(L$4,'4. Billing Determinants'!$B$19:$P$41,4,0)/'4. Billing Determinants'!$E$41*$D21,IF($E21="kW",VLOOKUP(L$4,'4. Billing Determinants'!$B$19:$P$41,5,0)/'4. Billing Determinants'!$F$41*$D21,IF($E21="Non-RPP kWh",VLOOKUP(L$4,'4. Billing Determinants'!$B$19:$P$41,6,0)/'4. Billing Determinants'!$G$41*$D21,IF($E21="Distribution Rev.",VLOOKUP(L$4,'4. Billing Determinants'!$B$19:$P$41,8,0)/'4. Billing Determinants'!$I$41*$D21, VLOOKUP(L$4,'4. Billing Determinants'!$B$19:$P$41,3,0)/'4. Billing Determinants'!$D$41*$D21))))),0) -> 0 | M21: =IFERROR(IF(M$4="",0,IF($E21="kWh",VLOOKUP(M$4,'4. Billing Determinants'!$B$19:$P$41,4,0)/'4. Billing Determinants'!$E$41*$D21,IF($E21="kW",VLOOKUP(M$4,'4. Billing Determinants'!$B$19:$P$41,5,0)/'4. Billing Determinants'!$F$41*$D21,IF($E21="Non-RPP kWh",VLOOKUP(M$4,'4. Billing Determinants'!$B$19:$P$41,6,0)/'4. Billing Determinants'!$G$41*$D21,IF($E21="Distribution Rev.",VLOOKUP(M$4,'4. Billing Determinants'!$B$19:$P$41,8,0)/'4. Billing Determinants'!$I$41*$D21, VLOOKUP(M$4,'4. Billing Determinants'!$B$19:$P$41,3,0)/'4. Billing Determinants'!$D$41*$D21))))),0) -> 0 | N21: =IFERROR(IF(N$4="",0,IF($E21="kWh",VLOOKUP(N$4,'4. Billing Determinants'!$B$19:$P$41,4,0)/'4. Billing Determinants'!$E$41*$D21,IF($E21="kW",VLOOKUP(N$4,'4. Billing Determinants'!$B$19:$P$41,5,0)/'4. Billing Determinants'!$F$41*$D21,IF($E21="Non-RPP kWh",VLOOKUP(N$4,'4. Billing Determinants'!$B$19:$P$41,6,0)/'4. Billing Determinants'!$G$41*$D21,IF($E21="Distribution Rev.",VLOOKUP(N$4,'4. Billing Determinants'!$B$19:$P$41,8,0)/'4. Billing Determinants'!$I$41*$D21, VLOOKUP(N$4,'4. Billing Determinants'!$B$19:$P$41,3,0)/'4. Billing Determinants'!$D$41*$D21))))),0) -> 0 | O21: =IFERROR(IF(O$4="",0,IF($E21="kWh",VLOOKUP(O$4,'4. Billing Determinants'!$B$19:$P$41,4,0)/'4. Billing Determinants'!$E$41*$D21,IF($E21="kW",VLOOKUP(O$4,'4. Billing Determinants'!$B$19:$P$41,5,0)/'4. Billing Determinants'!$F$41*$D21,IF($E21="Non-RPP kWh",VLOOKUP(O$4,'4. Billing Determinants'!$B$19:$P$41,6,0)/'4. Billing Determinants'!$G$41*$D21,IF($E21="Distribution Rev.",VLOOKUP(O$4,'4. Billing Determinants'!$B$19:$P$41,8,0)/'4. Billing Determinants'!$I$41*$D21, VLOOKUP(O$4,'4. Billing Determinants'!$B$19:$P$41,3,0)/'4. Billing Determinants'!$D$41*$D21))))),0) -> 0 | P21: =IFERROR(IF(P$4="",0,IF($E21="kWh",VLOOKUP(P$4,'4. Billing Determinants'!$B$19:$P$41,4,0)/'4. Billing Determinants'!$E$41*$D21,IF($E21="kW",VLOOKUP(P$4,'4. Billing Determinants'!$B$19:$P$41,5,0)/'4. Billing Determinants'!$F$41*$D21,IF($E21="Non-RPP kWh",VLOOKUP(P$4,'4. Billing Determinants'!$B$19:$P$41,6,0)/'4. Billing Determinants'!$G$41*$D21,IF($E21="Distribution Rev.",VLOOKUP(P$4,'4. Billing Determinants'!$B$19:$P$41,8,0)/'4. Billing Determinants'!$I$41*$D21, VLOOKUP(P$4,'4. Billing Determinants'!$B$19:$P$41,3,0)/'4. Billing Determinants'!$D$41*$D21))))),0) -> 0 | Q21: =IFERROR(IF(Q$4="",0,IF($E21="kWh",VLOOKUP(Q$4,'4. Billing Determinants'!$B$19:$P$41,4,0)/'4. Billing Determinants'!$E$41*$D21,IF($E21="kW",VLOOKUP(Q$4,'4. Billing Determinants'!$B$19:$P$41,5,0)/'4. Billing Determinants'!$F$41*$D21,IF($E21="Non-RPP kWh",VLOOKUP(Q$4,'4. Billing Determinants'!$B$19:$P$41,6,0)/'4. Billing Determinants'!$G$41*$D21,IF($E21="Distribution Rev.",VLOOKUP(Q$4,'4. Billing Determinants'!$B$19:$P$41,8,0)/'4. Billing Determinants'!$I$41*$D21, VLOOKUP(Q$4,'4. Billing Determinants'!$B$19:$P$41,3,0)/'4. Billing Determinants'!$D$41*$D21))))),0) -> 0 | R21: =IFERROR(IF(R$4="",0,IF($E21="kWh",VLOOKUP(R$4,'4. Billing Determinants'!$B$19:$P$41,4,0)/'4. Billing Determinants'!$E$41*$D21,IF($E21="kW",VLOOKUP(R$4,'4. Billing Determinants'!$B$19:$P$41,5,0)/'4. Billing Determinants'!$F$41*$D21,IF($E21="Non-RPP kWh",VLOOKUP(R$4,'4. Billing Determinants'!$B$19:$P$41,6,0)/'4. Billing Determinants'!$G$41*$D21,IF($E21="Distribution Rev.",VLOOKUP(R$4,'4. Billing Determinants'!$B$19:$P$41,8,0)/'4. Billing Determinants'!$I$41*$D21, VLOOKUP(R$4,'4. Billing Determinants'!$B$19:$P$41,3,0)/'4. Billing Determinants'!$D$41*$D21))))),0) -> 0 | S21: =IFERROR(IF(S$4="",0,IF($E21="kWh",VLOOKUP(S$4,'4. Billing Determinants'!$B$19:$P$41,4,0)/'4. Billing Determinants'!$E$41*$D21,IF($E21="kW",VLOOKUP(S$4,'4. Billing Determinants'!$B$19:$P$41,5,0)/'4. Billing Determinants'!$F$41*$D21,IF($E21="Non-RPP kWh",VLOOKUP(S$4,'4. Billing Determinants'!$B$19:$P$41,6,0)/'4. Billing Determinants'!$G$41*$D21,IF($E21="Distribution Rev.",VLOOKUP(S$4,'4. Billing Determinants'!$B$19:$P$41,8,0)/'4. Billing Determinants'!$I$41*$D21, VLOOKUP(S$4,'4. Billing Determinants'!$B$19:$P$41,3,0)/'4. Billing Determinants'!$D$41*$D21))))),0) -> 0 | T21: =IFERROR(IF(T$4="",0,IF($E21="kWh",VLOOKUP(T$4,'4. Billing Determinants'!$B$19:$P$41,4,0)/'4. Billing Determinants'!$E$41*$D21,IF($E21="kW",VLOOKUP(T$4,'4. Billing Determinants'!$B$19:$P$41,5,0)/'4. Billing Determinants'!$F$41*$D21,IF($E21="Non-RPP kWh",VLOOKUP(T$4,'4. Billing Determinants'!$B$19:$P$41,6,0)/'4. Billing Determinants'!$G$41*$D21,IF($E21="Distribution Rev.",VLOOKUP(T$4,'4. Billing Determinants'!$B$19:$P$41,8,0)/'4. Billing Determinants'!$I$41*$D21, VLOOKUP(T$4,'4. Billing Determinants'!$B$19:$P$41,3,0)/'4. Billing Determinants'!$D$41*$D21))))),0) -> 0 | U21: =IFERROR(IF(U$4="",0,IF($E21="kWh",VLOOKUP(U$4,'4. Billing Determinants'!$B$19:$P$41,4,0)/'4. Billing Determinants'!$E$41*$D21,IF($E21="kW",VLOOKUP(U$4,'4. Billing Determinants'!$B$19:$P$41,5,0)/'4. Billing Determinants'!$F$41*$D21,IF($E21="Non-RPP kWh",VLOOKUP(U$4,'4. Billing Determinants'!$B$19:$P$41,6,0)/'4. Billing Determinants'!$G$41*$D21,IF($E21="Distribution Rev.",VLOOKUP(U$4,'4. Billing Determinants'!$B$19:$P$41,8,0)/'4. Billing Determinants'!$I$41*$D21, VLOOKUP(U$4,'4. Billing Determinants'!$B$19:$P$41,3,0)/'4. Billing Determinants'!$D$41*$D21))))),0) -> 0 | V21: =IFERROR(IF(V$4="",0,IF($E21="kWh",VLOOKUP(V$4,'4. Billing Determinants'!$B$19:$P$41,4,0)/'4. Billing Determinants'!$E$41*$D21,IF($E21="kW",VLOOKUP(V$4,'4. Billing Determinants'!$B$19:$P$41,5,0)/'4. Billing Determinants'!$F$41*$D21,IF($E21="Non-RPP kWh",VLOOKUP(V$4,'4. Billing Determinants'!$B$19:$P$41,6,0)/'4. Billing Determinants'!$G$41*$D21,IF($E21="Distribution Rev.",VLOOKUP(V$4,'4. Billing Determinants'!$B$19:$P$41,8,0)/'4. Billing Determinants'!$I$41*$D21, VLOOKUP(V$4,'4. Billing Determinants'!$B$19:$P$41,3,0)/'4. Billing Determinants'!$D$41*$D21))))),0) -> 0 | W21: =IFERROR(IF(W$4="",0,IF($E21="kWh",VLOOKUP(W$4,'4. Billing Determinants'!$B$19:$P$41,4,0)/'4. Billing Determinants'!$E$41*$D21,IF($E21="kW",VLOOKUP(W$4,'4. Billing Determinants'!$B$19:$P$41,5,0)/'4. Billing Determinants'!$F$41*$D21,IF($E21="Non-RPP kWh",VLOOKUP(W$4,'4. Billing Determinants'!$B$19:$P$41,6,0)/'4. Billing Determinants'!$G$41*$D21,IF($E21="Distribution Rev.",VLOOKUP(W$4,'4. Billing Determinants'!$B$19:$P$41,8,0)/'4. Billing Determinants'!$I$41*$D21, VLOOKUP(W$4,'4. Billing Determinants'!$B$19:$P$41,3,0)/'4. Billing Determinants'!$D$41*$D21))))),0) -> 0 | X21: =IFERROR(IF(X$4="",0,IF($E21="kWh",VLOOKUP(X$4,'4. Billing Determinants'!$B$19:$P$41,4,0)/'4. Billing Determinants'!$E$41*$D21,IF($E21="kW",VLOOKUP(X$4,'4. Billing Determinants'!$B$19:$P$41,5,0)/'4. Billing Determinants'!$F$41*$D21,IF($E21="Non-RPP kWh",VLOOKUP(X$4,'4. Billing Determinants'!$B$19:$P$41,6,0)/'4. Billing Determinants'!$G$41*$D21,IF($E21="Distribution Rev.",VLOOKUP(X$4,'4. Billing Determinants'!$B$19:$P$41,8,0)/'4. Billing Determinants'!$I$41*$D21, VLOOKUP(X$4,'4. Billing Determinants'!$B$19:$P$41,3,0)/'4. Billing Determinants'!$D$41*$D21))))),0) -> 0 | Y21: =IFERROR(IF(Y$4="",0,IF($E21="kWh",VLOOKUP(Y$4,'4. Billing Determinants'!$B$19:$P$41,4,0)/'4. Billing Determinants'!$E$41*$D21,IF($E21="kW",VLOOKUP(Y$4,'4. Billing Determinants'!$B$19:$P$41,5,0)/'4. Billing Determinants'!$F$41*$D21,IF($E21="Non-RPP kWh",VLOOKUP(Y$4,'4. Billing Determinants'!$B$19:$P$41,6,0)/'4. Billing Determinants'!$G$41*$D21,IF($E21="Distribution Rev.",VLOOKUP(Y$4,'4. Billing Determinants'!$B$19:$P$41,8,0)/'4. Billing Determinants'!$I$41*$D21, VLOOKUP(Y$4,'4. Billing Determinants'!$B$19:$P$41,3,0)/'4. Billing Determinants'!$D$41*$D21))))),0) -> 0
B22: Other Regulatory Assets - Sub-Account - Financial Assistance Payment and Recovery Carrying Charges | C22: 1508 | D22: ='2. 2014 Continuity Schedule'!CB46 -> 0 | F22: =IFERROR(IF(F$4="",0,IF($E22="kWh",VLOOKUP(F$4,'4. Billing Determinants'!$B$19:$P$41,4,0)/'4. Billing Determinants'!$E$41*$D22,IF($E22="kW",VLOOKUP(F$4,'4. Billing Determinants'!$B$19:$P$41,5,0)/'4. Billing Determinants'!$F$41*$D22,IF($E22="Non-RPP kWh",VLOOKUP(F$4,'4. Billing Determinants'!$B$19:$P$41,6,0)/'4. Billing Determinants'!$G$41*$D22,IF($E22="Distribution Rev.",VLOOKUP(F$4,'4. Billing Determinants'!$B$19:$P$41,8,0)/'4. Billing Determinants'!$I$41*$D22, VLOOKUP(F$4,'4. Billing Determinants'!$B$19:$P$41,3,0)/'4. Billing Determinants'!$D$41*$D22))))),0) -> 0 | G22: =IFERROR(IF(G$4="",0,IF($E22="kWh",VLOOKUP(G$4,'4. Billing Determinants'!$B$19:$P$41,4,0)/'4. Billing Determinants'!$E$41*$D22,IF($E22="kW",VLOOKUP(G$4,'4. Billing Determinants'!$B$19:$P$41,5,0)/'4. Billing Determinants'!$F$41*$D22,IF($E22="Non-RPP kWh",VLOOKUP(G$4,'4. Billing Determinants'!$B$19:$P$41,6,0)/'4. Billing Determinants'!$G$41*$D22,IF($E22="Distribution Rev.",VLOOKUP(G$4,'4. Billing Determinants'!$B$19:$P$41,8,0)/'4. Billing Determinants'!$I$41*$D22, VLOOKUP(G$4,'4. Billing Determinants'!$B$19:$P$41,3,0)/'4. Billing Determinants'!$D$41*$D22))))),0) -> 0 | H22: =IFERROR(IF(H$4="",0,IF($E22="kWh",VLOOKUP(H$4,'4. Billing Determinants'!$B$19:$P$41,4,0)/'4. Billing Determinants'!$E$41*$D22,IF($E22="kW",VLOOKUP(H$4,'4. Billing Determinants'!$B$19:$P$41,5,0)/'4. Billing Determinants'!$F$41*$D22,IF($E22="Non-RPP kWh",VLOOKUP(H$4,'4. Billing Determinants'!$B$19:$P$41,6,0)/'4. Billing Determinants'!$G$41*$D22,IF($E22="Distribution Rev.",VLOOKUP(H$4,'4. Billing Determinants'!$B$19:$P$41,8,0)/'4. Billing Determinants'!$I$41*$D22, VLOOKUP(H$4,'4. Billing Determinants'!$B$19:$P$41,3,0)/'4. Billing Determinants'!$D$41*$D22))))),0) -> 0 | I22: =IFERROR(IF(I$4="",0,IF($E22="kWh",VLOOKUP(I$4,'4. Billing Determinants'!$B$19:$P$41,4,0)/'4. Billing Determinants'!$E$41*$D22,IF($E22="kW",VLOOKUP(I$4,'4. Billing Determinants'!$B$19:$P$41,5,0)/'4. Billing Determinants'!$F$41*$D22,IF($E22="Non-RPP kWh",VLOOKUP(I$4,'4. Billing Determinants'!$B$19:$P$41,6,0)/'4. Billing Determinants'!$G$41*$D22,IF($E22="Distribution Rev.",VLOOKUP(I$4,'4. Billing Determinants'!$B$19:$P$41,8,0)/'4. Billing Determinants'!$I$41*$D22, VLOOKUP(I$4,'4. Billing Determinants'!$B$19:$P$41,3,0)/'4. Billing Determinants'!$D$41*$D22))))),0) -> 0 | J22: =IFERROR(IF(J$4="",0,IF($E22="kWh",VLOOKUP(J$4,'4. Billing Determinants'!$B$19:$P$41,4,0)/'4. Billing Determinants'!$E$41*$D22,IF($E22="kW",VLOOKUP(J$4,'4. Billing Determinants'!$B$19:$P$41,5,0)/'4. Billing Determinants'!$F$41*$D22,IF($E22="Non-RPP kWh",VLOOKUP(J$4,'4. Billing Determinants'!$B$19:$P$41,6,0)/'4. Billing Determinants'!$G$41*$D22,IF($E22="Distribution Rev.",VLOOKUP(J$4,'4. Billing Determinants'!$B$19:$P$41,8,0)/'4. Billing Determinants'!$I$41*$D22, VLOOKUP(J$4,'4. Billing Determinants'!$B$19:$P$41,3,0)/'4. Billing Determinants'!$D$41*$D22))))),0) -> 0 | K22: =IFERROR(IF(K$4="",0,IF($E22="kWh",VLOOKUP(K$4,'4. Billing Determinants'!$B$19:$P$41,4,0)/'4. Billing Determinants'!$E$41*$D22,IF($E22="kW",VLOOKUP(K$4,'4. Billing Determinants'!$B$19:$P$41,5,0)/'4. Billing Determinants'!$F$41*$D22,IF($E22="Non-RPP kWh",VLOOKUP(K$4,'4. Billing Determinants'!$B$19:$P$41,6,0)/'4. Billing Determinants'!$G$41*$D22,IF($E22="Distribution Rev.",VLOOKUP(K$4,'4. Billing Determinants'!$B$19:$P$41,8,0)/'4. Billing Determinants'!$I$41*$D22, VLOOKUP(K$4,'4. Billing Determinants'!$B$19:$P$41,3,0)/'4. Billing Determinants'!$D$41*$D22))))),0) -> 0 | L22: =IFERROR(IF(L$4="",0,IF($E22="kWh",VLOOKUP(L$4,'4. Billing Determinants'!$B$19:$P$41,4,0)/'4. Billing Determinants'!$E$41*$D22,IF($E22="kW",VLOOKUP(L$4,'4. Billing Determinants'!$B$19:$P$41,5,0)/'4. Billing Determinants'!$F$41*$D22,IF($E22="Non-RPP kWh",VLOOKUP(L$4,'4. Billing Determinants'!$B$19:$P$41,6,0)/'4. Billing Determinants'!$G$41*$D22,IF($E22="Distribution Rev.",VLOOKUP(L$4,'4. Billing Determinants'!$B$19:$P$41,8,0)/'4. Billing Determinants'!$I$41*$D22, VLOOKUP(L$4,'4. Billing Determinants'!$B$19:$P$41,3,0)/'4. Billing Determinants'!$D$41*$D22))))),0) -> 0 | M22: =IFERROR(IF(M$4="",0,IF($E22="kWh",VLOOKUP(M$4,'4. Billing Determinants'!$B$19:$P$41,4,0)/'4. Billing Determinants'!$E$41*$D22,IF($E22="kW",VLOOKUP(M$4,'4. Billing Determinants'!$B$19:$P$41,5,0)/'4. Billing Determinants'!$F$41*$D22,IF($E22="Non-RPP kWh",VLOOKUP(M$4,'4. Billing Determinants'!$B$19:$P$41,6,0)/'4. Billing Determinants'!$G$41*$D22,IF($E22="Distribution Rev.",VLOOKUP(M$4,'4. Billing Determinants'!$B$19:$P$41,8,0)/'4. Billing Determinants'!$I$41*$D22, VLOOKUP(M$4,'4. Billing Determinants'!$B$19:$P$41,3,0)/'4. Billing Determinants'!$D$41*$D22))))),0) -> 0 | N22: =IFERROR(IF(N$4="",0,IF($E22="kWh",VLOOKUP(N$4,'4. Billing Determinants'!$B$19:$P$41,4,0)/'4. Billing Determinants'!$E$41*$D22,IF($E22="kW",VLOOKUP(N$4,'4. Billing Determinants'!$B$19:$P$41,5,0)/'4. Billing Determinants'!$F$41*$D22,IF($E22="Non-RPP kWh",VLOOKUP(N$4,'4. Billing Determinants'!$B$19:$P$41,6,0)/'4. Billing Determinants'!$G$41*$D22,IF($E22="Distribution Rev.",VLOOKUP(N$4,'4. Billing Determinants'!$B$19:$P$41,8,0)/'4. Billing Determinants'!$I$41*$D22, VLOOKUP(N$4,'4. Billing Determinants'!$B$19:$P$41,3,0)/'4. Billing Determinants'!$D$41*$D22))))),0) -> 0 | O22: =IFERROR(IF(O$4="",0,IF($E22="kWh",VLOOKUP(O$4,'4. Billing Determinants'!$B$19:$P$41,4,0)/'4. Billing Determinants'!$E$41*$D22,IF($E22="kW",VLOOKUP(O$4,'4. Billing Determinants'!$B$19:$P$41,5,0)/'4. Billing Determinants'!$F$41*$D22,IF($E22="Non-RPP kWh",VLOOKUP(O$4,'4. Billing Determinants'!$B$19:$P$41,6,0)/'4. Billing Determinants'!$G$41*$D22,IF($E22="Distribution Rev.",VLOOKUP(O$4,'4. Billing Determinants'!$B$19:$P$41,8,0)/'4. Billing Determinants'!$I$41*$D22, VLOOKUP(O$4,'4. Billing Determinants'!$B$19:$P$41,3,0)/'4. Billing Determinants'!$D$41*$D22))))),0) -> 0 | P22: =IFERROR(IF(P$4="",0,IF($E22="kWh",VLOOKUP(P$4,'4. Billing Determinants'!$B$19:$P$41,4,0)/'4. Billing Determinants'!$E$41*$D22,IF($E22="kW",VLOOKUP(P$4,'4. Billing Determinants'!$B$19:$P$41,5,0)/'4. Billing Determinants'!$F$41*$D22,IF($E22="Non-RPP kWh",VLOOKUP(P$4,'4. Billing Determinants'!$B$19:$P$41,6,0)/'4. Billing Determinants'!$G$41*$D22,IF($E22="Distribution Rev.",VLOOKUP(P$4,'4. Billing Determinants'!$B$19:$P$41,8,0)/'4. Billing Determinants'!$I$41*$D22, VLOOKUP(P$4,'4. Billing Determinants'!$B$19:$P$41,3,0)/'4. Billing Determinants'!$D$41*$D22))))),0) -> 0 | Q22: =IFERROR(IF(Q$4="",0,IF($E22="kWh",VLOOKUP(Q$4,'4. Billing Determinants'!$B$19:$P$41,4,0)/'4. Billing Determinants'!$E$41*$D22,IF($E22="kW",VLOOKUP(Q$4,'4. Billing Determinants'!$B$19:$P$41,5,0)/'4. Billing Determinants'!$F$41*$D22,IF($E22="Non-RPP kWh",VLOOKUP(Q$4,'4. Billing Determinants'!$B$19:$P$41,6,0)/'4. Billing Determinants'!$G$41*$D22,IF($E22="Distribution Rev.",VLOOKUP(Q$4,'4. Billing Determinants'!$B$19:$P$41,8,0)/'4. Billing Determinants'!$I$41*$D22, VLOOKUP(Q$4,'4. Billing Determinants'!$B$19:$P$41,3,0)/'4. Billing Determinants'!$D$41*$D22))))),0) -> 0 | R22: =IFERROR(IF(R$4="",0,IF($E22="kWh",VLOOKUP(R$4,'4. Billing Determinants'!$B$19:$P$41,4,0)/'4. Billing Determinants'!$E$41*$D22,IF($E22="kW",VLOOKUP(R$4,'4. Billing Determinants'!$B$19:$P$41,5,0)/'4. Billing Determinants'!$F$41*$D22,IF($E22="Non-RPP kWh",VLOOKUP(R$4,'4. Billing Determinants'!$B$19:$P$41,6,0)/'4. Billing Determinants'!$G$41*$D22,IF($E22="Distribution Rev.",VLOOKUP(R$4,'4. Billing Determinants'!$B$19:$P$41,8,0)/'4. Billing Determinants'!$I$41*$D22, VLOOKUP(R$4,'4. Billing Determinants'!$B$19:$P$41,3,0)/'4. Billing Determinants'!$D$41*$D22))))),0) -> 0 | S22: =IFERROR(IF(S$4="",0,IF($E22="kWh",VLOOKUP(S$4,'4. Billing Determinants'!$B$19:$P$41,4,0)/'4. Billing Determinants'!$E$41*$D22,IF($E22="kW",VLOOKUP(S$4,'4. Billing Determinants'!$B$19:$P$41,5,0)/'4. Billing Determinants'!$F$41*$D22,IF($E22="Non-RPP kWh",VLOOKUP(S$4,'4. Billing Determinants'!$B$19:$P$41,6,0)/'4. Billing Determinants'!$G$41*$D22,IF($E22="Distribution Rev.",VLOOKUP(S$4,'4. Billing Determinants'!$B$19:$P$41,8,0)/'4. Billing Determinants'!$I$41*$D22, VLOOKUP(S$4,'4. Billing Determinants'!$B$19:$P$41,3,0)/'4. Billing Determinants'!$D$41*$D22))))),0) -> 0 | T22: =IFERROR(IF(T$4="",0,IF($E22="kWh",VLOOKUP(T$4,'4. Billing Determinants'!$B$19:$P$41,4,0)/'4. Billing Determinants'!$E$41*$D22,IF($E22="kW",VLOOKUP(T$4,'4. Billing Determinants'!$B$19:$P$41,5,0)/'4. Billing Determinants'!$F$41*$D22,IF($E22="Non-RPP kWh",VLOOKUP(T$4,'4. Billing Determinants'!$B$19:$P$41,6,0)/'4. Billing Determinants'!$G$41*$D22,IF($E22="Distribution Rev.",VLOOKUP(T$4,'4. Billing Determinants'!$B$19:$P$41,8,0)/'4. Billing Determinants'!$I$41*$D22, VLOOKUP(T$4,'4. Billing Determinants'!$B$19:$P$41,3,0)/'4. Billing Determinants'!$D$41*$D22))))),0) -> 0 | U22: =IFERROR(IF(U$4="",0,IF($E22="kWh",VLOOKUP(U$4,'4. Billing Determinants'!$B$19:$P$41,4,0)/'4. Billing Determinants'!$E$41*$D22,IF($E22="kW",VLOOKUP(U$4,'4. Billing Determinants'!$B$19:$P$41,5,0)/'4. Billing Determinants'!$F$41*$D22,IF($E22="Non-RPP kWh",VLOOKUP(U$4,'4. Billing Determinants'!$B$19:$P$41,6,0)/'4. Billing Determinants'!$G$41*$D22,IF($E22="Distribution Rev.",VLOOKUP(U$4,'4. Billing Determinants'!$B$19:$P$41,8,0)/'4. Billing Determinants'!$I$41*$D22, VLOOKUP(U$4,'4. Billing Determinants'!$B$19:$P$41,3,0)/'4. Billing Determinants'!$D$41*$D22))))),0) -> 0 | V22: =IFERROR(IF(V$4="",0,IF($E22="kWh",VLOOKUP(V$4,'4. Billing Determinants'!$B$19:$P$41,4,0)/'4. Billing Determinants'!$E$41*$D22,IF($E22="kW",VLOOKUP(V$4,'4. Billing Determinants'!$B$19:$P$41,5,0)/'4. Billing Determinants'!$F$41*$D22,IF($E22="Non-RPP kWh",VLOOKUP(V$4,'4. Billing Determinants'!$B$19:$P$41,6,0)/'4. Billing Determinants'!$G$41*$D22,IF($E22="Distribution Rev.",VLOOKUP(V$4,'4. Billing Determinants'!$B$19:$P$41,8,0)/'4. Billing Determinants'!$I$41*$D22, VLOOKUP(V$4,'4. Billing Determinants'!$B$19:$P$41,3,0)/'4. Billing Determinants'!$D$41*$D22))))),0) -> 0 | W22: =IFERROR(IF(W$4="",0,IF($E22="kWh",VLOOKUP(W$4,'4. Billing Determinants'!$B$19:$P$41,4,0)/'4. Billing Determinants'!$E$41*$D22,IF($E22="kW",VLOOKUP(W$4,'4. Billing Determinants'!$B$19:$P$41,5,0)/'4. Billing Determinants'!$F$41*$D22,IF($E22="Non-RPP kWh",VLOOKUP(W$4,'4. Billing Determinants'!$B$19:$P$41,6,0)/'4. Billing Determinants'!$G$41*$D22,IF($E22="Distribution Rev.",VLOOKUP(W$4,'4. Billing Determinants'!$B$19:$P$41,8,0)/'4. Billing Determinants'!$I$41*$D22, VLOOKUP(W$4,'4. Billing Determinants'!$B$19:$P$41,3,0)/'4. Billing Determinants'!$D$41*$D22))))),0) -> 0 | X22: =IFERROR(IF(X$4="",0,IF($E22="kWh",VLOOKUP(X$4,'4. Billing Determinants'!$B$19:$P$41,4,0)/'4. Billing Determinants'!$E$41*$D22,IF($E22="kW",VLOOKUP(X$4,'4. Billing Determinants'!$B$19:$P$41,5,0)/'4. Billing Determinants'!$F$41*$D22,IF($E22="Non-RPP kWh",VLOOKUP(X$4,'4. Billing Determinants'!$B$19:$P$41,6,0)/'4. Billing Determinants'!$G$41*$D22,IF($E22="Distribution Rev.",VLOOKUP(X$4,'4. Billing Determinants'!$B$19:$P$41,8,0)/'4. Billing Determinants'!$I$41*$D22, VLOOKUP(X$4,'4. Billing Determinants'!$B$19:$P$41,3,0)/'4. Billing Determinants'!$D$41*$D22))))),0) -> 0 | Y22: =IFERROR(IF(Y$4="",0,IF($E22="kWh",VLOOKUP(Y$4,'4. Billing Determinants'!$B$19:$P$41,4,0)/'4. Billing Determinants'!$E$41*$D22,IF($E22="kW",VLOOKUP(Y$4,'4. Billing Determinants'!$B$19:$P$41,5,0)/'4. Billing Determinants'!$F$41*$D22,IF($E22="Non-RPP kWh",VLOOKUP(Y$4,'4. Billing Determinants'!$B$19:$P$41,6,0)/'4. Billing Determinants'!$G$41*$D22,IF($E22="Distribution Rev.",VLOOKUP(Y$4,'4. Billing Determinants'!$B$19:$P$41,8,0)/'4. Billing Determinants'!$I$41*$D22, VLOOKUP(Y$4,'4. Billing Determinants'!$B$19:$P$41,3,0)/'4. Billing Determinants'!$D$41*$D22))))),0) -> 0
B23: Other Regulatory Assets - Sub-Account - Other 4 | C23: 1508 | D23: ='2. 2014 Continuity Schedule'!CB47 -> -0.5 | E23: kWh | F23: =IFERROR(IF(F$4="",0,IF($E23="kWh",VLOOKUP(F$4,'4. Billing Determinants'!$B$19:$P$41,4,0)/'4. Billing Determinants'!$E$41*$D23,IF($E23="kW",VLOOKUP(F$4,'4. Billing Determinants'!$B$19:$P$41,5,0)/'4. Billing Determinants'!$F$41*$D23,IF($E23="Non-RPP kWh",VLOOKUP(F$4,'4. Billing Determinants'!$B$19:$P$41,6,0)/'4. Billing Determinants'!$G$41*$D23,IF($E23="Distribution Rev.",VLOOKUP(F$4,'4. Billing Determinants'!$B$19:$P$41,8,0)/'4. Billing Determinants'!$I$41*$D23, VLOOKUP(F$4,'4. Billing Determinants'!$B$19:$P$41,3,0)/'4. Billing Determinants'!$D$41*$D23))))),0) -> -0.1498673196 | G23: =IFERROR(IF(G$4="",0,IF($E23="kWh",VLOOKUP(G$4,'4. Billing Determinants'!$B$19:$P$41,4,0)/'4. Billing Determinants'!$E$41*$D23,IF($E23="kW",VLOOKUP(G$4,'4. Billing Determinants'!$B$19:$P$41,5,0)/'4. Billing Determinants'!$F$41*$D23,IF($E23="Non-RPP kWh",VLOOKUP(G$4,'4. Billing Determinants'!$B$19:$P$41,6,0)/'4. Billing Determinants'!$G$41*$D23,IF($E23="Distribution Rev.",VLOOKUP(G$4,'4. Billing Determinants'!$B$19:$P$41,8,0)/'4. Billing Determinants'!$I$41*$D23, VLOOKUP(G$4,'4. Billing Determinants'!$B$19:$P$41,3,0)/'4. Billing Determinants'!$D$41*$D23))))),0) -> -0.06596030675 | H23: =IFERROR(IF(H$4="",0,IF($E23="kWh",VLOOKUP(H$4,'4. Billing Determinants'!$B$19:$P$41,4,0)/'4. Billing Determinants'!$E$41*$D23,IF($E23="kW",VLOOKUP(H$4,'4. Billing Determinants'!$B$19:$P$41,5,0)/'4. Billing Determinants'!$F$41*$D23,IF($E23="Non-RPP kWh",VLOOKUP(H$4,'4. Billing Determinants'!$B$19:$P$41,6,0)/'4. Billing Determinants'!$G$41*$D23,IF($E23="Distribution Rev.",VLOOKUP(H$4,'4. Billing Determinants'!$B$19:$P$41,8,0)/'4. Billing Determinants'!$I$41*$D23, VLOOKUP(H$4,'4. Billing Determinants'!$B$19:$P$41,3,0)/'4. Billing Determinants'!$D$41*$D23))))),0) -> -0.1401760896 | I23: =IFERROR(IF(I$4="",0,IF($E23="kWh",VLOOKUP(I$4,'4. Billing Determinants'!$B$19:$P$41,4,0)/'4. Billing Determinants'!$E$41*$D23,IF($E23="kW",VLOOKUP(I$4,'4. Billing Determinants'!$B$19:$P$41,5,0)/'4. Billing Determinants'!$F$41*$D23,IF($E23="Non-RPP kWh",VLOOKUP(I$4,'4. Billing Determinants'!$B$19:$P$41,6,0)/'4. Billing Determinants'!$G$41*$D23,IF($E23="Distribution Rev.",VLOOKUP(I$4,'4. Billing Determinants'!$B$19:$P$41,8,0)/'4. Billing Determinants'!$I$41*$D23, VLOOKUP(I$4,'4. Billing Determinants'!$B$19:$P$41,3,0)/'4. Billing Determinants'!$D$41*$D23))))),0) -> -0.1377532049 | J23: =IFERROR(IF(J$4="",0,IF($E23="kWh",VLOOKUP(J$4,'4. Billing Determinants'!$B$19:$P$41,4,0)/'4. Billing Determinants'!$E$41*$D23,IF($E23="kW",VLOOKUP(J$4,'4. Billing Determinants'!$B$19:$P$41,5,0)/'4. Billing Determinants'!$F$41*$D23,IF($E23="Non-RPP kWh",VLOOKUP(J$4,'4. Billing Determinants'!$B$19:$P$41,6,0)/'4. Billing Determinants'!$G$41*$D23,IF($E23="Distribution Rev.",VLOOKUP(J$4,'4. Billing Determinants'!$B$19:$P$41,8,0)/'4. Billing Determinants'!$I$41*$D23, VLOOKUP(J$4,'4. Billing Determinants'!$B$19:$P$41,3,0)/'4. Billing Determinants'!$D$41*$D23))))),0) -> -0.0001263934075 | K23: =IFERROR(IF(K$4="",0,IF($E23="kWh",VLOOKUP(K$4,'4. Billing Determinants'!$B$19:$P$41,4,0)/'4. Billing Determinants'!$E$41*$D23,IF($E23="kW",VLOOKUP(K$4,'4. Billing Determinants'!$B$19:$P$41,5,0)/'4. Billing Determinants'!$F$41*$D23,IF($E23="Non-RPP kWh",VLOOKUP(K$4,'4. Billing Determinants'!$B$19:$P$41,6,0)/'4. Billing Determinants'!$G$41*$D23,IF($E23="Distribution Rev.",VLOOKUP(K$4,'4. Billing Determinants'!$B$19:$P$41,8,0)/'4. Billing Determinants'!$I$41*$D23, VLOOKUP(K$4,'4. Billing Determinants'!$B$19:$P$41,3,0)/'4. Billing Determinants'!$D$41*$D23))))),0) -> -0.006116685696 | L23: =IFERROR(IF(L$4="",0,IF($E23="kWh",VLOOKUP(L$4,'4. Billing Determinants'!$B$19:$P$41,4,0)/'4. Billing Determinants'!$E$41*$D23,IF($E23="kW",VLOOKUP(L$4,'4. Billing Determinants'!$B$19:$P$41,5,0)/'4. Billing Determinants'!$F$41*$D23,IF($E23="Non-RPP kWh",VLOOKUP(L$4,'4. Billing Determinants'!$B$19:$P$41,6,0)/'4. Billing Determinants'!$G$41*$D23,IF($E23="Distribution Rev.",VLOOKUP(L$4,'4. Billing Determinants'!$B$19:$P$41,8,0)/'4. Billing Determinants'!$I$41*$D23, VLOOKUP(L$4,'4. Billing Determinants'!$B$19:$P$41,3,0)/'4. Billing Determinants'!$D$41*$D23))))),0) -> 0 | M23: =IFERROR(IF(M$4="",0,IF($E23="kWh",VLOOKUP(M$4,'4. Billing Determinants'!$B$19:$P$41,4,0)/'4. Billing Determinants'!$E$41*$D23,IF($E23="kW",VLOOKUP(M$4,'4. Billing Determinants'!$B$19:$P$41,5,0)/'4. Billing Determinants'!$F$41*$D23,IF($E23="Non-RPP kWh",VLOOKUP(M$4,'4. Billing Determinants'!$B$19:$P$41,6,0)/'4. Billing Determinants'!$G$41*$D23,IF($E23="Distribution Rev.",VLOOKUP(M$4,'4. Billing Determinants'!$B$19:$P$41,8,0)/'4. Billing Determinants'!$I$41*$D23, VLOOKUP(M$4,'4. Billing Determinants'!$B$19:$P$41,3,0)/'4. Billing Determinants'!$D$41*$D23))))),0) -> 0 | N23: =IFERROR(IF(N$4="",0,IF($E23="kWh",VLOOKUP(N$4,'4. Billing Determinants'!$B$19:$P$41,4,0)/'4. Billing Determinants'!$E$41*$D23,IF($E23="kW",VLOOKUP(N$4,'4. Billing Determinants'!$B$19:$P$41,5,0)/'4. Billing Determinants'!$F$41*$D23,IF($E23="Non-RPP kWh",VLOOKUP(N$4,'4. Billing Determinants'!$B$19:$P$41,6,0)/'4. Billing Determinants'!$G$41*$D23,IF($E23="Distribution Rev.",VLOOKUP(N$4,'4. Billing Determinants'!$B$19:$P$41,8,0)/'4. Billing Determinants'!$I$41*$D23, VLOOKUP(N$4,'4. Billing Determinants'!$B$19:$P$41,3,0)/'4. Billing Determinants'!$D$41*$D23))))),0) -> 0 | O23: =IFERROR(IF(O$4="",0,IF($E23="kWh",VLOOKUP(O$4,'4. Billing Determinants'!$B$19:$P$41,4,0)/'4. Billing Determinants'!$E$41*$D23,IF($E23="kW",VLOOKUP(O$4,'4. Billing Determinants'!$B$19:$P$41,5,0)/'4. Billing Determinants'!$F$41*$D23,IF($E23="Non-RPP kWh",VLOOKUP(O$4,'4. Billing Determinants'!$B$19:$P$41,6,0)/'4. Billing Determinants'!$G$41*$D23,IF($E23="Distribution Rev.",VLOOKUP(O$4,'4. Billing Determinants'!$B$19:$P$41,8,0)/'4. Billing Determinants'!$I$41*$D23, VLOOKUP(O$4,'4. Billing Determinants'!$B$19:$P$41,3,0)/'4. Billing Determinants'!$D$41*$D23))))),0) -> 0 | P23: =IFERROR(IF(P$4="",0,IF($E23="kWh",VLOOKUP(P$4,'4. Billing Determinants'!$B$19:$P$41,4,0)/'4. Billing Determinants'!$E$41*$D23,IF($E23="kW",VLOOKUP(P$4,'4. Billing Determinants'!$B$19:$P$41,5,0)/'4. Billing Determinants'!$F$41*$D23,IF($E23="Non-RPP kWh",VLOOKUP(P$4,'4. Billing Determinants'!$B$19:$P$41,6,0)/'4. Billing Determinants'!$G$41*$D23,IF($E23="Distribution Rev.",VLOOKUP(P$4,'4. Billing Determinants'!$B$19:$P$41,8,0)/'4. Billing Determinants'!$I$41*$D23, VLOOKUP(P$4,'4. Billing Determinants'!$B$19:$P$41,3,0)/'4. Billing Determinants'!$D$41*$D23))))),0) -> 0 | Q23: =IFERROR(IF(Q$4="",0,IF($E23="kWh",VLOOKUP(Q$4,'4. Billing Determinants'!$B$19:$P$41,4,0)/'4. Billing Determinants'!$E$41*$D23,IF($E23="kW",VLOOKUP(Q$4,'4. Billing Determinants'!$B$19:$P$41,5,0)/'4. Billing Determinants'!$F$41*$D23,IF($E23="Non-RPP kWh",VLOOKUP(Q$4,'4. Billing Determinants'!$B$19:$P$41,6,0)/'4. Billing Determinants'!$G$41*$D23,IF($E23="Distribution Rev.",VLOOKUP(Q$4,'4. Billing Determinants'!$B$19:$P$41,8,0)/'4. Billing Determinants'!$I$41*$D23, VLOOKUP(Q$4,'4. Billing Determinants'!$B$19:$P$41,3,0)/'4. Billing Determinants'!$D$41*$D23))))),0) -> 0 | R23: =IFERROR(IF(R$4="",0,IF($E23="kWh",VLOOKUP(R$4,'4. Billing Determinants'!$B$19:$P$41,4,0)/'4. Billing Determinants'!$E$41*$D23,IF($E23="kW",VLOOKUP(R$4,'4. Billing Determinants'!$B$19:$P$41,5,0)/'4. Billing Determinants'!$F$41*$D23,IF($E23="Non-RPP kWh",VLOOKUP(R$4,'4. Billing Determinants'!$B$19:$P$41,6,0)/'4. Billing Determinants'!$G$41*$D23,IF($E23="Distribution Rev.",VLOOKUP(R$4,'4. Billing Determinants'!$B$19:$P$41,8,0)/'4. Billing Determinants'!$I$41*$D23, VLOOKUP(R$4,'4. Billing Determinants'!$B$19:$P$41,3,0)/'4. Billing Determinants'!$D$41*$D23))))),0) -> 0 | S23: =IFERROR(IF(S$4="",0,IF($E23="kWh",VLOOKUP(S$4,'4. Billing Determinants'!$B$19:$P$41,4,0)/'4. Billing Determinants'!$E$41*$D23,IF($E23="kW",VLOOKUP(S$4,'4. Billing Determinants'!$B$19:$P$41,5,0)/'4. Billing Determinants'!$F$41*$D23,IF($E23="Non-RPP kWh",VLOOKUP(S$4,'4. Billing Determinants'!$B$19:$P$41,6,0)/'4. Billing Determinants'!$G$41*$D23,IF($E23="Distribution Rev.",VLOOKUP(S$4,'4. Billing Determinants'!$B$19:$P$41,8,0)/'4. Billing Determinants'!$I$41*$D23, VLOOKUP(S$4,'4. Billing Determinants'!$B$19:$P$41,3,0)/'4. Billing Determinants'!$D$41*$D23))))),0) -> 0 | T23: =IFERROR(IF(T$4="",0,IF($E23="kWh",VLOOKUP(T$4,'4. Billing Determinants'!$B$19:$P$41,4,0)/'4. Billing Determinants'!$E$41*$D23,IF($E23="kW",VLOOKUP(T$4,'4. Billing Determinants'!$B$19:$P$41,5,0)/'4. Billing Determinants'!$F$41*$D23,IF($E23="Non-RPP kWh",VLOOKUP(T$4,'4. Billing Determinants'!$B$19:$P$41,6,0)/'4. Billing Determinants'!$G$41*$D23,IF($E23="Distribution Rev.",VLOOKUP(T$4,'4. Billing Determinants'!$B$19:$P$41,8,0)/'4. Billing Determinants'!$I$41*$D23, VLOOKUP(T$4,'4. Billing Determinants'!$B$19:$P$41,3,0)/'4. Billing Determinants'!$D$41*$D23))))),0) -> 0 | U23: =IFERROR(IF(U$4="",0,IF($E23="kWh",VLOOKUP(U$4,'4. Billing Determinants'!$B$19:$P$41,4,0)/'4. Billing Determinants'!$E$41*$D23,IF($E23="kW",VLOOKUP(U$4,'4. Billing Determinants'!$B$19:$P$41,5,0)/'4. Billing Determinants'!$F$41*$D23,IF($E23="Non-RPP kWh",VLOOKUP(U$4,'4. Billing Determinants'!$B$19:$P$41,6,0)/'4. Billing Determinants'!$G$41*$D23,IF($E23="Distribution Rev.",VLOOKUP(U$4,'4. Billing Determinants'!$B$19:$P$41,8,0)/'4. Billing Determinants'!$I$41*$D23, VLOOKUP(U$4,'4. Billing Determinants'!$B$19:$P$41,3,0)/'4. Billing Determinants'!$D$41*$D23))))),0) -> 0 | V23: =IFERROR(IF(V$4="",0,IF($E23="kWh",VLOOKUP(V$4,'4. Billing Determinants'!$B$19:$P$41,4,0)/'4. Billing Determinants'!$E$41*$D23,IF($E23="kW",VLOOKUP(V$4,'4. Billing Determinants'!$B$19:$P$41,5,0)/'4. Billing Determinants'!$F$41*$D23,IF($E23="Non-RPP kWh",VLOOKUP(V$4,'4. Billing Determinants'!$B$19:$P$41,6,0)/'4. Billing Determinants'!$G$41*$D23,IF($E23="Distribution Rev.",VLOOKUP(V$4,'4. Billing Determinants'!$B$19:$P$41,8,0)/'4. Billing Determinants'!$I$41*$D23, VLOOKUP(V$4,'4. Billing Determinants'!$B$19:$P$41,3,0)/'4. Billing Determinants'!$D$41*$D23))))),0) -> 0 | W23: =IFERROR(IF(W$4="",0,IF($E23="kWh",VLOOKUP(W$4,'4. Billing Determinants'!$B$19:$P$41,4,0)/'4. Billing Determinants'!$E$41*$D23,IF($E23="kW",VLOOKUP(W$4,'4. Billing Determinants'!$B$19:$P$41,5,0)/'4. Billing Determinants'!$F$41*$D23,IF($E23="Non-RPP kWh",VLOOKUP(W$4,'4. Billing Determinants'!$B$19:$P$41,6,0)/'4. Billing Determinants'!$G$41*$D23,IF($E23="Distribution Rev.",VLOOKUP(W$4,'4. Billing Determinants'!$B$19:$P$41,8,0)/'4. Billing Determinants'!$I$41*$D23, VLOOKUP(W$4,'4. Billing Determinants'!$B$19:$P$41,3,0)/'4. Billing Determinants'!$D$41*$D23))))),0) -> 0 | X23: =IFERROR(IF(X$4="",0,IF($E23="kWh",VLOOKUP(X$4,'4. Billing Determinants'!$B$19:$P$41,4,0)/'4. Billing Determinants'!$E$41*$D23,IF($E23="kW",VLOOKUP(X$4,'4. Billing Determinants'!$B$19:$P$41,5,0)/'4. Billing Determinants'!$F$41*$D23,IF($E23="Non-RPP kWh",VLOOKUP(X$4,'4. Billing Determinants'!$B$19:$P$41,6,0)/'4. Billing Determinants'!$G$41*$D23,IF($E23="Distribution Rev.",VLOOKUP(X$4,'4. Billing Determinants'!$B$19:$P$41,8,0)/'4. Billing Determinants'!$I$41*$D23, VLOOKUP(X$4,'4. Billing Determinants'!$B$19:$P$41,3,0)/'4. Billing Determinants'!$D$41*$D23))))),0) -> 0 | Y23: =IFERROR(IF(Y$4="",0,IF($E23="kWh",VLOOKUP(Y$4,'4. Billing Determinants'!$B$19:$P$41,4,0)/'4. Billing Determinants'!$E$41*$D23,IF($E23="kW",VLOOKUP(Y$4,'4. Billing Determinants'!$B$19:$P$41,5,0)/'4. Billing Determinants'!$F$41*$D23,IF($E23="Non-RPP kWh",VLOOKUP(Y$4,'4. Billing Determinants'!$B$19:$P$41,6,0)/'4. Billing Determinants'!$G$41*$D23,IF($E23="Distribution Rev.",VLOOKUP(Y$4,'4. Billing Determinants'!$B$19:$P$41,8,0)/'4. Billing Determinants'!$I$41*$D23, VLOOKUP(Y$4,'4. Billing Determinants'!$B$19:$P$41,3,0)/'4. Billing Determinants'!$D$41*$D23))))),0) -> 0
B24: Retail Cost Variance Account - Retail | C24: 1518 | D24: ='2. 2014 Continuity Schedule'!CB48 -> -96.39 | F24: =IFERROR(IF(F$4="",0,IF($E24="kWh",VLOOKUP(F$4,'4. Billing Determinants'!$B$19:$P$41,4,0)/'4. Billing Determinants'!$E$41*$D24,IF($E24="kW",VLOOKUP(F$4,'4. Billing Determinants'!$B$19:$P$41,5,0)/'4. Billing Determinants'!$F$41*$D24,IF($E24="Non-RPP kWh",VLOOKUP(F$4,'4. Billing Determinants'!$B$19:$P$41,6,0)/'4. Billing Determinants'!$G$41*$D24,IF($E24="Distribution Rev.",VLOOKUP(F$4,'4. Billing Determinants'!$B$19:$P$41,8,0)/'4. Billing Determinants'!$I$41*$D24, VLOOKUP(F$4,'4. Billing Determinants'!$B$19:$P$41,3,0)/'4. Billing Determinants'!$D$41*$D24))))),0) -> -59.6637585 | G24: =IFERROR(IF(G$4="",0,IF($E24="kWh",VLOOKUP(G$4,'4. Billing Determinants'!$B$19:$P$41,4,0)/'4. Billing Determinants'!$E$41*$D24,IF($E24="kW",VLOOKUP(G$4,'4. Billing Determinants'!$B$19:$P$41,5,0)/'4. Billing Determinants'!$F$41*$D24,IF($E24="Non-RPP kWh",VLOOKUP(G$4,'4. Billing Determinants'!$B$19:$P$41,6,0)/'4. Billing Determinants'!$G$41*$D24,IF($E24="Distribution Rev.",VLOOKUP(G$4,'4. Billing Determinants'!$B$19:$P$41,8,0)/'4. Billing Determinants'!$I$41*$D24, VLOOKUP(G$4,'4. Billing Determinants'!$B$19:$P$41,3,0)/'4. Billing Determinants'!$D$41*$D24))))),0) -> -10.56436497 | H24: =IFERROR(IF(H$4="",0,IF($E24="kWh",VLOOKUP(H$4,'4. Billing Determinants'!$B$19:$P$41,4,0)/'4. Billing Determinants'!$E$41*$D24,IF($E24="kW",VLOOKUP(H$4,'4. Billing Determinants'!$B$19:$P$41,5,0)/'4. Billing Determinants'!$F$41*$D24,IF($E24="Non-RPP kWh",VLOOKUP(H$4,'4. Billing Determinants'!$B$19:$P$41,6,0)/'4. Billing Determinants'!$G$41*$D24,IF($E24="Distribution Rev.",VLOOKUP(H$4,'4. Billing Determinants'!$B$19:$P$41,8,0)/'4. Billing Determinants'!$I$41*$D24, VLOOKUP(H$4,'4. Billing Determinants'!$B$19:$P$41,3,0)/'4. Billing Determinants'!$D$41*$D24))))),0) -> -1.101000816 | I24: =IFERROR(IF(I$4="",0,IF($E24="kWh",VLOOKUP(I$4,'4. Billing Determinants'!$B$19:$P$41,4,0)/'4. Billing Determinants'!$E$41*$D24,IF($E24="kW",VLOOKUP(I$4,'4. Billing Determinants'!$B$19:$P$41,5,0)/'4. Billing Determinants'!$F$41*$D24,IF($E24="Non-RPP kWh",VLOOKUP(I$4,'4. Billing Determinants'!$B$19:$P$41,6,0)/'4. Billing Determinants'!$G$41*$D24,IF($E24="Distribution Rev.",VLOOKUP(I$4,'4. Billing Determinants'!$B$19:$P$41,8,0)/'4. Billing Determinants'!$I$41*$D24, VLOOKUP(I$4,'4. Billing Determinants'!$B$19:$P$41,3,0)/'4. Billing Determinants'!$D$41*$D24))))),0) -> -0.05242861028 | J24: =IFERROR(IF(J$4="",0,IF($E24="kWh",VLOOKUP(J$4,'4. Billing Determinants'!$B$19:$P$41,4,0)/'4. Billing Determinants'!$E$41*$D24,IF($E24="kW",VLOOKUP(J$4,'4. Billing Determinants'!$B$19:$P$41,5,0)/'4. Billing Determinants'!$F$41*$D24,IF($E24="Non-RPP kWh",VLOOKUP(J$4,'4. Billing Determinants'!$B$19:$P$41,6,0)/'4. Billing Determinants'!$G$41*$D24,IF($E24="Distribution Rev.",VLOOKUP(J$4,'4. Billing Determinants'!$B$19:$P$41,8,0)/'4. Billing Determinants'!$I$41*$D24, VLOOKUP(J$4,'4. Billing Determinants'!$B$19:$P$41,3,0)/'4. Billing Determinants'!$D$41*$D24))))),0) -> -0.3407859668 | K24: =IFERROR(IF(K$4="",0,IF($E24="kWh",VLOOKUP(K$4,'4. Billing Determinants'!$B$19:$P$41,4,0)/'4. Billing Determinants'!$E$41*$D24,IF($E24="kW",VLOOKUP(K$4,'4. Billing Determinants'!$B$19:$P$41,5,0)/'4. Billing Determinants'!$F$41*$D24,IF($E24="Non-RPP kWh",VLOOKUP(K$4,'4. Billing Determinants'!$B$19:$P$41,6,0)/'4. Billing Determinants'!$G$41*$D24,IF($E24="Distribution Rev.",VLOOKUP(K$4,'4. Billing Determinants'!$B$19:$P$41,8,0)/'4. Billing Determinants'!$I$41*$D24, VLOOKUP(K$4,'4. Billing Determinants'!$B$19:$P$41,3,0)/'4. Billing Determinants'!$D$41*$D24))))),0) -> -24.66766114 | L24: =IFERROR(IF(L$4="",0,IF($E24="kWh",VLOOKUP(L$4,'4. Billing Determinants'!$B$19:$P$41,4,0)/'4. Billing Determinants'!$E$41*$D24,IF($E24="kW",VLOOKUP(L$4,'4. Billing Determinants'!$B$19:$P$41,5,0)/'4. Billing Determinants'!$F$41*$D24,IF($E24="Non-RPP kWh",VLOOKUP(L$4,'4. Billing Determinants'!$B$19:$P$41,6,0)/'4. Billing Determinants'!$G$41*$D24,IF($E24="Distribution Rev.",VLOOKUP(L$4,'4. Billing Determinants'!$B$19:$P$41,8,0)/'4. Billing Determinants'!$I$41*$D24, VLOOKUP(L$4,'4. Billing Determinants'!$B$19:$P$41,3,0)/'4. Billing Determinants'!$D$41*$D24))))),0) -> 0 | M24: =IFERROR(IF(M$4="",0,IF($E24="kWh",VLOOKUP(M$4,'4. Billing Determinants'!$B$19:$P$41,4,0)/'4. Billing Determinants'!$E$41*$D24,IF($E24="kW",VLOOKUP(M$4,'4. Billing Determinants'!$B$19:$P$41,5,0)/'4. Billing Determinants'!$F$41*$D24,IF($E24="Non-RPP kWh",VLOOKUP(M$4,'4. Billing Determinants'!$B$19:$P$41,6,0)/'4. Billing Determinants'!$G$41*$D24,IF($E24="Distribution Rev.",VLOOKUP(M$4,'4. Billing Determinants'!$B$19:$P$41,8,0)/'4. Billing Determinants'!$I$41*$D24, VLOOKUP(M$4,'4. Billing Determinants'!$B$19:$P$41,3,0)/'4. Billing Determinants'!$D$41*$D24))))),0) -> 0 | N24: =IFERROR(IF(N$4="",0,IF($E24="kWh",VLOOKUP(N$4,'4. Billing Determinants'!$B$19:$P$41,4,0)/'4. Billing Determinants'!$E$41*$D24,IF($E24="kW",VLOOKUP(N$4,'4. Billing Determinants'!$B$19:$P$41,5,0)/'4. Billing Determinants'!$F$41*$D24,IF($E24="Non-RPP kWh",VLOOKUP(N$4,'4. Billing Determinants'!$B$19:$P$41,6,0)/'4. Billing Determinants'!$G$41*$D24,IF($E24="Distribution Rev.",VLOOKUP(N$4,'4. Billing Determinants'!$B$19:$P$41,8,0)/'4. Billing Determinants'!$I$41*$D24, VLOOKUP(N$4,'4. Billing Determinants'!$B$19:$P$41,3,0)/'4. Billing Determinants'!$D$41*$D24))))),0) -> 0 | O24: =IFERROR(IF(O$4="",0,IF($E24="kWh",VLOOKUP(O$4,'4. Billing Determinants'!$B$19:$P$41,4,0)/'4. Billing Determinants'!$E$41*$D24,IF($E24="kW",VLOOKUP(O$4,'4. Billing Determinants'!$B$19:$P$41,5,0)/'4. Billing Determinants'!$F$41*$D24,IF($E24="Non-RPP kWh",VLOOKUP(O$4,'4. Billing Determinants'!$B$19:$P$41,6,0)/'4. Billing Determinants'!$G$41*$D24,IF($E24="Distribution Rev.",VLOOKUP(O$4,'4. Billing Determinants'!$B$19:$P$41,8,0)/'4. Billing Determinants'!$I$41*$D24, VLOOKUP(O$4,'4. Billing Determinants'!$B$19:$P$41,3,0)/'4. Billing Determinants'!$D$41*$D24))))),0) -> 0 | P24: =IFERROR(IF(P$4="",0,IF($E24="kWh",VLOOKUP(P$4,'4. Billing Determinants'!$B$19:$P$41,4,0)/'4. Billing Determinants'!$E$41*$D24,IF($E24="kW",VLOOKUP(P$4,'4. Billing Determinants'!$B$19:$P$41,5,0)/'4. Billing Determinants'!$F$41*$D24,IF($E24="Non-RPP kWh",VLOOKUP(P$4,'4. Billing Determinants'!$B$19:$P$41,6,0)/'4. Billing Determinants'!$G$41*$D24,IF($E24="Distribution Rev.",VLOOKUP(P$4,'4. Billing Determinants'!$B$19:$P$41,8,0)/'4. Billing Determinants'!$I$41*$D24, VLOOKUP(P$4,'4. Billing Determinants'!$B$19:$P$41,3,0)/'4. Billing Determinants'!$D$41*$D24))))),0) -> 0 | Q24: =IFERROR(IF(Q$4="",0,IF($E24="kWh",VLOOKUP(Q$4,'4. Billing Determinants'!$B$19:$P$41,4,0)/'4. Billing Determinants'!$E$41*$D24,IF($E24="kW",VLOOKUP(Q$4,'4. Billing Determinants'!$B$19:$P$41,5,0)/'4. Billing Determinants'!$F$41*$D24,IF($E24="Non-RPP kWh",VLOOKUP(Q$4,'4. Billing Determinants'!$B$19:$P$41,6,0)/'4. Billing Determinants'!$G$41*$D24,IF($E24="Distribution Rev.",VLOOKUP(Q$4,'4. Billing Determinants'!$B$19:$P$41,8,0)/'4. Billing Determinants'!$I$41*$D24, VLOOKUP(Q$4,'4. Billing Determinants'!$B$19:$P$41,3,0)/'4. Billing Determinants'!$D$41*$D24))))),0) -> 0 | R24: =IFERROR(IF(R$4="",0,IF($E24="kWh",VLOOKUP(R$4,'4. Billing Determinants'!$B$19:$P$41,4,0)/'4. Billing Determinants'!$E$41*$D24,IF($E24="kW",VLOOKUP(R$4,'4. Billing Determinants'!$B$19:$P$41,5,0)/'4. Billing Determinants'!$F$41*$D24,IF($E24="Non-RPP kWh",VLOOKUP(R$4,'4. Billing Determinants'!$B$19:$P$41,6,0)/'4. Billing Determinants'!$G$41*$D24,IF($E24="Distribution Rev.",VLOOKUP(R$4,'4. Billing Determinants'!$B$19:$P$41,8,0)/'4. Billing Determinants'!$I$41*$D24, VLOOKUP(R$4,'4. Billing Determinants'!$B$19:$P$41,3,0)/'4. Billing Determinants'!$D$41*$D24))))),0) -> 0 | S24: =IFERROR(IF(S$4="",0,IF($E24="kWh",VLOOKUP(S$4,'4. Billing Determinants'!$B$19:$P$41,4,0)/'4. Billing Determinants'!$E$41*$D24,IF($E24="kW",VLOOKUP(S$4,'4. Billing Determinants'!$B$19:$P$41,5,0)/'4. Billing Determinants'!$F$41*$D24,IF($E24="Non-RPP kWh",VLOOKUP(S$4,'4. Billing Determinants'!$B$19:$P$41,6,0)/'4. Billing Determinants'!$G$41*$D24,IF($E24="Distribution Rev.",VLOOKUP(S$4,'4. Billing Determinants'!$B$19:$P$41,8,0)/'4. Billing Determinants'!$I$41*$D24, VLOOKUP(S$4,'4. Billing Determinants'!$B$19:$P$41,3,0)/'4. Billing Determinants'!$D$41*$D24))))),0) -> 0 | T24: =IFERROR(IF(T$4="",0,IF($E24="kWh",VLOOKUP(T$4,'4. Billing Determinants'!$B$19:$P$41,4,0)/'4. Billing Determinants'!$E$41*$D24,IF($E24="kW",VLOOKUP(T$4,'4. Billing Determinants'!$B$19:$P$41,5,0)/'4. Billing Determinants'!$F$41*$D24,IF($E24="Non-RPP kWh",VLOOKUP(T$4,'4. Billing Determinants'!$B$19:$P$41,6,0)/'4. Billing Determinants'!$G$41*$D24,IF($E24="Distribution Rev.",VLOOKUP(T$4,'4. Billing Determinants'!$B$19:$P$41,8,0)/'4. Billing Determinants'!$I$41*$D24, VLOOKUP(T$4,'4. Billing Determinants'!$B$19:$P$41,3,0)/'4. Billing Determinants'!$D$41*$D24))))),0) -> 0 | U24: =IFERROR(IF(U$4="",0,IF($E24="kWh",VLOOKUP(U$4,'4. Billing Determinants'!$B$19:$P$41,4,0)/'4. Billing Determinants'!$E$41*$D24,IF($E24="kW",VLOOKUP(U$4,'4. Billing Determinants'!$B$19:$P$41,5,0)/'4. Billing Determinants'!$F$41*$D24,IF($E24="Non-RPP kWh",VLOOKUP(U$4,'4. Billing Determinants'!$B$19:$P$41,6,0)/'4. Billing Determinants'!$G$41*$D24,IF($E24="Distribution Rev.",VLOOKUP(U$4,'4. Billing Determinants'!$B$19:$P$41,8,0)/'4. Billing Determinants'!$I$41*$D24, VLOOKUP(U$4,'4. Billing Determinants'!$B$19:$P$41,3,0)/'4. Billing Determinants'!$D$41*$D24))))),0) -> 0 | V24: =IFERROR(IF(V$4="",0,IF($E24="kWh",VLOOKUP(V$4,'4. Billing Determinants'!$B$19:$P$41,4,0)/'4. Billing Determinants'!$E$41*$D24,IF($E24="kW",VLOOKUP(V$4,'4. Billing Determinants'!$B$19:$P$41,5,0)/'4. Billing Determinants'!$F$41*$D24,IF($E24="Non-RPP kWh",VLOOKUP(V$4,'4. Billing Determinants'!$B$19:$P$41,6,0)/'4. Billing Determinants'!$G$41*$D24,IF($E24="Distribution Rev.",VLOOKUP(V$4,'4. Billing Determinants'!$B$19:$P$41,8,0)/'4. Billing Determinants'!$I$41*$D24, VLOOKUP(V$4,'4. Billing Determinants'!$B$19:$P$41,3,0)/'4. Billing Determinants'!$D$41*$D24))))),0) -> 0 | W24: =IFERROR(IF(W$4="",0,IF($E24="kWh",VLOOKUP(W$4,'4. Billing Determinants'!$B$19:$P$41,4,0)/'4. Billing Determinants'!$E$41*$D24,IF($E24="kW",VLOOKUP(W$4,'4. Billing Determinants'!$B$19:$P$41,5,0)/'4. Billing Determinants'!$F$41*$D24,IF($E24="Non-RPP kWh",VLOOKUP(W$4,'4. Billing Determinants'!$B$19:$P$41,6,0)/'4. Billing Determinants'!$G$41*$D24,IF($E24="Distribution Rev.",VLOOKUP(W$4,'4. Billing Determinants'!$B$19:$P$41,8,0)/'4. Billing Determinants'!$I$41*$D24, VLOOKUP(W$4,'4. Billing Determinants'!$B$19:$P$41,3,0)/'4. Billing Determinants'!$D$41*$D24))))),0) -> 0 | X24: =IFERROR(IF(X$4="",0,IF($E24="kWh",VLOOKUP(X$4,'4. Billing Determinants'!$B$19:$P$41,4,0)/'4. Billing Determinants'!$E$41*$D24,IF($E24="kW",VLOOKUP(X$4,'4. Billing Determinants'!$B$19:$P$41,5,0)/'4. Billing Determinants'!$F$41*$D24,IF($E24="Non-RPP kWh",VLOOKUP(X$4,'4. Billing Determinants'!$B$19:$P$41,6,0)/'4. Billing Determinants'!$G$41*$D24,IF($E24="Distribution Rev.",VLOOKUP(X$4,'4. Billing Determinants'!$B$19:$P$41,8,0)/'4. Billing Determinants'!$I$41*$D24, VLOOKUP(X$4,'4. Billing Determinants'!$B$19:$P$41,3,0)/'4. Billing Determinants'!$D$41*$D24))))),0) -> 0 | Y24: =IFERROR(IF(Y$4="",0,IF($E24="kWh",VLOOKUP(Y$4,'4. Billing Determinants'!$B$19:$P$41,4,0)/'4. Billing Determinants'!$E$41*$D24,IF($E24="kW",VLOOKUP(Y$4,'4. Billing Determinants'!$B$19:$P$41,5,0)/'4. Billing Determinants'!$F$41*$D24,IF($E24="Non-RPP kWh",VLOOKUP(Y$4,'4. Billing Determinants'!$B$19:$P$41,6,0)/'4. Billing Determinants'!$G$41*$D24,IF($E24="Distribution Rev.",VLOOKUP(Y$4,'4. Billing Determinants'!$B$19:$P$41,8,0)/'4. Billing Determinants'!$I$41*$D24, VLOOKUP(Y$4,'4. Billing Determinants'!$B$19:$P$41,3,0)/'4. Billing Determinants'!$D$41*$D24))))),0) -> 0
B25: Misc. Deferred Debits | C25: 1525 | D25: ='2. 2014 Continuity Schedule'!CB49 -> 4234.46 | E25: kWh | F25: =IFERROR(IF(F$4="",0,IF($E25="kWh",VLOOKUP(F$4,'4. Billing Determinants'!$B$19:$P$41,4,0)/'4. Billing Determinants'!$E$41*$D25,IF($E25="kW",VLOOKUP(F$4,'4. Billing Determinants'!$B$19:$P$41,5,0)/'4. Billing Determinants'!$F$41*$D25,IF($E25="Non-RPP kWh",VLOOKUP(F$4,'4. Billing Determinants'!$B$19:$P$41,6,0)/'4. Billing Determinants'!$G$41*$D25,IF($E25="Distribution Rev.",VLOOKUP(F$4,'4. Billing Determinants'!$B$19:$P$41,8,0)/'4. Billing Determinants'!$I$41*$D25, VLOOKUP(F$4,'4. Billing Determinants'!$B$19:$P$41,3,0)/'4. Billing Determinants'!$D$41*$D25))))),0) -> 1269.21434 | G25: =IFERROR(IF(G$4="",0,IF($E25="kWh",VLOOKUP(G$4,'4. Billing Determinants'!$B$19:$P$41,4,0)/'4. Billing Determinants'!$E$41*$D25,IF($E25="kW",VLOOKUP(G$4,'4. Billing Determinants'!$B$19:$P$41,5,0)/'4. Billing Determinants'!$F$41*$D25,IF($E25="Non-RPP kWh",VLOOKUP(G$4,'4. Billing Determinants'!$B$19:$P$41,6,0)/'4. Billing Determinants'!$G$41*$D25,IF($E25="Distribution Rev.",VLOOKUP(G$4,'4. Billing Determinants'!$B$19:$P$41,8,0)/'4. Billing Determinants'!$I$41*$D25, VLOOKUP(G$4,'4. Billing Determinants'!$B$19:$P$41,3,0)/'4. Billing Determinants'!$D$41*$D25))))),0) -> 558.612561 | H25: =IFERROR(IF(H$4="",0,IF($E25="kWh",VLOOKUP(H$4,'4. Billing Determinants'!$B$19:$P$41,4,0)/'4. Billing Determinants'!$E$41*$D25,IF($E25="kW",VLOOKUP(H$4,'4. Billing Determinants'!$B$19:$P$41,5,0)/'4. Billing Determinants'!$F$41*$D25,IF($E25="Non-RPP kWh",VLOOKUP(H$4,'4. Billing Determinants'!$B$19:$P$41,6,0)/'4. Billing Determinants'!$G$41*$D25,IF($E25="Distribution Rev.",VLOOKUP(H$4,'4. Billing Determinants'!$B$19:$P$41,8,0)/'4. Billing Determinants'!$I$41*$D25, VLOOKUP(H$4,'4. Billing Determinants'!$B$19:$P$41,3,0)/'4. Billing Determinants'!$D$41*$D25))))),0) -> 1187.140089 | I25: =IFERROR(IF(I$4="",0,IF($E25="kWh",VLOOKUP(I$4,'4. Billing Determinants'!$B$19:$P$41,4,0)/'4. Billing Determinants'!$E$41*$D25,IF($E25="kW",VLOOKUP(I$4,'4. Billing Determinants'!$B$19:$P$41,5,0)/'4. Billing Determinants'!$F$41*$D25,IF($E25="Non-RPP kWh",VLOOKUP(I$4,'4. Billing Determinants'!$B$19:$P$41,6,0)/'4. Billing Determinants'!$G$41*$D25,IF($E25="Distribution Rev.",VLOOKUP(I$4,'4. Billing Determinants'!$B$19:$P$41,8,0)/'4. Billing Determinants'!$I$41*$D25, VLOOKUP(I$4,'4. Billing Determinants'!$B$19:$P$41,3,0)/'4. Billing Determinants'!$D$41*$D25))))),0) -> 1166.620872 | J25: =IFERROR(IF(J$4="",0,IF($E25="kWh",VLOOKUP(J$4,'4. Billing Determinants'!$B$19:$P$41,4,0)/'4. Billing Determinants'!$E$41*$D25,IF($E25="kW",VLOOKUP(J$4,'4. Billing Determinants'!$B$19:$P$41,5,0)/'4. Billing Determinants'!$F$41*$D25,IF($E25="Non-RPP kWh",VLOOKUP(J$4,'4. Billing Determinants'!$B$19:$P$41,6,0)/'4. Billing Determinants'!$G$41*$D25,IF($E25="Distribution Rev.",VLOOKUP(J$4,'4. Billing Determinants'!$B$19:$P$41,8,0)/'4. Billing Determinants'!$I$41*$D25, VLOOKUP(J$4,'4. Billing Determinants'!$B$19:$P$41,3,0)/'4. Billing Determinants'!$D$41*$D25))))),0) -> 1.070415656 | K25: =IFERROR(IF(K$4="",0,IF($E25="kWh",VLOOKUP(K$4,'4. Billing Determinants'!$B$19:$P$41,4,0)/'4. Billing Determinants'!$E$41*$D25,IF($E25="kW",VLOOKUP(K$4,'4. Billing Determinants'!$B$19:$P$41,5,0)/'4. Billing Determinants'!$F$41*$D25,IF($E25="Non-RPP kWh",VLOOKUP(K$4,'4. Billing Determinants'!$B$19:$P$41,6,0)/'4. Billing Determinants'!$G$41*$D25,IF($E25="Distribution Rev.",VLOOKUP(K$4,'4. Billing Determinants'!$B$19:$P$41,8,0)/'4. Billing Determinants'!$I$41*$D25, VLOOKUP(K$4,'4. Billing Determinants'!$B$19:$P$41,3,0)/'4. Billing Determinants'!$D$41*$D25))))),0) -> 51.80172182 | L25: =IFERROR(IF(L$4="",0,IF($E25="kWh",VLOOKUP(L$4,'4. Billing Determinants'!$B$19:$P$41,4,0)/'4. Billing Determinants'!$E$41*$D25,IF($E25="kW",VLOOKUP(L$4,'4. Billing Determinants'!$B$19:$P$41,5,0)/'4. Billing Determinants'!$F$41*$D25,IF($E25="Non-RPP kWh",VLOOKUP(L$4,'4. Billing Determinants'!$B$19:$P$41,6,0)/'4. Billing Determinants'!$G$41*$D25,IF($E25="Distribution Rev.",VLOOKUP(L$4,'4. Billing Determinants'!$B$19:$P$41,8,0)/'4. Billing Determinants'!$I$41*$D25, VLOOKUP(L$4,'4. Billing Determinants'!$B$19:$P$41,3,0)/'4. Billing Determinants'!$D$41*$D25))))),0) -> 0 | M25: =IFERROR(IF(M$4="",0,IF($E25="kWh",VLOOKUP(M$4,'4. Billing Determinants'!$B$19:$P$41,4,0)/'4. Billing Determinants'!$E$41*$D25,IF($E25="kW",VLOOKUP(M$4,'4. Billing Determinants'!$B$19:$P$41,5,0)/'4. Billing Determinants'!$F$41*$D25,IF($E25="Non-RPP kWh",VLOOKUP(M$4,'4. Billing Determinants'!$B$19:$P$41,6,0)/'4. Billing Determinants'!$G$41*$D25,IF($E25="Distribution Rev.",VLOOKUP(M$4,'4. Billing Determinants'!$B$19:$P$41,8,0)/'4. Billing Determinants'!$I$41*$D25, VLOOKUP(M$4,'4. Billing Determinants'!$B$19:$P$41,3,0)/'4. Billing Determinants'!$D$41*$D25))))),0) -> 0 | N25: =IFERROR(IF(N$4="",0,IF($E25="kWh",VLOOKUP(N$4,'4. Billing Determinants'!$B$19:$P$41,4,0)/'4. Billing Determinants'!$E$41*$D25,IF($E25="kW",VLOOKUP(N$4,'4. Billing Determinants'!$B$19:$P$41,5,0)/'4. Billing Determinants'!$F$41*$D25,IF($E25="Non-RPP kWh",VLOOKUP(N$4,'4. Billing Determinants'!$B$19:$P$41,6,0)/'4. Billing Determinants'!$G$41*$D25,IF($E25="Distribution Rev.",VLOOKUP(N$4,'4. Billing Determinants'!$B$19:$P$41,8,0)/'4. Billing Determinants'!$I$41*$D25, VLOOKUP(N$4,'4. Billing Determinants'!$B$19:$P$41,3,0)/'4. Billing Determinants'!$D$41*$D25))))),0) -> 0 | O25: =IFERROR(IF(O$4="",0,IF($E25="kWh",VLOOKUP(O$4,'4. Billing Determinants'!$B$19:$P$41,4,0)/'4. Billing Determinants'!$E$41*$D25,IF($E25="kW",VLOOKUP(O$4,'4. Billing Determinants'!$B$19:$P$41,5,0)/'4. Billing Determinants'!$F$41*$D25,IF($E25="Non-RPP kWh",VLOOKUP(O$4,'4. Billing Determinants'!$B$19:$P$41,6,0)/'4. Billing Determinants'!$G$41*$D25,IF($E25="Distribution Rev.",VLOOKUP(O$4,'4. Billing Determinants'!$B$19:$P$41,8,0)/'4. Billing Determinants'!$I$41*$D25, VLOOKUP(O$4,'4. Billing Determinants'!$B$19:$P$41,3,0)/'4. Billing Determinants'!$D$41*$D25))))),0) -> 0 | P25: =IFERROR(IF(P$4="",0,IF($E25="kWh",VLOOKUP(P$4,'4. Billing Determinants'!$B$19:$P$41,4,0)/'4. Billing Determinants'!$E$41*$D25,IF($E25="kW",VLOOKUP(P$4,'4. Billing Determinants'!$B$19:$P$41,5,0)/'4. Billing Determinants'!$F$41*$D25,IF($E25="Non-RPP kWh",VLOOKUP(P$4,'4. Billing Determinants'!$B$19:$P$41,6,0)/'4. Billing Determinants'!$G$41*$D25,IF($E25="Distribution Rev.",VLOOKUP(P$4,'4. Billing Determinants'!$B$19:$P$41,8,0)/'4. Billing Determinants'!$I$41*$D25, VLOOKUP(P$4,'4. Billing Determinants'!$B$19:$P$41,3,0)/'4. Billing Determinants'!$D$41*$D25))))),0) -> 0 | Q25: =IFERROR(IF(Q$4="",0,IF($E25="kWh",VLOOKUP(Q$4,'4. Billing Determinants'!$B$19:$P$41,4,0)/'4. Billing Determinants'!$E$41*$D25,IF($E25="kW",VLOOKUP(Q$4,'4. Billing Determinants'!$B$19:$P$41,5,0)/'4. Billing Determinants'!$F$41*$D25,IF($E25="Non-RPP kWh",VLOOKUP(Q$4,'4. Billing Determinants'!$B$19:$P$41,6,0)/'4. Billing Determinants'!$G$41*$D25,IF($E25="Distribution Rev.",VLOOKUP(Q$4,'4. Billing Determinants'!$B$19:$P$41,8,0)/'4. Billing Determinants'!$I$41*$D25, VLOOKUP(Q$4,'4. Billing Determinants'!$B$19:$P$41,3,0)/'4. Billing Determinants'!$D$41*$D25))))),0) -> 0 | R25: =IFERROR(IF(R$4="",0,IF($E25="kWh",VLOOKUP(R$4,'4. Billing Determinants'!$B$19:$P$41,4,0)/'4. Billing Determinants'!$E$41*$D25,IF($E25="kW",VLOOKUP(R$4,'4. Billing Determinants'!$B$19:$P$41,5,0)/'4. Billing Determinants'!$F$41*$D25,IF($E25="Non-RPP kWh",VLOOKUP(R$4,'4. Billing Determinants'!$B$19:$P$41,6,0)/'4. Billing Determinants'!$G$41*$D25,IF($E25="Distribution Rev.",VLOOKUP(R$4,'4. Billing Determinants'!$B$19:$P$41,8,0)/'4. Billing Determinants'!$I$41*$D25, VLOOKUP(R$4,'4. Billing Determinants'!$B$19:$P$41,3,0)/'4. Billing Determinants'!$D$41*$D25))))),0) -> 0 | S25: =IFERROR(IF(S$4="",0,IF($E25="kWh",VLOOKUP(S$4,'4. Billing Determinants'!$B$19:$P$41,4,0)/'4. Billing Determinants'!$E$41*$D25,IF($E25="kW",VLOOKUP(S$4,'4. Billing Determinants'!$B$19:$P$41,5,0)/'4. Billing Determinants'!$F$41*$D25,IF($E25="Non-RPP kWh",VLOOKUP(S$4,'4. Billing Determinants'!$B$19:$P$41,6,0)/'4. Billing Determinants'!$G$41*$D25,IF($E25="Distribution Rev.",VLOOKUP(S$4,'4. Billing Determinants'!$B$19:$P$41,8,0)/'4. Billing Determinants'!$I$41*$D25, VLOOKUP(S$4,'4. Billing Determinants'!$B$19:$P$41,3,0)/'4. Billing Determinants'!$D$41*$D25))))),0) -> 0 | T25: =IFERROR(IF(T$4="",0,IF($E25="kWh",VLOOKUP(T$4,'4. Billing Determinants'!$B$19:$P$41,4,0)/'4. Billing Determinants'!$E$41*$D25,IF($E25="kW",VLOOKUP(T$4,'4. Billing Determinants'!$B$19:$P$41,5,0)/'4. Billing Determinants'!$F$41*$D25,IF($E25="Non-RPP kWh",VLOOKUP(T$4,'4. Billing Determinants'!$B$19:$P$41,6,0)/'4. Billing Determinants'!$G$41*$D25,IF($E25="Distribution Rev.",VLOOKUP(T$4,'4. Billing Determinants'!$B$19:$P$41,8,0)/'4. Billing Determinants'!$I$41*$D25, VLOOKUP(T$4,'4. Billing Determinants'!$B$19:$P$41,3,0)/'4. Billing Determinants'!$D$41*$D25))))),0) -> 0 | U25: =IFERROR(IF(U$4="",0,IF($E25="kWh",VLOOKUP(U$4,'4. Billing Determinants'!$B$19:$P$41,4,0)/'4. Billing Determinants'!$E$41*$D25,IF($E25="kW",VLOOKUP(U$4,'4. Billing Determinants'!$B$19:$P$41,5,0)/'4. Billing Determinants'!$F$41*$D25,IF($E25="Non-RPP kWh",VLOOKUP(U$4,'4. Billing Determinants'!$B$19:$P$41,6,0)/'4. Billing Determinants'!$G$41*$D25,IF($E25="Distribution Rev.",VLOOKUP(U$4,'4. Billing Determinants'!$B$19:$P$41,8,0)/'4. Billing Determinants'!$I$41*$D25, VLOOKUP(U$4,'4. Billing Determinants'!$B$19:$P$41,3,0)/'4. Billing Determinants'!$D$41*$D25))))),0) -> 0 | V25: =IFERROR(IF(V$4="",0,IF($E25="kWh",VLOOKUP(V$4,'4. Billing Determinants'!$B$19:$P$41,4,0)/'4. Billing Determinants'!$E$41*$D25,IF($E25="kW",VLOOKUP(V$4,'4. Billing Determinants'!$B$19:$P$41,5,0)/'4. Billing Determinants'!$F$41*$D25,IF($E25="Non-RPP kWh",VLOOKUP(V$4,'4. Billing Determinants'!$B$19:$P$41,6,0)/'4. Billing Determinants'!$G$41*$D25,IF($E25="Distribution Rev.",VLOOKUP(V$4,'4. Billing Determinants'!$B$19:$P$41,8,0)/'4. Billing Determinants'!$I$41*$D25, VLOOKUP(V$4,'4. Billing Determinants'!$B$19:$P$41,3,0)/'4. Billing Determinants'!$D$41*$D25))))),0) -> 0 | W25: =IFERROR(IF(W$4="",0,IF($E25="kWh",VLOOKUP(W$4,'4. Billing Determinants'!$B$19:$P$41,4,0)/'4. Billing Determinants'!$E$41*$D25,IF($E25="kW",VLOOKUP(W$4,'4. Billing Determinants'!$B$19:$P$41,5,0)/'4. Billing Determinants'!$F$41*$D25,IF($E25="Non-RPP kWh",VLOOKUP(W$4,'4. Billing Determinants'!$B$19:$P$41,6,0)/'4. Billing Determinants'!$G$41*$D25,IF($E25="Distribution Rev.",VLOOKUP(W$4,'4. Billing Determinants'!$B$19:$P$41,8,0)/'4. Billing Determinants'!$I$41*$D25, VLOOKUP(W$4,'4. Billing Determinants'!$B$19:$P$41,3,0)/'4. Billing Determinants'!$D$41*$D25))))),0) -> 0 | X25: =IFERROR(IF(X$4="",0,IF($E25="kWh",VLOOKUP(X$4,'4. Billing Determinants'!$B$19:$P$41,4,0)/'4. Billing Determinants'!$E$41*$D25,IF($E25="kW",VLOOKUP(X$4,'4. Billing Determinants'!$B$19:$P$41,5,0)/'4. Billing Determinants'!$F$41*$D25,IF($E25="Non-RPP kWh",VLOOKUP(X$4,'4. Billing Determinants'!$B$19:$P$41,6,0)/'4. Billing Determinants'!$G$41*$D25,IF($E25="Distribution Rev.",VLOOKUP(X$4,'4. Billing Determinants'!$B$19:$P$41,8,0)/'4. Billing Determinants'!$I$41*$D25, VLOOKUP(X$4,'4. Billing Determinants'!$B$19:$P$41,3,0)/'4. Billing Determinants'!$D$41*$D25))))),0) -> 0 | Y25: =IFERROR(IF(Y$4="",0,IF($E25="kWh",VLOOKUP(Y$4,'4. Billing Determinants'!$B$19:$P$41,4,0)/'4. Billing Determinants'!$E$41*$D25,IF($E25="kW",VLOOKUP(Y$4,'4. Billing Determinants'!$B$19:$P$41,5,0)/'4. Billing Determinants'!$F$41*$D25,IF($E25="Non-RPP kWh",VLOOKUP(Y$4,'4. Billing Determinants'!$B$19:$P$41,6,0)/'4. Billing Determinants'!$G$41*$D25,IF($E25="Distribution Rev.",VLOOKUP(Y$4,'4. Billing Determinants'!$B$19:$P$41,8,0)/'4. Billing Determinants'!$I$41*$D25, VLOOKUP(Y$4,'4. Billing Determinants'!$B$19:$P$41,3,0)/'4. Billing Determinants'!$D$41*$D25))))),0) -> 0
